Workbook

Sheet Instructions
A1: Directions for Using the UHSAA SCORING SPREADSHEET
A2: for Region and State Theatre Meets:
A4: If you have any questions, please email Giselle Gremmert at giselle.gremmert@canyonsdistrict.org
A5: If there is an emergency the day of your meet, feel free to call or text at 801-391-7864
A6: Before you start... | C6: In the Tab Room...
A7: Refresh your memory on the Policies and Guidelines of the Competition. Rules are changing every year. Make sure you have the most updated information! | C7: If a school does not bring a full slate of pieces, you can leave boxes blank or enter a zero. Whichever makes sense for you.
A8: Please make sure you are using the correct spreadsheet for your classification. Region and State Spreadsheets are different! 1A/2A is different from 3A-6A! | C8: As scores come in to the tabulation room, enter their respective rank (1-4 or 1-6) and score (0-75). The spreadsheet should do all of the math for you from there.
A9: DO NOT, UNDER ANY CIRCUMSTANCES: delete a row or column, add a row or column. If you think there is a reason you need to do so, contact Giselle Gremmert first or you will likely ruin your whole spreadsheet. | C9: Once you have all of your scores in and you need to determine which pieces will go to the final medals round, click on the medals round tab at the bottom of the spreadsheet. There is one for each event. All you have to do is click on the "sort first by rank, then by score" button, and the top 5-8 pieces on the table will be eligible for Medals' Round.
A10: Each school should be assigned a letter code (ie. A, B, DD, etc…). You can type in which school belongs to which code on the Sweepstakes page of the score sheet. Do not try to add a school I or school O. The letters are skipped intentionally. | C10: Please note the drop-down menus for time violations. If a piece goes over or under time, you can just select the number of rounds that occurred in and the spreadsheet will do all the math for you. It will also strike out any piece that has a time violation in more than 1 round. This means it is ineligible to move on to State or go to Medals Round.
A11: You can type in student names and piece titles next to their assigned number on each of the event pages. | C11: PLEASE NOTE: If a school has 4 entries in an event, on the State spreadsheet, the lowest score will automatically be dropped. You won’t have to do anything. This feature is not in the Region scoresheet, so make sure you’re using the correct one.
A12: If you would like coaches to give you their entrant information in a convenient format for the spreadsheet, click on the Slate Entry Form URL below. It has everything divided into the correct number of boxes so you can more easily copy and paste into this spreasheet. (File -->Make a copy). | C12: Scores that turn the whole line yellow meet a point threshhold. At Region, that means the piece qualifies for State and receives a Superior Medal. At State, that means the piece receives a Superior Medal.
A13: https://docs.google.com/spreadsheets/d/1KvhAQPQFbuyZ23tB98sun25-0YTyifYxrCT7RtfStYE/edit?usp=sharing | C13: IF A STUDENT MAKES MEDALS ROUND, they qualify for State/receive a Superior Medal EVEN IF their point total does not automatically qualify them. Make sure to check for any outlier students so you don't miss giving them a medal/sending them to State. Their line may not be yellow.

Sheet Humorous Monologues
A1: Humorous Monologues | K1: Rank 1-4 | X1: S | Y1: E | Z1: G | AA1: F | AC1: 1violation | AD1: 2violations | AE1: 3violations
K2: Round 1: | M2: Round 2: | O2: Round 3: | Q2: -2 for each | AB2: Drops lowest from column q
H3: Student Name | J3: Title of Piece | K3: R1 rank | L3: R1 score | M3: R2 rank | N3: R2 score | O3: R3 rank | P3: R3 score | Q3: Time Violations | S3: TOTAL SCORE | U3: TOTAL RANK | X3: TOTAL SCHOOL SWEEPS POINTS | AB3: Drop Lowest
A4: A-101 | H4: 101 - Dylan | J4: Phone Call | K4: 4 | L4: 17 | M4: 3 | N4: 20 | O4: 4 | P4: 22 | Q4: 2violations | R4: =IF(Q4="1violation",-7*1,IF(Q4="2violations",-7*2,IF(Q4="3violations",-7*3,IF(Q4="","")))) -> -14 | S4: =SUM(L4,N4,P4,R4) -> 45 | U4: =SUM(K4,M4,O4) -> 11 | Y4: =SUM(S4,S6,S5,S7,-AB4) -> 181 | AB4: =MIN(S4:S7) -> 0
A5: A-102 | H5: 102 - Alicia | J5: Divorse Papers | K5: 4 | L5: 21 | M5: 4 | N5: 20 | O5: 4 | P5: 24 | R5: =IF(Q5="1violation",-7*1,IF(Q5="2violations",-7*2,IF(Q5="3violations",-7*3,IF(Q5="","")))) ->  | S5: =SUM(L5,N5,P5,R5) -> 65 | U5: =SUM(K5,M5,O5) -> 12
A6: A-103 | H6: 104 - Olivia | J6: Mono From Hell | K6: 4 | L6: 24 | M6: 2 | N6: 24 | O6: 4 | P6: 23 | R6: =IF(Q6="1violation",-7*1,IF(Q6="2violations",-7*2,IF(Q6="3violations",-7*3,IF(Q6="","")))) ->  | S6: =SUM(L6,N6,P6,R6) -> 71 | U6: =SUM(K6,M6,O6) -> 10
A7: A-104 | S7: =SUM(L7,N7,P7,R7) -> 0 | U7: =SUM(K7,M7,O7) -> 0
A9: B-101 | H9: 105 - Mark Tebbs | J9: Lunch Hour | K9: 4 | L9: 24 | M9: 2 | N9: 23 | O9: 2 | P9: 20 | S9: =SUM(L9,N9,P9,R9) -> 67 | U9: =SUM(K9,M9,O9) -> 8 | Y9: =SUM(S9,S11,S10,S12,-AB9) -> 136 | AB9: =MIN(S9:S12) -> 0
A10: B-102 | H10: 107 - Orin Hughes | J10: Scam Caller | K10: 4 | L10: 22 | M10: 4 | N10: 22 | O10: 4 | P10: 25 | S10: =SUM(L10,N10,P10,R10) -> 69 | U10: =SUM(K10,M10,O10) -> 12
A11: B-103 | S11: =SUM(L11,N11,P11,R11) -> 0 | U11: =SUM(K11,M11,O11) -> 0
A12: B-104 | S12: =SUM(L12,N12,P12,R12) -> 0 | U12: =SUM(K12,M12,O12) -> 0
A14: C-101 | H14: 108 - Ryan Nichols | J14: The Devil | K14: 2 | L14: 22 | M14: 1 | N14: 25 | O14: 1 | P14: 25 | S14: =SUM(L14,N14,P14,R14) -> 72 | U14: =SUM(K14,M14,O14) -> 4 | Y14: =SUM(S14,S16,S15,S17,-AB14) -> 216 | AB14: =MIN(S14:S17) -> 66
A15: C-102 | H15: 109 - Jay Cummens | J15: Silent Cell Phone | K15: 2 | L15: 25 | M15: 1 | N15: 23 | O15: 2 | P15: 24 | S15: =SUM(L15,N15,P15,R15) -> 72 | U15: =SUM(K15,M15,O15) -> 5
A16: C-103 | H16: 110 - Nathan Costello | J16: Lunch Time | K16: 1 | L16: 25 | M16: 4 | N16: 22 | O16: 2 | P16: 25 | S16: =SUM(L16,N16,P16,R16) -> 72 | U16: =SUM(K16,M16,O16) -> 7
A17: C-104 | H17: 111 - Destiny Fernandez | J17: Barbie | K17: 4 | L17: 21 | M17: 2 | N17: 23 | O17: 1 | P17: 22 | S17: =SUM(L17,N17,P17,R17) -> 66 | U17: =SUM(K17,M17,O17) -> 7
A19: D-101 | H19: 112 - Silas James | J19: Bartholomew | K19: 3 | L19: 24 | M19: 4 | N19: 20 | O19: 3 | P19: 25 | S19: =SUM(L19,N19,P19,R19) -> 69 | U19: =SUM(K19,M19,O19) -> 10 | Y19: =SUM(S19,S21,S20,S22,-AB19) -> 132 | AB19: =MIN(S19:S22) -> 0
A20: D-102 | H20: 113 - Stetsyn Lamb | J20: FFA Creed | K20: 3 | L20: 22 | M20: 4 | N20: 17 | O20: 3 | P20: 24 | S20: =SUM(L20,N20,P20,R20) -> 63 | U20: =SUM(K20,M20,O20) -> 10
A21: D-103 | S21: =SUM(L21,N21,P21,R21) -> 0 | U21: =SUM(K21,M21,O21) -> 0
A22: D-104 | S22: =SUM(L22,N22,P22,R22) -> 0 | U22: =SUM(K22,M22,O22) -> 0
A24: E-101 | H24: 106 Cari N | J24: Fashion | K24: 3 | L24: 22 | M24: 3 | N24: 23 | O24: 4 | P24: 15 | S24: =SUM(L24,N24,P24,R24) -> 60 | U24: =SUM(K24,M24,O24) -> 10 | Y24: =SUM(S24,S26,S25,S27,-AB24) -> 60 | AB24: =MIN(S24:S27) -> 0
A25: E-102 | S25: =SUM(L25,N25,P25,R25) -> 0 | U25: =SUM(K25,M25,O25) -> 0
A26: E-103 | S26: =SUM(L26,N26,P26,R26) -> 0 | U26: =SUM(K26,M26,O26) -> 0
A27: E-104 | S27: =SUM(L27,N27,P27,R27) -> 0 | U27: =SUM(K27,M27,O27) -> 0
A29: F-101 | S29: =SUM(L29,N29,P29,R29) -> 0 | U29: =SUM(K29,M29,O29) -> 0 | Y29: =SUM(S29,S31,S30,S32,-AB29) -> 0 | AB29: =MIN(S29:S32) -> 0
A30: F-102 | S30: =SUM(L30,N30,P30,R30) -> 0 | U30: =SUM(K30,M30,O30) -> 0
A31: F-103 | S31: =SUM(L31,N31,P31,R31) -> 0 | U31: =SUM(K31,M31,O31) -> 0
A32: F-104 | S32: =SUM(L32,N32,P32,R32) -> 0 | U32: =SUM(K32,M32,O32) -> 0
AG33: \
A34: G-101 | H34: 114 - Sam Wilcox | J34: SuperHero | K34: 1 | L34: 25 | M34: 3 | N34: 22 | O34: 3 | P34: 17 | S34: =SUM(L34,N34,P34,R34) -> 64 | U34: =SUM(K34,M34,O34) -> 7 | Y34: =SUM(S34,S36,S35,S37,-AB34) -> 121 | AB34: =MIN(S34:S37) -> 0 | AG34: 210
A35: G-102 | H35: 115 - Jacob Burton | J35: Jurassic Service/Unlucky Safety Inspector | K35: 2 | L35: 24 | M35: 4 | N35: 18 | O35: 4 | P35: 15 | S35: =SUM(L35,N35,P35,R35) -> 57 | U35: =SUM(K35,M35,O35) -> 10
A36: G-103 | S36: =SUM(L36,N36,P36,R36) -> 0 | U36: =SUM(K36,M36,O36) -> 0
A37: G-104 | S37: =SUM(L37,N37,P37,R37) -> 0 | U37: =SUM(K37,M37,O37) -> 0
A39: H-101 | H39: 116 - Tommy Sheeran | J39: The Grinch | K39: 1 | L39: 25 | M39: 1 | N39: 25 | O39: 1 | P39: 25 | S39: =SUM(L39,N39,P39,R39) -> 75 | U39: =SUM(K39,M39,O39) -> 3 | Y39: =SUM(S39,S41,S40,S42,-AB39) -> 75 | AB39: =MIN(S39:S42) -> 0
A40: H-102 | S40: =SUM(L40,N40,P40,R40) -> 0 | U40: =SUM(K40,M40,O40) -> 0
A41: H-103 | S41: =SUM(L41,N41,P41,R41) -> 0 | U41: =SUM(K41,M41,O41) -> 0
A42: H-104 | S42: =SUM(L42,N42,P42,R42) -> 0 | U42: =SUM(K42,M42,O42) -> 0
A44: J-101 | S44: =SUM(L44,N44,P44,R44) -> 0 | U44: =SUM(K44,M44,O44) -> 0 | Y44: =SUM(S44,S46,S45,S47,-AB44) -> 0 | AB44: =MIN(S44:S47) -> 0
A45: J-102 | S45: =SUM(L45,N45,P45,R45) -> 0 | U45: =SUM(K45,M45,O45) -> 0
A46: J-103 | S46: =SUM(L46,N46,P46,R46) -> 0 | U46: =SUM(K46,M46,O46) -> 0
A47: J-104 | S47: =SUM(L47,N47,P47,R47) -> 0 | U47: =SUM(K47,M47,O47) -> 0
A49: K-101 | H49: 117 - William Timm | J49: Civil Rights/Dear Chuck | K49: 4 | L49: 21 | M49: 4 | N49: 20 | O49: 4 | P49: 14 | S49: =SUM(L49,N49,P49,R49) -> 55 | U49: =SUM(K49,M49,O49) -> 12 | Y49: =SUM(S49,S51,S50,S52,-AB49) -> 55 | AB49: =MIN(S49:S52) -> 0
A50: K-102 | S50: =SUM(L50,N50,P50,R50) -> 0 | U50: =SUM(K50,M50,O50) -> 0
A51: K-103 | S51: =SUM(L51,N51,P51,R51) -> 0 | U51: =SUM(K51,M51,O51) -> 0
A52: K-104 | S52: =SUM(L52,N52,P52,R52) -> 0 | U52: =SUM(K52,M52,O52) -> 0
A54: L-101 | S54: =SUM(L54,N54,P54,R54) -> 0 | U54: =SUM(K54,M54,O54) -> 0 | Y54: =SUM(S54,S56,S55,S57,-AB54) -> 0 | AB54: =MIN(S54:S57) -> 0
A55: L-102 | S55: =SUM(L55,N55,P55,R55) -> 0 | U55: =SUM(K55,M55,O55) -> 0
A56: L-103 | S56: =SUM(L56,N56,P56,R56) -> 0 | U56: =SUM(K56,M56,O56) -> 0
A57: L-104 | S57: =SUM(L57,N57,P57,R57) -> 0 | U57: =SUM(K57,M57,O57) -> 0
A59: M-101 | S59: =SUM(L59,N59,P59,R59) -> 0 | U59: =SUM(K59,M59,O59) -> 0 | Y59: =SUM(S59,S61,S60,S62,-AB59) -> 0 | AB59: =MIN(S59:S62) -> 0
A60: M-102 | S60: =SUM(L60,N60,P60,R60) -> 0 | U60: =SUM(K60,M60,O60) -> 0
A61: M-103 | S61: =SUM(L61,N61,P61,R61) -> 0 | U61: =SUM(K61,M61,O61) -> 0
A62: M-104 | S62: =SUM(L62,N62,P62,R62) -> 0 | U62: =SUM(K62,M62,O62) -> 0
A64: N-101 | S64: =SUM(L64,N64,P64,R64) -> 0 | U64: =SUM(K64,M64,O64) -> 0 | Y64: =SUM(S64,S66,S65,S67,-AB64) -> 0 | AB64: =MIN(S64:S67) -> 0
A65: N-102 | S65: =SUM(L65,N65,P65,R65) -> 0 | U65: =SUM(K65,M65,O65) -> 0
A66: N-103 | S66: =SUM(L66,N66,P66,R66) -> 0 | U66: =SUM(K66,M66,O66) -> 0
A67: N-104 | S67: =SUM(L67,N67,P67,R67) -> 0 | U67: =SUM(K67,M67,O67) -> 0
A69: P-101 | R69: =IF(Q69="1violation",-7*1,IF(Q69="2violations",-7*2,IF(Q69="3violations",-7*3,IF(Q69="","")))) ->  | S69: =SUM(L69,N69,P69,R69) -> 0 | U69: =SUM(K69,M69,O69) -> 0 | Y69: =SUM(S69,S71,S70,S72,-AB69) -> 0 | AB69: =MIN(S69:S72) -> 0
A70: P-102 | S70: =SUM(L70,N70,P70,R70) -> 0 | U70: =SUM(K70,M70,O70) -> 0
A71: P-103 | S71: =SUM(L71,N71,P71,R71) -> 0 | U71: =SUM(K71,M71,O71) -> 0
A72: P-104 | S72: =SUM(L72,N72,P72,R72) -> 0 | U72: =SUM(K72,M72,O72) -> 0
A74: Q-101 | S74: =SUM(L74,N74,P74,R74) -> 0 | U74: =SUM(K74,M74,O74) -> 0 | Y74: =SUM(S74,S76,S75,S77,-AB74) -> 0 | AB74: =MIN(S74:S77) -> 0
A75: Q-102 | S75: =SUM(L75,N75,P75,R75) -> 0 | U75: =SUM(K75,M75,O75) -> 0
A76: Q-103 | S76: =SUM(L76,N76,P76,R76) -> 0 | U76: =SUM(K76,M76,O76) -> 0
A77: Q-104 | S77: =SUM(L77,N77,P77,R77) -> 0 | U77: =SUM(K77,M77,O77) -> 0
A79: R-101 | S79: =SUM(L79,N79,P79,R79) -> 0 | U79: =SUM(K79,M79,O79) -> 0 | Y79: =SUM(S79,S81,S80,S82,-AB79) -> 0 | AB79: =MIN(S79:S82) -> 0
A80: R-102 | S80: =SUM(L80,N80,P80,R80) -> 0 | U80: =SUM(K80,M80,O80) -> 0
A81: R-103 | S81: =SUM(L81,N81,P81,R81) -> 0 | U81: =SUM(K81,M81,O81) -> 0
A82: R-104 | S82: =SUM(L82,N82,P82,R82) -> 0 | U82: =SUM(K82,M82,O82) -> 0
A84: S-101 | S84: =SUM(L84,N84,P84,R84) -> 0 | U84: =SUM(K84,M84,O84) -> 0 | Y84: =SUM(S84,S86,S85,S87,-AB84) -> 0 | AB84: =MIN(S84:S87) -> 0
A85: S-102 | S85: =SUM(L85,N85,P85,R85) -> 0 | U85: =SUM(K85,M85,O85) -> 0
A86: S-103 | S86: =SUM(L86,N86,P86,R86) -> 0 | U86: =SUM(K86,M86,O86) -> 0
A87: S-104 | S87: =SUM(L87,N87,P87,R87) -> 0 | U87: =SUM(K87,M87,O87) -> 0
A89: T-101 | S89: =SUM(L89,N89,P89,R89) -> 0 | U89: =SUM(K89,M89,O89) -> 0 | Y89: =SUM(S89,S91,S90,S92,-AB89) -> 0 | AB89: =MIN(S89:S92) -> 0
A90: T-102 | S90: =SUM(L90,N90,P90,R90) -> 0 | U90: =SUM(K90,M90,O90) -> 0
A91: T-103 | S91: =SUM(L91,N91,P91,R91) -> 0 | U91: =SUM(K91,M91,O91) -> 0
A92: T-104 | S92: =SUM(L92,N92,P92,R92) -> 0 | U92: =SUM(K92,M92,O92) -> 0
A94: U-101 | S94: =SUM(L94,N94,P94,R94) -> 0 | U94: =SUM(K94,M94,O94) -> 0 | Y94: =SUM(S94,S96,S95,S97,-AB94) -> 0 | AB94: =MIN(S94:S97) -> 0
A95: U-102 | S95: =SUM(L95,N95,P95,R95) -> 0 | U95: =SUM(K95,M95,O95) -> 0
A96: U-103 | S96: =SUM(L96,N96,P96,R96) -> 0 | U96: =SUM(K96,M96,O96) -> 0
A97: U-104 | S97: =SUM(L97,N97,P97,R97) -> 0 | U97: =SUM(K97,M97,O97) -> 0
A99: V-101 | S99: =SUM(L99,N99,P99,R99) -> 0 | U99: =SUM(K99,M99,O99) -> 0 | Y99: =SUM(S99,S101,S100,S102,-AB99) -> 0 | AB99: =MIN(S99:S102) -> 0
A100: V-102 | S100: =SUM(L100,N100,P100,R100) -> 0 | U100: =SUM(K100,M100,O100) -> 0
A101: V-103 | S101: =SUM(L101,N101,P101,R101) -> 0 | U101: =SUM(K101,M101,O101) -> 0
A102: V-104 | S102: =SUM(L102,N102,P102,R102) -> 0 | U102: =SUM(K102,M102,O102) -> 0
A104: W-101 | S104: =SUM(L104,N104,P104,R104) -> 0 | U104: =SUM(K104,M104,O104) -> 0 | Y104: =SUM(S104,S106,S105,S107,-AB104) -> 0 | AB104: =MIN(S104:S107) -> 0
A105: W-102 | S105: =SUM(L105,N105,P105,R105) -> 0 | U105: =SUM(K105,M105,O105) -> 0
A106: W-103 | S106: =SUM(L106,N106,P106,R106) -> 0 | U106: =SUM(K106,M106,O106) -> 0
A107: W-104 | S107: =SUM(L107,N107,P107,R107) -> 0 | U107: =SUM(K107,M107,O107) -> 0
A109: X-101 | S109: =SUM(L109,N109,P109,R109) -> 0 | U109: =SUM(K109,M109,O109) -> 0 | Y109: =SUM(S109,S111,S110,S112,-AB109) -> 0 | AB109: =MIN(S109:S112) -> 0
A110: X-102 | S110: =SUM(L110,N110,P110,R110) -> 0 | U110: =SUM(K110,M110,O110) -> 0
A111: X-103 | S111: =SUM(L111,N111,P111,R111) -> 0 | U111: =SUM(K111,M111,O111) -> 0
A112: X-104 | S112: =SUM(L112,N112,P112,R112) -> 0 | U112: =SUM(K112,M112,O112) -> 0
A114: Y-101 | S114: =SUM(L114,N114,P114,R114) -> 0 | U114: =SUM(K114,M114,O114) -> 0 | Y114: =SUM(S114,S116,S115,S117,-AB114) -> 0 | AB114: =MIN(S114:S117) -> 0
A115: Y-102 | S115: =SUM(L115,N115,P115,R115) -> 0 | U115: =SUM(K115,M115,O115) -> 0
A116: Y-103 | S116: =SUM(L116,N116,P116,R116) -> 0 | U116: =SUM(K116,M116,O116) -> 0
A117: Y-104 | S117: =SUM(L117,N117,P117,R117) -> 0 | U117: =SUM(K117,M117,O117) -> 0
A119: Z-101 | S119: =SUM(L119,N119,P119,R119) -> 0 | U119: =SUM(K119,M119,O119) -> 0 | Y119: =SUM(S119,S121,S120,S122,-AB119) -> 0 | AB119: =MIN(S119:S122) -> 0
A120: Z-102 | S120: =SUM(L120,N120,P120,R120) -> 0 | U120: =SUM(K120,M120,O120) -> 0
A121: Z-103 | S121: =SUM(L121,N121,P121,R121) -> 0 | U121: =SUM(K121,M121,O121) -> 0
A122: Z-104 | S122: =SUM(L122,N122,P122,R122) -> 0 | U122: =SUM(K122,M122,O122) -> 0
A124: AA-101 | S124: =SUM(L124,N124,P124,R124) -> 0 | U124: =SUM(K124,M124,O124) -> 0 | Y124: =SUM(S124,S126,S125,S127,-AB124) -> 0 | AB124: =MIN(S124:S127) -> 0
A125: AA-102 | S125: =SUM(L125,N125,P125,R125) -> 0 | U125: =SUM(K125,M125,O125) -> 0
A126: AA-103 | S126: =SUM(L126,N126,P126,R126) -> 0 | U126: =SUM(K126,M126,O126) -> 0
A127: AA-104 | S127: =SUM(L127,N127,P127,R127) -> 0 | U127: =SUM(K127,M127,O127) -> 0
A129: BB-101 | S129: =SUM(L129,N129,P129,R129) -> 0 | U129: =SUM(K129,M129,O129) -> 0 | Y129: =SUM(S129,S131,S130,S132,-AB129) -> 0 | AB129: =MIN(S129:S132) -> 0
A130: BB-102 | S130: =SUM(L130,N130,P130,R130) -> 0 | U130: =SUM(K130,M130,O130) -> 0
A131: BB-103 | S131: =SUM(L131,N131,P131,R131) -> 0 | U131: =SUM(K131,M131,O131) -> 0
A132: BB-104 | S132: =SUM(L132,N132,P132,R132) -> 0 | U132: =SUM(K132,M132,O132) -> 0
A134: CC-101 | R134: =IF(Q134="1violation",-7*1,IF(Q134="2violations",-7*2,IF(Q134="3violations",-7*3,IF(Q134="","")))) ->  | S134: =SUM(L134,N134,P134,R134) -> 0 | U134: =SUM(K134,M134,O134) -> 0 | Y134: =SUM(S134,S136,S135,S137,-AB134) -> 0 | AB134: =MIN(S134:S137) -> 0
A135: CC-102 | S135: =SUM(L135,N135,P135,R135) -> 0 | U135: =SUM(K135,M135,O135) -> 0
A136: CC-103 | S136: =SUM(L136,N136,P136,R136) -> 0 | U136: =SUM(K136,M136,O136) -> 0
A137: CC-104 | S137: =SUM(L137,N137,P137,R137) -> 0 | U137: =SUM(K137,M137,O137) -> 0
A139: DD-101 | S139: =SUM(L139,N139,P139,R139) -> 0 | U139: =SUM(K139,M139,O139) -> 0 | Y139: =SUM(S139,S141,S140,S142,-AB139) -> 0 | AB139: =MIN(S139:S142) -> 0
A140: DD-102 | S140: =SUM(L140,N140,P140,R140) -> 0 | U140: =SUM(K140,M140,O140) -> 0
A141: DD-103 | S141: =SUM(L141,N141,P141,R141) -> 0 | U141: =SUM(K141,M141,O141) -> 0
A142: DD-104 | S142: =SUM(L142,N142,P142,R142) -> 0 | U142: =SUM(K142,M142,O142) -> 0
A144: EE-101 | S144: =SUM(L144,N144,P144,R144) -> 0 | U144: =SUM(K144,M144,O144) -> 0 | Y144: =SUM(S144,S146,S145,S147,-AB144) -> 0 | AB144: =MIN(S144:S147) -> 0
A145: EE-102 | S145: =SUM(L145,N145,P145,R145) -> 0 | U145: =SUM(K145,M145,O145) -> 0
A146: EE-103 | S146: =SUM(L146,N146,P146,R146) -> 0 | U146: =SUM(K146,M146,O146) -> 0
A147: EE-104 | S147: =SUM(L147,N147,P147,R147) -> 0 | U147: =SUM(K147,M147,O147) -> 0
A149: FF-101 | S149: =SUM(L149,N149,P149,R149) -> 0 | U149: =SUM(K149,M149,O149) -> 0 | Y149: =SUM(S149,S151,S150,S152,-AB149) -> 0 | AB149: =MIN(S149:S152) -> 0
A150: FF-102 | S150: =SUM(L150,N150,P150,R150) -> 0 | U150: =SUM(K150,M150,O150) -> 0
A151: FF-103 | S151: =SUM(L151,N151,P151,R151) -> 0 | U151: =SUM(K151,M151,O151) -> 0
A152: FF-104 | S152: =SUM(L152,N152,P152,R152) -> 0 | U152: =SUM(K152,M152,O152) -> 0

Sheet HumorousMR
A1: Humorous | E1: Finals Medals Round Scores
A2: ID | B2: Rank | C2: Score | D2: LeaveBlank | E2: MR 1 Rank | F2: MR 1 Score | G2: MR2 Rank | H2: MR 2 Score | I2: MR3 Rank | J2: MR 3 Score | K2: Total MR Rank | L2: Total MR Score
A3: ='Humorous Monologues'!A39 -> H-101 | B3: ='Humorous Monologues'!U39 -> 3 | C3: ='Humorous Monologues'!S39 -> 75 | D3: =IF((Table7[[#This Row],[Rank]]+Table7[[#This Row],[Score]])>0,1,0) -> 1 | E3: 2 | F3: 23 | G3: 1 | H3: 25 | I3: 1 | J3: 25 | K3: =SUM(E3,G3,I3) -> 4 | L3: =SUM(F3,H3,J3) -> 73
A4: ='Humorous Monologues'!A14 -> C-101 | B4: ='Humorous Monologues'!U14 -> 4 | C4: ='Humorous Monologues'!S14 -> 72 | D4: =IF((Table7[[#This Row],[Rank]]+Table7[[#This Row],[Score]])>0,1,0) -> 1 | E4: 3 | F4: 21 | G4: 2 | H4: 24 | I4: 5 | J4: 13 | K4: 10 | L4: 58
A5: ='Humorous Monologues'!A15 -> C-102 | B5: ='Humorous Monologues'!U15 -> 5 | C5: ='Humorous Monologues'!S15 -> 72 | D5: =IF((Table7[[#This Row],[Rank]]+Table7[[#This Row],[Score]])>0,1,0) -> 1 | E5: 6 | F5: 17 | G5: 3 | H5: 23 | I5: 2 | J5: 20 | K5: 11 | L5: 60
A6: ='Humorous Monologues'!A16 -> C-103 | B6: ='Humorous Monologues'!U16 -> 7 | C6: ='Humorous Monologues'!S16 -> 72 | D6: =IF((Table7[[#This Row],[Rank]]+Table7[[#This Row],[Score]])>0,1,0) -> 1 | E6: 5 | F6: 20 | G6: 6 | H6: 22 | I6: 6 | J6: 12 | K6: 17 | L6: 54
A7: ='Humorous Monologues'!A17 -> C-104 | B7: ='Humorous Monologues'!U17 -> 7 | C7: ='Humorous Monologues'!S17 -> 66 | D7: =IF((Table7[[#This Row],[Rank]]+Table7[[#This Row],[Score]])>0,1,0) -> 1 | E7: 4 | F7: 20 | G7: 4 | H7: 22 | I7: 3 | J7: 20 | K7: 11 | L7: 62
A8: ='Humorous Monologues'!A34 -> G-101 | B8: ='Humorous Monologues'!U34 -> 7 | C8: ='Humorous Monologues'!S34 -> 64 | D8: =IF((Table7[[#This Row],[Rank]]+Table7[[#This Row],[Score]])>0,1,0) -> 1 | E8: 1 | F8: 25 | G8: 5 | H8: 22 | I8: 4 | J8: 15 | K8: 10 | L8: 62
A9: ='Humorous Monologues'!A9 -> B-101 | B9: ='Humorous Monologues'!U9 -> 8 | C9: ='Humorous Monologues'!S9 -> 67 | D9: =IF((Table7[[#This Row],[Rank]]+Table7[[#This Row],[Score]])>0,1,0) -> 1 | K9: 0 | L9: 0
A10: ='Humorous Monologues'!A6 -> A-103 | B10: ='Humorous Monologues'!U6 -> 10 | C10: ='Humorous Monologues'!S6 -> 71 | D10: =IF((Table7[[#This Row],[Rank]]+Table7[[#This Row],[Score]])>0,1,0) -> 1 | K10: 0 | L10: 0
A11: ='Humorous Monologues'!A19 -> D-101 | B11: ='Humorous Monologues'!U19 -> 10 | C11: ='Humorous Monologues'!S19 -> 69 | D11: =IF((Table7[[#This Row],[Rank]]+Table7[[#This Row],[Score]])>0,1,0) -> 1 | K11: 0 | L11: 0
A12: ='Humorous Monologues'!A20 -> D-102 | B12: ='Humorous Monologues'!U20 -> 10 | C12: ='Humorous Monologues'!S20 -> 63 | D12: =IF((Table7[[#This Row],[Rank]]+Table7[[#This Row],[Score]])>0,1,0) -> 1 | K12: 0 | L12: 0
A13: ='Humorous Monologues'!A24 -> E-101 | B13: ='Humorous Monologues'!U24 -> 10 | C13: ='Humorous Monologues'!S24 -> 60 | D13: =IF((Table7[[#This Row],[Rank]]+Table7[[#This Row],[Score]])>0,1,0) -> 1 | K13: 0 | L13: 0
A14: ='Humorous Monologues'!A35 -> G-102 | B14: ='Humorous Monologues'!U35 -> 10 | C14: ='Humorous Monologues'!S35 -> 57 | D14: =IF((Table7[[#This Row],[Rank]]+Table7[[#This Row],[Score]])>0,1,0) -> 1 | K14: 0 | L14: 0
A15: ='Humorous Monologues'!A4 -> A-101 | B15: ='Humorous Monologues'!U4 -> 11 | C15: ='Humorous Monologues'!S4 -> 45 | D15: =IF((Table7[[#This Row],[Rank]]+Table7[[#This Row],[Score]])>0,1,0) -> 1 | K15: 0 | L15: 0
A16: ='Humorous Monologues'!A10 -> B-102 | B16: ='Humorous Monologues'!U10 -> 12 | C16: ='Humorous Monologues'!S10 -> 69 | D16: =IF((Table7[[#This Row],[Rank]]+Table7[[#This Row],[Score]])>0,1,0) -> 1 | K16: 0 | L16: 0
A17: ='Humorous Monologues'!A5 -> A-102 | B17: ='Humorous Monologues'!U5 -> 12 | C17: ='Humorous Monologues'!S5 -> 65 | D17: =IF((Table7[[#This Row],[Rank]]+Table7[[#This Row],[Score]])>0,1,0) -> 1 | K17: 0 | L17: 0
A18: ='Humorous Monologues'!A49 -> K-101 | B18: ='Humorous Monologues'!U49 -> 12 | C18: ='Humorous Monologues'!S49 -> 55 | D18: =IF((Table7[[#This Row],[Rank]]+Table7[[#This Row],[Score]])>0,1,0) -> 1 | K18: 0 | L18: 0
A19: ='Humorous Monologues'!A7 -> A-104 | B19: ='Humorous Monologues'!U7 -> 0 | C19: ='Humorous Monologues'!S7 -> 0 | D19: =IF((Table7[[#This Row],[Rank]]+Table7[[#This Row],[Score]])>0,1,0) -> 0 | K19: 0 | L19: 0
A20: ='Humorous Monologues'!A11 -> B-103 | B20: ='Humorous Monologues'!U11 -> 0 | C20: ='Humorous Monologues'!S11 -> 0 | D20: =IF((Table7[[#This Row],[Rank]]+Table7[[#This Row],[Score]])>0,1,0) -> 0 | K20: 0 | L20: 0
A21: ='Humorous Monologues'!A12 -> B-104 | B21: ='Humorous Monologues'!U12 -> 0 | C21: ='Humorous Monologues'!S12 -> 0 | D21: =IF((Table7[[#This Row],[Rank]]+Table7[[#This Row],[Score]])>0,1,0) -> 0 | K21: 0 | L21: 0
A22: ='Humorous Monologues'!A124 -> AA-101 | B22: ='Humorous Monologues'!U124 -> 0 | C22: ='Humorous Monologues'!S124 -> 0 | D22: =IF((Table7[[#This Row],[Rank]]+Table7[[#This Row],[Score]])>0,1,0) -> 0 | K22: 0 | L22: 0
A23: ='Humorous Monologues'!A125 -> AA-102 | B23: ='Humorous Monologues'!U125 -> 0 | C23: ='Humorous Monologues'!S125 -> 0 | D23: =IF((Table7[[#This Row],[Rank]]+Table7[[#This Row],[Score]])>0,1,0) -> 0 | K23: 0 | L23: 0
A24: ='Humorous Monologues'!A126 -> AA-103 | B24: ='Humorous Monologues'!U126 -> 0 | C24: ='Humorous Monologues'!S126 -> 0 | D24: =IF((Table7[[#This Row],[Rank]]+Table7[[#This Row],[Score]])>0,1,0) -> 0 | K24: 0 | L24: 0
A25: ='Humorous Monologues'!A127 -> AA-104 | B25: ='Humorous Monologues'!U127 -> 0 | C25: ='Humorous Monologues'!S127 -> 0 | D25: =IF((Table7[[#This Row],[Rank]]+Table7[[#This Row],[Score]])>0,1,0) -> 0 | K25: 0 | L25: 0
A26: ='Humorous Monologues'!A129 -> BB-101 | B26: ='Humorous Monologues'!U129 -> 0 | C26: ='Humorous Monologues'!S129 -> 0 | D26: =IF((Table7[[#This Row],[Rank]]+Table7[[#This Row],[Score]])>0,1,0) -> 0 | K26: 0 | L26: 0
A27: ='Humorous Monologues'!A130 -> BB-102 | B27: ='Humorous Monologues'!U130 -> 0 | C27: ='Humorous Monologues'!S130 -> 0 | D27: =IF((Table7[[#This Row],[Rank]]+Table7[[#This Row],[Score]])>0,1,0) -> 0 | K27: 0 | L27: 0
A28: ='Humorous Monologues'!A131 -> BB-103 | B28: ='Humorous Monologues'!U131 -> 0 | C28: ='Humorous Monologues'!S131 -> 0 | D28: =IF((Table7[[#This Row],[Rank]]+Table7[[#This Row],[Score]])>0,1,0) -> 0 | K28: 0 | L28: 0
A29: ='Humorous Monologues'!A132 -> BB-104 | B29: ='Humorous Monologues'!U132 -> 0 | C29: ='Humorous Monologues'!S132 -> 0 | D29: =IF((Table7[[#This Row],[Rank]]+Table7[[#This Row],[Score]])>0,1,0) -> 0 | K29: 0 | L29: 0
A30: ='Humorous Monologues'!A134 -> CC-101 | B30: ='Humorous Monologues'!U134 -> 0 | C30: ='Humorous Monologues'!S134 -> 0 | D30: =IF((Table7[[#This Row],[Rank]]+Table7[[#This Row],[Score]])>0,1,0) -> 0 | K30: 0 | L30: 0
A31: ='Humorous Monologues'!A135 -> CC-102 | B31: ='Humorous Monologues'!U135 -> 0 | C31: ='Humorous Monologues'!S135 -> 0 | D31: =IF((Table7[[#This Row],[Rank]]+Table7[[#This Row],[Score]])>0,1,0) -> 0 | K31: 0 | L31: 0
A32: ='Humorous Monologues'!A136 -> CC-103 | B32: ='Humorous Monologues'!U136 -> 0 | C32: ='Humorous Monologues'!S136 -> 0 | D32: =IF((Table7[[#This Row],[Rank]]+Table7[[#This Row],[Score]])>0,1,0) -> 0 | K32: 0 | L32: 0
A33: ='Humorous Monologues'!A137 -> CC-104 | B33: ='Humorous Monologues'!U137 -> 0 | C33: ='Humorous Monologues'!S137 -> 0 | D33: =IF((Table7[[#This Row],[Rank]]+Table7[[#This Row],[Score]])>0,1,0) -> 0 | K33: 0 | L33: 0
A34: ='Humorous Monologues'!A21 -> D-103 | B34: ='Humorous Monologues'!U21 -> 0 | C34: ='Humorous Monologues'!S21 -> 0 | D34: =IF((Table7[[#This Row],[Rank]]+Table7[[#This Row],[Score]])>0,1,0) -> 0 | K34: 0 | L34: 0
A35: ='Humorous Monologues'!A22 -> D-104 | B35: ='Humorous Monologues'!U22 -> 0 | C35: ='Humorous Monologues'!S22 -> 0 | D35: =IF((Table7[[#This Row],[Rank]]+Table7[[#This Row],[Score]])>0,1,0) -> 0 | K35: =SUM(E35,G35,I35) -> 0 | L35: =SUM(F35,H35,J35) -> 0
A36: ='Humorous Monologues'!A139 -> DD-101 | B36: ='Humorous Monologues'!U139 -> 0 | C36: ='Humorous Monologues'!S139 -> 0 | D36: =IF((Table7[[#This Row],[Rank]]+Table7[[#This Row],[Score]])>0,1,0) -> 0 | K36: 0 | L36: 0
A37: ='Humorous Monologues'!A140 -> DD-102 | B37: ='Humorous Monologues'!U140 -> 0 | C37: ='Humorous Monologues'!S140 -> 0 | D37: =IF((Table7[[#This Row],[Rank]]+Table7[[#This Row],[Score]])>0,1,0) -> 0 | K37: 0 | L37: 0
A38: ='Humorous Monologues'!A141 -> DD-103 | B38: ='Humorous Monologues'!U141 -> 0 | C38: ='Humorous Monologues'!S141 -> 0 | D38: =IF((Table7[[#This Row],[Rank]]+Table7[[#This Row],[Score]])>0,1,0) -> 0 | K38: 0 | L38: 0
A39: ='Humorous Monologues'!A142 -> DD-104 | B39: ='Humorous Monologues'!U142 -> 0 | C39: ='Humorous Monologues'!S142 -> 0 | D39: =IF((Table7[[#This Row],[Rank]]+Table7[[#This Row],[Score]])>0,1,0) -> 0 | K39: 0 | L39: 0
A40: ='Humorous Monologues'!A25 -> E-102 | B40: ='Humorous Monologues'!U25 -> 0 | C40: ='Humorous Monologues'!S25 -> 0 | D40: =IF((Table7[[#This Row],[Rank]]+Table7[[#This Row],[Score]])>0,1,0) -> 0 | K40: 0 | L40: 0
A41: ='Humorous Monologues'!A26 -> E-103 | B41: ='Humorous Monologues'!U26 -> 0 | C41: ='Humorous Monologues'!S26 -> 0 | D41: =IF((Table7[[#This Row],[Rank]]+Table7[[#This Row],[Score]])>0,1,0) -> 0 | K41: 0 | L41: 0
A42: ='Humorous Monologues'!A27 -> E-104 | B42: ='Humorous Monologues'!U27 -> 0 | C42: ='Humorous Monologues'!S27 -> 0 | D42: =IF((Table7[[#This Row],[Rank]]+Table7[[#This Row],[Score]])>0,1,0) -> 0 | K42: 0 | L42: 0
A43: ='Humorous Monologues'!A144 -> EE-101 | B43: ='Humorous Monologues'!U144 -> 0 | C43: ='Humorous Monologues'!S144 -> 0 | D43: =IF((Table7[[#This Row],[Rank]]+Table7[[#This Row],[Score]])>0,1,0) -> 0 | K43: 0 | L43: 0
A44: ='Humorous Monologues'!A145 -> EE-102 | B44: ='Humorous Monologues'!U145 -> 0 | C44: ='Humorous Monologues'!S145 -> 0 | D44: =IF((Table7[[#This Row],[Rank]]+Table7[[#This Row],[Score]])>0,1,0) -> 0 | K44: 0 | L44: 0
A45: ='Humorous Monologues'!A146 -> EE-103 | B45: ='Humorous Monologues'!U146 -> 0 | C45: ='Humorous Monologues'!S146 -> 0 | D45: =IF((Table7[[#This Row],[Rank]]+Table7[[#This Row],[Score]])>0,1,0) -> 0 | K45: 0 | L45: 0
A46: ='Humorous Monologues'!A147 -> EE-104 | B46: ='Humorous Monologues'!U147 -> 0 | C46: ='Humorous Monologues'!S147 -> 0 | D46: =IF((Table7[[#This Row],[Rank]]+Table7[[#This Row],[Score]])>0,1,0) -> 0 | K46: 0 | L46: 0
A47: ='Humorous Monologues'!A29 -> F-101 | B47: ='Humorous Monologues'!U29 -> 0 | C47: ='Humorous Monologues'!S29 -> 0 | D47: =IF((Table7[[#This Row],[Rank]]+Table7[[#This Row],[Score]])>0,1,0) -> 0 | K47: 0 | L47: 0
A48: ='Humorous Monologues'!A30 -> F-102 | B48: ='Humorous Monologues'!U30 -> 0 | C48: ='Humorous Monologues'!S30 -> 0 | D48: =IF((Table7[[#This Row],[Rank]]+Table7[[#This Row],[Score]])>0,1,0) -> 0 | K48: 0 | L48: 0
A49: ='Humorous Monologues'!A31 -> F-103 | B49: ='Humorous Monologues'!U31 -> 0 | C49: ='Humorous Monologues'!S31 -> 0 | D49: =IF((Table7[[#This Row],[Rank]]+Table7[[#This Row],[Score]])>0,1,0) -> 0 | K49: 0 | L49: 0
A50: ='Humorous Monologues'!A32 -> F-104 | B50: ='Humorous Monologues'!U32 -> 0 | C50: ='Humorous Monologues'!S32 -> 0 | D50: =IF((Table7[[#This Row],[Rank]]+Table7[[#This Row],[Score]])>0,1,0) -> 0 | K50: 0 | L50: 0
A51: ='Humorous Monologues'!A149 -> FF-101 | B51: ='Humorous Monologues'!U149 -> 0 | C51: ='Humorous Monologues'!S149 -> 0 | D51: =IF((Table7[[#This Row],[Rank]]+Table7[[#This Row],[Score]])>0,1,0) -> 0 | K51: 0 | L51: 0
A52: ='Humorous Monologues'!A150 -> FF-102 | B52: ='Humorous Monologues'!U150 -> 0 | C52: ='Humorous Monologues'!S150 -> 0 | D52: =IF((Table7[[#This Row],[Rank]]+Table7[[#This Row],[Score]])>0,1,0) -> 0 | K52: 0 | L52: 0
A53: ='Humorous Monologues'!A151 -> FF-103 | B53: ='Humorous Monologues'!U151 -> 0 | C53: ='Humorous Monologues'!S151 -> 0 | D53: =IF((Table7[[#This Row],[Rank]]+Table7[[#This Row],[Score]])>0,1,0) -> 0 | K53: 0 | L53: 0
A54: ='Humorous Monologues'!A152 -> FF-104 | B54: ='Humorous Monologues'!U152 -> 0 | C54: ='Humorous Monologues'!S152 -> 0 | D54: =IF((Table7[[#This Row],[Rank]]+Table7[[#This Row],[Score]])>0,1,0) -> 0 | K54: 0 | L54: 0
A55: ='Humorous Monologues'!A36 -> G-103 | B55: ='Humorous Monologues'!U36 -> 0 | C55: ='Humorous Monologues'!S36 -> 0 | D55: =IF((Table7[[#This Row],[Rank]]+Table7[[#This Row],[Score]])>0,1,0) -> 0 | K55: 0 | L55: 0
A56: ='Humorous Monologues'!A37 -> G-104 | B56: ='Humorous Monologues'!U37 -> 0 | C56: ='Humorous Monologues'!S37 -> 0 | D56: =IF((Table7[[#This Row],[Rank]]+Table7[[#This Row],[Score]])>0,1,0) -> 0 | K56: 0 | L56: 0
A57: ='Humorous Monologues'!A40 -> H-102 | B57: ='Humorous Monologues'!U40 -> 0 | C57: ='Humorous Monologues'!S40 -> 0 | D57: =IF((Table7[[#This Row],[Rank]]+Table7[[#This Row],[Score]])>0,1,0) -> 0 | K57: 0 | L57: 0
A58: ='Humorous Monologues'!A41 -> H-103 | B58: ='Humorous Monologues'!U41 -> 0 | C58: ='Humorous Monologues'!S41 -> 0 | D58: =IF((Table7[[#This Row],[Rank]]+Table7[[#This Row],[Score]])>0,1,0) -> 0 | K58: 0 | L58: 0
A59: ='Humorous Monologues'!A42 -> H-104 | B59: ='Humorous Monologues'!U42 -> 0 | C59: ='Humorous Monologues'!S42 -> 0 | D59: =IF((Table7[[#This Row],[Rank]]+Table7[[#This Row],[Score]])>0,1,0) -> 0 | K59: 0 | L59: 0
A60: ='Humorous Monologues'!A44 -> J-101 | B60: ='Humorous Monologues'!U44 -> 0 | C60: ='Humorous Monologues'!S44 -> 0 | D60: =IF((Table7[[#This Row],[Rank]]+Table7[[#This Row],[Score]])>0,1,0) -> 0 | K60: 0 | L60: 0
A61: ='Humorous Monologues'!A45 -> J-102 | B61: ='Humorous Monologues'!U45 -> 0 | C61: ='Humorous Monologues'!S45 -> 0 | D61: =IF((Table7[[#This Row],[Rank]]+Table7[[#This Row],[Score]])>0,1,0) -> 0 | K61: 0 | L61: 0
A62: ='Humorous Monologues'!A46 -> J-103 | B62: ='Humorous Monologues'!U46 -> 0 | C62: ='Humorous Monologues'!S46 -> 0 | D62: =IF((Table7[[#This Row],[Rank]]+Table7[[#This Row],[Score]])>0,1,0) -> 0 | K62: 0 | L62: 0
A63: ='Humorous Monologues'!A47 -> J-104 | B63: ='Humorous Monologues'!U47 -> 0 | C63: ='Humorous Monologues'!S47 -> 0 | D63: =IF((Table7[[#This Row],[Rank]]+Table7[[#This Row],[Score]])>0,1,0) -> 0 | K63: 0 | L63: 0
A64: ='Humorous Monologues'!A50 -> K-102 | B64: ='Humorous Monologues'!U50 -> 0 | C64: ='Humorous Monologues'!S50 -> 0 | D64: =IF((Table7[[#This Row],[Rank]]+Table7[[#This Row],[Score]])>0,1,0) -> 0 | K64: 0 | L64: 0
A65: ='Humorous Monologues'!A51 -> K-103 | B65: ='Humorous Monologues'!U51 -> 0 | C65: ='Humorous Monologues'!S51 -> 0 | D65: =IF((Table7[[#This Row],[Rank]]+Table7[[#This Row],[Score]])>0,1,0) -> 0 | K65: 0 | L65: 0
A66: ='Humorous Monologues'!A52 -> K-104 | B66: ='Humorous Monologues'!U52 -> 0 | C66: ='Humorous Monologues'!S52 -> 0 | D66: =IF((Table7[[#This Row],[Rank]]+Table7[[#This Row],[Score]])>0,1,0) -> 0 | K66: 0 | L66: 0
A67: ='Humorous Monologues'!A54 -> L-101 | B67: ='Humorous Monologues'!U54 -> 0 | C67: ='Humorous Monologues'!S54 -> 0 | D67: =IF((Table7[[#This Row],[Rank]]+Table7[[#This Row],[Score]])>0,1,0) -> 0 | K67: =SUM(E67,G67,I67) -> 0 | L67: =SUM(F67,H67,J67) -> 0
A68: ='Humorous Monologues'!A55 -> L-102 | B68: ='Humorous Monologues'!U55 -> 0 | C68: ='Humorous Monologues'!S55 -> 0 | D68: =IF((Table7[[#This Row],[Rank]]+Table7[[#This Row],[Score]])>0,1,0) -> 0 | K68: 0 | L68: 0
A69: ='Humorous Monologues'!A56 -> L-103 | B69: ='Humorous Monologues'!U56 -> 0 | C69: ='Humorous Monologues'!S56 -> 0 | D69: =IF((Table7[[#This Row],[Rank]]+Table7[[#This Row],[Score]])>0,1,0) -> 0 | K69: 0 | L69: 0
A70: ='Humorous Monologues'!A57 -> L-104 | B70: ='Humorous Monologues'!U57 -> 0 | C70: ='Humorous Monologues'!S57 -> 0 | D70: =IF((Table7[[#This Row],[Rank]]+Table7[[#This Row],[Score]])>0,1,0) -> 0 | K70: 0 | L70: 0
A71: ='Humorous Monologues'!A59 -> M-101 | B71: ='Humorous Monologues'!U59 -> 0 | C71: ='Humorous Monologues'!S59 -> 0 | D71: =IF((Table7[[#This Row],[Rank]]+Table7[[#This Row],[Score]])>0,1,0) -> 0 | K71: 0 | L71: 0
A72: ='Humorous Monologues'!A60 -> M-102 | B72: ='Humorous Monologues'!U60 -> 0 | C72: ='Humorous Monologues'!S60 -> 0 | D72: =IF((Table7[[#This Row],[Rank]]+Table7[[#This Row],[Score]])>0,1,0) -> 0 | K72: 0 | L72: 0
A73: ='Humorous Monologues'!A61 -> M-103 | B73: ='Humorous Monologues'!U61 -> 0 | C73: ='Humorous Monologues'!S61 -> 0 | D73: =IF((Table7[[#This Row],[Rank]]+Table7[[#This Row],[Score]])>0,1,0) -> 0 | K73: 0 | L73: 0
A74: ='Humorous Monologues'!A62 -> M-104 | B74: ='Humorous Monologues'!U62 -> 0 | C74: ='Humorous Monologues'!S62 -> 0 | D74: =IF((Table7[[#This Row],[Rank]]+Table7[[#This Row],[Score]])>0,1,0) -> 0 | K74: 0 | L74: 0
A75: ='Humorous Monologues'!A64 -> N-101 | B75: ='Humorous Monologues'!U64 -> 0 | C75: ='Humorous Monologues'!S64 -> 0 | D75: =IF((Table7[[#This Row],[Rank]]+Table7[[#This Row],[Score]])>0,1,0) -> 0 | K75: 0 | L75: 0
A76: ='Humorous Monologues'!A65 -> N-102 | B76: ='Humorous Monologues'!U65 -> 0 | C76: ='Humorous Monologues'!S65 -> 0 | D76: =IF((Table7[[#This Row],[Rank]]+Table7[[#This Row],[Score]])>0,1,0) -> 0 | K76: 0 | L76: 0
A77: ='Humorous Monologues'!A66 -> N-103 | B77: ='Humorous Monologues'!U66 -> 0 | C77: ='Humorous Monologues'!S66 -> 0 | D77: =IF((Table7[[#This Row],[Rank]]+Table7[[#This Row],[Score]])>0,1,0) -> 0 | K77: 0 | L77: 0
A78: ='Humorous Monologues'!A67 -> N-104 | B78: ='Humorous Monologues'!U67 -> 0 | C78: ='Humorous Monologues'!S67 -> 0 | D78: =IF((Table7[[#This Row],[Rank]]+Table7[[#This Row],[Score]])>0,1,0) -> 0 | K78: 0 | L78: 0
A79: ='Humorous Monologues'!A69 -> P-101 | B79: ='Humorous Monologues'!U69 -> 0 | C79: ='Humorous Monologues'!S69 -> 0 | D79: =IF((Table7[[#This Row],[Rank]]+Table7[[#This Row],[Score]])>0,1,0) -> 0 | K79: 0 | L79: 0
A80: ='Humorous Monologues'!A70 -> P-102 | B80: ='Humorous Monologues'!U70 -> 0 | C80: ='Humorous Monologues'!S70 -> 0 | D80: =IF((Table7[[#This Row],[Rank]]+Table7[[#This Row],[Score]])>0,1,0) -> 0 | K80: 0 | L80: 0
A81: ='Humorous Monologues'!A71 -> P-103 | B81: ='Humorous Monologues'!U71 -> 0 | C81: ='Humorous Monologues'!S71 -> 0 | D81: =IF((Table7[[#This Row],[Rank]]+Table7[[#This Row],[Score]])>0,1,0) -> 0 | K81: 0 | L81: 0
A82: ='Humorous Monologues'!A72 -> P-104 | B82: ='Humorous Monologues'!U72 -> 0 | C82: ='Humorous Monologues'!S72 -> 0 | D82: =IF((Table7[[#This Row],[Rank]]+Table7[[#This Row],[Score]])>0,1,0) -> 0 | K82: 0 | L82: 0
A83: ='Humorous Monologues'!A74 -> Q-101 | B83: ='Humorous Monologues'!U74 -> 0 | C83: ='Humorous Monologues'!S74 -> 0 | D83: =IF((Table7[[#This Row],[Rank]]+Table7[[#This Row],[Score]])>0,1,0) -> 0 | K83: 0 | L83: 0
A84: ='Humorous Monologues'!A75 -> Q-102 | B84: ='Humorous Monologues'!U75 -> 0 | C84: ='Humorous Monologues'!S75 -> 0 | D84: =IF((Table7[[#This Row],[Rank]]+Table7[[#This Row],[Score]])>0,1,0) -> 0 | K84: 0 | L84: 0
A85: ='Humorous Monologues'!A76 -> Q-103 | B85: ='Humorous Monologues'!U76 -> 0 | C85: ='Humorous Monologues'!S76 -> 0 | D85: =IF((Table7[[#This Row],[Rank]]+Table7[[#This Row],[Score]])>0,1,0) -> 0 | K85: 0 | L85: 0
A86: ='Humorous Monologues'!A77 -> Q-104 | B86: ='Humorous Monologues'!U77 -> 0 | C86: ='Humorous Monologues'!S77 -> 0 | D86: =IF((Table7[[#This Row],[Rank]]+Table7[[#This Row],[Score]])>0,1,0) -> 0 | K86: 0 | L86: 0
A87: ='Humorous Monologues'!A79 -> R-101 | B87: ='Humorous Monologues'!U79 -> 0 | C87: ='Humorous Monologues'!S79 -> 0 | D87: =IF((Table7[[#This Row],[Rank]]+Table7[[#This Row],[Score]])>0,1,0) -> 0 | K87: 0 | L87: 0
A88: ='Humorous Monologues'!A80 -> R-102 | B88: ='Humorous Monologues'!U80 -> 0 | C88: ='Humorous Monologues'!S80 -> 0 | D88: =IF((Table7[[#This Row],[Rank]]+Table7[[#This Row],[Score]])>0,1,0) -> 0 | K88: 0 | L88: 0
A89: ='Humorous Monologues'!A81 -> R-103 | B89: ='Humorous Monologues'!U81 -> 0 | C89: ='Humorous Monologues'!S81 -> 0 | D89: =IF((Table7[[#This Row],[Rank]]+Table7[[#This Row],[Score]])>0,1,0) -> 0 | K89: 0 | L89: 0
A90: ='Humorous Monologues'!A82 -> R-104 | B90: ='Humorous Monologues'!U82 -> 0 | C90: ='Humorous Monologues'!S82 -> 0 | D90: =IF((Table7[[#This Row],[Rank]]+Table7[[#This Row],[Score]])>0,1,0) -> 0 | K90: 0 | L90: 0
A91: ='Humorous Monologues'!A84 -> S-101 | B91: ='Humorous Monologues'!U84 -> 0 | C91: ='Humorous Monologues'!S84 -> 0 | D91: =IF((Table7[[#This Row],[Rank]]+Table7[[#This Row],[Score]])>0,1,0) -> 0 | K91: 0 | L91: 0
A92: ='Humorous Monologues'!A85 -> S-102 | B92: ='Humorous Monologues'!U85 -> 0 | C92: ='Humorous Monologues'!S85 -> 0 | D92: =IF((Table7[[#This Row],[Rank]]+Table7[[#This Row],[Score]])>0,1,0) -> 0 | K92: 0 | L92: 0
A93: ='Humorous Monologues'!A86 -> S-103 | B93: ='Humorous Monologues'!U86 -> 0 | C93: ='Humorous Monologues'!S86 -> 0 | D93: =IF((Table7[[#This Row],[Rank]]+Table7[[#This Row],[Score]])>0,1,0) -> 0 | K93: 0 | L93: 0
A94: ='Humorous Monologues'!A87 -> S-104 | B94: ='Humorous Monologues'!U87 -> 0 | C94: ='Humorous Monologues'!S87 -> 0 | D94: =IF((Table7[[#This Row],[Rank]]+Table7[[#This Row],[Score]])>0,1,0) -> 0 | K94: 0 | L94: 0
A95: ='Humorous Monologues'!A89 -> T-101 | B95: ='Humorous Monologues'!U89 -> 0 | C95: ='Humorous Monologues'!S89 -> 0 | D95: =IF((Table7[[#This Row],[Rank]]+Table7[[#This Row],[Score]])>0,1,0) -> 0 | K95: 0 | L95: 0
A96: ='Humorous Monologues'!A90 -> T-102 | B96: ='Humorous Monologues'!U90 -> 0 | C96: ='Humorous Monologues'!S90 -> 0 | D96: =IF((Table7[[#This Row],[Rank]]+Table7[[#This Row],[Score]])>0,1,0) -> 0 | K96: 0 | L96: 0
A97: ='Humorous Monologues'!A91 -> T-103 | B97: ='Humorous Monologues'!U91 -> 0 | C97: ='Humorous Monologues'!S91 -> 0 | D97: =IF((Table7[[#This Row],[Rank]]+Table7[[#This Row],[Score]])>0,1,0) -> 0 | K97: 0 | L97: 0
A98: ='Humorous Monologues'!A92 -> T-104 | B98: ='Humorous Monologues'!U92 -> 0 | C98: ='Humorous Monologues'!S92 -> 0 | D98: =IF((Table7[[#This Row],[Rank]]+Table7[[#This Row],[Score]])>0,1,0) -> 0 | K98: 0 | L98: 0
A99: ='Humorous Monologues'!A94 -> U-101 | B99: ='Humorous Monologues'!U94 -> 0 | C99: ='Humorous Monologues'!S94 -> 0 | D99: =IF((Table7[[#This Row],[Rank]]+Table7[[#This Row],[Score]])>0,1,0) -> 0 | K99: =SUM(E99,G99,I99) -> 0 | L99: =SUM(F99,H99,J99) -> 0
A100: ='Humorous Monologues'!A95 -> U-102 | B100: ='Humorous Monologues'!U95 -> 0 | C100: ='Humorous Monologues'!S95 -> 0 | D100: =IF((Table7[[#This Row],[Rank]]+Table7[[#This Row],[Score]])>0,1,0) -> 0 | K100: 0 | L100: 0
A101: ='Humorous Monologues'!A96 -> U-103 | B101: ='Humorous Monologues'!U96 -> 0 | C101: ='Humorous Monologues'!S96 -> 0 | D101: =IF((Table7[[#This Row],[Rank]]+Table7[[#This Row],[Score]])>0,1,0) -> 0 | K101: 0 | L101: 0
A102: ='Humorous Monologues'!A97 -> U-104 | B102: ='Humorous Monologues'!U97 -> 0 | C102: ='Humorous Monologues'!S97 -> 0 | D102: =IF((Table7[[#This Row],[Rank]]+Table7[[#This Row],[Score]])>0,1,0) -> 0 | K102: 0 | L102: 0
A103: ='Humorous Monologues'!A99 -> V-101 | B103: ='Humorous Monologues'!U99 -> 0 | C103: ='Humorous Monologues'!S99 -> 0 | D103: =IF((Table7[[#This Row],[Rank]]+Table7[[#This Row],[Score]])>0,1,0) -> 0 | K103: 0 | L103: 0
A104: ='Humorous Monologues'!A100 -> V-102 | B104: ='Humorous Monologues'!U100 -> 0 | C104: ='Humorous Monologues'!S100 -> 0 | D104: =IF((Table7[[#This Row],[Rank]]+Table7[[#This Row],[Score]])>0,1,0) -> 0 | K104: 0 | L104: 0
A105: ='Humorous Monologues'!A101 -> V-103 | B105: ='Humorous Monologues'!U101 -> 0 | C105: ='Humorous Monologues'!S101 -> 0 | D105: =IF((Table7[[#This Row],[Rank]]+Table7[[#This Row],[Score]])>0,1,0) -> 0 | K105: 0 | L105: 0
A106: ='Humorous Monologues'!A102 -> V-104 | B106: ='Humorous Monologues'!U102 -> 0 | C106: ='Humorous Monologues'!S102 -> 0 | D106: =IF((Table7[[#This Row],[Rank]]+Table7[[#This Row],[Score]])>0,1,0) -> 0 | K106: 0 | L106: 0
A107: ='Humorous Monologues'!A104 -> W-101 | B107: ='Humorous Monologues'!U104 -> 0 | C107: ='Humorous Monologues'!S104 -> 0 | D107: =IF((Table7[[#This Row],[Rank]]+Table7[[#This Row],[Score]])>0,1,0) -> 0 | K107: 0 | L107: 0
A108: ='Humorous Monologues'!A105 -> W-102 | B108: ='Humorous Monologues'!U105 -> 0 | C108: ='Humorous Monologues'!S105 -> 0 | D108: =IF((Table7[[#This Row],[Rank]]+Table7[[#This Row],[Score]])>0,1,0) -> 0 | K108: 0 | L108: 0
A109: ='Humorous Monologues'!A106 -> W-103 | B109: ='Humorous Monologues'!U106 -> 0 | C109: ='Humorous Monologues'!S106 -> 0 | D109: =IF((Table7[[#This Row],[Rank]]+Table7[[#This Row],[Score]])>0,1,0) -> 0 | K109: 0 | L109: 0
A110: ='Humorous Monologues'!A107 -> W-104 | B110: ='Humorous Monologues'!U107 -> 0 | C110: ='Humorous Monologues'!S107 -> 0 | D110: =IF((Table7[[#This Row],[Rank]]+Table7[[#This Row],[Score]])>0,1,0) -> 0 | K110: 0 | L110: 0
A111: ='Humorous Monologues'!A109 -> X-101 | B111: ='Humorous Monologues'!U109 -> 0 | C111: ='Humorous Monologues'!S109 -> 0 | D111: =IF((Table7[[#This Row],[Rank]]+Table7[[#This Row],[Score]])>0,1,0) -> 0 | K111: 0 | L111: 0
A112: ='Humorous Monologues'!A110 -> X-102 | B112: ='Humorous Monologues'!U110 -> 0 | C112: ='Humorous Monologues'!S110 -> 0 | D112: =IF((Table7[[#This Row],[Rank]]+Table7[[#This Row],[Score]])>0,1,0) -> 0 | K112: 0 | L112: 0
A113: ='Humorous Monologues'!A111 -> X-103 | B113: ='Humorous Monologues'!U111 -> 0 | C113: ='Humorous Monologues'!S111 -> 0 | D113: =IF((Table7[[#This Row],[Rank]]+Table7[[#This Row],[Score]])>0,1,0) -> 0 | K113: 0 | L113: 0
A114: ='Humorous Monologues'!A112 -> X-104 | B114: ='Humorous Monologues'!U112 -> 0 | C114: ='Humorous Monologues'!S112 -> 0 | D114: =IF((Table7[[#This Row],[Rank]]+Table7[[#This Row],[Score]])>0,1,0) -> 0 | K114: 0 | L114: 0
A115: ='Humorous Monologues'!A114 -> Y-101 | B115: ='Humorous Monologues'!U114 -> 0 | C115: ='Humorous Monologues'!S114 -> 0 | D115: =IF((Table7[[#This Row],[Rank]]+Table7[[#This Row],[Score]])>0,1,0) -> 0 | K115: 0 | L115: 0
A116: ='Humorous Monologues'!A115 -> Y-102 | B116: ='Humorous Monologues'!U115 -> 0 | C116: ='Humorous Monologues'!S115 -> 0 | D116: =IF((Table7[[#This Row],[Rank]]+Table7[[#This Row],[Score]])>0,1,0) -> 0 | K116: 0 | L116: 0
A117: ='Humorous Monologues'!A116 -> Y-103 | B117: ='Humorous Monologues'!U116 -> 0 | C117: ='Humorous Monologues'!S116 -> 0 | D117: =IF((Table7[[#This Row],[Rank]]+Table7[[#This Row],[Score]])>0,1,0) -> 0 | K117: 0 | L117: 0
A118: ='Humorous Monologues'!A117 -> Y-104 | B118: ='Humorous Monologues'!U117 -> 0 | C118: ='Humorous Monologues'!S117 -> 0 | D118: =IF((Table7[[#This Row],[Rank]]+Table7[[#This Row],[Score]])>0,1,0) -> 0 | K118: 0 | L118: 0
A119: ='Humorous Monologues'!A119 -> Z-101 | B119: ='Humorous Monologues'!U119 -> 0 | C119: ='Humorous Monologues'!S119 -> 0 | D119: =IF((Table7[[#This Row],[Rank]]+Table7[[#This Row],[Score]])>0,1,0) -> 0 | K119: 0 | L119: 0
A120: ='Humorous Monologues'!A120 -> Z-102 | B120: ='Humorous Monologues'!U120 -> 0 | C120: ='Humorous Monologues'!S120 -> 0 | D120: =IF((Table7[[#This Row],[Rank]]+Table7[[#This Row],[Score]])>0,1,0) -> 0 | K120: 0 | L120: 0
A121: ='Humorous Monologues'!A121 -> Z-103 | B121: ='Humorous Monologues'!U121 -> 0 | C121: ='Humorous Monologues'!S121 -> 0 | D121: =IF((Table7[[#This Row],[Rank]]+Table7[[#This Row],[Score]])>0,1,0) -> 0 | K121: 0 | L121: 0
A122: ='Humorous Monologues'!A122 -> Z-104 | B122: ='Humorous Monologues'!U122 -> 0 | C122: ='Humorous Monologues'!S122 -> 0 | D122: =IF((Table7[[#This Row],[Rank]]+Table7[[#This Row],[Score]])>0,1,0) -> 0 | K122: 0 | L122: 0

Sheet Dramatic
A1: Dramatic Monologues | K1: Rank 1-4 | X1: S | Y1: E | Z1: G | AA1: F | AC1: 1violation | AD1: 2violations | AE1: 3violations
K2: Round 1: | M2: Round 2: | O2: Round 3: | Q2: -2 for each | AB2: Drops lowest from column q
H3: Student Name | J3: Title of Piece | K3: R1 rank | L3: R1 score | M3: R2 rank | N3: R2 score | O3: R3 rank | P3: R3 score | Q3: Time Violations | S3: TOTAL SCORE | U3: TOTAL RANK | X3: TOTAL SCHOOL SWEEPS POINTS | AB3: Drop Lowest
A4: A-201 | H4: 201 - Abby | J4: Come Stay Go | K4: 4 | L4: 17 | M4: 4 | N4: 22 | O4: 3 | P4: 22 | R4: =IF(Q4="1violation",-7*1,IF(Q4="2violations",-7*2,IF(Q4="3violations",-7*3,IF(Q4="","")))) ->  | S4: =SUM(L4,N4,P4,R4) -> 61 | U4: =SUM(K4,M4,O4) -> 11 | Y4: =SUM(S4,S6,S5,S7,-AB4) -> 191 | AB4: =MIN(S4:S7) -> 60
A5: A-202 | H5: 202 - Bells | J5: Fathers Blue Eyes | K5: 2 | L5: 25 | M5: 4 | N5: 15 | O5: 3 | P5: 20 | R5: =IF(Q5="1violation",-7*1,IF(Q5="2violations",-7*2,IF(Q5="3violations",-7*3,IF(Q5="","")))) ->  | S5: =SUM(L5,N5,P5,R5) -> 60 | U5: =SUM(K5,M5,O5) -> 9
A6: A-203 | H6: 203 - Maya | J6: Bluebird | K6: 4 | L6: 18 | M6: 1 | N6: 25 | O6: 1 | P6: 24 | S6: =SUM(L6,N6,P6,R6) -> 67 | U6: =SUM(K6,M6,O6) -> 6
A7: A-204 | H7: 204 - Sonia | J7: Notebook | K7: 4 | L7: 25 | M7: 4 | N7: 20 | O7: 4 | P7: 18 | S7: =SUM(L7,N7,P7,R7) -> 63 | U7: =SUM(K7,M7,O7) -> 12
A9: B-201 | S9: =SUM(L9,N9,P9,R9) -> 0 | U9: =SUM(K9,M9,O9) -> 0 | Y9: =SUM(S9,S11,S10,S12,-AB9) -> 67 | AB9: =MIN(S9:S12) -> 0
A10: B-202 | H10: 206 - Jaren Henrie | J10: Dust in Eyes | K10: 3 | L10: 25 | M10: 3 | N10: 23 | O10: 4 | P10: 19 | S10: =SUM(L10,N10,P10,R10) -> 67 | U10: =SUM(K10,M10,O10) -> 10
A11: B-203 | S11: =SUM(L11,N11,P11,R11) -> 0 | U11: =SUM(K11,M11,O11) -> 0
A12: B-204 | S12: =SUM(L12,N12,P12,R12) -> 0 | U12: =SUM(K12,M12,O12) -> 0
A14: C-201 | H14: 207 - Hunter Stewart | J14: Julius | K14: 3 | L14: 20 | M14: 2 | N14: 21 | O14: 4 | P14: 22 | S14: =SUM(L14,N14,P14,R14) -> 63 | U14: =SUM(K14,M14,O14) -> 9 | Y14: =SUM(S14,S16,S15,S17,-AB14) -> 63 | AB14: =MIN(S14:S17) -> 0
A15: C-202 | S15: =SUM(L15,N15,P15,R15) -> 0 | U15: =SUM(K15,M15,O15) -> 0
A16: C-203 | S16: =SUM(L16,N16,P16,R16) -> 0 | U16: =SUM(K16,M16,O16) -> 0
A17: C-204 | S17: =SUM(L17,N17,P17,R17) -> 0 | U17: =SUM(K17,M17,O17) -> 0
A19: D-201 | H19: 210 - Ian Faddis | J19: I Hate Hamlet | K19: 4 | L19: 25 | M19: 4 | N19: 17 | O19: 4 | P19: 22 | S19: =SUM(L19,N19,P19,R19) -> 64 | U19: =SUM(K19,M19,O19) -> 12 | Y19: =SUM(S19,S21,S20,S22,-AB19) -> 131 | AB19: =MIN(S19:S22) -> 0
A20: D-202 | H20: 211 - Kylee Pace | J20: Ride Cylcone | K20: 1 | L20: 21 | M20: 4 | N20: 23 | O20: 2 | P20: 23 | S20: =SUM(L20,N20,P20,R20) -> 67 | U20: =SUM(K20,M20,O20) -> 7
A21: D-203 | S21: =SUM(L21,N21,P21,R21) -> 0 | U21: =SUM(K21,M21,O21) -> 0
A22: D-204 | S22: =SUM(L22,N22,P22,R22) -> 0 | U22: =SUM(K22,M22,O22) -> 0
A24: E-201 | H24: 212 - Josh Lamore | J24: Person in Mirror | K24: 1 | L24: 25 | M24: 2 | N24: 23 | O24: 4 | P24: 18 | S24: =SUM(L24,N24,P24,R24) -> 66 | U24: =SUM(K24,M24,O24) -> 7 | Y24: =SUM(S24,S26,S25,S27,-AB24) -> 66 | AB24: =MIN(S24:S27) -> 0
A25: E-202 | S25: =SUM(L25,N25,P25,R25) -> 0 | U25: =SUM(K25,M25,O25) -> 0
A26: E-203 | S26: =SUM(L26,N26,P26,R26) -> 0 | U26: =SUM(K26,M26,O26) -> 0
A27: E-204 | S27: =SUM(L27,N27,P27,R27) -> 0 | U27: =SUM(K27,M27,O27) -> 0
A29: F-201 | S29: =SUM(L29,N29,P29,R29) -> 0 | U29: =SUM(K29,M29,O29) -> 0 | Y29: =SUM(S29,S31,S30,S32,-AB29) -> 0 | AB29: =MIN(S29:S32) -> 0
A30: F-202 | S30: =SUM(L30,N30,P30,R30) -> 0 | U30: =SUM(K30,M30,O30) -> 0
A31: F-203 | S31: =SUM(L31,N31,P31,R31) -> 0 | U31: =SUM(K31,M31,O31) -> 0
A32: F-204 | S32: =SUM(L32,N32,P32,R32) -> 0 | U32: =SUM(K32,M32,O32) -> 0
A34: G-201 | H34: 213 - Payton McClure | J34: Why She Did It | K34: 4 | L34: 16 | M34: 4 | N34: 22 | O34: 2 | P34: 22 | S34: =SUM(L34,N34,P34,R34) -> 60 | U34: =SUM(K34,M34,O34) -> 10 | Y34: =SUM(S34,S36,S35,S37,-AB34) -> 191 | AB34: =MIN(S34:S37) -> 60
A35: G-202 | H35: 214 - Mackenzie McClure | J35: Stay With Me | K35: 4 | L35: 25 | M35: 3 | N35: 18 | O35: 4 | P35: 20 | S35: =SUM(L35,N35,P35,R35) -> 63 | U35: =SUM(K35,M35,O35) -> 11
A36: G-203 | H36: 215 - Harley Atwood | J36: Not Sorry | K36: 2 | L36: 20 | M36: 4 | N36: 18 | O36: 1 | P36: 24 | S36: =SUM(L36,N36,P36,R36) -> 62 | U36: =SUM(K36,M36,O36) -> 7
A37: G-204 | H37: 216 - Logan Wilcox | J37: Dark Reflections | K37: 4 | L37: 25 | M37: 1 | N37: 23 | O37: 4 | P37: 18 | S37: =SUM(L37,N37,P37,R37) -> 66 | U37: =SUM(K37,M37,O37) -> 9
A39: H-201 | S39: =SUM(L39,N39,P39,R39) -> 0 | U39: =SUM(K39,M39,O39) -> 0 | Y39: =SUM(S39,S41,S40,S42,-AB39) -> 0 | AB39: =MIN(S39:S42) -> 0
A40: H-202 | S40: =SUM(L40,N40,P40,R40) -> 0 | U40: =SUM(K40,M40,O40) -> 0
A41: H-203 | S41: =SUM(L41,N41,P41,R41) -> 0 | U41: =SUM(K41,M41,O41) -> 0
A42: H-204 | S42: =SUM(L42,N42,P42,R42) -> 0 | U42: =SUM(K42,M42,O42) -> 0
A44: J-201 | S44: =SUM(L44,N44,P44,R44) -> 0 | U44: =SUM(K44,M44,O44) -> 0 | Y44: =SUM(S44,S46,S45,S47,-AB44) -> 0 | AB44: =MIN(S44:S47) -> 0
A45: J-202 | S45: =SUM(L45,N45,P45,R45) -> 0 | U45: =SUM(K45,M45,O45) -> 0
A46: J-203 | S46: =SUM(L46,N46,P46,R46) -> 0 | U46: =SUM(K46,M46,O46) -> 0
A47: J-204 | S47: =SUM(L47,N47,P47,R47) -> 0 | U47: =SUM(K47,M47,O47) -> 0
A49: K-201 | S49: =SUM(L49,N49,P49,R49) -> 0 | U49: =SUM(K49,M49,O49) -> 0 | Y49: =SUM(S49,S51,S50,S52,-AB49) -> 0 | AB49: =MIN(S49:S52) -> 0
A50: K-202 | S50: =SUM(L50,N50,P50,R50) -> 0 | U50: =SUM(K50,M50,O50) -> 0
A51: K-203 | S51: =SUM(L51,N51,P51,R51) -> 0 | U51: =SUM(K51,M51,O51) -> 0
A52: K-204 | S52: =SUM(L52,N52,P52,R52) -> 0 | U52: =SUM(K52,M52,O52) -> 0
A54: L-201 | S54: =SUM(L54,N54,P54,R54) -> 0 | U54: =SUM(K54,M54,O54) -> 0 | Y54: =SUM(S54,S56,S55,S57,-AB54) -> 0 | AB54: =MIN(S54:S57) -> 0
A55: L-202 | S55: =SUM(L55,N55,P55,R55) -> 0 | U55: =SUM(K55,M55,O55) -> 0
A56: L-203 | S56: =SUM(L56,N56,P56,R56) -> 0 | U56: =SUM(K56,M56,O56) -> 0
A57: L-204 | S57: =SUM(L57,N57,P57,R57) -> 0 | U57: =SUM(K57,M57,O57) -> 0
A59: M-201 | S59: =SUM(L59,N59,P59,R59) -> 0 | U59: =SUM(K59,M59,O59) -> 0 | Y59: =SUM(S59,S61,S60,S62,-AB59) -> 0 | AB59: =MIN(S59:S62) -> 0
A60: M-202 | S60: =SUM(L60,N60,P60,R60) -> 0 | U60: =SUM(K60,M60,O60) -> 0
A61: M-203 | S61: =SUM(L61,N61,P61,R61) -> 0 | U61: =SUM(K61,M61,O61) -> 0
A62: M-204 | S62: =SUM(L62,N62,P62,R62) -> 0 | U62: =SUM(K62,M62,O62) -> 0
A64: N-201 | S64: =SUM(L64,N64,P64,R64) -> 0 | U64: =SUM(K64,M64,O64) -> 0 | Y64: =SUM(S64,S66,S65,S67,-AB64) -> 0 | AB64: =MIN(S64:S67) -> 0
A65: N-202 | S65: =SUM(L65,N65,P65,R65) -> 0 | U65: =SUM(K65,M65,O65) -> 0
A66: N-203 | S66: =SUM(L66,N66,P66,R66) -> 0 | U66: =SUM(K66,M66,O66) -> 0
A67: N-204 | S67: =SUM(L67,N67,P67,R67) -> 0 | U67: =SUM(K67,M67,O67) -> 0
A69: P-201 | S69: =SUM(L69,N69,P69,R69) -> 0 | U69: =SUM(K69,M69,O69) -> 0 | Y69: =SUM(S69,S71,S70,S72,-AB69) -> 0 | AB69: =MIN(S69:S72) -> 0
A70: P-202 | S70: =SUM(L70,N70,P70,R70) -> 0 | U70: =SUM(K70,M70,O70) -> 0
A71: P-203 | S71: =SUM(L71,N71,P71,R71) -> 0 | U71: =SUM(K71,M71,O71) -> 0
A72: P-204 | S72: =SUM(L72,N72,P72,R72) -> 0 | U72: =SUM(K72,M72,O72) -> 0
A74: Q-201 | S74: =SUM(L74,N74,P74,R74) -> 0 | U74: =SUM(K74,M74,O74) -> 0 | Y74: =SUM(S74,S76,S75,S77,-AB74) -> 0 | AB74: =MIN(S74:S77) -> 0
A75: Q-202 | S75: =SUM(L75,N75,P75,R75) -> 0 | U75: =SUM(K75,M75,O75) -> 0
A76: Q-203 | S76: =SUM(L76,N76,P76,R76) -> 0 | U76: =SUM(K76,M76,O76) -> 0
A77: Q-204 | S77: =SUM(L77,N77,P77,R77) -> 0 | U77: =SUM(K77,M77,O77) -> 0
A79: R-201 | S79: =SUM(L79,N79,P79,R79) -> 0 | U79: =SUM(K79,M79,O79) -> 0 | Y79: =SUM(S79,S81,S80,S82,-AB79) -> 0 | AB79: =MIN(S79:S82) -> 0
A80: R-202 | S80: =SUM(L80,N80,P80,R80) -> 0 | U80: =SUM(K80,M80,O80) -> 0
A81: R-203 | S81: =SUM(L81,N81,P81,R81) -> 0 | U81: =SUM(K81,M81,O81) -> 0
A82: R-204 | S82: =SUM(L82,N82,P82,R82) -> 0 | U82: =SUM(K82,M82,O82) -> 0
A84: S-201 | S84: =SUM(L84,N84,P84,R84) -> 0 | U84: =SUM(K84,M84,O84) -> 0 | Y84: =SUM(S84,S86,S85,S87,-AB84) -> 0 | AB84: =MIN(S84:S87) -> 0
A85: S-202 | R85: =IF(Q85="1violation",-7*1,IF(Q85="2violations",-7*2,IF(Q85="3violations",-7*3,IF(Q85="","")))) ->  | S85: =SUM(L85,N85,P85,R85) -> 0 | U85: =SUM(K85,M85,O85) -> 0
A86: S-203 | S86: =SUM(L86,N86,P86,R86) -> 0 | U86: =SUM(K86,M86,O86) -> 0
A87: S-204 | S87: =SUM(L87,N87,P87,R87) -> 0 | U87: =SUM(K87,M87,O87) -> 0
A89: T-201 | S89: =SUM(L89,N89,P89,R89) -> 0 | U89: =SUM(K89,M89,O89) -> 0 | Y89: =SUM(S89,S91,S90,S92,-AB89) -> 0 | AB89: =MIN(S89:S92) -> 0
A90: T-202 | S90: =SUM(L90,N90,P90,R90) -> 0 | U90: =SUM(K90,M90,O90) -> 0
A91: T-203 | S91: =SUM(L91,N91,P91,R91) -> 0 | U91: =SUM(K91,M91,O91) -> 0
A92: T-204 | S92: =SUM(L92,N92,P92,R92) -> 0 | U92: =SUM(K92,M92,O92) -> 0
A94: U-201 | S94: =SUM(L94,N94,P94,R94) -> 0 | U94: =SUM(K94,M94,O94) -> 0 | Y94: =SUM(S94,S96,S95,S97,-AB94) -> 0 | AB94: =MIN(S94:S97) -> 0
A95: U-202 | S95: =SUM(L95,N95,P95,R95) -> 0 | U95: =SUM(K95,M95,O95) -> 0
A96: U-203 | S96: =SUM(L96,N96,P96,R96) -> 0 | U96: =SUM(K96,M96,O96) -> 0
A97: U-204 | S97: =SUM(L97,N97,P97,R97) -> 0 | U97: =SUM(K97,M97,O97) -> 0
A99: V-201 | S99: =SUM(L99,N99,P99,R99) -> 0 | U99: =SUM(K99,M99,O99) -> 0 | Y99: =SUM(S99,S101,S100,S102,-AB99) -> 0 | AB99: =MIN(S99:S102) -> 0
A100: V-202 | S100: =SUM(L100,N100,P100,R100) -> 0 | U100: =SUM(K100,M100,O100) -> 0
A101: V-203 | S101: =SUM(L101,N101,P101,R101) -> 0 | U101: =SUM(K101,M101,O101) -> 0
A102: V-204 | S102: =SUM(L102,N102,P102,R102) -> 0 | U102: =SUM(K102,M102,O102) -> 0
A104: W-201 | S104: =SUM(L104,N104,P104,R104) -> 0 | U104: =SUM(K104,M104,O104) -> 0 | Y104: =SUM(S104,S106,S105,S107,-AB104) -> 0 | AB104: =MIN(S104:S107) -> 0
A105: W-202 | S105: =SUM(L105,N105,P105,R105) -> 0 | U105: =SUM(K105,M105,O105) -> 0
A106: W-203 | S106: =SUM(L106,N106,P106,R106) -> 0 | U106: =SUM(K106,M106,O106) -> 0
A107: W-204 | S107: =SUM(L107,N107,P107,R107) -> 0 | U107: =SUM(K107,M107,O107) -> 0
A109: X-201 | S109: =SUM(L109,N109,P109,R109) -> 0 | U109: =SUM(K109,M109,O109) -> 0 | Y109: =SUM(S109,S111,S110,S112,-AB109) -> 0 | AB109: =MIN(S109:S112) -> 0
A110: X-202 | S110: =SUM(L110,N110,P110,R110) -> 0 | U110: =SUM(K110,M110,O110) -> 0
A111: X-203 | S111: =SUM(L111,N111,P111,R111) -> 0 | U111: =SUM(K111,M111,O111) -> 0
A112: X-204 | S112: =SUM(L112,N112,P112,R112) -> 0 | U112: =SUM(K112,M112,O112) -> 0
A114: Y-201 | S114: =SUM(L114,N114,P114,R114) -> 0 | U114: =SUM(K114,M114,O114) -> 0 | Y114: =SUM(S114,S116,S115,S117,-AB114) -> 0 | AB114: =MIN(S114:S117) -> 0
A115: Y-202 | S115: =SUM(L115,N115,P115,R115) -> 0 | U115: =SUM(K115,M115,O115) -> 0
A116: Y-203 | S116: =SUM(L116,N116,P116,R116) -> 0 | U116: =SUM(K116,M116,O116) -> 0
A117: Y-204 | S117: =SUM(L117,N117,P117,R117) -> 0 | U117: =SUM(K117,M117,O117) -> 0
A119: Z-201 | S119: =SUM(L119,N119,P119,R119) -> 0 | U119: =SUM(K119,M119,O119) -> 0 | Y119: =SUM(S119,S121,S120,S122,-AB119) -> 0 | AB119: =MIN(S119:S122) -> 0
A120: Z-202 | S120: =SUM(L120,N120,P120,R120) -> 0 | U120: =SUM(K120,M120,O120) -> 0
A121: Z-203 | S121: =SUM(L121,N121,P121,R121) -> 0 | U121: =SUM(K121,M121,O121) -> 0
A122: Z-204 | S122: =SUM(L122,N122,P122,R122) -> 0 | U122: =SUM(K122,M122,O122) -> 0
A124: AA-201 | S124: =SUM(L124,N124,P124,R124) -> 0 | U124: =SUM(K124,M124,O124) -> 0 | Y124: =SUM(S124,S126,S125,S127,-AB124) -> 0 | AB124: =MIN(S124:S127) -> 0
A125: AA-202 | S125: =SUM(L125,N125,P125,R125) -> 0 | U125: =SUM(K125,M125,O125) -> 0
A126: AA-203 | S126: =SUM(L126,N126,P126,R126) -> 0 | U126: =SUM(K126,M126,O126) -> 0
A127: AA-204 | S127: =SUM(L127,N127,P127,R127) -> 0 | U127: =SUM(K127,M127,O127) -> 0
A129: BB-201 | S129: =SUM(L129,N129,P129,R129) -> 0 | U129: =SUM(K129,M129,O129) -> 0 | Y129: =SUM(S129,S131,S130,S132,-AB129) -> 0 | AB129: =MIN(S129:S132) -> 0
A130: BB-202 | S130: =SUM(L130,N130,P130,R130) -> 0 | U130: =SUM(K130,M130,O130) -> 0
A131: BB-203 | S131: =SUM(L131,N131,P131,R131) -> 0 | U131: =SUM(K131,M131,O131) -> 0
A132: BB-204 | S132: =SUM(L132,N132,P132,R132) -> 0 | U132: =SUM(K132,M132,O132) -> 0
A134: CC-201 | S134: =SUM(L134,N134,P134,R134) -> 0 | U134: =SUM(K134,M134,O134) -> 0 | Y134: =SUM(S134,S136,S135,S137,-AB134) -> 0 | AB134: =MIN(S134:S137) -> 0
A135: CC-202 | S135: =SUM(L135,N135,P135,R135) -> 0 | U135: =SUM(K135,M135,O135) -> 0
A136: CC-203 | S136: =SUM(L136,N136,P136,R136) -> 0 | U136: =SUM(K136,M136,O136) -> 0
A137: CC-204 | S137: =SUM(L137,N137,P137,R137) -> 0 | U137: =SUM(K137,M137,O137) -> 0
A139: DD-201 | S139: =SUM(L139,N139,P139,R139) -> 0 | U139: =SUM(K139,M139,O139) -> 0 | Y139: =SUM(S139,S141,S140,S142,-AB139) -> 0 | AB139: =MIN(S139:S142) -> 0
A140: DD-202 | S140: =SUM(L140,N140,P140,R140) -> 0 | U140: =SUM(K140,M140,O140) -> 0
A141: DD-203 | S141: =SUM(L141,N141,P141,R141) -> 0 | U141: =SUM(K141,M141,O141) -> 0
A142: DD-204 | S142: =SUM(L142,N142,P142,R142) -> 0 | U142: =SUM(K142,M142,O142) -> 0
A144: EE-201 | S144: =SUM(L144,N144,P144,R144) -> 0 | U144: =SUM(K144,M144,O144) -> 0 | Y144: =SUM(S144,S146,S145,S147,-AB144) -> 0 | AB144: =MIN(S144:S147) -> 0
A145: EE-202 | S145: =SUM(L145,N145,P145,R145) -> 0 | U145: =SUM(K145,M145,O145) -> 0
A146: EE-203 | S146: =SUM(L146,N146,P146,R146) -> 0 | U146: =SUM(K146,M146,O146) -> 0
A147: EE-204 | S147: =SUM(L147,N147,P147,R147) -> 0 | U147: =SUM(K147,M147,O147) -> 0
A149: FF-201 | S149: =SUM(L149,N149,P149,R149) -> 0 | U149: =SUM(K149,M149,O149) -> 0 | Y149: =SUM(S149,S151,S150,S152,-AB149) -> 0 | AB149: =MIN(S149:S152) -> 0
A150: FF-202 | S150: =SUM(L150,N150,P150,R150) -> 0 | U150: =SUM(K150,M150,O150) -> 0
A151: FF-203 | S151: =SUM(L151,N151,P151,R151) -> 0 | U151: =SUM(K151,M151,O151) -> 0
A152: FF-204 | S152: =SUM(L152,N152,P152,R152) -> 0 | U152: =SUM(K152,M152,O152) -> 0

Sheet DramaticMR
A1: Dramatic | E1: Finals Medals Round Scores
A2: ID | B2: Rank | C2: Score | D2: LeaveBlank | E2: MR 1 Rank | F2: MR 1 Score | G2: MR2 Rank | H2: MR 2 Score | I2: MR3 Rank | J2: MR 3 Score | K2: Total MR Rank | L2: Total MR Score
A3: =Dramatic!A6 -> A-203 | B3: =Dramatic!U6 -> 6 | C3: =Dramatic!S6 -> 67 | D3: =IF((Table710[[#This Row],[Rank]]+Table710[[#This Row],[Score]])>0,1,0) -> 1 | E3: 5 | F3: 23 | G3: 3 | H3: 23 | I3: 1 | J3: 25 | K3: =SUM(E3,G3,I3) -> 9 | L3: =SUM(F3,H3,J3) -> 71
A4: =Dramatic!A20 -> D-202 | B4: =Dramatic!U20 -> 7 | C4: =Dramatic!S20 -> 67 | D4: =IF((Table710[[#This Row],[Rank]]+Table710[[#This Row],[Score]])>0,1,0) -> 1 | E4: 6 | F4: 22 | G4: 4 | H4: 22 | I4: 3 | J4: 24 | K4: 13 | L4: 68
A5: =Dramatic!A24 -> E-201 | B5: =Dramatic!U24 -> 7 | C5: =Dramatic!S24 -> 66 | D5: =IF((Table710[[#This Row],[Rank]]+Table710[[#This Row],[Score]])>0,1,0) -> 1 | E5: 6 | F5: 22 | G5: 2 | H5: 23 | I5: 4 | J5: 23 | K5: 12 | L5: 68
A6: =Dramatic!A36 -> G-203 | B6: =Dramatic!U36 -> 7 | C6: =Dramatic!S36 -> 62 | D6: =IF((Table710[[#This Row],[Rank]]+Table710[[#This Row],[Score]])>0,1,0) -> 1 | E6: 1 | F6: 25 | G6: 5 | H6: 21 | I6: 2 | J6: 24 | K6: 8 | L6: 70
A7: =Dramatic!A37 -> G-204 | B7: =Dramatic!U37 -> 9 | C7: =Dramatic!S37 -> 66 | D7: =IF((Table710[[#This Row],[Rank]]+Table710[[#This Row],[Score]])>0,1,0) -> 1 | E7: 4 | F7: 23 | G7: 6 | H7: 20 | I7: 5 | J7: 23 | K7: 15 | L7: 66
A8: =Dramatic!A14 -> C-201 | B8: =Dramatic!U14 -> 9 | C8: =Dramatic!S14 -> 63 | D8: =IF((Table710[[#This Row],[Rank]]+Table710[[#This Row],[Score]])>0,1,0) -> 1 | E8: 2 | F8: 25 | G8: 1 | H8: 25 | I8: 6 | J8: 23 | K8: 9 | L8: 73
A9: =Dramatic!A5 -> A-202 | B9: =Dramatic!U5 -> 9 | C9: =Dramatic!S5 -> 60 | D9: =IF((Table710[[#This Row],[Rank]]+Table710[[#This Row],[Score]])>0,1,0) -> 1 | E9: 3 | F9: 25 | G9: 6 | H9: 19 | I9: 6 | J9: 22 | K9: 15 | L9: 66
A10: =Dramatic!A10 -> B-202 | B10: =Dramatic!U10 -> 10 | C10: =Dramatic!S10 -> 67 | D10: =IF((Table710[[#This Row],[Rank]]+Table710[[#This Row],[Score]])>0,1,0) -> 1 | K10: 0 | L10: 0
A11: =Dramatic!A34 -> G-201 | B11: =Dramatic!U34 -> 10 | C11: =Dramatic!S34 -> 60 | D11: =IF((Table710[[#This Row],[Rank]]+Table710[[#This Row],[Score]])>0,1,0) -> 1 | K11: 0 | L11: 0
A12: =Dramatic!A35 -> G-202 | B12: =Dramatic!U35 -> 11 | C12: =Dramatic!S35 -> 63 | D12: =IF((Table710[[#This Row],[Rank]]+Table710[[#This Row],[Score]])>0,1,0) -> 1 | K12: 0 | L12: 0
A13: =Dramatic!A4 -> A-201 | B13: =Dramatic!U4 -> 11 | C13: =Dramatic!S4 -> 61 | D13: =IF((Table710[[#This Row],[Rank]]+Table710[[#This Row],[Score]])>0,1,0) -> 1 | K13: 0 | L13: 0
A14: =Dramatic!A19 -> D-201 | B14: =Dramatic!U19 -> 12 | C14: =Dramatic!S19 -> 64 | D14: =IF((Table710[[#This Row],[Rank]]+Table710[[#This Row],[Score]])>0,1,0) -> 1 | K14: 0 | L14: 0
A15: =Dramatic!A7 -> A-204 | B15: =Dramatic!U7 -> 12 | C15: =Dramatic!S7 -> 63 | D15: =IF((Table710[[#This Row],[Rank]]+Table710[[#This Row],[Score]])>0,1,0) -> 1 | K15: 0 | L15: 0
A16: =Dramatic!A124 -> AA-201 | B16: =Dramatic!U124 -> 0 | C16: =Dramatic!S124 -> 0 | D16: =IF((Table710[[#This Row],[Rank]]+Table710[[#This Row],[Score]])>0,1,0) -> 0 | K16: 0 | L16: 0
A17: =Dramatic!A125 -> AA-202 | B17: =Dramatic!U125 -> 0 | C17: =Dramatic!S125 -> 0 | D17: =IF((Table710[[#This Row],[Rank]]+Table710[[#This Row],[Score]])>0,1,0) -> 0 | K17: 0 | L17: 0
A18: =Dramatic!A126 -> AA-203 | B18: =Dramatic!U126 -> 0 | C18: =Dramatic!S126 -> 0 | D18: =IF((Table710[[#This Row],[Rank]]+Table710[[#This Row],[Score]])>0,1,0) -> 0 | K18: 0 | L18: 0
A19: =Dramatic!A127 -> AA-204 | B19: =Dramatic!U127 -> 0 | C19: =Dramatic!S127 -> 0 | D19: =IF((Table710[[#This Row],[Rank]]+Table710[[#This Row],[Score]])>0,1,0) -> 0 | K19: 0 | L19: 0
A20: =Dramatic!A11 -> B-203 | B20: =Dramatic!U11 -> 0 | C20: =Dramatic!S11 -> 0 | D20: =IF((Table710[[#This Row],[Rank]]+Table710[[#This Row],[Score]])>0,1,0) -> 0 | K20: 0 | L20: 0
A21: =Dramatic!A9 -> B-201 | B21: =Dramatic!U9 -> 0 | C21: =Dramatic!S9 -> 0 | D21: =IF((Table710[[#This Row],[Rank]]+Table710[[#This Row],[Score]])>0,1,0) -> 0 | K21: 0 | L21: 0
A22: =Dramatic!A12 -> B-204 | B22: =Dramatic!U12 -> 0 | C22: =Dramatic!S12 -> 0 | D22: =IF((Table710[[#This Row],[Rank]]+Table710[[#This Row],[Score]])>0,1,0) -> 0 | K22: 0 | L22: 0
A23: =Dramatic!A129 -> BB-201 | B23: =Dramatic!U129 -> 0 | C23: =Dramatic!S129 -> 0 | D23: =IF((Table710[[#This Row],[Rank]]+Table710[[#This Row],[Score]])>0,1,0) -> 0 | K23: 0 | L23: 0
A24: =Dramatic!A130 -> BB-202 | B24: =Dramatic!U130 -> 0 | C24: =Dramatic!S130 -> 0 | D24: =IF((Table710[[#This Row],[Rank]]+Table710[[#This Row],[Score]])>0,1,0) -> 0 | K24: 0 | L24: 0
A25: =Dramatic!A131 -> BB-203 | B25: =Dramatic!U131 -> 0 | C25: =Dramatic!S131 -> 0 | D25: =IF((Table710[[#This Row],[Rank]]+Table710[[#This Row],[Score]])>0,1,0) -> 0 | K25: 0 | L25: 0
A26: =Dramatic!A132 -> BB-204 | B26: =Dramatic!U132 -> 0 | C26: =Dramatic!S132 -> 0 | D26: =IF((Table710[[#This Row],[Rank]]+Table710[[#This Row],[Score]])>0,1,0) -> 0 | K26: 0 | L26: 0
A27: =Dramatic!A15 -> C-202 | B27: =Dramatic!U15 -> 0 | C27: =Dramatic!S15 -> 0 | D27: =IF((Table710[[#This Row],[Rank]]+Table710[[#This Row],[Score]])>0,1,0) -> 0 | K27: 0 | L27: 0
A28: =Dramatic!A16 -> C-203 | B28: =Dramatic!U16 -> 0 | C28: =Dramatic!S16 -> 0 | D28: =IF((Table710[[#This Row],[Rank]]+Table710[[#This Row],[Score]])>0,1,0) -> 0 | K28: 0 | L28: 0
A29: =Dramatic!A17 -> C-204 | B29: =Dramatic!U17 -> 0 | C29: =Dramatic!S17 -> 0 | D29: =IF((Table710[[#This Row],[Rank]]+Table710[[#This Row],[Score]])>0,1,0) -> 0 | K29: 0 | L29: 0
A30: =Dramatic!A134 -> CC-201 | B30: =Dramatic!U134 -> 0 | C30: =Dramatic!S134 -> 0 | D30: =IF((Table710[[#This Row],[Rank]]+Table710[[#This Row],[Score]])>0,1,0) -> 0 | K30: 0 | L30: 0
A31: =Dramatic!A135 -> CC-202 | B31: =Dramatic!U135 -> 0 | C31: =Dramatic!S135 -> 0 | D31: =IF((Table710[[#This Row],[Rank]]+Table710[[#This Row],[Score]])>0,1,0) -> 0 | K31: 0 | L31: 0
A32: =Dramatic!A136 -> CC-203 | B32: =Dramatic!U136 -> 0 | C32: =Dramatic!S136 -> 0 | D32: =IF((Table710[[#This Row],[Rank]]+Table710[[#This Row],[Score]])>0,1,0) -> 0 | K32: 0 | L32: 0
A33: =Dramatic!A137 -> CC-204 | B33: =Dramatic!U137 -> 0 | C33: =Dramatic!S137 -> 0 | D33: =IF((Table710[[#This Row],[Rank]]+Table710[[#This Row],[Score]])>0,1,0) -> 0 | K33: 0 | L33: 0
A34: =Dramatic!A21 -> D-203 | B34: =Dramatic!U21 -> 0 | C34: =Dramatic!S21 -> 0 | D34: =IF((Table710[[#This Row],[Rank]]+Table710[[#This Row],[Score]])>0,1,0) -> 0 | K34: 0 | L34: 0
A35: =Dramatic!A22 -> D-204 | B35: =Dramatic!U22 -> 0 | C35: =Dramatic!S22 -> 0 | D35: =IF((Table710[[#This Row],[Rank]]+Table710[[#This Row],[Score]])>0,1,0) -> 0 | K35: =SUM(E35,G35,I35) -> 0 | L35: =SUM(F35,H35,J35) -> 0
A36: =Dramatic!A139 -> DD-201 | B36: =Dramatic!U139 -> 0 | C36: =Dramatic!S139 -> 0 | D36: =IF((Table710[[#This Row],[Rank]]+Table710[[#This Row],[Score]])>0,1,0) -> 0 | K36: 0 | L36: 0
A37: =Dramatic!A140 -> DD-202 | B37: =Dramatic!U140 -> 0 | C37: =Dramatic!S140 -> 0 | D37: =IF((Table710[[#This Row],[Rank]]+Table710[[#This Row],[Score]])>0,1,0) -> 0 | K37: 0 | L37: 0
A38: =Dramatic!A141 -> DD-203 | B38: =Dramatic!U141 -> 0 | C38: =Dramatic!S141 -> 0 | D38: =IF((Table710[[#This Row],[Rank]]+Table710[[#This Row],[Score]])>0,1,0) -> 0 | K38: 0 | L38: 0
A39: =Dramatic!A142 -> DD-204 | B39: =Dramatic!U142 -> 0 | C39: =Dramatic!S142 -> 0 | D39: =IF((Table710[[#This Row],[Rank]]+Table710[[#This Row],[Score]])>0,1,0) -> 0 | K39: 0 | L39: 0
A40: =Dramatic!A25 -> E-202 | B40: =Dramatic!U25 -> 0 | C40: =Dramatic!S25 -> 0 | D40: =IF((Table710[[#This Row],[Rank]]+Table710[[#This Row],[Score]])>0,1,0) -> 0 | K40: 0 | L40: 0
A41: =Dramatic!A26 -> E-203 | B41: =Dramatic!U26 -> 0 | C41: =Dramatic!S26 -> 0 | D41: =IF((Table710[[#This Row],[Rank]]+Table710[[#This Row],[Score]])>0,1,0) -> 0 | K41: 0 | L41: 0
A42: =Dramatic!A27 -> E-204 | B42: =Dramatic!U27 -> 0 | C42: =Dramatic!S27 -> 0 | D42: =IF((Table710[[#This Row],[Rank]]+Table710[[#This Row],[Score]])>0,1,0) -> 0 | K42: 0 | L42: 0
A43: =Dramatic!A144 -> EE-201 | B43: =Dramatic!U144 -> 0 | C43: =Dramatic!S144 -> 0 | D43: =IF((Table710[[#This Row],[Rank]]+Table710[[#This Row],[Score]])>0,1,0) -> 0 | K43: 0 | L43: 0
A44: =Dramatic!A145 -> EE-202 | B44: =Dramatic!U145 -> 0 | C44: =Dramatic!S145 -> 0 | D44: =IF((Table710[[#This Row],[Rank]]+Table710[[#This Row],[Score]])>0,1,0) -> 0 | K44: 0 | L44: 0
A45: =Dramatic!A146 -> EE-203 | B45: =Dramatic!U146 -> 0 | C45: =Dramatic!S146 -> 0 | D45: =IF((Table710[[#This Row],[Rank]]+Table710[[#This Row],[Score]])>0,1,0) -> 0 | K45: 0 | L45: 0
A46: =Dramatic!A147 -> EE-204 | B46: =Dramatic!U147 -> 0 | C46: =Dramatic!S147 -> 0 | D46: =IF((Table710[[#This Row],[Rank]]+Table710[[#This Row],[Score]])>0,1,0) -> 0 | K46: 0 | L46: 0
A47: =Dramatic!A29 -> F-201 | B47: =Dramatic!U29 -> 0 | C47: =Dramatic!S29 -> 0 | D47: =IF((Table710[[#This Row],[Rank]]+Table710[[#This Row],[Score]])>0,1,0) -> 0 | K47: 0 | L47: 0
A48: =Dramatic!A30 -> F-202 | B48: =Dramatic!U30 -> 0 | C48: =Dramatic!S30 -> 0 | D48: =IF((Table710[[#This Row],[Rank]]+Table710[[#This Row],[Score]])>0,1,0) -> 0 | K48: 0 | L48: 0
A49: =Dramatic!A32 -> F-204 | B49: =Dramatic!U32 -> 0 | C49: =Dramatic!S32 -> 0 | D49: =IF((Table710[[#This Row],[Rank]]+Table710[[#This Row],[Score]])>0,1,0) -> 0 | K49: 0 | L49: 0
A50: =Dramatic!A149 -> FF-201 | B50: =Dramatic!U149 -> 0 | C50: =Dramatic!S149 -> 0 | D50: =IF((Table710[[#This Row],[Rank]]+Table710[[#This Row],[Score]])>0,1,0) -> 0 | K50: 0 | L50: 0
A51: =Dramatic!A150 -> FF-202 | B51: =Dramatic!U150 -> 0 | C51: =Dramatic!S150 -> 0 | D51: =IF((Table710[[#This Row],[Rank]]+Table710[[#This Row],[Score]])>0,1,0) -> 0 | K51: 0 | L51: 0
A52: =Dramatic!A151 -> FF-203 | B52: =Dramatic!U151 -> 0 | C52: =Dramatic!S151 -> 0 | D52: =IF((Table710[[#This Row],[Rank]]+Table710[[#This Row],[Score]])>0,1,0) -> 0 | K52: 0 | L52: 0
A53: =Dramatic!A152 -> FF-204 | B53: =Dramatic!U152 -> 0 | C53: =Dramatic!S152 -> 0 | D53: =IF((Table710[[#This Row],[Rank]]+Table710[[#This Row],[Score]])>0,1,0) -> 0 | K53: 0 | L53: 0
A54: =Dramatic!A39 -> H-201 | B54: =Dramatic!U39 -> 0 | C54: =Dramatic!S39 -> 0 | D54: =IF((Table710[[#This Row],[Rank]]+Table710[[#This Row],[Score]])>0,1,0) -> 0 | K54: 0 | L54: 0
A55: =Dramatic!A40 -> H-202 | B55: =Dramatic!U40 -> 0 | C55: =Dramatic!S40 -> 0 | D55: =IF((Table710[[#This Row],[Rank]]+Table710[[#This Row],[Score]])>0,1,0) -> 0 | K55: 0 | L55: 0
A56: =Dramatic!A41 -> H-203 | B56: =Dramatic!U41 -> 0 | C56: =Dramatic!S41 -> 0 | D56: =IF((Table710[[#This Row],[Rank]]+Table710[[#This Row],[Score]])>0,1,0) -> 0 | K56: 0 | L56: 0
A57: =Dramatic!A42 -> H-204 | B57: =Dramatic!U42 -> 0 | C57: =Dramatic!S42 -> 0 | D57: =IF((Table710[[#This Row],[Rank]]+Table710[[#This Row],[Score]])>0,1,0) -> 0 | K57: 0 | L57: 0
A58: =Dramatic!A44 -> J-201 | B58: =Dramatic!U44 -> 0 | C58: =Dramatic!S44 -> 0 | D58: =IF((Table710[[#This Row],[Rank]]+Table710[[#This Row],[Score]])>0,1,0) -> 0 | K58: 0 | L58: 0
A59: =Dramatic!A45 -> J-202 | B59: =Dramatic!U45 -> 0 | C59: =Dramatic!S45 -> 0 | D59: =IF((Table710[[#This Row],[Rank]]+Table710[[#This Row],[Score]])>0,1,0) -> 0 | K59: 0 | L59: 0
A60: =Dramatic!A46 -> J-203 | B60: =Dramatic!U46 -> 0 | C60: =Dramatic!S46 -> 0 | D60: =IF((Table710[[#This Row],[Rank]]+Table710[[#This Row],[Score]])>0,1,0) -> 0 | K60: 0 | L60: 0
A61: =Dramatic!A47 -> J-204 | B61: =Dramatic!U47 -> 0 | C61: =Dramatic!S47 -> 0 | D61: =IF((Table710[[#This Row],[Rank]]+Table710[[#This Row],[Score]])>0,1,0) -> 0 | K61: 0 | L61: 0
A62: =Dramatic!A49 -> K-201 | B62: =Dramatic!U49 -> 0 | C62: =Dramatic!S49 -> 0 | D62: =IF((Table710[[#This Row],[Rank]]+Table710[[#This Row],[Score]])>0,1,0) -> 0 | K62: 0 | L62: 0
A63: =Dramatic!A50 -> K-202 | B63: =Dramatic!U50 -> 0 | C63: =Dramatic!S50 -> 0 | D63: =IF((Table710[[#This Row],[Rank]]+Table710[[#This Row],[Score]])>0,1,0) -> 0 | K63: 0 | L63: 0
A64: =Dramatic!A51 -> K-203 | B64: =Dramatic!U51 -> 0 | C64: =Dramatic!S51 -> 0 | D64: =IF((Table710[[#This Row],[Rank]]+Table710[[#This Row],[Score]])>0,1,0) -> 0 | K64: 0 | L64: 0
A65: =Dramatic!A52 -> K-204 | B65: =Dramatic!U52 -> 0 | C65: =Dramatic!S52 -> 0 | D65: =IF((Table710[[#This Row],[Rank]]+Table710[[#This Row],[Score]])>0,1,0) -> 0 | K65: 0 | L65: 0
A66: =Dramatic!A54 -> L-201 | B66: =Dramatic!U54 -> 0 | C66: =Dramatic!S54 -> 0 | D66: =IF((Table710[[#This Row],[Rank]]+Table710[[#This Row],[Score]])>0,1,0) -> 0 | K66: 0 | L66: 0
A67: =Dramatic!A55 -> L-202 | B67: =Dramatic!U55 -> 0 | C67: =Dramatic!S55 -> 0 | D67: =IF((Table710[[#This Row],[Rank]]+Table710[[#This Row],[Score]])>0,1,0) -> 0 | K67: =SUM(E67,G67,I67) -> 0 | L67: =SUM(F67,H67,J67) -> 0
A68: =Dramatic!A56 -> L-203 | B68: =Dramatic!U56 -> 0 | C68: =Dramatic!S56 -> 0 | D68: =IF((Table710[[#This Row],[Rank]]+Table710[[#This Row],[Score]])>0,1,0) -> 0 | K68: 0 | L68: 0
A69: =Dramatic!A57 -> L-204 | B69: =Dramatic!U57 -> 0 | C69: =Dramatic!S57 -> 0 | D69: =IF((Table710[[#This Row],[Rank]]+Table710[[#This Row],[Score]])>0,1,0) -> 0 | K69: 0 | L69: 0
A70: =Dramatic!A59 -> M-201 | B70: =Dramatic!U59 -> 0 | C70: =Dramatic!S59 -> 0 | D70: =IF((Table710[[#This Row],[Rank]]+Table710[[#This Row],[Score]])>0,1,0) -> 0 | K70: 0 | L70: 0
A71: =Dramatic!A60 -> M-202 | B71: =Dramatic!U60 -> 0 | C71: =Dramatic!S60 -> 0 | D71: =IF((Table710[[#This Row],[Rank]]+Table710[[#This Row],[Score]])>0,1,0) -> 0 | K71: 0 | L71: 0
A72: =Dramatic!A61 -> M-203 | B72: =Dramatic!U61 -> 0 | C72: =Dramatic!S61 -> 0 | D72: =IF((Table710[[#This Row],[Rank]]+Table710[[#This Row],[Score]])>0,1,0) -> 0 | K72: 0 | L72: 0
A73: =Dramatic!A62 -> M-204 | B73: =Dramatic!U62 -> 0 | C73: =Dramatic!S62 -> 0 | D73: =IF((Table710[[#This Row],[Rank]]+Table710[[#This Row],[Score]])>0,1,0) -> 0 | K73: 0 | L73: 0
A74: =Dramatic!A64 -> N-201 | B74: =Dramatic!U64 -> 0 | C74: =Dramatic!S64 -> 0 | D74: =IF((Table710[[#This Row],[Rank]]+Table710[[#This Row],[Score]])>0,1,0) -> 0 | K74: 0 | L74: 0
A75: =Dramatic!A65 -> N-202 | B75: =Dramatic!U65 -> 0 | C75: =Dramatic!S65 -> 0 | D75: =IF((Table710[[#This Row],[Rank]]+Table710[[#This Row],[Score]])>0,1,0) -> 0 | K75: 0 | L75: 0
A76: =Dramatic!A66 -> N-203 | B76: =Dramatic!U66 -> 0 | C76: =Dramatic!S66 -> 0 | D76: =IF((Table710[[#This Row],[Rank]]+Table710[[#This Row],[Score]])>0,1,0) -> 0 | K76: 0 | L76: 0
A77: =Dramatic!A67 -> N-204 | B77: =Dramatic!U67 -> 0 | C77: =Dramatic!S67 -> 0 | D77: =IF((Table710[[#This Row],[Rank]]+Table710[[#This Row],[Score]])>0,1,0) -> 0 | K77: 0 | L77: 0
A78: =Dramatic!A69 -> P-201 | B78: =Dramatic!U69 -> 0 | C78: =Dramatic!S69 -> 0 | D78: =IF((Table710[[#This Row],[Rank]]+Table710[[#This Row],[Score]])>0,1,0) -> 0 | K78: 0 | L78: 0
A79: =Dramatic!A70 -> P-202 | B79: =Dramatic!U70 -> 0 | C79: =Dramatic!S70 -> 0 | D79: =IF((Table710[[#This Row],[Rank]]+Table710[[#This Row],[Score]])>0,1,0) -> 0 | K79: 0 | L79: 0
A80: =Dramatic!A71 -> P-203 | B80: =Dramatic!U71 -> 0 | C80: =Dramatic!S71 -> 0 | D80: =IF((Table710[[#This Row],[Rank]]+Table710[[#This Row],[Score]])>0,1,0) -> 0 | K80: 0 | L80: 0
A81: =Dramatic!A72 -> P-204 | B81: =Dramatic!U72 -> 0 | C81: =Dramatic!S72 -> 0 | D81: =IF((Table710[[#This Row],[Rank]]+Table710[[#This Row],[Score]])>0,1,0) -> 0 | K81: 0 | L81: 0
A82: =Dramatic!A74 -> Q-201 | B82: =Dramatic!U74 -> 0 | C82: =Dramatic!S74 -> 0 | D82: =IF((Table710[[#This Row],[Rank]]+Table710[[#This Row],[Score]])>0,1,0) -> 0 | K82: 0 | L82: 0
A83: =Dramatic!A75 -> Q-202 | B83: =Dramatic!U75 -> 0 | C83: =Dramatic!S75 -> 0 | D83: =IF((Table710[[#This Row],[Rank]]+Table710[[#This Row],[Score]])>0,1,0) -> 0 | K83: 0 | L83: 0
A84: =Dramatic!A76 -> Q-203 | B84: =Dramatic!U76 -> 0 | C84: =Dramatic!S76 -> 0 | D84: =IF((Table710[[#This Row],[Rank]]+Table710[[#This Row],[Score]])>0,1,0) -> 0 | K84: 0 | L84: 0
A85: =Dramatic!A77 -> Q-204 | B85: =Dramatic!U77 -> 0 | C85: =Dramatic!S77 -> 0 | D85: =IF((Table710[[#This Row],[Rank]]+Table710[[#This Row],[Score]])>0,1,0) -> 0 | K85: 0 | L85: 0
A86: =Dramatic!A79 -> R-201 | B86: =Dramatic!U79 -> 0 | C86: =Dramatic!S79 -> 0 | D86: =IF((Table710[[#This Row],[Rank]]+Table710[[#This Row],[Score]])>0,1,0) -> 0 | K86: 0 | L86: 0
A87: =Dramatic!A80 -> R-202 | B87: =Dramatic!U80 -> 0 | C87: =Dramatic!S80 -> 0 | D87: =IF((Table710[[#This Row],[Rank]]+Table710[[#This Row],[Score]])>0,1,0) -> 0 | K87: 0 | L87: 0
A88: =Dramatic!A81 -> R-203 | B88: =Dramatic!U81 -> 0 | C88: =Dramatic!S81 -> 0 | D88: =IF((Table710[[#This Row],[Rank]]+Table710[[#This Row],[Score]])>0,1,0) -> 0 | K88: 0 | L88: 0
A89: =Dramatic!A82 -> R-204 | B89: =Dramatic!U82 -> 0 | C89: =Dramatic!S82 -> 0 | D89: =IF((Table710[[#This Row],[Rank]]+Table710[[#This Row],[Score]])>0,1,0) -> 0 | K89: 0 | L89: 0
A90: =Dramatic!A84 -> S-201 | B90: =Dramatic!U84 -> 0 | C90: =Dramatic!S84 -> 0 | D90: =IF((Table710[[#This Row],[Rank]]+Table710[[#This Row],[Score]])>0,1,0) -> 0 | K90: 0 | L90: 0
A91: =Dramatic!A85 -> S-202 | B91: =Dramatic!U85 -> 0 | C91: =Dramatic!S85 -> 0 | D91: =IF((Table710[[#This Row],[Rank]]+Table710[[#This Row],[Score]])>0,1,0) -> 0 | K91: 0 | L91: 0
A92: =Dramatic!A86 -> S-203 | B92: =Dramatic!U86 -> 0 | C92: =Dramatic!S86 -> 0 | D92: =IF((Table710[[#This Row],[Rank]]+Table710[[#This Row],[Score]])>0,1,0) -> 0 | K92: 0 | L92: 0
A93: =Dramatic!A87 -> S-204 | B93: =Dramatic!U87 -> 0 | C93: =Dramatic!S87 -> 0 | D93: =IF((Table710[[#This Row],[Rank]]+Table710[[#This Row],[Score]])>0,1,0) -> 0 | K93: 0 | L93: 0
A94: =Dramatic!A89 -> T-201 | B94: =Dramatic!U89 -> 0 | C94: =Dramatic!S89 -> 0 | D94: =IF((Table710[[#This Row],[Rank]]+Table710[[#This Row],[Score]])>0,1,0) -> 0 | K94: 0 | L94: 0
A95: =Dramatic!A90 -> T-202 | B95: =Dramatic!U90 -> 0 | C95: =Dramatic!S90 -> 0 | D95: =IF((Table710[[#This Row],[Rank]]+Table710[[#This Row],[Score]])>0,1,0) -> 0 | K95: 0 | L95: 0
A96: =Dramatic!A91 -> T-203 | B96: =Dramatic!U91 -> 0 | C96: =Dramatic!S91 -> 0 | D96: =IF((Table710[[#This Row],[Rank]]+Table710[[#This Row],[Score]])>0,1,0) -> 0 | K96: 0 | L96: 0
A97: =Dramatic!A92 -> T-204 | B97: =Dramatic!U92 -> 0 | C97: =Dramatic!S92 -> 0 | D97: =IF((Table710[[#This Row],[Rank]]+Table710[[#This Row],[Score]])>0,1,0) -> 0 | K97: 0 | L97: 0
A98: =Dramatic!A94 -> U-201 | B98: =Dramatic!U94 -> 0 | C98: =Dramatic!S94 -> 0 | D98: =IF((Table710[[#This Row],[Rank]]+Table710[[#This Row],[Score]])>0,1,0) -> 0 | K98: 0 | L98: 0
A99: =Dramatic!A95 -> U-202 | B99: =Dramatic!U95 -> 0 | C99: =Dramatic!S95 -> 0 | D99: =IF((Table710[[#This Row],[Rank]]+Table710[[#This Row],[Score]])>0,1,0) -> 0 | K99: =SUM(E99,G99,I99) -> 0 | L99: =SUM(F99,H99,J99) -> 0
A100: =Dramatic!A96 -> U-203 | B100: =Dramatic!U96 -> 0 | C100: =Dramatic!S96 -> 0 | D100: =IF((Table710[[#This Row],[Rank]]+Table710[[#This Row],[Score]])>0,1,0) -> 0 | K100: 0 | L100: 0
A101: =Dramatic!A97 -> U-204 | B101: =Dramatic!U97 -> 0 | C101: =Dramatic!S97 -> 0 | D101: =IF((Table710[[#This Row],[Rank]]+Table710[[#This Row],[Score]])>0,1,0) -> 0 | K101: 0 | L101: 0
A102: =Dramatic!A99 -> V-201 | B102: =Dramatic!U99 -> 0 | C102: =Dramatic!S99 -> 0 | D102: =IF((Table710[[#This Row],[Rank]]+Table710[[#This Row],[Score]])>0,1,0) -> 0 | K102: 0 | L102: 0
A103: =Dramatic!A100 -> V-202 | B103: =Dramatic!U100 -> 0 | C103: =Dramatic!S100 -> 0 | D103: =IF((Table710[[#This Row],[Rank]]+Table710[[#This Row],[Score]])>0,1,0) -> 0 | K103: 0 | L103: 0
A104: =Dramatic!A101 -> V-203 | B104: =Dramatic!U101 -> 0 | C104: =Dramatic!S101 -> 0 | D104: =IF((Table710[[#This Row],[Rank]]+Table710[[#This Row],[Score]])>0,1,0) -> 0 | K104: 0 | L104: 0
A105: =Dramatic!A102 -> V-204 | B105: =Dramatic!U102 -> 0 | C105: =Dramatic!S102 -> 0 | D105: =IF((Table710[[#This Row],[Rank]]+Table710[[#This Row],[Score]])>0,1,0) -> 0 | K105: 0 | L105: 0
A106: =Dramatic!A104 -> W-201 | B106: =Dramatic!U104 -> 0 | C106: =Dramatic!S104 -> 0 | D106: =IF((Table710[[#This Row],[Rank]]+Table710[[#This Row],[Score]])>0,1,0) -> 0 | K106: 0 | L106: 0
A107: =Dramatic!A105 -> W-202 | B107: =Dramatic!U105 -> 0 | C107: =Dramatic!S105 -> 0 | D107: =IF((Table710[[#This Row],[Rank]]+Table710[[#This Row],[Score]])>0,1,0) -> 0 | K107: 0 | L107: 0
A108: =Dramatic!A106 -> W-203 | B108: =Dramatic!U106 -> 0 | C108: =Dramatic!S106 -> 0 | D108: =IF((Table710[[#This Row],[Rank]]+Table710[[#This Row],[Score]])>0,1,0) -> 0 | K108: 0 | L108: 0
A109: =Dramatic!A107 -> W-204 | B109: =Dramatic!U107 -> 0 | C109: =Dramatic!S107 -> 0 | D109: =IF((Table710[[#This Row],[Rank]]+Table710[[#This Row],[Score]])>0,1,0) -> 0 | K109: 0 | L109: 0
A110: =Dramatic!A109 -> X-201 | B110: =Dramatic!U109 -> 0 | C110: =Dramatic!S109 -> 0 | D110: =IF((Table710[[#This Row],[Rank]]+Table710[[#This Row],[Score]])>0,1,0) -> 0 | K110: 0 | L110: 0
A111: =Dramatic!A110 -> X-202 | B111: =Dramatic!U110 -> 0 | C111: =Dramatic!S110 -> 0 | D111: =IF((Table710[[#This Row],[Rank]]+Table710[[#This Row],[Score]])>0,1,0) -> 0 | K111: 0 | L111: 0
A112: =Dramatic!A111 -> X-203 | B112: =Dramatic!U111 -> 0 | C112: =Dramatic!S111 -> 0 | D112: =IF((Table710[[#This Row],[Rank]]+Table710[[#This Row],[Score]])>0,1,0) -> 0 | K112: 0 | L112: 0
A113: =Dramatic!A112 -> X-204 | B113: =Dramatic!U112 -> 0 | C113: =Dramatic!S112 -> 0 | D113: =IF((Table710[[#This Row],[Rank]]+Table710[[#This Row],[Score]])>0,1,0) -> 0 | K113: 0 | L113: 0
A114: =Dramatic!A114 -> Y-201 | B114: =Dramatic!U114 -> 0 | C114: =Dramatic!S114 -> 0 | D114: =IF((Table710[[#This Row],[Rank]]+Table710[[#This Row],[Score]])>0,1,0) -> 0 | K114: 0 | L114: 0
A115: =Dramatic!A115 -> Y-202 | B115: =Dramatic!U115 -> 0 | C115: =Dramatic!S115 -> 0 | D115: =IF((Table710[[#This Row],[Rank]]+Table710[[#This Row],[Score]])>0,1,0) -> 0 | K115: 0 | L115: 0
A116: =Dramatic!A116 -> Y-203 | B116: =Dramatic!U116 -> 0 | C116: =Dramatic!S116 -> 0 | D116: =IF((Table710[[#This Row],[Rank]]+Table710[[#This Row],[Score]])>0,1,0) -> 0 | K116: 0 | L116: 0
A117: =Dramatic!A117 -> Y-204 | B117: =Dramatic!U117 -> 0 | C117: =Dramatic!S117 -> 0 | D117: =IF((Table710[[#This Row],[Rank]]+Table710[[#This Row],[Score]])>0,1,0) -> 0 | K117: 0 | L117: 0
A118: =Dramatic!A119 -> Z-201 | B118: =Dramatic!U119 -> 0 | C118: =Dramatic!S119 -> 0 | D118: =IF((Table710[[#This Row],[Rank]]+Table710[[#This Row],[Score]])>0,1,0) -> 0 | K118: 0 | L118: 0
A119: =Dramatic!A120 -> Z-202 | B119: =Dramatic!U120 -> 0 | C119: =Dramatic!S120 -> 0 | D119: =IF((Table710[[#This Row],[Rank]]+Table710[[#This Row],[Score]])>0,1,0) -> 0 | K119: 0 | L119: 0
A120: =Dramatic!A121 -> Z-203 | B120: =Dramatic!U121 -> 0 | C120: =Dramatic!S121 -> 0 | D120: =IF((Table710[[#This Row],[Rank]]+Table710[[#This Row],[Score]])>0,1,0) -> 0 | K120: 0 | L120: 0
A121: =Dramatic!A122 -> Z-204 | B121: =Dramatic!U122 -> 0 | C121: =Dramatic!S122 -> 0 | D121: =IF((Table710[[#This Row],[Rank]]+Table710[[#This Row],[Score]])>0,1,0) -> 0 | K121: 0 | L121: 0
A122: =Dramatic!A31 -> F-203 | B122: =Dramatic!U31 -> 0 | C122: =Dramatic!S31 -> 0 | D122: =IF((Table710[[#This Row],[Rank]]+Table710[[#This Row],[Score]])>0,1,0) -> 0 | K122: 0 | L122: 0

Sheet Classical
A1: Classical Scenes | K1: Rank 1-4 | X1: S | Y1: E | Z1: G | AA1: F | AC1: 1violation | AD1: 2violations | AE1: 3violations
K2: Round 1: | M2: Round 2: | O2: Round 3: | Q2: -2 for each | AB2: Drops lowest from column q
D3: Student Name | F3: Student Name | H3: Student Name | J3: Title of Piece | K3: R1 rank | L3: R1 score | M3: R2 rank | N3: R2 score | O3: R3 rank | P3: R3 score | Q3: Time Violations | S3: TOTAL SCORE | U3: TOTAL RANK | X3: TOTAL SCHOOL SWEEPS POINTS | AB3: Drop Lowest
A4: A-301 | D4: 301 - Leah | F4: Luli | J4: Comedy Errors | K4: 4 | L4: 25 | M4: 3 | N4: 20 | O4: 3 | P4: 23 | R4: =IF(Q4="1violation",-7*1,IF(Q4="2violations",-7*2,IF(Q4="3violations",-7*3,IF(Q4="","")))) ->  | S4: =SUM(L4,N4,P4,R4) -> 68 | U4: =SUM(K4,M4,O4) -> 10 | Y4: =SUM(S4,S6,S5,S7,-AB4) -> 136 | AB4: =MIN(S4:S7) -> 0
A5: A-302 | D5: 302 - Charles | F5: Connor | J5: Cyrano | K5: 3 | L5: 25 | M5: 4 | N5: 20 | O5: 4 | P5: 23 | R5: =IF(Q5="1violation",-7*1,IF(Q5="2violations",-7*2,IF(Q5="3violations",-7*3,IF(Q5="","")))) ->  | S5: =SUM(L5,N5,P5,R5) -> 68 | U5: =SUM(K5,M5,O5) -> 11
A6: A-303 | S6: =SUM(L6,N6,P6,R6) -> 0 | U6: =SUM(K6,M6,O6) -> 0
A7: A-304 | S7: =SUM(L7,N7,P7,R7) -> 0 | U7: =SUM(K7,M7,O7) -> 0
A9: B-301 | S9: =SUM(L9,N9,P9,R9) -> 0 | U9: =SUM(K9,M9,O9) -> 0 | Y9: =SUM(S9,S11,S10,S12,-AB9) -> 0 | AB9: =MIN(S9:S12) -> 0
A10: B-302 | S10: =SUM(L10,N10,P10,R10) -> 0 | U10: =SUM(K10,M10,O10) -> 0
A11: B-303 | S11: =SUM(L11,N11,P11,R11) -> 0 | U11: =SUM(K11,M11,O11) -> 0
A12: B-304 | S12: =SUM(L12,N12,P12,R12) -> 0 | U12: =SUM(K12,M12,O12) -> 0
A14: C-301 | S14: =SUM(L14,N14,P14,R14) -> 0 | U14: =SUM(K14,M14,O14) -> 0 | Y14: =SUM(S14,S16,S15,S17,-AB14) -> 0 | AB14: =MIN(S14:S17) -> 0
A15: C-302 | S15: =SUM(L15,N15,P15,R15) -> 0 | U15: =SUM(K15,M15,O15) -> 0
A16: C-303 | S16: =SUM(L16,N16,P16,R16) -> 0 | U16: =SUM(K16,M16,O16) -> 0
A17: C-304 | S17: =SUM(L17,N17,P17,R17) -> 0 | U17: =SUM(K17,M17,O17) -> 0
A19: D-301 | S19: =SUM(L19,N19,P19,R19) -> 0 | U19: =SUM(K19,M19,O19) -> 0 | Y19: =SUM(S19,S21,S20,S22,-AB19) -> 0 | AB19: =MIN(S19:S22) -> 0
A20: D-302 | S20: =SUM(L20,N20,P20,R20) -> 0 | U20: =SUM(K20,M20,O20) -> 0
A21: D-303 | S21: =SUM(L21,N21,P21,R21) -> 0 | U21: =SUM(K21,M21,O21) -> 0
A22: D-304 | S22: =SUM(L22,N22,P22,R22) -> 0 | U22: =SUM(K22,M22,O22) -> 0
A24: E-301 | S24: =SUM(L24,N24,P24,R24) -> 0 | U24: =SUM(K24,M24,O24) -> 0 | Y24: =SUM(S24,S26,S25,S27,-AB24) -> 0 | AB24: =MIN(S24:S27) -> 0
A25: E-302 | S25: =SUM(L25,N25,P25,R25) -> 0 | U25: =SUM(K25,M25,O25) -> 0
A26: E-303 | S26: =SUM(L26,N26,P26,R26) -> 0 | U26: =SUM(K26,M26,O26) -> 0
A27: E-304 | S27: =SUM(L27,N27,P27,R27) -> 0 | U27: =SUM(K27,M27,O27) -> 0
A29: F-301 | S29: =SUM(L29,N29,P29,R29) -> 0 | U29: =SUM(K29,M29,O29) -> 0 | Y29: =SUM(S29,S31,S30,S32,-AB29) -> 0 | AB29: =MIN(S29:S32) -> 0
A30: F-302 | S30: =SUM(L30,N30,P30,R30) -> 0 | U30: =SUM(K30,M30,O30) -> 0
A31: F-303 | S31: =SUM(L31,N31,P31,R31) -> 0 | U31: =SUM(K31,M31,O31) -> 0
A32: F-304 | S32: =SUM(L32,N32,P32,R32) -> 0 | U32: =SUM(K32,M32,O32) -> 0
A34: G-301 | D34: 303 - Gabriella Ehmann | F34: Luke Thrail | J34: Taming of the.. | K34: 2 | L34: 25 | M34: 1 | N34: 23 | O34: 1 | P34: 25 | S34: =SUM(L34,N34,P34,R34) -> 73 | U34: =SUM(K34,M34,O34) -> 4 | Y34: =SUM(S34,S36,S35,S37,-AB34) -> 73 | AB34: =MIN(S34:S37) -> 0
A35: G-302 | S35: =SUM(L35,N35,P35,R35) -> 0 | U35: =SUM(K35,M35,O35) -> 0
A36: G-303 | S36: =SUM(L36,N36,P36,R36) -> 0 | U36: =SUM(K36,M36,O36) -> 0
A37: G-304 | S37: =SUM(L37,N37,P37,R37) -> 0 | U37: =SUM(K37,M37,O37) -> 0
A39: H-301 | S39: =SUM(L39,N39,P39,R39) -> 0 | U39: =SUM(K39,M39,O39) -> 0 | Y39: =SUM(S39,S41,S40,S42,-AB39) -> 0 | AB39: =MIN(S39:S42) -> 0
A40: H-302 | S40: =SUM(L40,N40,P40,R40) -> 0 | U40: =SUM(K40,M40,O40) -> 0
A41: H-303 | S41: =SUM(L41,N41,P41,R41) -> 0 | U41: =SUM(K41,M41,O41) -> 0
A42: H-304 | S42: =SUM(L42,N42,P42,R42) -> 0 | U42: =SUM(K42,M42,O42) -> 0
A44: J-301 | S44: =SUM(L44,N44,P44,R44) -> 0 | U44: =SUM(K44,M44,O44) -> 0 | Y44: =SUM(S44,S46,S45,S47,-AB44) -> 0 | AB44: =MIN(S44:S47) -> 0
A45: J-302 | S45: =SUM(L45,N45,P45,R45) -> 0 | U45: =SUM(K45,M45,O45) -> 0
A46: J-303 | S46: =SUM(L46,N46,P46,R46) -> 0 | U46: =SUM(K46,M46,O46) -> 0
A47: J-304 | S47: =SUM(L47,N47,P47,R47) -> 0 | U47: =SUM(K47,M47,O47) -> 0
A49: K-301 | D49: 304 - Korban Murphy | F49: Gannon Murphy | H49: Cash Reil | J49: Being Earnest | K49: 1 | L49: 25 | M49: 2 | N49: 23 | O49: 2 | P49: 25 | S49: =SUM(L49,N49,P49,R49) -> 73 | U49: =SUM(K49,M49,O49) -> 5 | Y49: =SUM(S49,S51,S50,S52,-AB49) -> 73 | AB49: =MIN(S49:S52) -> 0
A50: K-302 | S50: =SUM(L50,N50,P50,R50) -> 0 | U50: =SUM(K50,M50,O50) -> 0
A51: K-303 | S51: =SUM(L51,N51,P51,R51) -> 0 | U51: =SUM(K51,M51,O51) -> 0
A52: K-304 | S52: =SUM(L52,N52,P52,R52) -> 0 | U52: =SUM(K52,M52,O52) -> 0
A54: L-301 | S54: =SUM(L54,N54,P54,R54) -> 0 | U54: =SUM(K54,M54,O54) -> 0 | Y54: =SUM(S54,S56,S55,S57,-AB54) -> 0 | AB54: =MIN(S54:S57) -> 0
A55: L-302 | S55: =SUM(L55,N55,P55,R55) -> 0 | U55: =SUM(K55,M55,O55) -> 0
A56: L-303 | S56: =SUM(L56,N56,P56,R56) -> 0 | U56: =SUM(K56,M56,O56) -> 0
A57: L-304 | S57: =SUM(L57,N57,P57,R57) -> 0 | U57: =SUM(K57,M57,O57) -> 0
A59: M-301 | S59: =SUM(L59,N59,P59,R59) -> 0 | U59: =SUM(K59,M59,O59) -> 0 | Y59: =SUM(S59,S61,S60,S62,-AB59) -> 0 | AB59: =MIN(S59:S62) -> 0
A60: M-302 | S60: =SUM(L60,N60,P60,R60) -> 0 | U60: =SUM(K60,M60,O60) -> 0
A61: M-303 | S61: =SUM(L61,N61,P61,R61) -> 0 | U61: =SUM(K61,M61,O61) -> 0
A62: M-304 | S62: =SUM(L62,N62,P62,R62) -> 0 | U62: =SUM(K62,M62,O62) -> 0
A64: N-301 | S64: =SUM(L64,N64,P64,R64) -> 0 | U64: =SUM(K64,M64,O64) -> 0 | Y64: =SUM(S64,S66,S65,S67,-AB64) -> 0 | AB64: =MIN(S64:S67) -> 0
A65: N-302 | S65: =SUM(L65,N65,P65,R65) -> 0 | U65: =SUM(K65,M65,O65) -> 0
A66: N-303 | S66: =SUM(L66,N66,P66,R66) -> 0 | U66: =SUM(K66,M66,O66) -> 0
A67: N-304 | S67: =SUM(L67,N67,P67,R67) -> 0 | U67: =SUM(K67,M67,O67) -> 0
A69: P-301 | R69: =IF(Q69="1violation",-7*1,IF(Q69="2violations",-7*2,IF(Q69="3violations",-7*3,IF(Q69="","")))) ->  | S69: =SUM(L69,N69,P69,R69) -> 0 | U69: =SUM(K69,M69,O69) -> 0 | Y69: =SUM(S69,S71,S70,S72,-AB69) -> 0 | AB69: =MIN(S69:S72) -> 0
A70: P-302 | S70: =SUM(L70,N70,P70,R70) -> 0 | U70: =SUM(K70,M70,O70) -> 0
A71: P-303 | S71: =SUM(L71,N71,P71,R71) -> 0 | U71: =SUM(K71,M71,O71) -> 0
A72: P-304 | S72: =SUM(L72,N72,P72,R72) -> 0 | U72: =SUM(K72,M72,O72) -> 0
A74: Q-301 | S74: =SUM(L74,N74,P74,R74) -> 0 | U74: =SUM(K74,M74,O74) -> 0 | Y74: =SUM(S74,S76,S75,S77,-AB74) -> 0 | AB74: =MIN(S74:S77) -> 0
A75: Q-302 | S75: =SUM(L75,N75,P75,R75) -> 0 | U75: =SUM(K75,M75,O75) -> 0
A76: Q-303 | S76: =SUM(L76,N76,P76,R76) -> 0 | U76: =SUM(K76,M76,O76) -> 0
A77: Q-304 | S77: =SUM(L77,N77,P77,R77) -> 0 | U77: =SUM(K77,M77,O77) -> 0
A79: R-301 | S79: =SUM(L79,N79,P79,R79) -> 0 | U79: =SUM(K79,M79,O79) -> 0 | Y79: =SUM(S79,S81,S80,S82,-AB79) -> 0 | AB79: =MIN(S79:S82) -> 0
A80: R-302 | S80: =SUM(L80,N80,P80,R80) -> 0 | U80: =SUM(K80,M80,O80) -> 0
A81: R-303 | S81: =SUM(L81,N81,P81,R81) -> 0 | U81: =SUM(K81,M81,O81) -> 0
A82: R-304 | S82: =SUM(L82,N82,P82,R82) -> 0 | U82: =SUM(K82,M82,O82) -> 0
A84: S-301 | S84: =SUM(L84,N84,P84,R84) -> 0 | U84: =SUM(K84,M84,O84) -> 0 | Y84: =SUM(S84,S86,S85,S87,-AB84) -> 0 | AB84: =MIN(S84:S87) -> 0
A85: S-302 | S85: =SUM(L85,N85,P85,R85) -> 0 | U85: =SUM(K85,M85,O85) -> 0
A86: S-303 | S86: =SUM(L86,N86,P86,R86) -> 0 | U86: =SUM(K86,M86,O86) -> 0
A87: S-304 | S87: =SUM(L87,N87,P87,R87) -> 0 | U87: =SUM(K87,M87,O87) -> 0
A89: T-301 | S89: =SUM(L89,N89,P89,R89) -> 0 | U89: =SUM(K89,M89,O89) -> 0 | Y89: =SUM(S89,S91,S90,S92,-AB89) -> 0 | AB89: =MIN(S89:S92) -> 0
A90: T-302 | S90: =SUM(L90,N90,P90,R90) -> 0 | U90: =SUM(K90,M90,O90) -> 0
A91: T-303 | S91: =SUM(L91,N91,P91,R91) -> 0 | U91: =SUM(K91,M91,O91) -> 0
A92: T-304 | S92: =SUM(L92,N92,P92,R92) -> 0 | U92: =SUM(K92,M92,O92) -> 0
A94: U-301 | S94: =SUM(L94,N94,P94,R94) -> 0 | U94: =SUM(K94,M94,O94) -> 0 | Y94: =SUM(S94,S96,S95,S97,-AB94) -> 0 | AB94: =MIN(S94:S97) -> 0
A95: U-302 | S95: =SUM(L95,N95,P95,R95) -> 0 | U95: =SUM(K95,M95,O95) -> 0
A96: U-303 | S96: =SUM(L96,N96,P96,R96) -> 0 | U96: =SUM(K96,M96,O96) -> 0
A97: U-304 | S97: =SUM(L97,N97,P97,R97) -> 0 | U97: =SUM(K97,M97,O97) -> 0
A99: V-301 | S99: =SUM(L99,N99,P99,R99) -> 0 | U99: =SUM(K99,M99,O99) -> 0 | Y99: =SUM(S99,S101,S100,S102,-AB99) -> 0 | AB99: =MIN(S99:S102) -> 0
A100: V-302 | S100: =SUM(L100,N100,P100,R100) -> 0 | U100: =SUM(K100,M100,O100) -> 0
A101: V-303 | S101: =SUM(L101,N101,P101,R101) -> 0 | U101: =SUM(K101,M101,O101) -> 0
A102: V-304 | S102: =SUM(L102,N102,P102,R102) -> 0 | U102: =SUM(K102,M102,O102) -> 0
A104: W-301 | S104: =SUM(L104,N104,P104,R104) -> 0 | U104: =SUM(K104,M104,O104) -> 0 | Y104: =SUM(S104,S106,S105,S107,-AB104) -> 0 | AB104: =MIN(S104:S107) -> 0
A105: W-302 | S105: =SUM(L105,N105,P105,R105) -> 0 | U105: =SUM(K105,M105,O105) -> 0
A106: W-303 | S106: =SUM(L106,N106,P106,R106) -> 0 | U106: =SUM(K106,M106,O106) -> 0
A107: W-304 | S107: =SUM(L107,N107,P107,R107) -> 0 | U107: =SUM(K107,M107,O107) -> 0
A109: X-301 | S109: =SUM(L109,N109,P109,R109) -> 0 | U109: =SUM(K109,M109,O109) -> 0 | Y109: =SUM(S109,S111,S110,S112,-AB109) -> 0 | AB109: =MIN(S109:S112) -> 0
A110: X-302 | S110: =SUM(L110,N110,P110,R110) -> 0 | U110: =SUM(K110,M110,O110) -> 0
A111: X-303 | S111: =SUM(L111,N111,P111,R111) -> 0 | U111: =SUM(K111,M111,O111) -> 0
A112: X-304 | S112: =SUM(L112,N112,P112,R112) -> 0 | U112: =SUM(K112,M112,O112) -> 0
A114: Y-301 | S114: =SUM(L114,N114,P114,R114) -> 0 | U114: =SUM(K114,M114,O114) -> 0 | Y114: =SUM(S114,S116,S115,S117,-AB114) -> 0 | AB114: =MIN(S114:S117) -> 0
A115: Y-302 | S115: =SUM(L115,N115,P115,R115) -> 0 | U115: =SUM(K115,M115,O115) -> 0
A116: Y-303 | S116: =SUM(L116,N116,P116,R116) -> 0 | U116: =SUM(K116,M116,O116) -> 0
A117: Y-304 | S117: =SUM(L117,N117,P117,R117) -> 0 | U117: =SUM(K117,M117,O117) -> 0
A119: Z-301 | S119: =SUM(L119,N119,P119,R119) -> 0 | U119: =SUM(K119,M119,O119) -> 0 | Y119: =SUM(S119,S121,S120,S122,-AB119) -> 0 | AB119: =MIN(S119:S122) -> 0
A120: Z-302 | S120: =SUM(L120,N120,P120,R120) -> 0 | U120: =SUM(K120,M120,O120) -> 0
A121: Z-303 | S121: =SUM(L121,N121,P121,R121) -> 0 | U121: =SUM(K121,M121,O121) -> 0
A122: Z-304 | S122: =SUM(L122,N122,P122,R122) -> 0 | U122: =SUM(K122,M122,O122) -> 0
A124: AA-301 | S124: =SUM(L124,N124,P124,R124) -> 0 | U124: =SUM(K124,M124,O124) -> 0 | Y124: =SUM(S124,S126,S125,S127,-AB124) -> 0 | AB124: =MIN(S124:S127) -> 0
A125: AA-302 | S125: =SUM(L125,N125,P125,R125) -> 0 | U125: =SUM(K125,M125,O125) -> 0
A126: AA-303 | S126: =SUM(L126,N126,P126,R126) -> 0 | U126: =SUM(K126,M126,O126) -> 0
A127: AA-304 | S127: =SUM(L127,N127,P127,R127) -> 0 | U127: =SUM(K127,M127,O127) -> 0
A129: BB-301 | S129: =SUM(L129,N129,P129,R129) -> 0 | U129: =SUM(K129,M129,O129) -> 0 | Y129: =SUM(S129,S131,S130,S132,-AB129) -> 0 | AB129: =MIN(S129:S132) -> 0
A130: BB-302 | S130: =SUM(L130,N130,P130,R130) -> 0 | U130: =SUM(K130,M130,O130) -> 0
A131: BB-303 | S131: =SUM(L131,N131,P131,R131) -> 0 | U131: =SUM(K131,M131,O131) -> 0
A132: BB-304 | S132: =SUM(L132,N132,P132,R132) -> 0 | U132: =SUM(K132,M132,O132) -> 0
A134: CC-301 | R134: =IF(Q134="1violation",-7*1,IF(Q134="2violations",-7*2,IF(Q134="3violations",-7*3,IF(Q134="","")))) ->  | S134: =SUM(L134,N134,P134,R134) -> 0 | U134: =SUM(K134,M134,O134) -> 0 | Y134: =SUM(S134,S136,S135,S137,-AB134) -> 0 | AB134: =MIN(S134:S137) -> 0
A135: CC-302 | S135: =SUM(L135,N135,P135,R135) -> 0 | U135: =SUM(K135,M135,O135) -> 0
A136: CC-303 | S136: =SUM(L136,N136,P136,R136) -> 0 | U136: =SUM(K136,M136,O136) -> 0
A137: CC-304 | S137: =SUM(L137,N137,P137,R137) -> 0 | U137: =SUM(K137,M137,O137) -> 0
A139: DD-301 | S139: =SUM(L139,N139,P139,R139) -> 0 | U139: =SUM(K139,M139,O139) -> 0 | Y139: =SUM(S139,S141,S140,S142,-AB139) -> 0 | AB139: =MIN(S139:S142) -> 0
A140: DD-302 | S140: =SUM(L140,N140,P140,R140) -> 0 | U140: =SUM(K140,M140,O140) -> 0
A141: DD-303 | S141: =SUM(L141,N141,P141,R141) -> 0 | U141: =SUM(K141,M141,O141) -> 0
A142: DD-304 | S142: =SUM(L142,N142,P142,R142) -> 0 | U142: =SUM(K142,M142,O142) -> 0
A144: EE-301 | S144: =SUM(L144,N144,P144,R144) -> 0 | U144: =SUM(K144,M144,O144) -> 0 | Y144: =SUM(S144,S146,S145,S147,-AB144) -> 0 | AB144: =MIN(S144:S147) -> 0
A145: EE-302 | S145: =SUM(L145,N145,P145,R145) -> 0 | U145: =SUM(K145,M145,O145) -> 0
A146: EE-303 | S146: =SUM(L146,N146,P146,R146) -> 0 | U146: =SUM(K146,M146,O146) -> 0
A147: EE-304 | S147: =SUM(L147,N147,P147,R147) -> 0 | U147: =SUM(K147,M147,O147) -> 0
A149: FF-301 | S149: =SUM(L149,N149,P149,R149) -> 0 | U149: =SUM(K149,M149,O149) -> 0 | Y149: =SUM(S149,S151,S150,S152,-AB149) -> 0 | AB149: =MIN(S149:S152) -> 0
A150: FF-302 | S150: =SUM(L150,N150,P150,R150) -> 0 | U150: =SUM(K150,M150,O150) -> 0
A151: FF-303 | S151: =SUM(L151,N151,P151,R151) -> 0 | U151: =SUM(K151,M151,O151) -> 0
A152: FF-304 | S152: =SUM(L152,N152,P152,R152) -> 0 | U152: =SUM(K152,M152,O152) -> 0

Sheet ClassicalMR
A1: Classical | E1: Finals Medals Round Scores
A2: ID | B2: Rank | C2: Score | D2: LeaveBlank | E2: MR 1 Rank | F2: MR 1 Score | G2: MR2 Rank | H2: MR 2 Score | I2: MR3 Rank | J2: MR 3 Score | K2: Total MR Rank | L2: Total MR Score
A3: =Classical!A14 -> C-301 | B3: =Classical!U14 -> 0 | C3: =Classical!S14 -> 0 | D3: =IF((Table71012[[#This Row],[Rank]]+Table71012[[#This Row],[Score]])>0,1,0) -> 0 | K3: =SUM(E3,G3,I3) -> 0 | L3: =SUM(F3,H3,J3) -> 0
A4: =Classical!A4 -> A-301 | B4: =Classical!U4 -> 10 | C4: =Classical!S4 -> 68 | D4: =IF((Table71012[[#This Row],[Rank]]+Table71012[[#This Row],[Score]])>0,1,0) -> 1 | K4: 0 | L4: 0
A5: =Classical!A6 -> A-303 | B5: =Classical!U6 -> 0 | C5: =Classical!S6 -> 0 | D5: =IF((Table71012[[#This Row],[Rank]]+Table71012[[#This Row],[Score]])>0,1,0) -> 0 | K5: 0 | L5: 0
A6: =Classical!A7 -> A-304 | B6: =Classical!U7 -> 0 | C6: =Classical!S7 -> 0 | D6: =IF((Table71012[[#This Row],[Rank]]+Table71012[[#This Row],[Score]])>0,1,0) -> 0 | K6: 0 | L6: 0
A7: =Classical!A124 -> AA-301 | B7: =Classical!U124 -> 0 | C7: =Classical!S124 -> 0 | D7: =IF((Table71012[[#This Row],[Rank]]+Table71012[[#This Row],[Score]])>0,1,0) -> 0 | K7: 0 | L7: 0
A8: =Classical!A125 -> AA-302 | B8: =Classical!U125 -> 0 | C8: =Classical!S125 -> 0 | D8: =IF((Table71012[[#This Row],[Rank]]+Table71012[[#This Row],[Score]])>0,1,0) -> 0 | K8: 0 | L8: 0
A9: =Classical!A126 -> AA-303 | B9: =Classical!U126 -> 0 | C9: =Classical!S126 -> 0 | D9: =IF((Table71012[[#This Row],[Rank]]+Table71012[[#This Row],[Score]])>0,1,0) -> 0 | K9: 0 | L9: 0
A10: =Classical!A127 -> AA-304 | B10: =Classical!U127 -> 0 | C10: =Classical!S127 -> 0 | D10: =IF((Table71012[[#This Row],[Rank]]+Table71012[[#This Row],[Score]])>0,1,0) -> 0 | K10: 0 | L10: 0
A11: =Classical!A9 -> B-301 | B11: =Classical!U9 -> 0 | C11: =Classical!S9 -> 0 | D11: =IF((Table71012[[#This Row],[Rank]]+Table71012[[#This Row],[Score]])>0,1,0) -> 0 | K11: 0 | L11: 0
A12: =Classical!A10 -> B-302 | B12: =Classical!U10 -> 0 | C12: =Classical!S10 -> 0 | D12: =IF((Table71012[[#This Row],[Rank]]+Table71012[[#This Row],[Score]])>0,1,0) -> 0 | K12: 0 | L12: 0
A13: =Classical!A11 -> B-303 | B13: =Classical!U11 -> 0 | C13: =Classical!S11 -> 0 | D13: =IF((Table71012[[#This Row],[Rank]]+Table71012[[#This Row],[Score]])>0,1,0) -> 0 | K13: 0 | L13: 0
A14: =Classical!A12 -> B-304 | B14: =Classical!U12 -> 0 | C14: =Classical!S12 -> 0 | D14: =IF((Table71012[[#This Row],[Rank]]+Table71012[[#This Row],[Score]])>0,1,0) -> 0 | K14: 0 | L14: 0
A15: =Classical!A129 -> BB-301 | B15: =Classical!U129 -> 0 | C15: =Classical!S129 -> 0 | D15: =IF((Table71012[[#This Row],[Rank]]+Table71012[[#This Row],[Score]])>0,1,0) -> 0 | K15: 0 | L15: 0
A16: =Classical!A130 -> BB-302 | B16: =Classical!U130 -> 0 | C16: =Classical!S130 -> 0 | D16: =IF((Table71012[[#This Row],[Rank]]+Table71012[[#This Row],[Score]])>0,1,0) -> 0 | K16: 0 | L16: 0
A17: =Classical!A131 -> BB-303 | B17: =Classical!U131 -> 0 | C17: =Classical!S131 -> 0 | D17: =IF((Table71012[[#This Row],[Rank]]+Table71012[[#This Row],[Score]])>0,1,0) -> 0 | K17: 0 | L17: 0
A18: =Classical!A132 -> BB-304 | B18: =Classical!U132 -> 0 | C18: =Classical!S132 -> 0 | D18: =IF((Table71012[[#This Row],[Rank]]+Table71012[[#This Row],[Score]])>0,1,0) -> 0 | K18: 0 | L18: 0
A19: =Classical!A15 -> C-302 | B19: =Classical!U15 -> 0 | C19: =Classical!S15 -> 0 | D19: =IF((Table71012[[#This Row],[Rank]]+Table71012[[#This Row],[Score]])>0,1,0) -> 0 | K19: 0 | L19: 0
A20: =Classical!A16 -> C-303 | B20: =Classical!U16 -> 0 | C20: =Classical!S16 -> 0 | D20: =IF((Table71012[[#This Row],[Rank]]+Table71012[[#This Row],[Score]])>0,1,0) -> 0 | K20: 0 | L20: 0
A21: =Classical!A17 -> C-304 | B21: =Classical!U17 -> 0 | C21: =Classical!S17 -> 0 | D21: =IF((Table71012[[#This Row],[Rank]]+Table71012[[#This Row],[Score]])>0,1,0) -> 0 | K21: 0 | L21: 0
A22: =Classical!A134 -> CC-301 | B22: =Classical!U134 -> 0 | C22: =Classical!S134 -> 0 | D22: =IF((Table71012[[#This Row],[Rank]]+Table71012[[#This Row],[Score]])>0,1,0) -> 0 | K22: 0 | L22: 0
A23: =Classical!A135 -> CC-302 | B23: =Classical!U135 -> 0 | C23: =Classical!S135 -> 0 | D23: =IF((Table71012[[#This Row],[Rank]]+Table71012[[#This Row],[Score]])>0,1,0) -> 0 | K23: 0 | L23: 0
A24: =Classical!A136 -> CC-303 | B24: =Classical!U136 -> 0 | C24: =Classical!S136 -> 0 | D24: =IF((Table71012[[#This Row],[Rank]]+Table71012[[#This Row],[Score]])>0,1,0) -> 0 | K24: 0 | L24: 0
A25: =Classical!A137 -> CC-304 | B25: =Classical!U137 -> 0 | C25: =Classical!S137 -> 0 | D25: =IF((Table71012[[#This Row],[Rank]]+Table71012[[#This Row],[Score]])>0,1,0) -> 0 | K25: 0 | L25: 0
A26: =Classical!A19 -> D-301 | B26: =Classical!U19 -> 0 | C26: =Classical!S19 -> 0 | D26: =IF((Table71012[[#This Row],[Rank]]+Table71012[[#This Row],[Score]])>0,1,0) -> 0 | K26: 0 | L26: 0
A27: =Classical!A20 -> D-302 | B27: =Classical!U20 -> 0 | C27: =Classical!S20 -> 0 | D27: =IF((Table71012[[#This Row],[Rank]]+Table71012[[#This Row],[Score]])>0,1,0) -> 0 | K27: 0 | L27: 0
A28: =Classical!A21 -> D-303 | B28: =Classical!U21 -> 0 | C28: =Classical!S21 -> 0 | D28: =IF((Table71012[[#This Row],[Rank]]+Table71012[[#This Row],[Score]])>0,1,0) -> 0 | K28: 0 | L28: 0
A29: =Classical!A22 -> D-304 | B29: =Classical!U22 -> 0 | C29: =Classical!S22 -> 0 | D29: =IF((Table71012[[#This Row],[Rank]]+Table71012[[#This Row],[Score]])>0,1,0) -> 0 | K29: 0 | L29: 0
A30: =Classical!A139 -> DD-301 | B30: =Classical!U139 -> 0 | C30: =Classical!S139 -> 0 | D30: =IF((Table71012[[#This Row],[Rank]]+Table71012[[#This Row],[Score]])>0,1,0) -> 0 | K30: 0 | L30: 0
A31: =Classical!A140 -> DD-302 | B31: =Classical!U140 -> 0 | C31: =Classical!S140 -> 0 | D31: =IF((Table71012[[#This Row],[Rank]]+Table71012[[#This Row],[Score]])>0,1,0) -> 0 | K31: 0 | L31: 0
A32: =Classical!A141 -> DD-303 | B32: =Classical!U141 -> 0 | C32: =Classical!S141 -> 0 | D32: =IF((Table71012[[#This Row],[Rank]]+Table71012[[#This Row],[Score]])>0,1,0) -> 0 | K32: 0 | L32: 0
A33: =Classical!A142 -> DD-304 | B33: =Classical!U142 -> 0 | C33: =Classical!S142 -> 0 | D33: =IF((Table71012[[#This Row],[Rank]]+Table71012[[#This Row],[Score]])>0,1,0) -> 0 | K33: 0 | L33: 0
A34: =Classical!A24 -> E-301 | B34: =Classical!U24 -> 0 | C34: =Classical!S24 -> 0 | D34: =IF((Table71012[[#This Row],[Rank]]+Table71012[[#This Row],[Score]])>0,1,0) -> 0 | K34: 0 | L34: 0
A35: =Classical!A25 -> E-302 | B35: =Classical!U25 -> 0 | C35: =Classical!S25 -> 0 | D35: =IF((Table71012[[#This Row],[Rank]]+Table71012[[#This Row],[Score]])>0,1,0) -> 0 | K35: =SUM(E35,G35,I35) -> 0 | L35: =SUM(F35,H35,J35) -> 0
A36: =Classical!A26 -> E-303 | B36: =Classical!U26 -> 0 | C36: =Classical!S26 -> 0 | D36: =IF((Table71012[[#This Row],[Rank]]+Table71012[[#This Row],[Score]])>0,1,0) -> 0 | K36: 0 | L36: 0
A37: =Classical!A27 -> E-304 | B37: =Classical!U27 -> 0 | C37: =Classical!S27 -> 0 | D37: =IF((Table71012[[#This Row],[Rank]]+Table71012[[#This Row],[Score]])>0,1,0) -> 0 | K37: 0 | L37: 0
A38: =Classical!A144 -> EE-301 | B38: =Classical!U144 -> 0 | C38: =Classical!S144 -> 0 | D38: =IF((Table71012[[#This Row],[Rank]]+Table71012[[#This Row],[Score]])>0,1,0) -> 0 | K38: 0 | L38: 0
A39: =Classical!A145 -> EE-302 | B39: =Classical!U145 -> 0 | C39: =Classical!S145 -> 0 | D39: =IF((Table71012[[#This Row],[Rank]]+Table71012[[#This Row],[Score]])>0,1,0) -> 0 | K39: 0 | L39: 0
A40: =Classical!A146 -> EE-303 | B40: =Classical!U146 -> 0 | C40: =Classical!S146 -> 0 | D40: =IF((Table71012[[#This Row],[Rank]]+Table71012[[#This Row],[Score]])>0,1,0) -> 0 | K40: 0 | L40: 0
A41: =Classical!A147 -> EE-304 | B41: =Classical!U147 -> 0 | C41: =Classical!S147 -> 0 | D41: =IF((Table71012[[#This Row],[Rank]]+Table71012[[#This Row],[Score]])>0,1,0) -> 0 | K41: 0 | L41: 0
A42: =Classical!A29 -> F-301 | B42: =Classical!U29 -> 0 | C42: =Classical!S29 -> 0 | D42: =IF((Table71012[[#This Row],[Rank]]+Table71012[[#This Row],[Score]])>0,1,0) -> 0 | K42: 0 | L42: 0
A43: =Classical!A30 -> F-302 | B43: =Classical!U30 -> 0 | C43: =Classical!S30 -> 0 | D43: =IF((Table71012[[#This Row],[Rank]]+Table71012[[#This Row],[Score]])>0,1,0) -> 0 | K43: 0 | L43: 0
A44: =Classical!A31 -> F-303 | B44: =Classical!U31 -> 0 | C44: =Classical!S31 -> 0 | D44: =IF((Table71012[[#This Row],[Rank]]+Table71012[[#This Row],[Score]])>0,1,0) -> 0 | K44: 0 | L44: 0
A45: =Classical!A32 -> F-304 | B45: =Classical!U32 -> 0 | C45: =Classical!S32 -> 0 | D45: =IF((Table71012[[#This Row],[Rank]]+Table71012[[#This Row],[Score]])>0,1,0) -> 0 | K45: 0 | L45: 0
A46: =Classical!A34 -> G-301 | B46: =Classical!U34 -> 4 | C46: =Classical!S34 -> 73 | D46: =IF((Table71012[[#This Row],[Rank]]+Table71012[[#This Row],[Score]])>0,1,0) -> 1 | K46: 0 | L46: 0
A47: =Classical!A35 -> G-302 | B47: =Classical!U35 -> 0 | C47: =Classical!S35 -> 0 | D47: =IF((Table71012[[#This Row],[Rank]]+Table71012[[#This Row],[Score]])>0,1,0) -> 0 | K47: 0 | L47: 0
A48: =Classical!A36 -> G-303 | B48: =Classical!U36 -> 0 | C48: =Classical!S36 -> 0 | D48: =IF((Table71012[[#This Row],[Rank]]+Table71012[[#This Row],[Score]])>0,1,0) -> 0 | K48: 0 | L48: 0
A49: =Classical!A37 -> G-304 | B49: =Classical!U37 -> 0 | C49: =Classical!S37 -> 0 | D49: =IF((Table71012[[#This Row],[Rank]]+Table71012[[#This Row],[Score]])>0,1,0) -> 0 | K49: 0 | L49: 0
A50: =Classical!A39 -> H-301 | B50: =Classical!U39 -> 0 | C50: =Classical!S39 -> 0 | D50: =IF((Table71012[[#This Row],[Rank]]+Table71012[[#This Row],[Score]])>0,1,0) -> 0 | K50: 0 | L50: 0
A51: =Classical!A40 -> H-302 | B51: =Classical!U40 -> 0 | C51: =Classical!S40 -> 0 | D51: =IF((Table71012[[#This Row],[Rank]]+Table71012[[#This Row],[Score]])>0,1,0) -> 0 | K51: 0 | L51: 0
A52: =Classical!A41 -> H-303 | B52: =Classical!U41 -> 0 | C52: =Classical!S41 -> 0 | D52: =IF((Table71012[[#This Row],[Rank]]+Table71012[[#This Row],[Score]])>0,1,0) -> 0 | K52: 0 | L52: 0
A53: =Classical!A42 -> H-304 | B53: =Classical!U42 -> 0 | C53: =Classical!S42 -> 0 | D53: =IF((Table71012[[#This Row],[Rank]]+Table71012[[#This Row],[Score]])>0,1,0) -> 0 | K53: 0 | L53: 0
A54: =Classical!A44 -> J-301 | B54: =Classical!U44 -> 0 | C54: =Classical!S44 -> 0 | D54: =IF((Table71012[[#This Row],[Rank]]+Table71012[[#This Row],[Score]])>0,1,0) -> 0 | K54: 0 | L54: 0
A55: =Classical!A45 -> J-302 | B55: =Classical!U45 -> 0 | C55: =Classical!S45 -> 0 | D55: =IF((Table71012[[#This Row],[Rank]]+Table71012[[#This Row],[Score]])>0,1,0) -> 0 | K55: 0 | L55: 0
A56: =Classical!A46 -> J-303 | B56: =Classical!U46 -> 0 | C56: =Classical!S46 -> 0 | D56: =IF((Table71012[[#This Row],[Rank]]+Table71012[[#This Row],[Score]])>0,1,0) -> 0 | K56: 0 | L56: 0
A57: =Classical!A47 -> J-304 | B57: =Classical!U47 -> 0 | C57: =Classical!S47 -> 0 | D57: =IF((Table71012[[#This Row],[Rank]]+Table71012[[#This Row],[Score]])>0,1,0) -> 0 | K57: 0 | L57: 0
A58: =Classical!A49 -> K-301 | B58: =Classical!U49 -> 5 | C58: =Classical!S49 -> 73 | D58: =IF((Table71012[[#This Row],[Rank]]+Table71012[[#This Row],[Score]])>0,1,0) -> 1 | K58: 0 | L58: 0
A59: =Classical!A50 -> K-302 | B59: =Classical!U50 -> 0 | C59: =Classical!S50 -> 0 | D59: =IF((Table71012[[#This Row],[Rank]]+Table71012[[#This Row],[Score]])>0,1,0) -> 0 | K59: 0 | L59: 0
A60: =Classical!A51 -> K-303 | B60: =Classical!U51 -> 0 | C60: =Classical!S51 -> 0 | D60: =IF((Table71012[[#This Row],[Rank]]+Table71012[[#This Row],[Score]])>0,1,0) -> 0 | K60: 0 | L60: 0
A61: =Classical!A52 -> K-304 | B61: =Classical!U52 -> 0 | C61: =Classical!S52 -> 0 | D61: =IF((Table71012[[#This Row],[Rank]]+Table71012[[#This Row],[Score]])>0,1,0) -> 0 | K61: 0 | L61: 0
A62: =Classical!A54 -> L-301 | B62: =Classical!U54 -> 0 | C62: =Classical!S54 -> 0 | D62: =IF((Table71012[[#This Row],[Rank]]+Table71012[[#This Row],[Score]])>0,1,0) -> 0 | K62: 0 | L62: 0
A63: =Classical!A55 -> L-302 | B63: =Classical!U55 -> 0 | C63: =Classical!S55 -> 0 | D63: =IF((Table71012[[#This Row],[Rank]]+Table71012[[#This Row],[Score]])>0,1,0) -> 0 | K63: 0 | L63: 0
A64: =Classical!A56 -> L-303 | B64: =Classical!U56 -> 0 | C64: =Classical!S56 -> 0 | D64: =IF((Table71012[[#This Row],[Rank]]+Table71012[[#This Row],[Score]])>0,1,0) -> 0 | K64: 0 | L64: 0
A65: =Classical!A57 -> L-304 | B65: =Classical!U57 -> 0 | C65: =Classical!S57 -> 0 | D65: =IF((Table71012[[#This Row],[Rank]]+Table71012[[#This Row],[Score]])>0,1,0) -> 0 | K65: 0 | L65: 0
A66: =Classical!A59 -> M-301 | B66: =Classical!U59 -> 0 | C66: =Classical!S59 -> 0 | D66: =IF((Table71012[[#This Row],[Rank]]+Table71012[[#This Row],[Score]])>0,1,0) -> 0 | K66: 0 | L66: 0
A67: =Classical!A60 -> M-302 | B67: =Classical!U60 -> 0 | C67: =Classical!S60 -> 0 | D67: =IF((Table71012[[#This Row],[Rank]]+Table71012[[#This Row],[Score]])>0,1,0) -> 0 | K67: =SUM(E67,G67,I67) -> 0 | L67: =SUM(F67,H67,J67) -> 0
A68: =Classical!A61 -> M-303 | B68: =Classical!U61 -> 0 | C68: =Classical!S61 -> 0 | D68: =IF((Table71012[[#This Row],[Rank]]+Table71012[[#This Row],[Score]])>0,1,0) -> 0 | K68: 0 | L68: 0
A69: =Classical!A62 -> M-304 | B69: =Classical!U62 -> 0 | C69: =Classical!S62 -> 0 | D69: =IF((Table71012[[#This Row],[Rank]]+Table71012[[#This Row],[Score]])>0,1,0) -> 0 | K69: 0 | L69: 0
A70: =Classical!A64 -> N-301 | B70: =Classical!U64 -> 0 | C70: =Classical!S64 -> 0 | D70: =IF((Table71012[[#This Row],[Rank]]+Table71012[[#This Row],[Score]])>0,1,0) -> 0 | K70: 0 | L70: 0
A71: =Classical!A65 -> N-302 | B71: =Classical!U65 -> 0 | C71: =Classical!S65 -> 0 | D71: =IF((Table71012[[#This Row],[Rank]]+Table71012[[#This Row],[Score]])>0,1,0) -> 0 | K71: 0 | L71: 0
A72: =Classical!A66 -> N-303 | B72: =Classical!U66 -> 0 | C72: =Classical!S66 -> 0 | D72: =IF((Table71012[[#This Row],[Rank]]+Table71012[[#This Row],[Score]])>0,1,0) -> 0 | K72: 0 | L72: 0
A73: =Classical!A67 -> N-304 | B73: =Classical!U67 -> 0 | C73: =Classical!S67 -> 0 | D73: =IF((Table71012[[#This Row],[Rank]]+Table71012[[#This Row],[Score]])>0,1,0) -> 0 | K73: 0 | L73: 0
A74: =Classical!A69 -> P-301 | B74: =Classical!U69 -> 0 | C74: =Classical!S69 -> 0 | D74: =IF((Table71012[[#This Row],[Rank]]+Table71012[[#This Row],[Score]])>0,1,0) -> 0 | K74: 0 | L74: 0
A75: =Classical!A70 -> P-302 | B75: =Classical!U70 -> 0 | C75: =Classical!S70 -> 0 | D75: =IF((Table71012[[#This Row],[Rank]]+Table71012[[#This Row],[Score]])>0,1,0) -> 0 | K75: 0 | L75: 0
A76: =Classical!A71 -> P-303 | B76: =Classical!U71 -> 0 | C76: =Classical!S71 -> 0 | D76: =IF((Table71012[[#This Row],[Rank]]+Table71012[[#This Row],[Score]])>0,1,0) -> 0 | K76: 0 | L76: 0
A77: =Classical!A72 -> P-304 | B77: =Classical!U72 -> 0 | C77: =Classical!S72 -> 0 | D77: =IF((Table71012[[#This Row],[Rank]]+Table71012[[#This Row],[Score]])>0,1,0) -> 0 | K77: 0 | L77: 0
A78: =Classical!A74 -> Q-301 | B78: =Classical!U74 -> 0 | C78: =Classical!S74 -> 0 | D78: =IF((Table71012[[#This Row],[Rank]]+Table71012[[#This Row],[Score]])>0,1,0) -> 0 | K78: 0 | L78: 0
A79: =Classical!A75 -> Q-302 | B79: =Classical!U75 -> 0 | C79: =Classical!S75 -> 0 | D79: =IF((Table71012[[#This Row],[Rank]]+Table71012[[#This Row],[Score]])>0,1,0) -> 0 | K79: 0 | L79: 0
A80: =Classical!A76 -> Q-303 | B80: =Classical!U76 -> 0 | C80: =Classical!S76 -> 0 | D80: =IF((Table71012[[#This Row],[Rank]]+Table71012[[#This Row],[Score]])>0,1,0) -> 0 | K80: 0 | L80: 0
A81: =Classical!A77 -> Q-304 | B81: =Classical!U77 -> 0 | C81: =Classical!S77 -> 0 | D81: =IF((Table71012[[#This Row],[Rank]]+Table71012[[#This Row],[Score]])>0,1,0) -> 0 | K81: 0 | L81: 0
A82: =Classical!A79 -> R-301 | B82: =Classical!U79 -> 0 | C82: =Classical!S79 -> 0 | D82: =IF((Table71012[[#This Row],[Rank]]+Table71012[[#This Row],[Score]])>0,1,0) -> 0 | K82: 0 | L82: 0
A83: =Classical!A80 -> R-302 | B83: =Classical!U80 -> 0 | C83: =Classical!S80 -> 0 | D83: =IF((Table71012[[#This Row],[Rank]]+Table71012[[#This Row],[Score]])>0,1,0) -> 0 | K83: 0 | L83: 0
A84: =Classical!A81 -> R-303 | B84: =Classical!U81 -> 0 | C84: =Classical!S81 -> 0 | D84: =IF((Table71012[[#This Row],[Rank]]+Table71012[[#This Row],[Score]])>0,1,0) -> 0 | K84: 0 | L84: 0
A85: =Classical!A82 -> R-304 | B85: =Classical!U82 -> 0 | C85: =Classical!S82 -> 0 | D85: =IF((Table71012[[#This Row],[Rank]]+Table71012[[#This Row],[Score]])>0,1,0) -> 0 | K85: 0 | L85: 0
A86: =Classical!A84 -> S-301 | B86: =Classical!U84 -> 0 | C86: =Classical!S84 -> 0 | D86: =IF((Table71012[[#This Row],[Rank]]+Table71012[[#This Row],[Score]])>0,1,0) -> 0 | K86: 0 | L86: 0
A87: =Classical!A85 -> S-302 | B87: =Classical!U85 -> 0 | C87: =Classical!S85 -> 0 | D87: =IF((Table71012[[#This Row],[Rank]]+Table71012[[#This Row],[Score]])>0,1,0) -> 0 | K87: 0 | L87: 0
A88: =Classical!A86 -> S-303 | B88: =Classical!U86 -> 0 | C88: =Classical!S86 -> 0 | D88: =IF((Table71012[[#This Row],[Rank]]+Table71012[[#This Row],[Score]])>0,1,0) -> 0 | K88: 0 | L88: 0
A89: =Classical!A87 -> S-304 | B89: =Classical!U87 -> 0 | C89: =Classical!S87 -> 0 | D89: =IF((Table71012[[#This Row],[Rank]]+Table71012[[#This Row],[Score]])>0,1,0) -> 0 | K89: 0 | L89: 0
A90: =Classical!A89 -> T-301 | B90: =Classical!U89 -> 0 | C90: =Classical!S89 -> 0 | D90: =IF((Table71012[[#This Row],[Rank]]+Table71012[[#This Row],[Score]])>0,1,0) -> 0 | K90: 0 | L90: 0
A91: =Classical!A90 -> T-302 | B91: =Classical!U90 -> 0 | C91: =Classical!S90 -> 0 | D91: =IF((Table71012[[#This Row],[Rank]]+Table71012[[#This Row],[Score]])>0,1,0) -> 0 | K91: 0 | L91: 0
A92: =Classical!A91 -> T-303 | B92: =Classical!U91 -> 0 | C92: =Classical!S91 -> 0 | D92: =IF((Table71012[[#This Row],[Rank]]+Table71012[[#This Row],[Score]])>0,1,0) -> 0 | K92: 0 | L92: 0
A93: =Classical!A92 -> T-304 | B93: =Classical!U92 -> 0 | C93: =Classical!S92 -> 0 | D93: =IF((Table71012[[#This Row],[Rank]]+Table71012[[#This Row],[Score]])>0,1,0) -> 0 | K93: 0 | L93: 0
A94: =Classical!A94 -> U-301 | B94: =Classical!U94 -> 0 | C94: =Classical!S94 -> 0 | D94: =IF((Table71012[[#This Row],[Rank]]+Table71012[[#This Row],[Score]])>0,1,0) -> 0 | K94: 0 | L94: 0
A95: =Classical!A95 -> U-302 | B95: =Classical!U95 -> 0 | C95: =Classical!S95 -> 0 | D95: =IF((Table71012[[#This Row],[Rank]]+Table71012[[#This Row],[Score]])>0,1,0) -> 0 | K95: 0 | L95: 0
A96: =Classical!A96 -> U-303 | B96: =Classical!U96 -> 0 | C96: =Classical!S96 -> 0 | D96: =IF((Table71012[[#This Row],[Rank]]+Table71012[[#This Row],[Score]])>0,1,0) -> 0 | K96: 0 | L96: 0
A97: =Classical!A97 -> U-304 | B97: =Classical!U97 -> 0 | C97: =Classical!S97 -> 0 | D97: =IF((Table71012[[#This Row],[Rank]]+Table71012[[#This Row],[Score]])>0,1,0) -> 0 | K97: 0 | L97: 0
A98: =Classical!A99 -> V-301 | B98: =Classical!U99 -> 0 | C98: =Classical!S99 -> 0 | D98: =IF((Table71012[[#This Row],[Rank]]+Table71012[[#This Row],[Score]])>0,1,0) -> 0 | K98: 0 | L98: 0
A99: =Classical!A100 -> V-302 | B99: =Classical!U100 -> 0 | C99: =Classical!S100 -> 0 | D99: =IF((Table71012[[#This Row],[Rank]]+Table71012[[#This Row],[Score]])>0,1,0) -> 0 | K99: =SUM(E99,G99,I99) -> 0 | L99: =SUM(F99,H99,J99) -> 0
A100: =Classical!A101 -> V-303 | B100: =Classical!U101 -> 0 | C100: =Classical!S101 -> 0 | D100: =IF((Table71012[[#This Row],[Rank]]+Table71012[[#This Row],[Score]])>0,1,0) -> 0 | K100: 0 | L100: 0
A101: =Classical!A102 -> V-304 | B101: =Classical!U102 -> 0 | C101: =Classical!S102 -> 0 | D101: =IF((Table71012[[#This Row],[Rank]]+Table71012[[#This Row],[Score]])>0,1,0) -> 0 | K101: 0 | L101: 0
A102: =Classical!A104 -> W-301 | B102: =Classical!U104 -> 0 | C102: =Classical!S104 -> 0 | D102: =IF((Table71012[[#This Row],[Rank]]+Table71012[[#This Row],[Score]])>0,1,0) -> 0 | K102: 0 | L102: 0
A103: =Classical!A105 -> W-302 | B103: =Classical!U105 -> 0 | C103: =Classical!S105 -> 0 | D103: =IF((Table71012[[#This Row],[Rank]]+Table71012[[#This Row],[Score]])>0,1,0) -> 0 | K103: 0 | L103: 0
A104: =Classical!A106 -> W-303 | B104: =Classical!U106 -> 0 | C104: =Classical!S106 -> 0 | D104: =IF((Table71012[[#This Row],[Rank]]+Table71012[[#This Row],[Score]])>0,1,0) -> 0 | K104: 0 | L104: 0
A105: =Classical!A107 -> W-304 | B105: =Classical!U107 -> 0 | C105: =Classical!S107 -> 0 | D105: =IF((Table71012[[#This Row],[Rank]]+Table71012[[#This Row],[Score]])>0,1,0) -> 0 | K105: 0 | L105: 0
A106: =Classical!A109 -> X-301 | B106: =Classical!U109 -> 0 | C106: =Classical!S109 -> 0 | D106: =IF((Table71012[[#This Row],[Rank]]+Table71012[[#This Row],[Score]])>0,1,0) -> 0 | K106: 0 | L106: 0
A107: =Classical!A110 -> X-302 | B107: =Classical!U110 -> 0 | C107: =Classical!S110 -> 0 | D107: =IF((Table71012[[#This Row],[Rank]]+Table71012[[#This Row],[Score]])>0,1,0) -> 0 | K107: 0 | L107: 0
A108: =Classical!A111 -> X-303 | B108: =Classical!U111 -> 0 | C108: =Classical!S111 -> 0 | D108: =IF((Table71012[[#This Row],[Rank]]+Table71012[[#This Row],[Score]])>0,1,0) -> 0 | K108: 0 | L108: 0
A109: =Classical!A112 -> X-304 | B109: =Classical!U112 -> 0 | C109: =Classical!S112 -> 0 | D109: =IF((Table71012[[#This Row],[Rank]]+Table71012[[#This Row],[Score]])>0,1,0) -> 0 | K109: 0 | L109: 0
A110: =Classical!A114 -> Y-301 | B110: =Classical!U114 -> 0 | C110: =Classical!S114 -> 0 | D110: =IF((Table71012[[#This Row],[Rank]]+Table71012[[#This Row],[Score]])>0,1,0) -> 0 | K110: 0 | L110: 0
A111: =Classical!A115 -> Y-302 | B111: =Classical!U115 -> 0 | C111: =Classical!S115 -> 0 | D111: =IF((Table71012[[#This Row],[Rank]]+Table71012[[#This Row],[Score]])>0,1,0) -> 0 | K111: 0 | L111: 0
A112: =Classical!A116 -> Y-303 | B112: =Classical!U116 -> 0 | C112: =Classical!S116 -> 0 | D112: =IF((Table71012[[#This Row],[Rank]]+Table71012[[#This Row],[Score]])>0,1,0) -> 0 | K112: 0 | L112: 0
A113: =Classical!A117 -> Y-304 | B113: =Classical!U117 -> 0 | C113: =Classical!S117 -> 0 | D113: =IF((Table71012[[#This Row],[Rank]]+Table71012[[#This Row],[Score]])>0,1,0) -> 0 | K113: 0 | L113: 0
A114: =Classical!A119 -> Z-301 | B114: =Classical!U119 -> 0 | C114: =Classical!S119 -> 0 | D114: =IF((Table71012[[#This Row],[Rank]]+Table71012[[#This Row],[Score]])>0,1,0) -> 0 | K114: 0 | L114: 0
A115: =Classical!A120 -> Z-302 | B115: =Classical!U120 -> 0 | C115: =Classical!S120 -> 0 | D115: =IF((Table71012[[#This Row],[Rank]]+Table71012[[#This Row],[Score]])>0,1,0) -> 0 | K115: 0 | L115: 0
A116: =Classical!A121 -> Z-303 | B116: =Classical!U121 -> 0 | C116: =Classical!S121 -> 0 | D116: =IF((Table71012[[#This Row],[Rank]]+Table71012[[#This Row],[Score]])>0,1,0) -> 0 | K116: 0 | L116: 0
A117: =Classical!A122 -> Z-304 | B117: =Classical!U122 -> 0 | C117: =Classical!S122 -> 0 | D117: =IF((Table71012[[#This Row],[Rank]]+Table71012[[#This Row],[Score]])>0,1,0) -> 0 | K117: 0 | L117: 0
A118: =Classical!A149 -> FF-301 | B118: =Classical!U149 -> 0 | C118: =Classical!S149 -> 0 | D118: =IF((Table71012[[#This Row],[Rank]]+Table71012[[#This Row],[Score]])>0,1,0) -> 0 | K118: 0 | L118: 0
A119: =Classical!A150 -> FF-302 | B119: =Classical!U150 -> 0 | C119: =Classical!S150 -> 0 | D119: =IF((Table71012[[#This Row],[Rank]]+Table71012[[#This Row],[Score]])>0,1,0) -> 0 | K119: 0 | L119: 0
A120: =Classical!A151 -> FF-303 | B120: =Classical!U151 -> 0 | C120: =Classical!S151 -> 0 | D120: =IF((Table71012[[#This Row],[Rank]]+Table71012[[#This Row],[Score]])>0,1,0) -> 0 | K120: 0 | L120: 0
A121: =Classical!A152 -> FF-304 | B121: =Classical!U152 -> 0 | C121: =Classical!S152 -> 0 | D121: =IF((Table71012[[#This Row],[Rank]]+Table71012[[#This Row],[Score]])>0,1,0) -> 0 | K121: 0 | L121: 0
A122: =Classical!A5 -> A-302 | B122: =Classical!U5 -> 11 | C122: =Classical!S5 -> 68 | D122: =IF((Table71012[[#This Row],[Rank]]+Table71012[[#This Row],[Score]])>0,1,0) -> 1 | K122: 0 | L122: 0

Sheet Contemporary
A1: Contemporary Scenes | K1: Rank 1-4 | X1: S | Y1: E | Z1: G | AA1: F | AC1: 1violation | AD1: 2violations | AE1: 3violations
K2: Round 1: | M2: Round 2: | O2: Round 3: | Q2: -2 for each | AB2: Drops lowest from column q
D3: Student Name | F3: Student Name | H3: Student Name | J3: Title of Piece | K3: R1 rank | L3: R1 score | M3: R2 rank | N3: R2 score | O3: R3 rank | P3: R3 score | Q3: Time Violations | S3: TOTAL SCORE | U3: TOTAL RANK | X3: TOTAL SCHOOL SWEEPS POINTS | AB3: Drop Lowest
A4: A-401 | D4: 409 - Sephe | F4: Triniti | J4: Detention | K4: 2 | L4: 24 | M4: 4 | N4: 22 | O4: 4 | P4: 22 | R4: =IF(Q4="1violation",-7*1,IF(Q4="2violations",-7*2,IF(Q4="3violations",-7*3,IF(Q4="","")))) ->  | S4: =SUM(L4,N4,P4,R4) -> 68 | U4: =SUM(K4,M4,O4) -> 10 | Y4: =SUM(S4,S6,S5,S7,-AB4) -> 210 | AB4: =MIN(S4:S7) -> 52
A5: A-402 | D5: 408 - Andrew | F5: Degenet | J5: Help Desk | K5: 1 | L5: 25 | M5: 3 | N5: 23 | O5: 1 | P5: 25 | R5: =IF(Q5="1violation",-7*1,IF(Q5="2violations",-7*2,IF(Q5="3violations",-7*3,IF(Q5="","")))) ->  | S5: =SUM(L5,N5,P5,R5) -> 73 | U5: =SUM(K5,M5,O5) -> 5
A6: A-403 | D6: 407 - Cale | F6: Maverick | J6: Anti-Social | K6: 4 | L6: 14 | M6: 4 | N6: 23 | O6: 4 | P6: 22 | Q6: 1violation | R6: -7 | S6: =SUM(L6,N6,P6,R6) -> 52 | U6: =SUM(K6,M6,O6) -> 12
A7: A-404 | D7: 406 - Keona | F7: Cassia | J7: The Odd Couple | K7: 3 | L7: 23 | M7: 2 | N7: 23 | O7: 2 | P7: 23 | S7: =SUM(L7,N7,P7,R7) -> 69 | U7: =SUM(K7,M7,O7) -> 7
A9: B-401 | D9: 405 - Lilly Spendlove | F9: Alexa Ordaz | J9: Body Body/Madeline and Gerald | K9: 4 | L9: 21 | M9: 2 | N9: 17 | O9: 4 | P9: 20 | S9: =SUM(L9,N9,P9,R9) -> 58 | U9: =SUM(K9,M9,O9) -> 10 | Y9: =SUM(S9,S11,S10,S12,-AB9) -> 122 | AB9: =MIN(S9:S12) -> 0
A10: B-402 | D10: 404 - Paisley Henrie | F10: Bryson Henrie | J10: Queen Lucy | K10: 4 | L10: 24 | M10: 1 | N10: 17 | O10: 3 | P10: 23 | S10: =SUM(L10,N10,P10,R10) -> 64 | U10: =SUM(K10,M10,O10) -> 8
A11: B-403 | S11: =SUM(L11,N11,P11,R11) -> 0 | U11: =SUM(K11,M11,O11) -> 0
A12: B-404 | S12: =SUM(L12,N12,P12,R12) -> 0 | U12: =SUM(K12,M12,O12) -> 0
A14: C-401 | D14: 403 - Destiny Gross | F14: Jewely-lette | J14: Family Meeting | K14: 3 | L14: 23 | M14: 3 | N14: 17 | O14: 4 | P14: 23 | S14: =SUM(L14,N14,P14,R14) -> 63 | U14: =SUM(K14,M14,O14) -> 10 | Y14: =SUM(S14,S16,S15,S17,-AB14) -> 63 | AB14: =MIN(S14:S17) -> 0
A15: C-402 | D15: 402 - Ava Florance | F15: Mikenna Holm | J15: The Odd Couple | S15: =SUM(L15,N15,P15,R15) -> 0 | U15: =SUM(K15,M15,O15) -> 0
A16: C-403 | S16: =SUM(L16,N16,P16,R16) -> 0 | U16: =SUM(K16,M16,O16) -> 0
A17: C-404 | S17: =SUM(L17,N17,P17,R17) -> 0 | U17: =SUM(K17,M17,O17) -> 0
A19: D-401 | S19: =SUM(L19,N19,P19,R19) -> 0 | U19: =SUM(K19,M19,O19) -> 0 | Y19: =SUM(S19,S21,S20,S22,-AB19) -> 0 | AB19: =MIN(S19:S22) -> 0
A20: D-402 | S20: =SUM(L20,N20,P20,R20) -> 0 | U20: =SUM(K20,M20,O20) -> 0
A21: D-403 | S21: =SUM(L21,N21,P21,R21) -> 0 | U21: =SUM(K21,M21,O21) -> 0
A22: D-404 | S22: =SUM(L22,N22,P22,R22) -> 0 | U22: =SUM(K22,M22,O22) -> 0
A24: E-401 | D24: 401 - Kaitlyn Esplin | F24: Ike Staples | J24: Operation Redneck | K24: 4 | L24: 21 | M24: 1 | N24: 24 | O24: 2 | P24: 24 | S24: =SUM(L24,N24,P24,R24) -> 69 | U24: =SUM(K24,M24,O24) -> 7 | Y24: =SUM(S24,S26,S25,S27,-AB24) -> 69 | AB24: =MIN(S24:S27) -> 0
A25: E-402 | S25: =SUM(L25,N25,P25,R25) -> 0 | U25: =SUM(K25,M25,O25) -> 0
A26: E-403 | S26: =SUM(L26,N26,P26,R26) -> 0 | U26: =SUM(K26,M26,O26) -> 0
A27: E-404 | S27: =SUM(L27,N27,P27,R27) -> 0 | U27: =SUM(K27,M27,O27) -> 0
A29: F-401 | S29: =SUM(L29,N29,P29,R29) -> 0 | U29: =SUM(K29,M29,O29) -> 0 | Y29: =SUM(S29,S31,S30,S32,-AB29) -> 0 | AB29: =MIN(S29:S32) -> 0
A30: F-402 | S30: =SUM(L30,N30,P30,R30) -> 0 | U30: =SUM(K30,M30,O30) -> 0
A31: F-403 | S31: =SUM(L31,N31,P31,R31) -> 0 | U31: =SUM(K31,M31,O31) -> 0
A32: F-404 | S32: =SUM(L32,N32,P32,R32) -> 0 | U32: =SUM(K32,M32,O32) -> 0
A34: G-401 | S34: =SUM(L34,N34,P34,R34) -> 0 | U34: =SUM(K34,M34,O34) -> 0 | Y34: =SUM(S34,S36,S35,S37,-AB34) -> 0 | AB34: =MIN(S34:S37) -> 0
A35: G-402 | S35: =SUM(L35,N35,P35,R35) -> 0 | U35: =SUM(K35,M35,O35) -> 0
A36: G-403 | S36: =SUM(L36,N36,P36,R36) -> 0 | U36: =SUM(K36,M36,O36) -> 0
A37: G-404 | S37: =SUM(L37,N37,P37,R37) -> 0 | U37: =SUM(K37,M37,O37) -> 0
A39: H-401 | S39: =SUM(L39,N39,P39,R39) -> 0 | U39: =SUM(K39,M39,O39) -> 0 | Y39: =SUM(S39,S41,S40,S42,-AB39) -> 0 | AB39: =MIN(S39:S42) -> 0
A40: H-402 | S40: =SUM(L40,N40,P40,R40) -> 0 | U40: =SUM(K40,M40,O40) -> 0
A41: H-403 | S41: =SUM(L41,N41,P41,R41) -> 0 | U41: =SUM(K41,M41,O41) -> 0
A42: H-404 | S42: =SUM(L42,N42,P42,R42) -> 0 | U42: =SUM(K42,M42,O42) -> 0
A44: J-401 | D44: 410 - DJ Johnson | F44: Kenneth Severa | J44: 10th Doctors | K44: 2 | L44: 24 | M44: 4 | N44: 19 | O44: 1 | P44: 25 | S44: =SUM(L44,N44,P44,R44) -> 68 | U44: =SUM(K44,M44,O44) -> 7 | Y44: =SUM(S44,S46,S45,S47,-AB44) -> 68 | AB44: =MIN(S44:S47) -> 0
A45: J-402 | S45: =SUM(L45,N45,P45,R45) -> 0 | U45: =SUM(K45,M45,O45) -> 0
A46: J-403 | S46: =SUM(L46,N46,P46,R46) -> 0 | U46: =SUM(K46,M46,O46) -> 0
A47: J-404 | S47: =SUM(L47,N47,P47,R47) -> 0 | U47: =SUM(K47,M47,O47) -> 0
A49: K-401 | D49: 411 - Alyssa Allred | F49: Brigham Bronson | J49: We're on a Mission | K49: 1 | L49: 25 | M49: 4 | N49: 14 | O49: 3 | P49: 23 | S49: =SUM(L49,N49,P49,R49) -> 62 | U49: =SUM(K49,M49,O49) -> 8 | Y49: =SUM(S49,S51,S50,S52,-AB49) -> 62 | AB49: =MIN(S49:S52) -> 0
A50: K-402 | S50: =SUM(L50,N50,P50,R50) -> 0 | U50: =SUM(K50,M50,O50) -> 0
A51: K-403 | S51: =SUM(L51,N51,P51,R51) -> 0 | U51: =SUM(K51,M51,O51) -> 0
A52: K-404 | S52: =SUM(L52,N52,P52,R52) -> 0 | U52: =SUM(K52,M52,O52) -> 0
A54: L-401 | S54: =SUM(L54,N54,P54,R54) -> 0 | U54: =SUM(K54,M54,O54) -> 0 | Y54: =SUM(S54,S56,S55,S57,-AB54) -> 0 | AB54: =MIN(S54:S57) -> 0
A55: L-402 | S55: =SUM(L55,N55,P55,R55) -> 0 | U55: =SUM(K55,M55,O55) -> 0
A56: L-403 | S56: =SUM(L56,N56,P56,R56) -> 0 | U56: =SUM(K56,M56,O56) -> 0
A57: L-404 | S57: =SUM(L57,N57,P57,R57) -> 0 | U57: =SUM(K57,M57,O57) -> 0
A59: M-401 | S59: =SUM(L59,N59,P59,R59) -> 0 | U59: =SUM(K59,M59,O59) -> 0 | Y59: =SUM(S59,S61,S60,S62,-AB59) -> 0 | AB59: =MIN(S59:S62) -> 0
A60: M-402 | S60: =SUM(L60,N60,P60,R60) -> 0 | U60: =SUM(K60,M60,O60) -> 0
A61: M-403 | S61: =SUM(L61,N61,P61,R61) -> 0 | U61: =SUM(K61,M61,O61) -> 0
A62: M-404 | S62: =SUM(L62,N62,P62,R62) -> 0 | U62: =SUM(K62,M62,O62) -> 0
A64: N-401 | S64: =SUM(L64,N64,P64,R64) -> 0 | U64: =SUM(K64,M64,O64) -> 0 | Y64: =SUM(S64,S66,S65,S67,-AB64) -> 0 | AB64: =MIN(S64:S67) -> 0
A65: N-402 | S65: =SUM(L65,N65,P65,R65) -> 0 | U65: =SUM(K65,M65,O65) -> 0
A66: N-403 | S66: =SUM(L66,N66,P66,R66) -> 0 | U66: =SUM(K66,M66,O66) -> 0
A67: N-404 | S67: =SUM(L67,N67,P67,R67) -> 0 | U67: =SUM(K67,M67,O67) -> 0
A69: P-401 | R69: =IF(Q69="1violation",-7*1,IF(Q69="2violations",-7*2,IF(Q69="3violations",-7*3,IF(Q69="","")))) ->  | S69: =SUM(L69,N69,P69,R69) -> 0 | U69: =SUM(K69,M69,O69) -> 0 | Y69: =SUM(S69,S71,S70,S72,-AB69) -> 0 | AB69: =MIN(S69:S72) -> 0
A70: P-402 | S70: =SUM(L70,N70,P70,R70) -> 0 | U70: =SUM(K70,M70,O70) -> 0
A71: P-403 | S71: =SUM(L71,N71,P71,R71) -> 0 | U71: =SUM(K71,M71,O71) -> 0
A72: P-404 | S72: =SUM(L72,N72,P72,R72) -> 0 | U72: =SUM(K72,M72,O72) -> 0
A74: Q-401 | S74: =SUM(L74,N74,P74,R74) -> 0 | U74: =SUM(K74,M74,O74) -> 0 | Y74: =SUM(S74,S76,S75,S77,-AB74) -> 0 | AB74: =MIN(S74:S77) -> 0
A75: Q-402 | S75: =SUM(L75,N75,P75,R75) -> 0 | U75: =SUM(K75,M75,O75) -> 0
A76: Q-403 | S76: =SUM(L76,N76,P76,R76) -> 0 | U76: =SUM(K76,M76,O76) -> 0
A77: Q-404 | S77: =SUM(L77,N77,P77,R77) -> 0 | U77: =SUM(K77,M77,O77) -> 0
A79: R-401 | S79: =SUM(L79,N79,P79,R79) -> 0 | U79: =SUM(K79,M79,O79) -> 0 | Y79: =SUM(S79,S81,S80,S82,-AB79) -> 0 | AB79: =MIN(S79:S82) -> 0
A80: R-402 | S80: =SUM(L80,N80,P80,R80) -> 0 | U80: =SUM(K80,M80,O80) -> 0
A81: R-403 | S81: =SUM(L81,N81,P81,R81) -> 0 | U81: =SUM(K81,M81,O81) -> 0
A82: R-404 | S82: =SUM(L82,N82,P82,R82) -> 0 | U82: =SUM(K82,M82,O82) -> 0
A84: S-401 | S84: =SUM(L84,N84,P84,R84) -> 0 | U84: =SUM(K84,M84,O84) -> 0 | Y84: =SUM(S84,S86,S85,S87,-AB84) -> 0 | AB84: =MIN(S84:S87) -> 0
A85: S-402 | S85: =SUM(L85,N85,P85,R85) -> 0 | U85: =SUM(K85,M85,O85) -> 0
A86: S-403 | S86: =SUM(L86,N86,P86,R86) -> 0 | U86: =SUM(K86,M86,O86) -> 0
A87: S-404 | S87: =SUM(L87,N87,P87,R87) -> 0 | U87: =SUM(K87,M87,O87) -> 0
A89: T-401 | S89: =SUM(L89,N89,P89,R89) -> 0 | U89: =SUM(K89,M89,O89) -> 0 | Y89: =SUM(S89,S91,S90,S92,-AB89) -> 0 | AB89: =MIN(S89:S92) -> 0
A90: T-402 | S90: =SUM(L90,N90,P90,R90) -> 0 | U90: =SUM(K90,M90,O90) -> 0
A91: T-403 | S91: =SUM(L91,N91,P91,R91) -> 0 | U91: =SUM(K91,M91,O91) -> 0
A92: T-404 | S92: =SUM(L92,N92,P92,R92) -> 0 | U92: =SUM(K92,M92,O92) -> 0
A94: U-401 | S94: =SUM(L94,N94,P94,R94) -> 0 | U94: =SUM(K94,M94,O94) -> 0 | Y94: =SUM(S94,S96,S95,S97,-AB94) -> 0 | AB94: =MIN(S94:S97) -> 0
A95: U-402 | S95: =SUM(L95,N95,P95,R95) -> 0 | U95: =SUM(K95,M95,O95) -> 0
A96: U-403 | S96: =SUM(L96,N96,P96,R96) -> 0 | U96: =SUM(K96,M96,O96) -> 0
A97: U-404 | S97: =SUM(L97,N97,P97,R97) -> 0 | U97: =SUM(K97,M97,O97) -> 0
A99: V-401 | S99: =SUM(L99,N99,P99,R99) -> 0 | U99: =SUM(K99,M99,O99) -> 0 | Y99: =SUM(S99,S101,S100,S102,-AB99) -> 0 | AB99: =MIN(S99:S102) -> 0
A100: V-402 | S100: =SUM(L100,N100,P100,R100) -> 0 | U100: =SUM(K100,M100,O100) -> 0
A101: V-403 | S101: =SUM(L101,N101,P101,R101) -> 0 | U101: =SUM(K101,M101,O101) -> 0
A102: V-404 | S102: =SUM(L102,N102,P102,R102) -> 0 | U102: =SUM(K102,M102,O102) -> 0
A104: W-401 | S104: =SUM(L104,N104,P104,R104) -> 0 | U104: =SUM(K104,M104,O104) -> 0 | Y104: =SUM(S104,S106,S105,S107,-AB104) -> 0 | AB104: =MIN(S104:S107) -> 0
A105: W-402 | S105: =SUM(L105,N105,P105,R105) -> 0 | U105: =SUM(K105,M105,O105) -> 0
A106: W-403 | S106: =SUM(L106,N106,P106,R106) -> 0 | U106: =SUM(K106,M106,O106) -> 0
A107: W-404 | S107: =SUM(L107,N107,P107,R107) -> 0 | U107: =SUM(K107,M107,O107) -> 0
A109: X-401 | S109: =SUM(L109,N109,P109,R109) -> 0 | U109: =SUM(K109,M109,O109) -> 0 | Y109: =SUM(S109,S111,S110,S112,-AB109) -> 0 | AB109: =MIN(S109:S112) -> 0
A110: X-402 | S110: =SUM(L110,N110,P110,R110) -> 0 | U110: =SUM(K110,M110,O110) -> 0
A111: X-403 | S111: =SUM(L111,N111,P111,R111) -> 0 | U111: =SUM(K111,M111,O111) -> 0
A112: X-404 | S112: =SUM(L112,N112,P112,R112) -> 0 | U112: =SUM(K112,M112,O112) -> 0
A114: Y-401 | S114: =SUM(L114,N114,P114,R114) -> 0 | U114: =SUM(K114,M114,O114) -> 0 | Y114: =SUM(S114,S116,S115,S117,-AB114) -> 0 | AB114: =MIN(S114:S117) -> 0
A115: Y-402 | S115: =SUM(L115,N115,P115,R115) -> 0 | U115: =SUM(K115,M115,O115) -> 0
A116: Y-403 | S116: =SUM(L116,N116,P116,R116) -> 0 | U116: =SUM(K116,M116,O116) -> 0
A117: Y-404 | S117: =SUM(L117,N117,P117,R117) -> 0 | U117: =SUM(K117,M117,O117) -> 0
A119: Z-401 | S119: =SUM(L119,N119,P119,R119) -> 0 | U119: =SUM(K119,M119,O119) -> 0 | Y119: =SUM(S119,S121,S120,S122,-AB119) -> 0 | AB119: =MIN(S119:S122) -> 0
A120: Z-402 | S120: =SUM(L120,N120,P120,R120) -> 0 | U120: =SUM(K120,M120,O120) -> 0
A121: Z-403 | S121: =SUM(L121,N121,P121,R121) -> 0 | U121: =SUM(K121,M121,O121) -> 0
A122: Z-404 | S122: =SUM(L122,N122,P122,R122) -> 0 | U122: =SUM(K122,M122,O122) -> 0
A124: AA-401 | S124: =SUM(L124,N124,P124,R124) -> 0 | U124: =SUM(K124,M124,O124) -> 0 | Y124: =SUM(S124,S126,S125,S127,-AB124) -> 0 | AB124: =MIN(S124:S127) -> 0
A125: AA-402 | S125: =SUM(L125,N125,P125,R125) -> 0 | U125: =SUM(K125,M125,O125) -> 0
A126: AA-403 | S126: =SUM(L126,N126,P126,R126) -> 0 | U126: =SUM(K126,M126,O126) -> 0
A127: AA-404 | S127: =SUM(L127,N127,P127,R127) -> 0 | U127: =SUM(K127,M127,O127) -> 0
A129: BB-401 | S129: =SUM(L129,N129,P129,R129) -> 0 | U129: =SUM(K129,M129,O129) -> 0 | Y129: =SUM(S129,S131,S130,S132,-AB129) -> 0 | AB129: =MIN(S129:S132) -> 0
A130: BB-402 | S130: =SUM(L130,N130,P130,R130) -> 0 | U130: =SUM(K130,M130,O130) -> 0
A131: BB-403 | S131: =SUM(L131,N131,P131,R131) -> 0 | U131: =SUM(K131,M131,O131) -> 0
A132: BB-404 | S132: =SUM(L132,N132,P132,R132) -> 0 | U132: =SUM(K132,M132,O132) -> 0
A134: CC-401 | R134: =IF(Q134="1violation",-7*1,IF(Q134="2violations",-7*2,IF(Q134="3violations",-7*3,IF(Q134="","")))) ->  | S134: =SUM(L134,N134,P134,R134) -> 0 | U134: =SUM(K134,M134,O134) -> 0 | Y134: =SUM(S134,S136,S135,S137,-AB134) -> 0 | AB134: =MIN(S134:S137) -> 0
A135: CC-402 | S135: =SUM(L135,N135,P135,R135) -> 0 | U135: =SUM(K135,M135,O135) -> 0
A136: CC-403 | S136: =SUM(L136,N136,P136,R136) -> 0 | U136: =SUM(K136,M136,O136) -> 0
A137: CC-404 | S137: =SUM(L137,N137,P137,R137) -> 0 | U137: =SUM(K137,M137,O137) -> 0
A139: DD-401 | S139: =SUM(L139,N139,P139,R139) -> 0 | U139: =SUM(K139,M139,O139) -> 0 | Y139: =SUM(S139,S141,S140,S142,-AB139) -> 0 | AB139: =MIN(S139:S142) -> 0
A140: DD-402 | S140: =SUM(L140,N140,P140,R140) -> 0 | U140: =SUM(K140,M140,O140) -> 0
A141: DD-403 | S141: =SUM(L141,N141,P141,R141) -> 0 | U141: =SUM(K141,M141,O141) -> 0
A142: DD-404 | S142: =SUM(L142,N142,P142,R142) -> 0 | U142: =SUM(K142,M142,O142) -> 0
A144: EE-401 | S144: =SUM(L144,N144,P144,R144) -> 0 | U144: =SUM(K144,M144,O144) -> 0 | Y144: =SUM(S144,S146,S145,S147,-AB144) -> 0 | AB144: =MIN(S144:S147) -> 0
A145: EE-402 | S145: =SUM(L145,N145,P145,R145) -> 0 | U145: =SUM(K145,M145,O145) -> 0
A146: EE-403 | S146: =SUM(L146,N146,P146,R146) -> 0 | U146: =SUM(K146,M146,O146) -> 0
A147: EE-404 | S147: =SUM(L147,N147,P147,R147) -> 0 | U147: =SUM(K147,M147,O147) -> 0
A149: FF-401 | S149: =SUM(L149,N149,P149,R149) -> 0 | U149: =SUM(K149,M149,O149) -> 0 | Y149: =SUM(S149,S151,S150,S152,-AB149) -> 0 | AB149: =MIN(S149:S152) -> 0
A150: FF-402 | S150: =SUM(L150,N150,P150,R150) -> 0 | U150: =SUM(K150,M150,O150) -> 0
A151: FF-403 | S151: =SUM(L151,N151,P151,R151) -> 0 | U151: =SUM(K151,M151,O151) -> 0
A152: FF-404 | S152: =SUM(L152,N152,P152,R152) -> 0 | U152: =SUM(K152,M152,O152) -> 0

Sheet ContemporaryMR
A1: Contemporary | B1: 0 | E1: Finals Medals Round Scores
A2: ID | B2: Rank | C2: Score | D2: LeaveBlank | E2: MR 1 Rank | F2: MR 1 Score | G2: MR2 Rank | H2: MR 2 Score | I2: MR3 Rank | J2: MR 3 Score | K2: Total MR Rank | L2: Total MR Score
A3: =Contemporary!A5 -> A-402 | B3: =Contemporary!U5 -> 5 | C3: =Contemporary!S5 -> 73 | D3: =IF((Table7101213[[#This Row],[Rank]]+Table7101213[[#This Row],[Score]])>0,1,0) -> 1 | E3: 3 | F3: 23 | G3: 3 | H3: 24 | I3: 2 | J3: 22 | K3: =SUM(E3,G3,I3) -> 8 | L3: =SUM(F3,H3,J3) -> 69
A4: =Contemporary!A7 -> A-404 | B4: =Contemporary!U7 -> 7 | C4: =Contemporary!S7 -> 69 | D4: =IF((Table7101213[[#This Row],[Rank]]+Table7101213[[#This Row],[Score]])>0,1,0) -> 1 | E4: 6 | F4: 20 | G4: 4 | H4: 24 | I4: 4 | J4: 20 | K4: 14 | L4: 64
A5: =Contemporary!A24 -> E-401 | B5: =Contemporary!U24 -> 7 | C5: =Contemporary!S24 -> 69 | D5: =IF((Table7101213[[#This Row],[Rank]]+Table7101213[[#This Row],[Score]])>0,1,0) -> 1 | E5: 4 | F5: 22 | G5: 5 | H5: 23 | I5: 1 | J5: 24 | K5: 10 | L5: 69
A6: =Contemporary!A44 -> J-401 | B6: =Contemporary!U44 -> 7 | C6: =Contemporary!S44 -> 68 | D6: =IF((Table7101213[[#This Row],[Rank]]+Table7101213[[#This Row],[Score]])>0,1,0) -> 1 | E6: 2 | F6: 24 | G6: 1 | H6: 25 | I6: 5 | J6: 19 | K6: 8 | L6: 68
A7: =Contemporary!A10 -> B-402 | B7: =Contemporary!U10 -> 8 | C7: =Contemporary!S10 -> 64 | D7: =IF((Table7101213[[#This Row],[Rank]]+Table7101213[[#This Row],[Score]])>0,1,0) -> 1 | E7: 5 | F7: 20 | G7: 2 | H7: 25 | I7: 3 | J7: 22 | K7: 10 | L7: 67
A8: =Contemporary!A49 -> K-401 | B8: =Contemporary!U49 -> 8 | C8: =Contemporary!S49 -> 62 | D8: =IF((Table7101213[[#This Row],[Rank]]+Table7101213[[#This Row],[Score]])>0,1,0) -> 1 | E8: 1 | F8: 24 | G8: 6 | H8: 23 | I8: 6 | J8: 18 | K8: 13 | L8: 65
A9: =Contemporary!A4 -> A-401 | B9: =Contemporary!U4 -> 10 | C9: =Contemporary!S4 -> 68 | D9: =IF((Table7101213[[#This Row],[Rank]]+Table7101213[[#This Row],[Score]])>0,1,0) -> 1 | K9: 0 | L9: 0
A10: =Contemporary!A14 -> C-401 | B10: =Contemporary!U14 -> 10 | C10: =Contemporary!S14 -> 63 | D10: =IF((Table7101213[[#This Row],[Rank]]+Table7101213[[#This Row],[Score]])>0,1,0) -> 1 | K10: 0 | L10: 0
A11: =Contemporary!A9 -> B-401 | B11: =Contemporary!U9 -> 10 | C11: =Contemporary!S9 -> 58 | D11: =IF((Table7101213[[#This Row],[Rank]]+Table7101213[[#This Row],[Score]])>0,1,0) -> 1 | K11: 0 | L11: 0
A12: =Contemporary!A6 -> A-403 | B12: =Contemporary!U6 -> 12 | C12: =Contemporary!S6 -> 52 | D12: =IF((Table7101213[[#This Row],[Rank]]+Table7101213[[#This Row],[Score]])>0,1,0) -> 1 | K12: 0 | L12: 0
A13: =Contemporary!A19 -> D-401 | B13: =Contemporary!U19 -> 0 | C13: =Contemporary!S19 -> 0 | D13: =IF((Table7101213[[#This Row],[Rank]]+Table7101213[[#This Row],[Score]])>0,1,0) -> 0 | K13: 0 | L13: 0
A14: =Contemporary!A124 -> AA-401 | B14: =Contemporary!U124 -> 0 | C14: =Contemporary!S124 -> 0 | D14: =IF((Table7101213[[#This Row],[Rank]]+Table7101213[[#This Row],[Score]])>0,1,0) -> 0 | K14: 0 | L14: 0
A15: =Contemporary!A125 -> AA-402 | B15: =Contemporary!U125 -> 0 | C15: =Contemporary!S125 -> 0 | D15: =IF((Table7101213[[#This Row],[Rank]]+Table7101213[[#This Row],[Score]])>0,1,0) -> 0 | K15: 0 | L15: 0
A16: =Contemporary!A126 -> AA-403 | B16: =Contemporary!U126 -> 0 | C16: =Contemporary!S126 -> 0 | D16: =IF((Table7101213[[#This Row],[Rank]]+Table7101213[[#This Row],[Score]])>0,1,0) -> 0 | K16: 0 | L16: 0
A17: =Contemporary!A127 -> AA-404 | B17: =Contemporary!U127 -> 0 | C17: =Contemporary!S127 -> 0 | D17: =IF((Table7101213[[#This Row],[Rank]]+Table7101213[[#This Row],[Score]])>0,1,0) -> 0 | K17: 0 | L17: 0
A18: =Contemporary!A11 -> B-403 | B18: =Contemporary!U11 -> 0 | C18: =Contemporary!S11 -> 0 | D18: =IF((Table7101213[[#This Row],[Rank]]+Table7101213[[#This Row],[Score]])>0,1,0) -> 0 | K18: 0 | L18: 0
A19: =Contemporary!A12 -> B-404 | B19: =Contemporary!U12 -> 0 | C19: =Contemporary!S12 -> 0 | D19: =IF((Table7101213[[#This Row],[Rank]]+Table7101213[[#This Row],[Score]])>0,1,0) -> 0 | K19: 0 | L19: 0
A20: =Contemporary!A129 -> BB-401 | B20: =Contemporary!U129 -> 0 | C20: =Contemporary!S129 -> 0 | D20: =IF((Table7101213[[#This Row],[Rank]]+Table7101213[[#This Row],[Score]])>0,1,0) -> 0 | K20: 0 | L20: 0
A21: =Contemporary!A130 -> BB-402 | B21: =Contemporary!U130 -> 0 | C21: =Contemporary!S130 -> 0 | D21: =IF((Table7101213[[#This Row],[Rank]]+Table7101213[[#This Row],[Score]])>0,1,0) -> 0 | K21: 0 | L21: 0
A22: =Contemporary!A131 -> BB-403 | B22: =Contemporary!U131 -> 0 | C22: =Contemporary!S131 -> 0 | D22: =IF((Table7101213[[#This Row],[Rank]]+Table7101213[[#This Row],[Score]])>0,1,0) -> 0 | K22: 0 | L22: 0
A23: =Contemporary!A132 -> BB-404 | B23: =Contemporary!U132 -> 0 | C23: =Contemporary!S132 -> 0 | D23: =IF((Table7101213[[#This Row],[Rank]]+Table7101213[[#This Row],[Score]])>0,1,0) -> 0 | K23: 0 | L23: 0
A24: =Contemporary!A15 -> C-402 | B24: =Contemporary!U15 -> 0 | C24: =Contemporary!S15 -> 0 | D24: =IF((Table7101213[[#This Row],[Rank]]+Table7101213[[#This Row],[Score]])>0,1,0) -> 0 | K24: 0 | L24: 0
A25: =Contemporary!A16 -> C-403 | B25: =Contemporary!U16 -> 0 | C25: =Contemporary!S16 -> 0 | D25: =IF((Table7101213[[#This Row],[Rank]]+Table7101213[[#This Row],[Score]])>0,1,0) -> 0 | K25: 0 | L25: 0
A26: =Contemporary!A17 -> C-404 | B26: =Contemporary!U17 -> 0 | C26: =Contemporary!S17 -> 0 | D26: =IF((Table7101213[[#This Row],[Rank]]+Table7101213[[#This Row],[Score]])>0,1,0) -> 0 | K26: 0 | L26: 0
A27: =Contemporary!A134 -> CC-401 | B27: =Contemporary!U134 -> 0 | C27: =Contemporary!S134 -> 0 | D27: =IF((Table7101213[[#This Row],[Rank]]+Table7101213[[#This Row],[Score]])>0,1,0) -> 0 | K27: 0 | L27: 0
A28: =Contemporary!A135 -> CC-402 | B28: =Contemporary!U135 -> 0 | C28: =Contemporary!S135 -> 0 | D28: =IF((Table7101213[[#This Row],[Rank]]+Table7101213[[#This Row],[Score]])>0,1,0) -> 0 | K28: 0 | L28: 0
A29: =Contemporary!A136 -> CC-403 | B29: =Contemporary!U136 -> 0 | C29: =Contemporary!S136 -> 0 | D29: =IF((Table7101213[[#This Row],[Rank]]+Table7101213[[#This Row],[Score]])>0,1,0) -> 0 | K29: 0 | L29: 0
A30: =Contemporary!A137 -> CC-404 | B30: =Contemporary!U137 -> 0 | C30: =Contemporary!S137 -> 0 | D30: =IF((Table7101213[[#This Row],[Rank]]+Table7101213[[#This Row],[Score]])>0,1,0) -> 0 | K30: 0 | L30: 0
A31: =Contemporary!A20 -> D-402 | B31: =Contemporary!U20 -> 0 | C31: =Contemporary!S20 -> 0 | D31: =IF((Table7101213[[#This Row],[Rank]]+Table7101213[[#This Row],[Score]])>0,1,0) -> 0 | K31: 0 | L31: 0
A32: =Contemporary!A21 -> D-403 | B32: =Contemporary!U21 -> 0 | C32: =Contemporary!S21 -> 0 | D32: =IF((Table7101213[[#This Row],[Rank]]+Table7101213[[#This Row],[Score]])>0,1,0) -> 0 | K32: 0 | L32: 0
A33: =Contemporary!A22 -> D-404 | B33: =Contemporary!U22 -> 0 | C33: =Contemporary!S22 -> 0 | D33: =IF((Table7101213[[#This Row],[Rank]]+Table7101213[[#This Row],[Score]])>0,1,0) -> 0 | K33: 0 | L33: 0
A34: =Contemporary!A139 -> DD-401 | B34: =Contemporary!U139 -> 0 | C34: =Contemporary!S139 -> 0 | D34: =IF((Table7101213[[#This Row],[Rank]]+Table7101213[[#This Row],[Score]])>0,1,0) -> 0 | K34: 0 | L34: 0
A35: =Contemporary!A140 -> DD-402 | B35: =Contemporary!U140 -> 0 | C35: =Contemporary!S140 -> 0 | D35: =IF((Table7101213[[#This Row],[Rank]]+Table7101213[[#This Row],[Score]])>0,1,0) -> 0 | K35: =SUM(E35,G35,I35) -> 0 | L35: =SUM(F35,H35,J35) -> 0
A36: =Contemporary!A141 -> DD-403 | B36: =Contemporary!U141 -> 0 | C36: =Contemporary!S141 -> 0 | D36: =IF((Table7101213[[#This Row],[Rank]]+Table7101213[[#This Row],[Score]])>0,1,0) -> 0 | K36: 0 | L36: 0
A37: =Contemporary!A142 -> DD-404 | B37: =Contemporary!U142 -> 0 | C37: =Contemporary!S142 -> 0 | D37: =IF((Table7101213[[#This Row],[Rank]]+Table7101213[[#This Row],[Score]])>0,1,0) -> 0 | K37: 0 | L37: 0
A38: =Contemporary!A25 -> E-402 | B38: =Contemporary!U25 -> 0 | C38: =Contemporary!S25 -> 0 | D38: =IF((Table7101213[[#This Row],[Rank]]+Table7101213[[#This Row],[Score]])>0,1,0) -> 0 | K38: 0 | L38: 0
A39: =Contemporary!A26 -> E-403 | B39: =Contemporary!U26 -> 0 | C39: =Contemporary!S26 -> 0 | D39: =IF((Table7101213[[#This Row],[Rank]]+Table7101213[[#This Row],[Score]])>0,1,0) -> 0 | K39: 0 | L39: 0
A40: =Contemporary!A27 -> E-404 | B40: =Contemporary!U27 -> 0 | C40: =Contemporary!S27 -> 0 | D40: =IF((Table7101213[[#This Row],[Rank]]+Table7101213[[#This Row],[Score]])>0,1,0) -> 0 | K40: 0 | L40: 0
A41: =Contemporary!A144 -> EE-401 | B41: =Contemporary!U144 -> 0 | C41: =Contemporary!S144 -> 0 | D41: =IF((Table7101213[[#This Row],[Rank]]+Table7101213[[#This Row],[Score]])>0,1,0) -> 0 | K41: 0 | L41: 0
A42: =Contemporary!A145 -> EE-402 | B42: =Contemporary!U145 -> 0 | C42: =Contemporary!S145 -> 0 | D42: =IF((Table7101213[[#This Row],[Rank]]+Table7101213[[#This Row],[Score]])>0,1,0) -> 0 | K42: 0 | L42: 0
A43: =Contemporary!A146 -> EE-403 | B43: =Contemporary!U146 -> 0 | C43: =Contemporary!S146 -> 0 | D43: =IF((Table7101213[[#This Row],[Rank]]+Table7101213[[#This Row],[Score]])>0,1,0) -> 0 | K43: 0 | L43: 0
A44: =Contemporary!A147 -> EE-404 | B44: =Contemporary!U147 -> 0 | C44: =Contemporary!S147 -> 0 | D44: =IF((Table7101213[[#This Row],[Rank]]+Table7101213[[#This Row],[Score]])>0,1,0) -> 0 | K44: 0 | L44: 0
A45: =Contemporary!A29 -> F-401 | B45: =Contemporary!U29 -> 0 | C45: =Contemporary!S29 -> 0 | D45: =IF((Table7101213[[#This Row],[Rank]]+Table7101213[[#This Row],[Score]])>0,1,0) -> 0 | K45: 0 | L45: 0
A46: =Contemporary!A30 -> F-402 | B46: =Contemporary!U30 -> 0 | C46: =Contemporary!S30 -> 0 | D46: =IF((Table7101213[[#This Row],[Rank]]+Table7101213[[#This Row],[Score]])>0,1,0) -> 0 | K46: 0 | L46: 0
A47: =Contemporary!A31 -> F-403 | B47: =Contemporary!U31 -> 0 | C47: =Contemporary!S31 -> 0 | D47: =IF((Table7101213[[#This Row],[Rank]]+Table7101213[[#This Row],[Score]])>0,1,0) -> 0 | K47: 0 | L47: 0
A48: =Contemporary!A32 -> F-404 | B48: =Contemporary!U32 -> 0 | C48: =Contemporary!S32 -> 0 | D48: =IF((Table7101213[[#This Row],[Rank]]+Table7101213[[#This Row],[Score]])>0,1,0) -> 0 | K48: 0 | L48: 0
A49: =Contemporary!A34 -> G-401 | B49: =Contemporary!U34 -> 0 | C49: =Contemporary!S34 -> 0 | D49: =IF((Table7101213[[#This Row],[Rank]]+Table7101213[[#This Row],[Score]])>0,1,0) -> 0 | K49: 0 | L49: 0
A50: =Contemporary!A35 -> G-402 | B50: =Contemporary!U35 -> 0 | C50: =Contemporary!S35 -> 0 | D50: =IF((Table7101213[[#This Row],[Rank]]+Table7101213[[#This Row],[Score]])>0,1,0) -> 0 | K50: 0 | L50: 0
A51: =Contemporary!A36 -> G-403 | B51: =Contemporary!U36 -> 0 | C51: =Contemporary!S36 -> 0 | D51: =IF((Table7101213[[#This Row],[Rank]]+Table7101213[[#This Row],[Score]])>0,1,0) -> 0 | K51: 0 | L51: 0
A52: =Contemporary!A37 -> G-404 | B52: =Contemporary!U37 -> 0 | C52: =Contemporary!S37 -> 0 | D52: =IF((Table7101213[[#This Row],[Rank]]+Table7101213[[#This Row],[Score]])>0,1,0) -> 0 | K52: 0 | L52: 0
A53: =Contemporary!A39 -> H-401 | B53: =Contemporary!U39 -> 0 | C53: =Contemporary!S39 -> 0 | D53: =IF((Table7101213[[#This Row],[Rank]]+Table7101213[[#This Row],[Score]])>0,1,0) -> 0 | K53: 0 | L53: 0
A54: =Contemporary!A40 -> H-402 | B54: =Contemporary!U40 -> 0 | C54: =Contemporary!S40 -> 0 | D54: =IF((Table7101213[[#This Row],[Rank]]+Table7101213[[#This Row],[Score]])>0,1,0) -> 0 | K54: 0 | L54: 0
A55: =Contemporary!A41 -> H-403 | B55: =Contemporary!U41 -> 0 | C55: =Contemporary!S41 -> 0 | D55: =IF((Table7101213[[#This Row],[Rank]]+Table7101213[[#This Row],[Score]])>0,1,0) -> 0 | K55: 0 | L55: 0
A56: =Contemporary!A42 -> H-404 | B56: =Contemporary!U42 -> 0 | C56: =Contemporary!S42 -> 0 | D56: =IF((Table7101213[[#This Row],[Rank]]+Table7101213[[#This Row],[Score]])>0,1,0) -> 0 | K56: 0 | L56: 0
A57: =Contemporary!A45 -> J-402 | B57: =Contemporary!U45 -> 0 | C57: =Contemporary!S45 -> 0 | D57: =IF((Table7101213[[#This Row],[Rank]]+Table7101213[[#This Row],[Score]])>0,1,0) -> 0 | K57: 0 | L57: 0
A58: =Contemporary!A46 -> J-403 | B58: =Contemporary!U46 -> 0 | C58: =Contemporary!S46 -> 0 | D58: =IF((Table7101213[[#This Row],[Rank]]+Table7101213[[#This Row],[Score]])>0,1,0) -> 0 | K58: 0 | L58: 0
A59: =Contemporary!A47 -> J-404 | B59: =Contemporary!U47 -> 0 | C59: =Contemporary!S47 -> 0 | D59: =IF((Table7101213[[#This Row],[Rank]]+Table7101213[[#This Row],[Score]])>0,1,0) -> 0 | K59: 0 | L59: 0
A60: =Contemporary!A50 -> K-402 | B60: =Contemporary!U50 -> 0 | C60: =Contemporary!S50 -> 0 | D60: =IF((Table7101213[[#This Row],[Rank]]+Table7101213[[#This Row],[Score]])>0,1,0) -> 0 | K60: 0 | L60: 0
A61: =Contemporary!A51 -> K-403 | B61: =Contemporary!U51 -> 0 | C61: =Contemporary!S51 -> 0 | D61: =IF((Table7101213[[#This Row],[Rank]]+Table7101213[[#This Row],[Score]])>0,1,0) -> 0 | K61: 0 | L61: 0
A62: =Contemporary!A52 -> K-404 | B62: =Contemporary!U52 -> 0 | C62: =Contemporary!S52 -> 0 | D62: =IF((Table7101213[[#This Row],[Rank]]+Table7101213[[#This Row],[Score]])>0,1,0) -> 0 | K62: 0 | L62: 0
A63: =Contemporary!A54 -> L-401 | B63: =Contemporary!U54 -> 0 | C63: =Contemporary!S54 -> 0 | D63: =IF((Table7101213[[#This Row],[Rank]]+Table7101213[[#This Row],[Score]])>0,1,0) -> 0 | K63: 0 | L63: 0
A64: =Contemporary!A55 -> L-402 | B64: =Contemporary!U55 -> 0 | C64: =Contemporary!S55 -> 0 | D64: =IF((Table7101213[[#This Row],[Rank]]+Table7101213[[#This Row],[Score]])>0,1,0) -> 0 | K64: 0 | L64: 0
A65: =Contemporary!A56 -> L-403 | B65: =Contemporary!U56 -> 0 | C65: =Contemporary!S56 -> 0 | D65: =IF((Table7101213[[#This Row],[Rank]]+Table7101213[[#This Row],[Score]])>0,1,0) -> 0 | K65: 0 | L65: 0
A66: =Contemporary!A57 -> L-404 | B66: =Contemporary!U57 -> 0 | C66: =Contemporary!S57 -> 0 | D66: =IF((Table7101213[[#This Row],[Rank]]+Table7101213[[#This Row],[Score]])>0,1,0) -> 0 | K66: 0 | L66: 0
A67: =Contemporary!A59 -> M-401 | B67: =Contemporary!U59 -> 0 | C67: =Contemporary!S59 -> 0 | D67: =IF((Table7101213[[#This Row],[Rank]]+Table7101213[[#This Row],[Score]])>0,1,0) -> 0 | K67: =SUM(E67,G67,I67) -> 0 | L67: =SUM(F67,H67,J67) -> 0
A68: =Contemporary!A60 -> M-402 | B68: =Contemporary!U60 -> 0 | C68: =Contemporary!S60 -> 0 | D68: =IF((Table7101213[[#This Row],[Rank]]+Table7101213[[#This Row],[Score]])>0,1,0) -> 0 | K68: 0 | L68: 0
A69: =Contemporary!A61 -> M-403 | B69: =Contemporary!U61 -> 0 | C69: =Contemporary!S61 -> 0 | D69: =IF((Table7101213[[#This Row],[Rank]]+Table7101213[[#This Row],[Score]])>0,1,0) -> 0 | K69: 0 | L69: 0
A70: =Contemporary!A62 -> M-404 | B70: =Contemporary!U62 -> 0 | C70: =Contemporary!S62 -> 0 | D70: =IF((Table7101213[[#This Row],[Rank]]+Table7101213[[#This Row],[Score]])>0,1,0) -> 0 | K70: 0 | L70: 0
A71: =Contemporary!A64 -> N-401 | B71: =Contemporary!U64 -> 0 | C71: =Contemporary!S64 -> 0 | D71: =IF((Table7101213[[#This Row],[Rank]]+Table7101213[[#This Row],[Score]])>0,1,0) -> 0 | K71: 0 | L71: 0
A72: =Contemporary!A65 -> N-402 | B72: =Contemporary!U65 -> 0 | C72: =Contemporary!S65 -> 0 | D72: =IF((Table7101213[[#This Row],[Rank]]+Table7101213[[#This Row],[Score]])>0,1,0) -> 0 | K72: 0 | L72: 0
A73: =Contemporary!A66 -> N-403 | B73: =Contemporary!U66 -> 0 | C73: =Contemporary!S66 -> 0 | D73: =IF((Table7101213[[#This Row],[Rank]]+Table7101213[[#This Row],[Score]])>0,1,0) -> 0 | K73: 0 | L73: 0
A74: =Contemporary!A67 -> N-404 | B74: =Contemporary!U67 -> 0 | C74: =Contemporary!S67 -> 0 | D74: =IF((Table7101213[[#This Row],[Rank]]+Table7101213[[#This Row],[Score]])>0,1,0) -> 0 | K74: 0 | L74: 0
A75: =Contemporary!A69 -> P-401 | B75: =Contemporary!U69 -> 0 | C75: =Contemporary!S69 -> 0 | D75: =IF((Table7101213[[#This Row],[Rank]]+Table7101213[[#This Row],[Score]])>0,1,0) -> 0 | K75: 0 | L75: 0
A76: =Contemporary!A70 -> P-402 | B76: =Contemporary!U70 -> 0 | C76: =Contemporary!S70 -> 0 | D76: =IF((Table7101213[[#This Row],[Rank]]+Table7101213[[#This Row],[Score]])>0,1,0) -> 0 | K76: 0 | L76: 0
A77: =Contemporary!A71 -> P-403 | B77: =Contemporary!U71 -> 0 | C77: =Contemporary!S71 -> 0 | D77: =IF((Table7101213[[#This Row],[Rank]]+Table7101213[[#This Row],[Score]])>0,1,0) -> 0 | K77: 0 | L77: 0
A78: =Contemporary!A72 -> P-404 | B78: =Contemporary!U72 -> 0 | C78: =Contemporary!S72 -> 0 | D78: =IF((Table7101213[[#This Row],[Rank]]+Table7101213[[#This Row],[Score]])>0,1,0) -> 0 | K78: 0 | L78: 0
A79: =Contemporary!A74 -> Q-401 | B79: =Contemporary!U74 -> 0 | C79: =Contemporary!S74 -> 0 | D79: =IF((Table7101213[[#This Row],[Rank]]+Table7101213[[#This Row],[Score]])>0,1,0) -> 0 | K79: 0 | L79: 0
A80: =Contemporary!A75 -> Q-402 | B80: =Contemporary!U75 -> 0 | C80: =Contemporary!S75 -> 0 | D80: =IF((Table7101213[[#This Row],[Rank]]+Table7101213[[#This Row],[Score]])>0,1,0) -> 0 | K80: 0 | L80: 0
A81: =Contemporary!A76 -> Q-403 | B81: =Contemporary!U76 -> 0 | C81: =Contemporary!S76 -> 0 | D81: =IF((Table7101213[[#This Row],[Rank]]+Table7101213[[#This Row],[Score]])>0,1,0) -> 0 | K81: 0 | L81: 0
A82: =Contemporary!A77 -> Q-404 | B82: =Contemporary!U77 -> 0 | C82: =Contemporary!S77 -> 0 | D82: =IF((Table7101213[[#This Row],[Rank]]+Table7101213[[#This Row],[Score]])>0,1,0) -> 0 | K82: 0 | L82: 0
A83: =Contemporary!A79 -> R-401 | B83: =Contemporary!U79 -> 0 | C83: =Contemporary!S79 -> 0 | D83: =IF((Table7101213[[#This Row],[Rank]]+Table7101213[[#This Row],[Score]])>0,1,0) -> 0 | K83: 0 | L83: 0
A84: =Contemporary!A80 -> R-402 | B84: =Contemporary!U80 -> 0 | C84: =Contemporary!S80 -> 0 | D84: =IF((Table7101213[[#This Row],[Rank]]+Table7101213[[#This Row],[Score]])>0,1,0) -> 0 | K84: 0 | L84: 0
A85: =Contemporary!A81 -> R-403 | B85: =Contemporary!U81 -> 0 | C85: =Contemporary!S81 -> 0 | D85: =IF((Table7101213[[#This Row],[Rank]]+Table7101213[[#This Row],[Score]])>0,1,0) -> 0 | K85: 0 | L85: 0
A86: =Contemporary!A82 -> R-404 | B86: =Contemporary!U82 -> 0 | C86: =Contemporary!S82 -> 0 | D86: =IF((Table7101213[[#This Row],[Rank]]+Table7101213[[#This Row],[Score]])>0,1,0) -> 0 | K86: 0 | L86: 0
A87: =Contemporary!A84 -> S-401 | B87: =Contemporary!U84 -> 0 | C87: =Contemporary!S84 -> 0 | D87: =IF((Table7101213[[#This Row],[Rank]]+Table7101213[[#This Row],[Score]])>0,1,0) -> 0 | K87: 0 | L87: 0
A88: =Contemporary!A85 -> S-402 | B88: =Contemporary!U85 -> 0 | C88: =Contemporary!S85 -> 0 | D88: =IF((Table7101213[[#This Row],[Rank]]+Table7101213[[#This Row],[Score]])>0,1,0) -> 0 | K88: 0 | L88: 0
A89: =Contemporary!A86 -> S-403 | B89: =Contemporary!U86 -> 0 | C89: =Contemporary!S86 -> 0 | D89: =IF((Table7101213[[#This Row],[Rank]]+Table7101213[[#This Row],[Score]])>0,1,0) -> 0 | K89: 0 | L89: 0
A90: =Contemporary!A87 -> S-404 | B90: =Contemporary!U87 -> 0 | C90: =Contemporary!S87 -> 0 | D90: =IF((Table7101213[[#This Row],[Rank]]+Table7101213[[#This Row],[Score]])>0,1,0) -> 0 | K90: 0 | L90: 0
A91: =Contemporary!A89 -> T-401 | B91: =Contemporary!U89 -> 0 | C91: =Contemporary!S89 -> 0 | D91: =IF((Table7101213[[#This Row],[Rank]]+Table7101213[[#This Row],[Score]])>0,1,0) -> 0 | K91: 0 | L91: 0
A92: =Contemporary!A90 -> T-402 | B92: =Contemporary!U90 -> 0 | C92: =Contemporary!S90 -> 0 | D92: =IF((Table7101213[[#This Row],[Rank]]+Table7101213[[#This Row],[Score]])>0,1,0) -> 0 | K92: 0 | L92: 0
A93: =Contemporary!A91 -> T-403 | B93: =Contemporary!U91 -> 0 | C93: =Contemporary!S91 -> 0 | D93: =IF((Table7101213[[#This Row],[Rank]]+Table7101213[[#This Row],[Score]])>0,1,0) -> 0 | K93: 0 | L93: 0
A94: =Contemporary!A92 -> T-404 | B94: =Contemporary!U92 -> 0 | C94: =Contemporary!S92 -> 0 | D94: =IF((Table7101213[[#This Row],[Rank]]+Table7101213[[#This Row],[Score]])>0,1,0) -> 0 | K94: 0 | L94: 0
A95: =Contemporary!A94 -> U-401 | B95: =Contemporary!U94 -> 0 | C95: =Contemporary!S94 -> 0 | D95: =IF((Table7101213[[#This Row],[Rank]]+Table7101213[[#This Row],[Score]])>0,1,0) -> 0 | K95: 0 | L95: 0
A96: =Contemporary!A95 -> U-402 | B96: =Contemporary!U95 -> 0 | C96: =Contemporary!S95 -> 0 | D96: =IF((Table7101213[[#This Row],[Rank]]+Table7101213[[#This Row],[Score]])>0,1,0) -> 0 | K96: 0 | L96: 0
A97: =Contemporary!A96 -> U-403 | B97: =Contemporary!U96 -> 0 | C97: =Contemporary!S96 -> 0 | D97: =IF((Table7101213[[#This Row],[Rank]]+Table7101213[[#This Row],[Score]])>0,1,0) -> 0 | K97: 0 | L97: 0
A98: =Contemporary!A97 -> U-404 | B98: =Contemporary!U97 -> 0 | C98: =Contemporary!S97 -> 0 | D98: =IF((Table7101213[[#This Row],[Rank]]+Table7101213[[#This Row],[Score]])>0,1,0) -> 0 | K98: 0 | L98: 0
A99: =Contemporary!A99 -> V-401 | B99: =Contemporary!U99 -> 0 | C99: =Contemporary!S99 -> 0 | D99: =IF((Table7101213[[#This Row],[Rank]]+Table7101213[[#This Row],[Score]])>0,1,0) -> 0 | K99: =SUM(E99,G99,I99) -> 0 | L99: =SUM(F99,H99,J99) -> 0
A100: =Contemporary!A100 -> V-402 | B100: =Contemporary!U100 -> 0 | C100: =Contemporary!S100 -> 0 | D100: =IF((Table7101213[[#This Row],[Rank]]+Table7101213[[#This Row],[Score]])>0,1,0) -> 0 | K100: 0 | L100: 0
A101: =Contemporary!A101 -> V-403 | B101: =Contemporary!U101 -> 0 | C101: =Contemporary!S101 -> 0 | D101: =IF((Table7101213[[#This Row],[Rank]]+Table7101213[[#This Row],[Score]])>0,1,0) -> 0 | K101: 0 | L101: 0
A102: =Contemporary!A102 -> V-404 | B102: =Contemporary!U102 -> 0 | C102: =Contemporary!S102 -> 0 | D102: =IF((Table7101213[[#This Row],[Rank]]+Table7101213[[#This Row],[Score]])>0,1,0) -> 0 | K102: 0 | L102: 0
A103: =Contemporary!A104 -> W-401 | B103: =Contemporary!U104 -> 0 | C103: =Contemporary!S104 -> 0 | D103: =IF((Table7101213[[#This Row],[Rank]]+Table7101213[[#This Row],[Score]])>0,1,0) -> 0 | K103: 0 | L103: 0
A104: =Contemporary!A105 -> W-402 | B104: =Contemporary!U105 -> 0 | C104: =Contemporary!S105 -> 0 | D104: =IF((Table7101213[[#This Row],[Rank]]+Table7101213[[#This Row],[Score]])>0,1,0) -> 0 | K104: 0 | L104: 0
A105: =Contemporary!A106 -> W-403 | B105: =Contemporary!U106 -> 0 | C105: =Contemporary!S106 -> 0 | D105: =IF((Table7101213[[#This Row],[Rank]]+Table7101213[[#This Row],[Score]])>0,1,0) -> 0 | K105: 0 | L105: 0
A106: =Contemporary!A107 -> W-404 | B106: =Contemporary!U107 -> 0 | C106: =Contemporary!S107 -> 0 | D106: =IF((Table7101213[[#This Row],[Rank]]+Table7101213[[#This Row],[Score]])>0,1,0) -> 0 | K106: 0 | L106: 0
A107: =Contemporary!A109 -> X-401 | B107: =Contemporary!U109 -> 0 | C107: =Contemporary!S109 -> 0 | D107: =IF((Table7101213[[#This Row],[Rank]]+Table7101213[[#This Row],[Score]])>0,1,0) -> 0 | K107: 0 | L107: 0
A108: =Contemporary!A110 -> X-402 | B108: =Contemporary!U110 -> 0 | C108: =Contemporary!S110 -> 0 | D108: =IF((Table7101213[[#This Row],[Rank]]+Table7101213[[#This Row],[Score]])>0,1,0) -> 0 | K108: 0 | L108: 0
A109: =Contemporary!A111 -> X-403 | B109: =Contemporary!U111 -> 0 | C109: =Contemporary!S111 -> 0 | D109: =IF((Table7101213[[#This Row],[Rank]]+Table7101213[[#This Row],[Score]])>0,1,0) -> 0 | K109: 0 | L109: 0
A110: =Contemporary!A112 -> X-404 | B110: =Contemporary!U112 -> 0 | C110: =Contemporary!S112 -> 0 | D110: =IF((Table7101213[[#This Row],[Rank]]+Table7101213[[#This Row],[Score]])>0,1,0) -> 0 | K110: 0 | L110: 0
A111: =Contemporary!A114 -> Y-401 | B111: =Contemporary!U114 -> 0 | C111: =Contemporary!S114 -> 0 | D111: =IF((Table7101213[[#This Row],[Rank]]+Table7101213[[#This Row],[Score]])>0,1,0) -> 0 | K111: 0 | L111: 0
A112: =Contemporary!A115 -> Y-402 | B112: =Contemporary!U115 -> 0 | C112: =Contemporary!S115 -> 0 | D112: =IF((Table7101213[[#This Row],[Rank]]+Table7101213[[#This Row],[Score]])>0,1,0) -> 0 | K112: 0 | L112: 0
A113: =Contemporary!A116 -> Y-403 | B113: =Contemporary!U116 -> 0 | C113: =Contemporary!S116 -> 0 | D113: =IF((Table7101213[[#This Row],[Rank]]+Table7101213[[#This Row],[Score]])>0,1,0) -> 0 | K113: 0 | L113: 0
A114: =Contemporary!A117 -> Y-404 | B114: =Contemporary!U117 -> 0 | C114: =Contemporary!S117 -> 0 | D114: =IF((Table7101213[[#This Row],[Rank]]+Table7101213[[#This Row],[Score]])>0,1,0) -> 0 | K114: 0 | L114: 0
A115: =Contemporary!A119 -> Z-401 | B115: =Contemporary!U119 -> 0 | C115: =Contemporary!S119 -> 0 | D115: =IF((Table7101213[[#This Row],[Rank]]+Table7101213[[#This Row],[Score]])>0,1,0) -> 0 | K115: 0 | L115: 0
A116: =Contemporary!A120 -> Z-402 | B116: =Contemporary!U120 -> 0 | C116: =Contemporary!S120 -> 0 | D116: =IF((Table7101213[[#This Row],[Rank]]+Table7101213[[#This Row],[Score]])>0,1,0) -> 0 | K116: 0 | L116: 0
A117: =Contemporary!A121 -> Z-403 | B117: =Contemporary!U121 -> 0 | C117: =Contemporary!S121 -> 0 | D117: =IF((Table7101213[[#This Row],[Rank]]+Table7101213[[#This Row],[Score]])>0,1,0) -> 0 | K117: 0 | L117: 0
A118: =Contemporary!A122 -> Z-404 | B118: =Contemporary!U122 -> 0 | C118: =Contemporary!S122 -> 0 | D118: =IF((Table7101213[[#This Row],[Rank]]+Table7101213[[#This Row],[Score]])>0,1,0) -> 0 | K118: 0 | L118: 0
A119: =Contemporary!A149 -> FF-401 | B119: =Contemporary!U149 -> 0 | C119: =Contemporary!S149 -> 0 | D119: =IF((Table7101213[[#This Row],[Rank]]+Table7101213[[#This Row],[Score]])>0,1,0) -> 0 | K119: 0 | L119: 0
A120: =Contemporary!A150 -> FF-402 | B120: =Contemporary!U150 -> 0 | C120: =Contemporary!S150 -> 0 | D120: =IF((Table7101213[[#This Row],[Rank]]+Table7101213[[#This Row],[Score]])>0,1,0) -> 0 | K120: 0 | L120: 0
A121: =Contemporary!A151 -> FF-403 | B121: =Contemporary!U151 -> 0 | C121: =Contemporary!S151 -> 0 | D121: =IF((Table7101213[[#This Row],[Rank]]+Table7101213[[#This Row],[Score]])>0,1,0) -> 0 | K121: 0 | L121: 0
A122: =Contemporary!A152 -> FF-404 | B122: =Contemporary!U152 -> 0 | C122: =Contemporary!S152 -> 0 | D122: =IF((Table7101213[[#This Row],[Rank]]+Table7101213[[#This Row],[Score]])>0,1,0) -> 0 | K122: 0 | L122: 0

Sheet Pantomime
A1: Pantomimes | K1: Rank 1-4 | X1: S | Y1: E | Z1: G | AA1: F | AC1: 1violation | AD1: 2violations | AE1: 3violations
K2: Round 1: | M2: Round 2: | O2: Round 3: | Q2: -2 for each | AB2: Drops lowest from column q
F3: Student Name | H3: Student Name | J3: Title of Piece | K3: R1 rank | L3: R1 score | M3: R2 rank | N3: R2 score | O3: R3 rank | P3: R3 score | Q3: Time Violations | S3: TOTAL SCORE | U3: TOTAL RANK | X3: TOTAL SCHOOL SWEEPS POINTS | AB3: Drop Lowest
A4: A-501 | F4: 504 - Sonia | J4: Babysitting | K4: 4 | L4: 20 | M4: 3 | N4: 19 | O4: 2 | P4: 25 | R4: =IF(Q4="1violation",-7*1,IF(Q4="2violations",-7*2,IF(Q4="3violations",-7*3,IF(Q4="","")))) ->  | S4: =SUM(L4,N4,P4,R4) -> 64 | U4: =SUM(K4,M4,O4) -> 9 | Y4: =SUM(S4,S6,S5,S7,-AB4) -> 204 | AB4: =MIN(S4:S7) -> 63
A5: A-502 | F5: 505 - Olivia | J5: Pancakes | K5: 2 | L5: 22 | M5: 4 | N5: 18 | O5: 4 | P5: 23 | R5: =IF(Q5="1violation",-7*1,IF(Q5="2violations",-7*2,IF(Q5="3violations",-7*3,IF(Q5="","")))) ->  | S5: =SUM(L5,N5,P5,R5) -> 63 | U5: =SUM(K5,M5,O5) -> 10
A6: A-503 | F6: 506 - Abby | J6: Cupcakes | K6: 4 | L6: 20 | M6: 2 | N6: 23 | O6: 4 | P6: 23 | S6: =SUM(L6,N6,P6,R6) -> 66 | U6: =SUM(K6,M6,O6) -> 10
A7: A-504 | F7: 507 - Keona | J7: Monday Morning | K7: 1 | L7: 25 | M7: 1 | N7: 24 | O7: 1 | P7: 25 | S7: =SUM(L7,N7,P7,R7) -> 74 | U7: =SUM(K7,M7,O7) -> 3
A9: B-501 | F9: 501 - Jocelyn Ceronino | H9: Makenzie Roundy | J9: Drivers Test | K9: 4 | L9: 20 | M9: 4 | N9: 17 | O9: 4 | P9: 23 | S9: =SUM(L9,N9,P9,R9) -> 60 | U9: =SUM(K9,M9,O9) -> 12 | Y9: =SUM(S9,S11,S10,S12,-AB9) -> 60 | AB9: =MIN(S9:S12) -> 0
A10: B-502 | S10: =SUM(L10,N10,P10,R10) -> 0 | U10: =SUM(K10,M10,O10) -> 0
A11: B-503 | S11: =SUM(L11,N11,P11,R11) -> 0 | U11: =SUM(K11,M11,O11) -> 0
A12: B-504 | S12: =SUM(L12,N12,P12,R12) -> 0 | U12: =SUM(K12,M12,O12) -> 0
A14: C-501 | F14: 502 - Gabe Cummens | H14: Jay Cummens | J14: Off Brand | K14: 4 | L14: 21 | M14: 4 | N14: 16 | O14: 3 | P14: 24 | S14: =SUM(L14,N14,P14,R14) -> 61 | U14: =SUM(K14,M14,O14) -> 11 | Y14: =SUM(S14,S16,S15,S17,-AB14) -> 61 | AB14: =MIN(S14:S17) -> 0
A15: C-502 | S15: =SUM(L15,N15,P15,R15) -> 0 | U15: =SUM(K15,M15,O15) -> 0
A16: C-503 | S16: =SUM(L16,N16,P16,R16) -> 0 | U16: =SUM(K16,M16,O16) -> 0
A17: C-504 | S17: =SUM(L17,N17,P17,R17) -> 0 | U17: =SUM(K17,M17,O17) -> 0
A19: D-501 | S19: =SUM(L19,N19,P19,R19) -> 0 | U19: =SUM(K19,M19,O19) -> 0 | Y19: =SUM(S19,S21,S20,S22,-AB19) -> 0 | AB19: =MIN(S19:S22) -> 0
A20: D-502 | S20: =SUM(L20,N20,P20,R20) -> 0 | U20: =SUM(K20,M20,O20) -> 0
A21: D-503 | S21: =SUM(L21,N21,P21,R21) -> 0 | U21: =SUM(K21,M21,O21) -> 0
A22: D-504 | S22: =SUM(L22,N22,P22,R22) -> 0 | U22: =SUM(K22,M22,O22) -> 0
A24: E-501 | S24: =SUM(L24,N24,P24,R24) -> 0 | U24: =SUM(K24,M24,O24) -> 0 | Y24: =SUM(S24,S26,S25,S27,-AB24) -> 0 | AB24: =MIN(S24:S27) -> 0
A25: E-502 | S25: =SUM(L25,N25,P25,R25) -> 0 | U25: =SUM(K25,M25,O25) -> 0
A26: E-503 | S26: =SUM(L26,N26,P26,R26) -> 0 | U26: =SUM(K26,M26,O26) -> 0
A27: E-504 | S27: =SUM(L27,N27,P27,R27) -> 0 | U27: =SUM(K27,M27,O27) -> 0
A29: F-501 | F29: 503 - Kira Platt | J29: How I Missed the Bus | K29: 3 | L29: 22 | M29: 4 | N29: 14 | O29: 4 | P29: 22 | S29: =SUM(L29,N29,P29,R29) -> 58 | U29: =SUM(K29,M29,O29) -> 11 | Y29: =SUM(S29,S31,S30,S32,-AB29) -> 58 | AB29: =MIN(S29:S32) -> 0
A30: F-502 | S30: =SUM(L30,N30,P30,R30) -> 0 | U30: =SUM(K30,M30,O30) -> 0
A31: F-503 | S31: =SUM(L31,N31,P31,R31) -> 0 | U31: =SUM(K31,M31,O31) -> 0
A32: F-504 | S32: =SUM(L32,N32,P32,R32) -> 0 | U32: =SUM(K32,M32,O32) -> 0
A34: G-501 | S34: =SUM(L34,N34,P34,R34) -> 0 | U34: =SUM(K34,M34,O34) -> 0 | Y34: =SUM(S34,S36,S35,S37,-AB34) -> 0 | AB34: =MIN(S34:S37) -> 0
A35: G-502 | S35: =SUM(L35,N35,P35,R35) -> 0 | U35: =SUM(K35,M35,O35) -> 0
A36: G-503 | S36: =SUM(L36,N36,P36,R36) -> 0 | U36: =SUM(K36,M36,O36) -> 0
A37: G-504 | S37: =SUM(L37,N37,P37,R37) -> 0 | U37: =SUM(K37,M37,O37) -> 0
A39: H-501 | S39: =SUM(L39,N39,P39,R39) -> 0 | U39: =SUM(K39,M39,O39) -> 0 | Y39: =SUM(S39,S41,S40,S42,-AB39) -> 0 | AB39: =MIN(S39:S42) -> 0
A40: H-502 | S40: =SUM(L40,N40,P40,R40) -> 0 | U40: =SUM(K40,M40,O40) -> 0
A41: H-503 | S41: =SUM(L41,N41,P41,R41) -> 0 | U41: =SUM(K41,M41,O41) -> 0
A42: H-504 | S42: =SUM(L42,N42,P42,R42) -> 0 | U42: =SUM(K42,M42,O42) -> 0
A44: J-501 | S44: =SUM(L44,N44,P44,R44) -> 0 | U44: =SUM(K44,M44,O44) -> 0 | Y44: =SUM(S44,S46,S45,S47,-AB44) -> 0 | AB44: =MIN(S44:S47) -> 0
A45: J-502 | S45: =SUM(L45,N45,P45,R45) -> 0 | U45: =SUM(K45,M45,O45) -> 0
A46: J-503 | S46: =SUM(L46,N46,P46,R46) -> 0 | U46: =SUM(K46,M46,O46) -> 0
A47: J-504 | S47: =SUM(L47,N47,P47,R47) -> 0 | U47: =SUM(K47,M47,O47) -> 0
A49: K-501 | S49: =SUM(L49,N49,P49,R49) -> 0 | U49: =SUM(K49,M49,O49) -> 0 | Y49: =SUM(S49,S51,S50,S52,-AB49) -> 0 | AB49: =MIN(S49:S52) -> 0
A50: K-502 | S50: =SUM(L50,N50,P50,R50) -> 0 | U50: =SUM(K50,M50,O50) -> 0
A51: K-503 | S51: =SUM(L51,N51,P51,R51) -> 0 | U51: =SUM(K51,M51,O51) -> 0
A52: K-504 | S52: =SUM(L52,N52,P52,R52) -> 0 | U52: =SUM(K52,M52,O52) -> 0
A54: L-501 | S54: =SUM(L54,N54,P54,R54) -> 0 | U54: =SUM(K54,M54,O54) -> 0 | Y54: =SUM(S54,S56,S55,S57,-AB54) -> 0 | AB54: =MIN(S54:S57) -> 0
A55: L-502 | S55: =SUM(L55,N55,P55,R55) -> 0 | U55: =SUM(K55,M55,O55) -> 0
A56: L-503 | S56: =SUM(L56,N56,P56,R56) -> 0 | U56: =SUM(K56,M56,O56) -> 0
A57: L-504 | S57: =SUM(L57,N57,P57,R57) -> 0 | U57: =SUM(K57,M57,O57) -> 0
A59: M-501 | S59: =SUM(L59,N59,P59,R59) -> 0 | U59: =SUM(K59,M59,O59) -> 0 | Y59: =SUM(S59,S61,S60,S62,-AB59) -> 0 | AB59: =MIN(S59:S62) -> 0
A60: M-502 | S60: =SUM(L60,N60,P60,R60) -> 0 | U60: =SUM(K60,M60,O60) -> 0
A61: M-503 | S61: =SUM(L61,N61,P61,R61) -> 0 | U61: =SUM(K61,M61,O61) -> 0
A62: M-504 | S62: =SUM(L62,N62,P62,R62) -> 0 | U62: =SUM(K62,M62,O62) -> 0
A64: N-501 | S64: =SUM(L64,N64,P64,R64) -> 0 | U64: =SUM(K64,M64,O64) -> 0 | Y64: =SUM(S64,S66,S65,S67,-AB64) -> 0 | AB64: =MIN(S64:S67) -> 0
A65: N-502 | S65: =SUM(L65,N65,P65,R65) -> 0 | U65: =SUM(K65,M65,O65) -> 0
A66: N-503 | S66: =SUM(L66,N66,P66,R66) -> 0 | U66: =SUM(K66,M66,O66) -> 0
A67: N-504 | S67: =SUM(L67,N67,P67,R67) -> 0 | U67: =SUM(K67,M67,O67) -> 0
A69: P-501 | R69: =IF(Q69="1violation",-7*1,IF(Q69="2violations",-7*2,IF(Q69="3violations",-7*3,IF(Q69="","")))) ->  | S69: =SUM(L69,N69,P69,R69) -> 0 | U69: =SUM(K69,M69,O69) -> 0 | Y69: =SUM(S69,S71,S70,S72,-AB69) -> 0 | AB69: =MIN(S69:S72) -> 0
A70: P-502 | S70: =SUM(L70,N70,P70,R70) -> 0 | U70: =SUM(K70,M70,O70) -> 0
A71: P-503 | S71: =SUM(L71,N71,P71,R71) -> 0 | U71: =SUM(K71,M71,O71) -> 0
A72: P-504 | S72: =SUM(L72,N72,P72,R72) -> 0 | U72: =SUM(K72,M72,O72) -> 0
A74: Q-501 | S74: =SUM(L74,N74,P74,R74) -> 0 | U74: =SUM(K74,M74,O74) -> 0 | Y74: =SUM(S74,S76,S75,S77,-AB74) -> 0 | AB74: =MIN(S74:S77) -> 0
A75: Q-502 | S75: =SUM(L75,N75,P75,R75) -> 0 | U75: =SUM(K75,M75,O75) -> 0
A76: Q-502 | S76: =SUM(L76,N76,P76,R76) -> 0 | U76: =SUM(K76,M76,O76) -> 0
A77: Q-504 | S77: =SUM(L77,N77,P77,R77) -> 0 | U77: =SUM(K77,M77,O77) -> 0
A79: R-501 | S79: =SUM(L79,N79,P79,R79) -> 0 | U79: =SUM(K79,M79,O79) -> 0 | Y79: =SUM(S79,S81,S80,S82,-AB79) -> 0 | AB79: =MIN(S79:S82) -> 0
A80: R-502 | S80: =SUM(L80,N80,P80,R80) -> 0 | U80: =SUM(K80,M80,O80) -> 0
A81: R-503 | S81: =SUM(L81,N81,P81,R81) -> 0 | U81: =SUM(K81,M81,O81) -> 0
A82: R-504 | S82: =SUM(L82,N82,P82,R82) -> 0 | U82: =SUM(K82,M82,O82) -> 0
A84: S-501 | S84: =SUM(L84,N84,P84,R84) -> 0 | U84: =SUM(K84,M84,O84) -> 0 | Y84: =SUM(S84,S86,S85,S87,-AB84) -> 0 | AB84: =MIN(S84:S87) -> 0
A85: S-502 | S85: =SUM(L85,N85,P85,R85) -> 0 | U85: =SUM(K85,M85,O85) -> 0
A86: S-503 | S86: =SUM(L86,N86,P86,R86) -> 0 | U86: =SUM(K86,M86,O86) -> 0
A87: S-504 | S87: =SUM(L87,N87,P87,R87) -> 0 | U87: =SUM(K87,M87,O87) -> 0
A89: T-501 | S89: =SUM(L89,N89,P89,R89) -> 0 | U89: =SUM(K89,M89,O89) -> 0 | Y89: =SUM(S89,S91,S90,S92,-AB89) -> 0 | AB89: =MIN(S89:S92) -> 0
A90: T-502 | S90: =SUM(L90,N90,P90,R90) -> 0 | U90: =SUM(K90,M90,O90) -> 0
A91: T-503 | S91: =SUM(L91,N91,P91,R91) -> 0 | U91: =SUM(K91,M91,O91) -> 0
A92: T-504 | S92: =SUM(L92,N92,P92,R92) -> 0 | U92: =SUM(K92,M92,O92) -> 0
A94: U-501 | S94: =SUM(L94,N94,P94,R94) -> 0 | U94: =SUM(K94,M94,O94) -> 0 | Y94: =SUM(S94,S96,S95,S97,-AB94) -> 0 | AB94: =MIN(S94:S97) -> 0
A95: U-502 | S95: =SUM(L95,N95,P95,R95) -> 0 | U95: =SUM(K95,M95,O95) -> 0
A96: U-503 | S96: =SUM(L96,N96,P96,R96) -> 0 | U96: =SUM(K96,M96,O96) -> 0
A97: U-504 | S97: =SUM(L97,N97,P97,R97) -> 0 | U97: =SUM(K97,M97,O97) -> 0
A99: V-501 | S99: =SUM(L99,N99,P99,R99) -> 0 | U99: =SUM(K99,M99,O99) -> 0 | Y99: =SUM(S99,S101,S100,S102,-AB99) -> 0 | AB99: =MIN(S99:S102) -> 0
A100: V-502 | S100: =SUM(L100,N100,P100,R100) -> 0 | U100: =SUM(K100,M100,O100) -> 0
A101: V-503 | S101: =SUM(L101,N101,P101,R101) -> 0 | U101: =SUM(K101,M101,O101) -> 0
A102: V-504 | S102: =SUM(L102,N102,P102,R102) -> 0 | U102: =SUM(K102,M102,O102) -> 0
A104: W-501 | S104: =SUM(L104,N104,P104,R104) -> 0 | U104: =SUM(K104,M104,O104) -> 0 | Y104: =SUM(S104,S106,S105,S107,-AB104) -> 0 | AB104: =MIN(S104:S107) -> 0
A105: W-502 | S105: =SUM(L105,N105,P105,R105) -> 0 | U105: =SUM(K105,M105,O105) -> 0
A106: W-503 | S106: =SUM(L106,N106,P106,R106) -> 0 | U106: =SUM(K106,M106,O106) -> 0
A107: W-504 | S107: =SUM(L107,N107,P107,R107) -> 0 | U107: =SUM(K107,M107,O107) -> 0
A109: X-501 | S109: =SUM(L109,N109,P109,R109) -> 0 | U109: =SUM(K109,M109,O109) -> 0 | Y109: =SUM(S109,S111,S110,S112,-AB109) -> 0 | AB109: =MIN(S109:S112) -> 0
A110: X-502 | S110: =SUM(L110,N110,P110,R110) -> 0 | U110: =SUM(K110,M110,O110) -> 0
A111: X-503 | S111: =SUM(L111,N111,P111,R111) -> 0 | U111: =SUM(K111,M111,O111) -> 0
A112: X-504 | S112: =SUM(L112,N112,P112,R112) -> 0 | U112: =SUM(K112,M112,O112) -> 0
A114: Y-501 | S114: =SUM(L114,N114,P114,R114) -> 0 | U114: =SUM(K114,M114,O114) -> 0 | Y114: =SUM(S114,S116,S115,S117,-AB114) -> 0 | AB114: =MIN(S114:S117) -> 0
A115: Y-502 | S115: =SUM(L115,N115,P115,R115) -> 0 | U115: =SUM(K115,M115,O115) -> 0
A116: Y-503 | S116: =SUM(L116,N116,P116,R116) -> 0 | U116: =SUM(K116,M116,O116) -> 0
A117: Y-504 | S117: =SUM(L117,N117,P117,R117) -> 0 | U117: =SUM(K117,M117,O117) -> 0
A119: Z-501 | S119: =SUM(L119,N119,P119,R119) -> 0 | U119: =SUM(K119,M119,O119) -> 0 | Y119: =SUM(S119,S121,S120,S122,-AB119) -> 0 | AB119: =MIN(S119:S122) -> 0
A120: Z-502 | S120: =SUM(L120,N120,P120,R120) -> 0 | U120: =SUM(K120,M120,O120) -> 0
A121: Z-503 | S121: =SUM(L121,N121,P121,R121) -> 0 | U121: =SUM(K121,M121,O121) -> 0
A122: Z-504 | S122: =SUM(L122,N122,P122,R122) -> 0 | U122: =SUM(K122,M122,O122) -> 0
A124: AA-501 | S124: =SUM(L124,N124,P124,R124) -> 0 | U124: =SUM(K124,M124,O124) -> 0 | Y124: =SUM(S124,S126,S125,S127,-AB124) -> 0 | AB124: =MIN(S124:S127) -> 0
A125: AA-502 | S125: =SUM(L125,N125,P125,R125) -> 0 | U125: =SUM(K125,M125,O125) -> 0
A126: AA-503 | S126: =SUM(L126,N126,P126,R126) -> 0 | U126: =SUM(K126,M126,O126) -> 0
A127: AA-504 | S127: =SUM(L127,N127,P127,R127) -> 0 | U127: =SUM(K127,M127,O127) -> 0
A129: BB-501 | S129: =SUM(L129,N129,P129,R129) -> 0 | U129: =SUM(K129,M129,O129) -> 0 | Y129: =SUM(S129,S131,S130,S132,-AB129) -> 0 | AB129: =MIN(S129:S132) -> 0
A130: BB-502 | S130: =SUM(L130,N130,P130,R130) -> 0 | U130: =SUM(K130,M130,O130) -> 0
A131: BB-503 | S131: =SUM(L131,N131,P131,R131) -> 0 | U131: =SUM(K131,M131,O131) -> 0
A132: BB-504 | S132: =SUM(L132,N132,P132,R132) -> 0 | U132: =SUM(K132,M132,O132) -> 0
A134: CC-501 | R134: =IF(Q134="1violation",-7*1,IF(Q134="2violations",-7*2,IF(Q134="3violations",-7*3,IF(Q134="","")))) ->  | S134: =SUM(L134,N134,P134,R134) -> 0 | U134: =SUM(K134,M134,O134) -> 0 | Y134: =SUM(S134,S136,S135,S137,-AB134) -> 0 | AB134: =MIN(S134:S137) -> 0
A135: CC-502 | S135: =SUM(L135,N135,P135,R135) -> 0 | U135: =SUM(K135,M135,O135) -> 0
A136: CC-503 | S136: =SUM(L136,N136,P136,R136) -> 0 | U136: =SUM(K136,M136,O136) -> 0
A137: CC-504 | S137: =SUM(L137,N137,P137,R137) -> 0 | U137: =SUM(K137,M137,O137) -> 0
A139: DD-501 | S139: =SUM(L139,N139,P139,R139) -> 0 | U139: =SUM(K139,M139,O139) -> 0 | Y139: =SUM(S139,S141,S140,S142,-AB139) -> 0 | AB139: =MIN(S139:S142) -> 0
A140: DD-502 | S140: =SUM(L140,N140,P140,R140) -> 0 | U140: =SUM(K140,M140,O140) -> 0
A141: DD-503 | S141: =SUM(L141,N141,P141,R141) -> 0 | U141: =SUM(K141,M141,O141) -> 0
A142: DD-504 | S142: =SUM(L142,N142,P142,R142) -> 0 | U142: =SUM(K142,M142,O142) -> 0
A144: EE-501 | S144: =SUM(L144,N144,P144,R144) -> 0 | U144: =SUM(K144,M144,O144) -> 0 | Y144: =SUM(S144,S146,S145,S147,-AB144) -> 0 | AB144: =MIN(S144:S147) -> 0
A145: EE-502 | S145: =SUM(L145,N145,P145,R145) -> 0 | U145: =SUM(K145,M145,O145) -> 0
A146: EE-503 | S146: =SUM(L146,N146,P146,R146) -> 0 | U146: =SUM(K146,M146,O146) -> 0
A147: EE-504 | S147: =SUM(L147,N147,P147,R147) -> 0 | U147: =SUM(K147,M147,O147) -> 0
A149: FF-501 | S149: =SUM(L149,N149,P149,R149) -> 0 | U149: =SUM(K149,M149,O149) -> 0 | Y149: =SUM(S149,S151,S150,S152,-AB149) -> 0 | AB149: =MIN(S149:S152) -> 0
A150: FF-502 | S150: =SUM(L150,N150,P150,R150) -> 0 | U150: =SUM(K150,M150,O150) -> 0
A151: FF-503 | S151: =SUM(L151,N151,P151,R151) -> 0 | U151: =SUM(K151,M151,O151) -> 0
A152: FF-504 | S152: =SUM(L152,N152,P152,R152) -> 0 | U152: =SUM(K152,M152,O152) -> 0

Sheet PantomimeMR
A1: Pantomime | E1: Finals Medals Round Scores
A2: ID | B2: Rank | C2: Score | D2: LeaveBlank | E2: MR 1 Rank | F2: MR 1 Score | G2: MR2 Rank | H2: MR 2 Score | I2: MR3 Rank | J2: MR 3 Score | K2: Total MR Rank | L2: Total MR Score
A3: =Pantomime!A7 -> A-504 | B3: =Pantomime!U7 -> 3 | C3: =Pantomime!S7 -> 74 | D3: =IF((Table710121314[[#This Row],[Rank]]+Table710121314[[#This Row],[Score]])>0,1,0) -> 1 | E3: 2 | F3: 24 | G3: 2 | H3: 24 | I3: 4 | J3: 23 | K3: =SUM(E3,G3,I3) -> 8 | L3: =SUM(F3,H3,J3) -> 71
A4: =Pantomime!A4 -> A-501 | B4: =Pantomime!U4 -> 9 | C4: =Pantomime!S4 -> 64 | D4: =IF((Table710121314[[#This Row],[Rank]]+Table710121314[[#This Row],[Score]])>0,1,0) -> 1 | E4: 4 | F4: 23 | G4: 5 | H4: 22 | I4: 3 | J4: 23 | K4: 12 | L4: 68
A5: =Pantomime!A6 -> A-503 | B5: =Pantomime!U6 -> 10 | C5: =Pantomime!S6 -> 66 | D5: =IF((Table710121314[[#This Row],[Rank]]+Table710121314[[#This Row],[Score]])>0,1,0) -> 1 | E5: 1 | F5: 25 | G5: 3 | H5: 23 | I5: 5 | J5: 22 | K5: 9 | L5: 70
A6: =Pantomime!A5 -> A-502 | B6: =Pantomime!U5 -> 10 | C6: =Pantomime!S5 -> 63 | D6: =IF((Table710121314[[#This Row],[Rank]]+Table710121314[[#This Row],[Score]])>0,1,0) -> 1 | E6: 5 | F6: 22 | G6: 4 | H6: 23 | I6: 2 | J6: 25 | K6: 11 | L6: 70
A7: =Pantomime!A14 -> C-501 | B7: =Pantomime!U14 -> 11 | C7: =Pantomime!S14 -> 61 | D7: =IF((Table710121314[[#This Row],[Rank]]+Table710121314[[#This Row],[Score]])>0,1,0) -> 1 | E7: 3 | F7: 23 | G7: 1 | H7: 24 | I7: 1 | J7: 25 | K7: 5 | L7: 72
A8: =Pantomime!A29 -> F-501 | B8: =Pantomime!U29 -> 11 | C8: =Pantomime!S29 -> 58 | D8: =IF((Table710121314[[#This Row],[Rank]]+Table710121314[[#This Row],[Score]])>0,1,0) -> 1 | K8: 0 | L8: 0
A9: =Pantomime!A9 -> B-501 | B9: =Pantomime!U9 -> 12 | C9: =Pantomime!S9 -> 60 | D9: =IF((Table710121314[[#This Row],[Rank]]+Table710121314[[#This Row],[Score]])>0,1,0) -> 1 | K9: 0 | L9: 0
A10: =Pantomime!A44 -> J-501 | B10: =Pantomime!U44 -> 0 | C10: =Pantomime!S44 -> 0 | D10: =IF((Table710121314[[#This Row],[Rank]]+Table710121314[[#This Row],[Score]])>0,1,0) -> 0 | K10: 0 | L10: 0
A11: =Pantomime!A19 -> D-501 | B11: =Pantomime!U19 -> 0 | C11: =Pantomime!S19 -> 0 | D11: =IF((Table710121314[[#This Row],[Rank]]+Table710121314[[#This Row],[Score]])>0,1,0) -> 0 | K11: 0 | L11: 0
A12: =Pantomime!A124 -> AA-501 | B12: =Pantomime!U124 -> 0 | C12: =Pantomime!S124 -> 0 | D12: =IF((Table710121314[[#This Row],[Rank]]+Table710121314[[#This Row],[Score]])>0,1,0) -> 0 | K12: 0 | L12: 0
A13: =Pantomime!A125 -> AA-502 | B13: =Pantomime!U125 -> 0 | C13: =Pantomime!S125 -> 0 | D13: =IF((Table710121314[[#This Row],[Rank]]+Table710121314[[#This Row],[Score]])>0,1,0) -> 0 | K13: 0 | L13: 0
A14: =Pantomime!A126 -> AA-503 | B14: =Pantomime!U126 -> 0 | C14: =Pantomime!S126 -> 0 | D14: =IF((Table710121314[[#This Row],[Rank]]+Table710121314[[#This Row],[Score]])>0,1,0) -> 0 | K14: 0 | L14: 0
A15: =Pantomime!A127 -> AA-504 | B15: =Pantomime!U127 -> 0 | C15: =Pantomime!S127 -> 0 | D15: =IF((Table710121314[[#This Row],[Rank]]+Table710121314[[#This Row],[Score]])>0,1,0) -> 0 | K15: 0 | L15: 0
A16: =Pantomime!A10 -> B-502 | B16: =Pantomime!U10 -> 0 | C16: =Pantomime!S10 -> 0 | D16: =IF((Table710121314[[#This Row],[Rank]]+Table710121314[[#This Row],[Score]])>0,1,0) -> 0 | K16: 0 | L16: 0
A17: =Pantomime!A11 -> B-503 | B17: =Pantomime!U11 -> 0 | C17: =Pantomime!S11 -> 0 | D17: =IF((Table710121314[[#This Row],[Rank]]+Table710121314[[#This Row],[Score]])>0,1,0) -> 0 | K17: 0 | L17: 0
A18: =Pantomime!A12 -> B-504 | B18: =Pantomime!U12 -> 0 | C18: =Pantomime!S12 -> 0 | D18: =IF((Table710121314[[#This Row],[Rank]]+Table710121314[[#This Row],[Score]])>0,1,0) -> 0 | K18: 0 | L18: 0
A19: =Pantomime!A129 -> BB-501 | B19: =Pantomime!U129 -> 0 | C19: =Pantomime!S129 -> 0 | D19: =IF((Table710121314[[#This Row],[Rank]]+Table710121314[[#This Row],[Score]])>0,1,0) -> 0 | K19: 0 | L19: 0
A20: =Pantomime!A130 -> BB-502 | B20: =Pantomime!U130 -> 0 | C20: =Pantomime!S130 -> 0 | D20: =IF((Table710121314[[#This Row],[Rank]]+Table710121314[[#This Row],[Score]])>0,1,0) -> 0 | K20: 0 | L20: 0
A21: =Pantomime!A131 -> BB-503 | B21: =Pantomime!U131 -> 0 | C21: =Pantomime!S131 -> 0 | D21: =IF((Table710121314[[#This Row],[Rank]]+Table710121314[[#This Row],[Score]])>0,1,0) -> 0 | K21: 0 | L21: 0
A22: =Pantomime!A132 -> BB-504 | B22: =Pantomime!U132 -> 0 | C22: =Pantomime!S132 -> 0 | D22: =IF((Table710121314[[#This Row],[Rank]]+Table710121314[[#This Row],[Score]])>0,1,0) -> 0 | K22: 0 | L22: 0
A23: =Pantomime!A15 -> C-502 | B23: =Pantomime!U15 -> 0 | C23: =Pantomime!S15 -> 0 | D23: =IF((Table710121314[[#This Row],[Rank]]+Table710121314[[#This Row],[Score]])>0,1,0) -> 0 | K23: 0 | L23: 0
A24: =Pantomime!A16 -> C-503 | B24: =Pantomime!U16 -> 0 | C24: =Pantomime!S16 -> 0 | D24: =IF((Table710121314[[#This Row],[Rank]]+Table710121314[[#This Row],[Score]])>0,1,0) -> 0 | K24: 0 | L24: 0
A25: =Pantomime!A17 -> C-504 | B25: =Pantomime!U17 -> 0 | C25: =Pantomime!S17 -> 0 | D25: =IF((Table710121314[[#This Row],[Rank]]+Table710121314[[#This Row],[Score]])>0,1,0) -> 0 | K25: 0 | L25: 0
A26: =Pantomime!A134 -> CC-501 | B26: =Pantomime!U134 -> 0 | C26: =Pantomime!S134 -> 0 | D26: =IF((Table710121314[[#This Row],[Rank]]+Table710121314[[#This Row],[Score]])>0,1,0) -> 0 | K26: 0 | L26: 0
A27: =Pantomime!A135 -> CC-502 | B27: =Pantomime!U135 -> 0 | C27: =Pantomime!S135 -> 0 | D27: =IF((Table710121314[[#This Row],[Rank]]+Table710121314[[#This Row],[Score]])>0,1,0) -> 0 | K27: 0 | L27: 0
A28: =Pantomime!A136 -> CC-503 | B28: =Pantomime!U136 -> 0 | C28: =Pantomime!S136 -> 0 | D28: =IF((Table710121314[[#This Row],[Rank]]+Table710121314[[#This Row],[Score]])>0,1,0) -> 0 | K28: 0 | L28: 0
A29: =Pantomime!A137 -> CC-504 | B29: =Pantomime!U137 -> 0 | C29: =Pantomime!S137 -> 0 | D29: =IF((Table710121314[[#This Row],[Rank]]+Table710121314[[#This Row],[Score]])>0,1,0) -> 0 | K29: 0 | L29: 0
A30: =Pantomime!A20 -> D-502 | B30: =Pantomime!U20 -> 0 | C30: =Pantomime!S20 -> 0 | D30: =IF((Table710121314[[#This Row],[Rank]]+Table710121314[[#This Row],[Score]])>0,1,0) -> 0 | K30: 0 | L30: 0
A31: =Pantomime!A21 -> D-503 | B31: =Pantomime!U21 -> 0 | C31: =Pantomime!S21 -> 0 | D31: =IF((Table710121314[[#This Row],[Rank]]+Table710121314[[#This Row],[Score]])>0,1,0) -> 0 | K31: 0 | L31: 0
A32: =Pantomime!A22 -> D-504 | B32: =Pantomime!U22 -> 0 | C32: =Pantomime!S22 -> 0 | D32: =IF((Table710121314[[#This Row],[Rank]]+Table710121314[[#This Row],[Score]])>0,1,0) -> 0 | K32: 0 | L32: 0
A33: =Pantomime!A139 -> DD-501 | B33: =Pantomime!U139 -> 0 | C33: =Pantomime!S139 -> 0 | D33: =IF((Table710121314[[#This Row],[Rank]]+Table710121314[[#This Row],[Score]])>0,1,0) -> 0 | K33: 0 | L33: 0
A34: =Pantomime!A140 -> DD-502 | B34: =Pantomime!U140 -> 0 | C34: =Pantomime!S140 -> 0 | D34: =IF((Table710121314[[#This Row],[Rank]]+Table710121314[[#This Row],[Score]])>0,1,0) -> 0 | K34: 0 | L34: 0
A35: =Pantomime!A141 -> DD-503 | B35: =Pantomime!U141 -> 0 | C35: =Pantomime!S141 -> 0 | D35: =IF((Table710121314[[#This Row],[Rank]]+Table710121314[[#This Row],[Score]])>0,1,0) -> 0 | K35: =SUM(E35,G35,I35) -> 0 | L35: =SUM(F35,H35,J35) -> 0
A36: =Pantomime!A142 -> DD-504 | B36: =Pantomime!U142 -> 0 | C36: =Pantomime!S142 -> 0 | D36: =IF((Table710121314[[#This Row],[Rank]]+Table710121314[[#This Row],[Score]])>0,1,0) -> 0 | K36: 0 | L36: 0
A37: =Pantomime!A24 -> E-501 | B37: =Pantomime!U24 -> 0 | C37: =Pantomime!S24 -> 0 | D37: =IF((Table710121314[[#This Row],[Rank]]+Table710121314[[#This Row],[Score]])>0,1,0) -> 0 | K37: 0 | L37: 0
A38: =Pantomime!A25 -> E-502 | B38: =Pantomime!U25 -> 0 | C38: =Pantomime!S25 -> 0 | D38: =IF((Table710121314[[#This Row],[Rank]]+Table710121314[[#This Row],[Score]])>0,1,0) -> 0 | K38: 0 | L38: 0
A39: =Pantomime!A26 -> E-503 | B39: =Pantomime!U26 -> 0 | C39: =Pantomime!S26 -> 0 | D39: =IF((Table710121314[[#This Row],[Rank]]+Table710121314[[#This Row],[Score]])>0,1,0) -> 0 | K39: 0 | L39: 0
A40: =Pantomime!A27 -> E-504 | B40: =Pantomime!U27 -> 0 | C40: =Pantomime!S27 -> 0 | D40: =IF((Table710121314[[#This Row],[Rank]]+Table710121314[[#This Row],[Score]])>0,1,0) -> 0 | K40: 0 | L40: 0
A41: =Pantomime!A144 -> EE-501 | B41: =Pantomime!U144 -> 0 | C41: =Pantomime!S144 -> 0 | D41: =IF((Table710121314[[#This Row],[Rank]]+Table710121314[[#This Row],[Score]])>0,1,0) -> 0 | K41: 0 | L41: 0
A42: =Pantomime!A145 -> EE-502 | B42: =Pantomime!U145 -> 0 | C42: =Pantomime!S145 -> 0 | D42: =IF((Table710121314[[#This Row],[Rank]]+Table710121314[[#This Row],[Score]])>0,1,0) -> 0 | K42: 0 | L42: 0
A43: =Pantomime!A146 -> EE-503 | B43: =Pantomime!U146 -> 0 | C43: =Pantomime!S146 -> 0 | D43: =IF((Table710121314[[#This Row],[Rank]]+Table710121314[[#This Row],[Score]])>0,1,0) -> 0 | K43: 0 | L43: 0
A44: =Pantomime!A147 -> EE-504 | B44: =Pantomime!U147 -> 0 | C44: =Pantomime!S147 -> 0 | D44: =IF((Table710121314[[#This Row],[Rank]]+Table710121314[[#This Row],[Score]])>0,1,0) -> 0 | K44: 0 | L44: 0
A45: =Pantomime!A30 -> F-502 | B45: =Pantomime!U30 -> 0 | C45: =Pantomime!S30 -> 0 | D45: =IF((Table710121314[[#This Row],[Rank]]+Table710121314[[#This Row],[Score]])>0,1,0) -> 0 | K45: 0 | L45: 0
A46: =Pantomime!A31 -> F-503 | B46: =Pantomime!U31 -> 0 | C46: =Pantomime!S31 -> 0 | D46: =IF((Table710121314[[#This Row],[Rank]]+Table710121314[[#This Row],[Score]])>0,1,0) -> 0 | K46: 0 | L46: 0
A47: =Pantomime!A32 -> F-504 | B47: =Pantomime!U32 -> 0 | C47: =Pantomime!S32 -> 0 | D47: =IF((Table710121314[[#This Row],[Rank]]+Table710121314[[#This Row],[Score]])>0,1,0) -> 0 | K47: 0 | L47: 0
A48: =Pantomime!A149 -> FF-501 | B48: =Pantomime!U149 -> 0 | C48: =Pantomime!S149 -> 0 | D48: =IF((Table710121314[[#This Row],[Rank]]+Table710121314[[#This Row],[Score]])>0,1,0) -> 0 | K48: 0 | L48: 0
A49: =Pantomime!A150 -> FF-502 | B49: =Pantomime!U150 -> 0 | C49: =Pantomime!S150 -> 0 | D49: =IF((Table710121314[[#This Row],[Rank]]+Table710121314[[#This Row],[Score]])>0,1,0) -> 0 | K49: 0 | L49: 0
A50: =Pantomime!A151 -> FF-503 | B50: =Pantomime!U151 -> 0 | C50: =Pantomime!S151 -> 0 | D50: =IF((Table710121314[[#This Row],[Rank]]+Table710121314[[#This Row],[Score]])>0,1,0) -> 0 | K50: 0 | L50: 0
A51: =Pantomime!A152 -> FF-504 | B51: =Pantomime!U152 -> 0 | C51: =Pantomime!S152 -> 0 | D51: =IF((Table710121314[[#This Row],[Rank]]+Table710121314[[#This Row],[Score]])>0,1,0) -> 0 | K51: 0 | L51: 0
A52: =Pantomime!A34 -> G-501 | B52: =Pantomime!U34 -> 0 | C52: =Pantomime!S34 -> 0 | D52: =IF((Table710121314[[#This Row],[Rank]]+Table710121314[[#This Row],[Score]])>0,1,0) -> 0 | K52: 0 | L52: 0
A53: =Pantomime!A35 -> G-502 | B53: =Pantomime!U35 -> 0 | C53: =Pantomime!S35 -> 0 | D53: =IF((Table710121314[[#This Row],[Rank]]+Table710121314[[#This Row],[Score]])>0,1,0) -> 0 | K53: 0 | L53: 0
A54: =Pantomime!A36 -> G-503 | B54: =Pantomime!U36 -> 0 | C54: =Pantomime!S36 -> 0 | D54: =IF((Table710121314[[#This Row],[Rank]]+Table710121314[[#This Row],[Score]])>0,1,0) -> 0 | K54: 0 | L54: 0
A55: =Pantomime!A37 -> G-504 | B55: =Pantomime!U37 -> 0 | C55: =Pantomime!S37 -> 0 | D55: =IF((Table710121314[[#This Row],[Rank]]+Table710121314[[#This Row],[Score]])>0,1,0) -> 0 | K55: 0 | L55: 0
A56: =Pantomime!A39 -> H-501 | B56: =Pantomime!U39 -> 0 | C56: =Pantomime!S39 -> 0 | D56: =IF((Table710121314[[#This Row],[Rank]]+Table710121314[[#This Row],[Score]])>0,1,0) -> 0 | K56: 0 | L56: 0
A57: =Pantomime!A40 -> H-502 | B57: =Pantomime!U40 -> 0 | C57: =Pantomime!S40 -> 0 | D57: =IF((Table710121314[[#This Row],[Rank]]+Table710121314[[#This Row],[Score]])>0,1,0) -> 0 | K57: 0 | L57: 0
A58: =Pantomime!A41 -> H-503 | B58: =Pantomime!U41 -> 0 | C58: =Pantomime!S41 -> 0 | D58: =IF((Table710121314[[#This Row],[Rank]]+Table710121314[[#This Row],[Score]])>0,1,0) -> 0 | K58: 0 | L58: 0
A59: =Pantomime!A42 -> H-504 | B59: =Pantomime!U42 -> 0 | C59: =Pantomime!S42 -> 0 | D59: =IF((Table710121314[[#This Row],[Rank]]+Table710121314[[#This Row],[Score]])>0,1,0) -> 0 | K59: 0 | L59: 0
A60: =Pantomime!A45 -> J-502 | B60: =Pantomime!U45 -> 0 | C60: =Pantomime!S45 -> 0 | D60: =IF((Table710121314[[#This Row],[Rank]]+Table710121314[[#This Row],[Score]])>0,1,0) -> 0 | K60: 0 | L60: 0
A61: =Pantomime!A46 -> J-503 | B61: =Pantomime!U46 -> 0 | C61: =Pantomime!S46 -> 0 | D61: =IF((Table710121314[[#This Row],[Rank]]+Table710121314[[#This Row],[Score]])>0,1,0) -> 0 | K61: 0 | L61: 0
A62: =Pantomime!A47 -> J-504 | B62: =Pantomime!U47 -> 0 | C62: =Pantomime!S47 -> 0 | D62: =IF((Table710121314[[#This Row],[Rank]]+Table710121314[[#This Row],[Score]])>0,1,0) -> 0 | K62: 0 | L62: 0
A63: =Pantomime!A49 -> K-501 | B63: =Pantomime!U49 -> 0 | C63: =Pantomime!S49 -> 0 | D63: =IF((Table710121314[[#This Row],[Rank]]+Table710121314[[#This Row],[Score]])>0,1,0) -> 0 | K63: 0 | L63: 0
A64: =Pantomime!A50 -> K-502 | B64: =Pantomime!U50 -> 0 | C64: =Pantomime!S50 -> 0 | D64: =IF((Table710121314[[#This Row],[Rank]]+Table710121314[[#This Row],[Score]])>0,1,0) -> 0 | K64: 0 | L64: 0
A65: =Pantomime!A51 -> K-503 | B65: =Pantomime!U51 -> 0 | C65: =Pantomime!S51 -> 0 | D65: =IF((Table710121314[[#This Row],[Rank]]+Table710121314[[#This Row],[Score]])>0,1,0) -> 0 | K65: 0 | L65: 0
A66: =Pantomime!A52 -> K-504 | B66: =Pantomime!U52 -> 0 | C66: =Pantomime!S52 -> 0 | D66: =IF((Table710121314[[#This Row],[Rank]]+Table710121314[[#This Row],[Score]])>0,1,0) -> 0 | K66: 0 | L66: 0
A67: =Pantomime!A54 -> L-501 | B67: =Pantomime!U54 -> 0 | C67: =Pantomime!S54 -> 0 | D67: =IF((Table710121314[[#This Row],[Rank]]+Table710121314[[#This Row],[Score]])>0,1,0) -> 0 | K67: =SUM(E67,G67,I67) -> 0 | L67: =SUM(F67,H67,J67) -> 0
A68: =Pantomime!A55 -> L-502 | B68: =Pantomime!U55 -> 0 | C68: =Pantomime!S55 -> 0 | D68: =IF((Table710121314[[#This Row],[Rank]]+Table710121314[[#This Row],[Score]])>0,1,0) -> 0 | K68: 0 | L68: 0
A69: =Pantomime!A56 -> L-503 | B69: =Pantomime!U56 -> 0 | C69: =Pantomime!S56 -> 0 | D69: =IF((Table710121314[[#This Row],[Rank]]+Table710121314[[#This Row],[Score]])>0,1,0) -> 0 | K69: 0 | L69: 0
A70: =Pantomime!A57 -> L-504 | B70: =Pantomime!U57 -> 0 | C70: =Pantomime!S57 -> 0 | D70: =IF((Table710121314[[#This Row],[Rank]]+Table710121314[[#This Row],[Score]])>0,1,0) -> 0 | K70: 0 | L70: 0
A71: =Pantomime!A59 -> M-501 | B71: =Pantomime!U59 -> 0 | C71: =Pantomime!S59 -> 0 | D71: =IF((Table710121314[[#This Row],[Rank]]+Table710121314[[#This Row],[Score]])>0,1,0) -> 0 | K71: 0 | L71: 0
A72: =Pantomime!A60 -> M-502 | B72: =Pantomime!U60 -> 0 | C72: =Pantomime!S60 -> 0 | D72: =IF((Table710121314[[#This Row],[Rank]]+Table710121314[[#This Row],[Score]])>0,1,0) -> 0 | K72: 0 | L72: 0
A73: =Pantomime!A61 -> M-503 | B73: =Pantomime!U61 -> 0 | C73: =Pantomime!S61 -> 0 | D73: =IF((Table710121314[[#This Row],[Rank]]+Table710121314[[#This Row],[Score]])>0,1,0) -> 0 | K73: 0 | L73: 0
A74: =Pantomime!A62 -> M-504 | B74: =Pantomime!U62 -> 0 | C74: =Pantomime!S62 -> 0 | D74: =IF((Table710121314[[#This Row],[Rank]]+Table710121314[[#This Row],[Score]])>0,1,0) -> 0 | K74: 0 | L74: 0
A75: =Pantomime!A64 -> N-501 | B75: =Pantomime!U64 -> 0 | C75: =Pantomime!S64 -> 0 | D75: =IF((Table710121314[[#This Row],[Rank]]+Table710121314[[#This Row],[Score]])>0,1,0) -> 0 | K75: 0 | L75: 0
A76: =Pantomime!A65 -> N-502 | B76: =Pantomime!U65 -> 0 | C76: =Pantomime!S65 -> 0 | D76: =IF((Table710121314[[#This Row],[Rank]]+Table710121314[[#This Row],[Score]])>0,1,0) -> 0 | K76: 0 | L76: 0
A77: =Pantomime!A66 -> N-503 | B77: =Pantomime!U66 -> 0 | C77: =Pantomime!S66 -> 0 | D77: =IF((Table710121314[[#This Row],[Rank]]+Table710121314[[#This Row],[Score]])>0,1,0) -> 0 | K77: 0 | L77: 0
A78: =Pantomime!A67 -> N-504 | B78: =Pantomime!U67 -> 0 | C78: =Pantomime!S67 -> 0 | D78: =IF((Table710121314[[#This Row],[Rank]]+Table710121314[[#This Row],[Score]])>0,1,0) -> 0 | K78: 0 | L78: 0
A79: =Pantomime!A69 -> P-501 | B79: =Pantomime!U69 -> 0 | C79: =Pantomime!S69 -> 0 | D79: =IF((Table710121314[[#This Row],[Rank]]+Table710121314[[#This Row],[Score]])>0,1,0) -> 0 | K79: 0 | L79: 0
A80: =Pantomime!A70 -> P-502 | B80: =Pantomime!U70 -> 0 | C80: =Pantomime!S70 -> 0 | D80: =IF((Table710121314[[#This Row],[Rank]]+Table710121314[[#This Row],[Score]])>0,1,0) -> 0 | K80: 0 | L80: 0
A81: =Pantomime!A71 -> P-503 | B81: =Pantomime!U71 -> 0 | C81: =Pantomime!S71 -> 0 | D81: =IF((Table710121314[[#This Row],[Rank]]+Table710121314[[#This Row],[Score]])>0,1,0) -> 0 | K81: 0 | L81: 0
A82: =Pantomime!A72 -> P-504 | B82: =Pantomime!U72 -> 0 | C82: =Pantomime!S72 -> 0 | D82: =IF((Table710121314[[#This Row],[Rank]]+Table710121314[[#This Row],[Score]])>0,1,0) -> 0 | K82: 0 | L82: 0
A83: =Pantomime!A74 -> Q-501 | B83: =Pantomime!U74 -> 0 | C83: =Pantomime!S74 -> 0 | D83: =IF((Table710121314[[#This Row],[Rank]]+Table710121314[[#This Row],[Score]])>0,1,0) -> 0 | K83: 0 | L83: 0
A84: =Pantomime!A75 -> Q-502 | B84: =Pantomime!U75 -> 0 | C84: =Pantomime!S75 -> 0 | D84: =IF((Table710121314[[#This Row],[Rank]]+Table710121314[[#This Row],[Score]])>0,1,0) -> 0 | K84: 0 | L84: 0
A85: =Pantomime!A76 -> Q-502 | B85: =Pantomime!U76 -> 0 | C85: =Pantomime!S76 -> 0 | D85: =IF((Table710121314[[#This Row],[Rank]]+Table710121314[[#This Row],[Score]])>0,1,0) -> 0 | K85: 0 | L85: 0
A86: =Pantomime!A77 -> Q-504 | B86: =Pantomime!U77 -> 0 | C86: =Pantomime!S77 -> 0 | D86: =IF((Table710121314[[#This Row],[Rank]]+Table710121314[[#This Row],[Score]])>0,1,0) -> 0 | K86: 0 | L86: 0
A87: =Pantomime!A79 -> R-501 | B87: =Pantomime!U79 -> 0 | C87: =Pantomime!S79 -> 0 | D87: =IF((Table710121314[[#This Row],[Rank]]+Table710121314[[#This Row],[Score]])>0,1,0) -> 0 | K87: 0 | L87: 0
A88: =Pantomime!A80 -> R-502 | B88: =Pantomime!U80 -> 0 | C88: =Pantomime!S80 -> 0 | D88: =IF((Table710121314[[#This Row],[Rank]]+Table710121314[[#This Row],[Score]])>0,1,0) -> 0 | K88: 0 | L88: 0
A89: =Pantomime!A81 -> R-503 | B89: =Pantomime!U81 -> 0 | C89: =Pantomime!S81 -> 0 | D89: =IF((Table710121314[[#This Row],[Rank]]+Table710121314[[#This Row],[Score]])>0,1,0) -> 0 | K89: 0 | L89: 0
A90: =Pantomime!A82 -> R-504 | B90: =Pantomime!U82 -> 0 | C90: =Pantomime!S82 -> 0 | D90: =IF((Table710121314[[#This Row],[Rank]]+Table710121314[[#This Row],[Score]])>0,1,0) -> 0 | K90: 0 | L90: 0
A91: =Pantomime!A84 -> S-501 | B91: =Pantomime!U84 -> 0 | C91: =Pantomime!S84 -> 0 | D91: =IF((Table710121314[[#This Row],[Rank]]+Table710121314[[#This Row],[Score]])>0,1,0) -> 0 | K91: 0 | L91: 0
A92: =Pantomime!A85 -> S-502 | B92: =Pantomime!U85 -> 0 | C92: =Pantomime!S85 -> 0 | D92: =IF((Table710121314[[#This Row],[Rank]]+Table710121314[[#This Row],[Score]])>0,1,0) -> 0 | K92: 0 | L92: 0
A93: =Pantomime!A86 -> S-503 | B93: =Pantomime!U86 -> 0 | C93: =Pantomime!S86 -> 0 | D93: =IF((Table710121314[[#This Row],[Rank]]+Table710121314[[#This Row],[Score]])>0,1,0) -> 0 | K93: 0 | L93: 0
A94: =Pantomime!A87 -> S-504 | B94: =Pantomime!U87 -> 0 | C94: =Pantomime!S87 -> 0 | D94: =IF((Table710121314[[#This Row],[Rank]]+Table710121314[[#This Row],[Score]])>0,1,0) -> 0 | K94: 0 | L94: 0
A95: =Pantomime!A89 -> T-501 | B95: =Pantomime!U89 -> 0 | C95: =Pantomime!S89 -> 0 | D95: =IF((Table710121314[[#This Row],[Rank]]+Table710121314[[#This Row],[Score]])>0,1,0) -> 0 | K95: 0 | L95: 0
A96: =Pantomime!A90 -> T-502 | B96: =Pantomime!U90 -> 0 | C96: =Pantomime!S90 -> 0 | D96: =IF((Table710121314[[#This Row],[Rank]]+Table710121314[[#This Row],[Score]])>0,1,0) -> 0 | K96: 0 | L96: 0
A97: =Pantomime!A91 -> T-503 | B97: =Pantomime!U91 -> 0 | C97: =Pantomime!S91 -> 0 | D97: =IF((Table710121314[[#This Row],[Rank]]+Table710121314[[#This Row],[Score]])>0,1,0) -> 0 | K97: 0 | L97: 0
A98: =Pantomime!A92 -> T-504 | B98: =Pantomime!U92 -> 0 | C98: =Pantomime!S92 -> 0 | D98: =IF((Table710121314[[#This Row],[Rank]]+Table710121314[[#This Row],[Score]])>0,1,0) -> 0 | K98: 0 | L98: 0
A99: =Pantomime!A94 -> U-501 | B99: =Pantomime!U94 -> 0 | C99: =Pantomime!S94 -> 0 | D99: =IF((Table710121314[[#This Row],[Rank]]+Table710121314[[#This Row],[Score]])>0,1,0) -> 0 | K99: =SUM(E99,G99,I99) -> 0 | L99: =SUM(F99,H99,J99) -> 0
A100: =Pantomime!A95 -> U-502 | B100: =Pantomime!U95 -> 0 | C100: =Pantomime!S95 -> 0 | D100: =IF((Table710121314[[#This Row],[Rank]]+Table710121314[[#This Row],[Score]])>0,1,0) -> 0 | K100: 0 | L100: 0
A101: =Pantomime!A96 -> U-503 | B101: =Pantomime!U96 -> 0 | C101: =Pantomime!S96 -> 0 | D101: =IF((Table710121314[[#This Row],[Rank]]+Table710121314[[#This Row],[Score]])>0,1,0) -> 0 | K101: 0 | L101: 0
A102: =Pantomime!A97 -> U-504 | B102: =Pantomime!U97 -> 0 | C102: =Pantomime!S97 -> 0 | D102: =IF((Table710121314[[#This Row],[Rank]]+Table710121314[[#This Row],[Score]])>0,1,0) -> 0 | K102: 0 | L102: 0
A103: =Pantomime!A99 -> V-501 | B103: =Pantomime!U99 -> 0 | C103: =Pantomime!S99 -> 0 | D103: =IF((Table710121314[[#This Row],[Rank]]+Table710121314[[#This Row],[Score]])>0,1,0) -> 0 | K103: 0 | L103: 0
A104: =Pantomime!A100 -> V-502 | B104: =Pantomime!U100 -> 0 | C104: =Pantomime!S100 -> 0 | D104: =IF((Table710121314[[#This Row],[Rank]]+Table710121314[[#This Row],[Score]])>0,1,0) -> 0 | K104: 0 | L104: 0
A105: =Pantomime!A101 -> V-503 | B105: =Pantomime!U101 -> 0 | C105: =Pantomime!S101 -> 0 | D105: =IF((Table710121314[[#This Row],[Rank]]+Table710121314[[#This Row],[Score]])>0,1,0) -> 0 | K105: 0 | L105: 0
A106: =Pantomime!A102 -> V-504 | B106: =Pantomime!U102 -> 0 | C106: =Pantomime!S102 -> 0 | D106: =IF((Table710121314[[#This Row],[Rank]]+Table710121314[[#This Row],[Score]])>0,1,0) -> 0 | K106: 0 | L106: 0
A107: =Pantomime!A104 -> W-501 | B107: =Pantomime!U104 -> 0 | C107: =Pantomime!S104 -> 0 | D107: =IF((Table710121314[[#This Row],[Rank]]+Table710121314[[#This Row],[Score]])>0,1,0) -> 0 | K107: 0 | L107: 0
A108: =Pantomime!A105 -> W-502 | B108: =Pantomime!U105 -> 0 | C108: =Pantomime!S105 -> 0 | D108: =IF((Table710121314[[#This Row],[Rank]]+Table710121314[[#This Row],[Score]])>0,1,0) -> 0 | K108: 0 | L108: 0
A109: =Pantomime!A106 -> W-503 | B109: =Pantomime!U106 -> 0 | C109: =Pantomime!S106 -> 0 | D109: =IF((Table710121314[[#This Row],[Rank]]+Table710121314[[#This Row],[Score]])>0,1,0) -> 0 | K109: 0 | L109: 0
A110: =Pantomime!A107 -> W-504 | B110: =Pantomime!U107 -> 0 | C110: =Pantomime!S107 -> 0 | D110: =IF((Table710121314[[#This Row],[Rank]]+Table710121314[[#This Row],[Score]])>0,1,0) -> 0 | K110: 0 | L110: 0
A111: =Pantomime!A109 -> X-501 | B111: =Pantomime!U109 -> 0 | C111: =Pantomime!S109 -> 0 | D111: =IF((Table710121314[[#This Row],[Rank]]+Table710121314[[#This Row],[Score]])>0,1,0) -> 0 | K111: 0 | L111: 0
A112: =Pantomime!A110 -> X-502 | B112: =Pantomime!U110 -> 0 | C112: =Pantomime!S110 -> 0 | D112: =IF((Table710121314[[#This Row],[Rank]]+Table710121314[[#This Row],[Score]])>0,1,0) -> 0 | K112: 0 | L112: 0
A113: =Pantomime!A111 -> X-503 | B113: =Pantomime!U111 -> 0 | C113: =Pantomime!S111 -> 0 | D113: =IF((Table710121314[[#This Row],[Rank]]+Table710121314[[#This Row],[Score]])>0,1,0) -> 0 | K113: 0 | L113: 0
A114: =Pantomime!A112 -> X-504 | B114: =Pantomime!U112 -> 0 | C114: =Pantomime!S112 -> 0 | D114: =IF((Table710121314[[#This Row],[Rank]]+Table710121314[[#This Row],[Score]])>0,1,0) -> 0 | K114: 0 | L114: 0
A115: =Pantomime!A114 -> Y-501 | B115: =Pantomime!U114 -> 0 | C115: =Pantomime!S114 -> 0 | D115: =IF((Table710121314[[#This Row],[Rank]]+Table710121314[[#This Row],[Score]])>0,1,0) -> 0 | K115: 0 | L115: 0
A116: =Pantomime!A115 -> Y-502 | B116: =Pantomime!U115 -> 0 | C116: =Pantomime!S115 -> 0 | D116: =IF((Table710121314[[#This Row],[Rank]]+Table710121314[[#This Row],[Score]])>0,1,0) -> 0 | K116: 0 | L116: 0
A117: =Pantomime!A116 -> Y-503 | B117: =Pantomime!U116 -> 0 | C117: =Pantomime!S116 -> 0 | D117: =IF((Table710121314[[#This Row],[Rank]]+Table710121314[[#This Row],[Score]])>0,1,0) -> 0 | K117: 0 | L117: 0
A118: =Pantomime!A117 -> Y-504 | B118: =Pantomime!U117 -> 0 | C118: =Pantomime!S117 -> 0 | D118: =IF((Table710121314[[#This Row],[Rank]]+Table710121314[[#This Row],[Score]])>0,1,0) -> 0 | K118: 0 | L118: 0
A119: =Pantomime!A119 -> Z-501 | B119: =Pantomime!U119 -> 0 | C119: =Pantomime!S119 -> 0 | D119: =IF((Table710121314[[#This Row],[Rank]]+Table710121314[[#This Row],[Score]])>0,1,0) -> 0 | K119: 0 | L119: 0
A120: =Pantomime!A120 -> Z-502 | B120: =Pantomime!U120 -> 0 | C120: =Pantomime!S120 -> 0 | D120: =IF((Table710121314[[#This Row],[Rank]]+Table710121314[[#This Row],[Score]])>0,1,0) -> 0 | K120: 0 | L120: 0
A121: =Pantomime!A121 -> Z-503 | B121: =Pantomime!U121 -> 0 | C121: =Pantomime!S121 -> 0 | D121: =IF((Table710121314[[#This Row],[Rank]]+Table710121314[[#This Row],[Score]])>0,1,0) -> 0 | K121: 0 | L121: 0
A122: =Pantomime!A122 -> Z-504 | B122: =Pantomime!U122 -> 0 | C122: =Pantomime!S122 -> 0 | D122: =IF((Table710121314[[#This Row],[Rank]]+Table710121314[[#This Row],[Score]])>0,1,0) -> 0 | K122: 0 | L122: 0

Sheet MusicalTheatre
A1: Musical Theatre | K1: Rank 1-4 | X1: S | Y1: E | Z1: G | AA1: F | AC1: 1violation | AD1: 2violations | AE1: 3violations
K2: Round 1: | M2: Round 2: | O2: Round 3: | Q2: -2 for each | AB2: Drops lowest from column q
B3: Student Name | D3: Student Name | F3: Student Name | H3: Student Name | J3: Title of Piece | K3: R1 rank | L3: R1 score | M3: R2 rank | N3: R2 score | O3: R3 rank | P3: R3 score | Q3: Time Violations | S3: TOTAL SCORE | U3: TOTAL RANK | X3: TOTAL SCHOOL SWEEPS POINTS | AB3: Drop Lowest
A4: A-601 | B4: 617 - Sephe | J4: Hopelessy Devoted | K4: 4 | L4: 20 | M4: 4 | N4: 14 | O4: 4 | P4: 22 | R4: =IF(Q4="1violation",-7*1,IF(Q4="2violations",-7*2,IF(Q4="3violations",-7*3,IF(Q4="","")))) ->  | S4: =SUM(L4,N4,P4,R4) -> 56 | U4: =SUM(K4,M4,O4) -> 12 | Y4: =SUM(S4,S6,S5,S7,-AB4) -> 190 | AB4: =MIN(S4:S7) -> 56
A5: A-602 | B5: 618 - Triniti | J5: Rainbow | K5: 4 | L5: 18 | M5: 2 | N5: 24 | O5: 4 | P5: 22 | R5: =IF(Q5="1violation",-7*1,IF(Q5="2violations",-7*2,IF(Q5="3violations",-7*3,IF(Q5="","")))) ->  | S5: =SUM(L5,N5,P5,R5) -> 64 | U5: =SUM(K5,M5,O5) -> 10
A6: A-603 | B6: 619 - Leah | J6: Not That Girl | K6: 2 | L6: 25 | M6: 3 | N6: 20 | O6: 3 | P6: 22 | S6: =SUM(L6,N6,P6,R6) -> 67 | U6: =SUM(K6,M6,O6) -> 8
A7: A-604 | B7: 620 - Bells | J7: Worst Things | K7: 3 | L7: 16 | M7: 3 | N7: 21 | O7: 4 | P7: 22 | S7: =SUM(L7,N7,P7,R7) -> 59 | U7: =SUM(K7,M7,O7) -> 10
A9: B-601 | B9: 621 - Jaren Henrie | J9: Waving Window | K9: 4 | L9: 24 | M9: 1 | N9: 23 | O9: 1 | P9: 25 | S9: =SUM(L9,N9,P9,R9) -> 72 | U9: =SUM(K9,M9,O9) -> 6 | Y9: =SUM(S9,S11,S10,S12,-AB9) -> 72 | AB9: =MIN(S9:S12) -> 0
A10: B-602 | B10: 622 - Mark Tebbs | J10: Taylor Latte Boy | K10: 4 | L10: 24 | M10: 3 | N10: 18 | O10: 3 | P10: 22 | S10: 0 | U10: =SUM(K10,M10,O10) -> 10
A11: B-603 | S11: =SUM(L11,N11,P11,R11) -> 0 | U11: =SUM(K11,M11,O11) -> 0
A12: B-604 | S12: =SUM(L12,N12,P12,R12) -> 0 | U12: =SUM(K12,M12,O12) -> 0
A14: C-601 | B14: 601 - Saige Bradshaw | J14: Deadmom | K14: 2 | L14: 24 | M14: 1 | N14: 23 | O14: 3 | P14: 25 | S14: =SUM(L14,N14,P14,R14) -> 72 | U14: =SUM(K14,M14,O14) -> 6 | Y14: =SUM(S14,S16,S15,S17,-AB14) -> 200 | AB14: =MIN(S14:S17) -> 51
A15: C-602 | B15: 602 - Mikenna Holm | J15: Walking After | K15: 3 | L15: 23 | M15: 3 | N15: 19 | O15: 4 | P15: 23 | S15: =SUM(L15,N15,P15,R15) -> 65 | U15: =SUM(K15,M15,O15) -> 10
A16: C-603 | B16: 603 - Destiny Fernandez | J16: Hopely Devoted | K16: 4 | L16: 14 | M16: 4 | N16: 12 | O16: 3 | P16: 25 | S16: =SUM(L16,N16,P16,R16) -> 51 | U16: =SUM(K16,M16,O16) -> 11
A17: C-604 | B17: 604 - Desteny Gross | D17: Ryna Nicholas | F17: Jewley-ette Roxburgh | J17: Candystone | K17: 4 | L17: 23 | M17: 4 | N17: 17 | O17: 4 | P17: 23 | S17: =SUM(L17,N17,P17,R17) -> 63 | U17: =SUM(K17,M17,O17) -> 12
A19: D-601 | B19: 605 - Stetsyn Lamb | J19: World Needs | K19: 3 | L19: 25 | M19: 4 | N19: 23 | O19: 2 | P19: 25 | S19: =SUM(L19,N19,P19,R19) -> 73 | U19: =SUM(K19,M19,O19) -> 9 | Y19: =SUM(S19,S21,S20,S22,-AB19) -> 208 | AB19: =MIN(S19:S22) -> 0
A20: D-602 | B20: 606 - Kylee Pace | J20: Around the Coroner | K20: 4 | L20: 22 | M20: 2 | N20: 24 | O20: 4 | P20: 18 | S20: =SUM(L20,N20,P20,R20) -> 64 | U20: =SUM(K20,M20,O20) -> 10
A21: D-603 | B21: 607 - Shaylee Brown | D21: Ethan White | J21: One That I Want | K21: 3 | L21: 23 | M21: 2 | N21: 23 | O21: 1 | P21: 25 | S21: =SUM(L21,N21,P21,R21) -> 71 | U21: =SUM(K21,M21,O21) -> 6
A22: D-604 | S22: =SUM(L22,N22,P22,R22) -> 0 | U22: =SUM(K22,M22,O22) -> 0
A24: E-601 | B24: 609 - Hazel Harris | J24: My Grand Plan | K24: 1 | L24: 25 | M24: 2 | N24: 18 | O24: 3 | P24: 23 | S24: =SUM(L24,N24,P24,R24) -> 66 | U24: =SUM(K24,M24,O24) -> 6 | Y24: =SUM(S24,S26,S25,S27,-AB24) -> 209 | AB24: =MIN(S24:S27) -> 0
A25: E-602 | B25: 611 - Colt Reeve | J25: Bless Your Hide | K25: 2 | L25: 20 | M25: 1 | N25: 23 | O25: 1 | P25: 25 | S25: =SUM(L25,N25,P25,R25) -> 68 | U25: =SUM(K25,M25,O25) -> 4
A26: E-603 | B26: 612 - Hunter Barrick | J26: Waving Through a Window | K26: 1 | L26: 25 | M26: 1 | N26: 25 | O26: 1 | P26: 25 | S26: =SUM(L26,N26,P26,R26) -> 75 | U26: =SUM(K26,M26,O26) -> 3
A27: E-604 | S27: =SUM(L27,N27,P27,R27) -> 0 | U27: =SUM(K27,M27,O27) -> 0
A29: F-601 | B29: 613 - Anne Overson | J29: Simple Joys | K29: 1 | L29: 25 | M29: 1 | N29: 25 | O29: 1 | P29: 25 | S29: =SUM(L29,N29,P29,R29) -> 75 | U29: =SUM(K29,M29,O29) -> 3 | Y29: =SUM(S29,S31,S30,S32,-AB29) -> 216 | AB29: =MIN(S29:S32) -> 64
A30: F-602 | B30: 614 - Dallen Platt | J30: Snap | K30: 2 | L30: 25 | M30: 4 | N30: 21 | O30: 4 | P30: 25 | S30: =SUM(L30,N30,P30,R30) -> 71 | U30: =SUM(K30,M30,O30) -> 10
A31: F-603 | B31: 615 - Mason Beesley | D31: Oscar Word | F31: Maso Ahlstrom | H31: Eli Beesley | J31: Run | K31: 4 | L31: 23 | M31: 3 | N31: 17 | O31: 3 | P31: 24 | S31: =SUM(L31,N31,P31,R31) -> 64 | U31: =SUM(K31,M31,O31) -> 10
A32: F-604 | B32: 616 - Lloyd Roberts | J32: Never Fully Dressed | K32: 4 | L32: 23 | M32: 4 | N32: 23 | O32: 4 | P32: 24 | S32: =SUM(L32,N32,P32,R32) -> 70 | U32: =SUM(K32,M32,O32) -> 12
A34: G-601 | B34: 624 - Molly Theodore Byrnes | J34: Waving Through | K34: 1 | L34: 22 | M34: 4 | N34: 14 | O34: 2 | P34: 25 | S34: =SUM(L34,N34,P34,R34) -> 61 | U34: =SUM(K34,M34,O34) -> 7 | Y34: =SUM(S34,S36,S35,S37,-AB34) -> 192 | AB34: =MIN(S34:S37) -> 0
A35: G-602 | B35: 625 - Jane Jenkins | D35: Josie Jenkins | J35: Sisters | K35: 3 | L35: 25 | M35: 2 | N35: 22 | O35: 4 | P35: 22 | S35: =SUM(L35,N35,P35,R35) -> 69 | U35: =SUM(K35,M35,O35) -> 9
A36: G-603 | B36: 626 - Treycin Meacham | J36: Didn't Plan It | K36: 2 | L36: 25 | M36: 4 | N36: 16 | O36: 4 | P36: 21 | S36: =SUM(L36,N36,P36,R36) -> 62 | U36: =SUM(K36,M36,O36) -> 10
A37: G-604 | S37: =SUM(L37,N37,P37,R37) -> 0 | U37: =SUM(K37,M37,O37) -> 0
A39: H-601 | B39: 627 - Coral Delorenzis | J39: Give My Life… | K39: 1 | L39: 25 | M39: 1 | N39: 21 | O39: 2 | P39: 25 | S39: =SUM(L39,N39,P39,R39) -> 71 | U39: =SUM(K39,M39,O39) -> 4 | Y39: =SUM(S39,S41,S40,S42,-AB39) -> 144 | AB39: =MIN(S39:S42) -> 0
A40: H-602 | B40: 628 - Ryan Lewis | J40: Sante Fe | K40: 1 | L40: 25 | M40: 3 | N40: 23 | O40: 2 | P40: 25 | S40: =SUM(L40,N40,P40,R40) -> 73 | U40: =SUM(K40,M40,O40) -> 6
A41: H-603 | S41: =SUM(L41,N41,P41,R41) -> 0 | U41: =SUM(K41,M41,O41) -> 0
A42: H-604 | S42: =SUM(L42,N42,P42,R42) -> 0 | U42: =SUM(K42,M42,O42) -> 0
A44: J-601 | B44: 629 - Brylee Eastwood | D44: Brooke Lyman | J44: Caitlyn & Haley | K44: 4 | L44: 21 | M44: 4 | N44: 15 | O44: 4 | P44: 25 | S44: =SUM(L44,N44,P44,R44) -> 61 | U44: =SUM(K44,M44,O44) -> 12 | Y44: =SUM(S44,S46,S45,S47,-AB44) -> 186 | AB44: =MIN(S44:S47) -> 0
A45: J-602 | B45: 630 - Wilseydee Richardson | J45: Love Will Come | K45: 4 | L45: 15 | M45: 4 | N45: 19 | O45: 2 | P45: 24 | S45: =SUM(L45,N45,P45,R45) -> 58 | U45: =SUM(K45,M45,O45) -> 10
A46: J-603 | B46: 631 - Madison Mannino | D46: Ella Young | J46: Pulled | K46: 2 | L46: 25 | M46: 4 | N46: 17 | O46: 2 | P46: 25 | S46: =SUM(L46,N46,P46,R46) -> 67 | U46: =SUM(K46,M46,O46) -> 8
A47: J-604 | B47: 632 - Eloisa Thornock | J47: Colors of Wind | K47: 4 | L47: 24 | M47: 4 | N47: 16 | O47: 4 | P47: 22 | S47: 0 | U47: =SUM(K47,M47,O47) -> 12
A49: K-601 | S49: =SUM(L49,N49,P49,R49) -> 0 | U49: =SUM(K49,M49,O49) -> 0 | Y49: =SUM(S49,S51,S50,S52,-AB49) -> 0 | AB49: =MIN(S49:S52) -> 0
A50: K-602 | S50: =SUM(L50,N50,P50,R50) -> 0 | U50: =SUM(K50,M50,O50) -> 0
A51: K-603 | S51: =SUM(L51,N51,P51,R51) -> 0 | U51: =SUM(K51,M51,O51) -> 0
A52: K-604 | S52: =SUM(L52,N52,P52,R52) -> 0 | U52: =SUM(K52,M52,O52) -> 0
A54: L-601 | B54: 633 - Yudnely Avelar | J54: Breathe | K54: 3 | L54: 23 | M54: 2 | N54: 23 | O54: 1 | P54: 25 | S54: =SUM(L54,N54,P54,R54) -> 71 | U54: =SUM(K54,M54,O54) -> 6 | Y54: =SUM(S54,S56,S55,S57,-AB54) -> 71 | AB54: =MIN(S54:S57) -> 0
A55: L-602 | S55: =SUM(L55,N55,P55,R55) -> 0 | U55: =SUM(K55,M55,O55) -> 0
A56: L-603 | S56: =SUM(L56,N56,P56,R56) -> 0 | U56: =SUM(K56,M56,O56) -> 0
A57: L-604 | S57: =SUM(L57,N57,P57,R57) -> 0 | U57: =SUM(K57,M57,O57) -> 0
A59: M-601 | S59: =SUM(L59,N59,P59,R59) -> 0 | U59: =SUM(K59,M59,O59) -> 0 | Y59: =SUM(S59,S61,S60,S62,-AB59) -> 0 | AB59: =MIN(S59:S62) -> 0
A60: M-602 | S60: =SUM(L60,N60,P60,R60) -> 0 | U60: =SUM(K60,M60,O60) -> 0
A61: M-603 | S61: =SUM(L61,N61,P61,R61) -> 0 | U61: =SUM(K61,M61,O61) -> 0
A62: M-604 | S62: =SUM(L62,N62,P62,R62) -> 0 | U62: =SUM(K62,M62,O62) -> 0
A64: N-601 | S64: =SUM(L64,N64,P64,R64) -> 0 | U64: =SUM(K64,M64,O64) -> 0 | Y64: =SUM(S64,S66,S65,S67,-AB64) -> 0 | AB64: =MIN(S64:S67) -> 0
A65: N-602 | S65: =SUM(L65,N65,P65,R65) -> 0 | U65: =SUM(K65,M65,O65) -> 0
A66: N-603 | S66: =SUM(L66,N66,P66,R66) -> 0 | U66: =SUM(K66,M66,O66) -> 0
A67: N-604 | S67: =SUM(L67,N67,P67,R67) -> 0 | U67: =SUM(K67,M67,O67) -> 0
A69: P-601 | R69: =IF(Q69="1violation",-7*1,IF(Q69="2violations",-7*2,IF(Q69="3violations",-7*3,IF(Q69="","")))) ->  | S69: =SUM(L69,N69,P69,R69) -> 0 | U69: =SUM(K69,M69,O69) -> 0 | Y69: =SUM(S69,S71,S70,S72,-AB69) -> 0 | AB69: =MIN(S69:S72) -> 0
A70: P-602 | S70: =SUM(L70,N70,P70,R70) -> 0 | U70: =SUM(K70,M70,O70) -> 0
A71: P-603 | S71: =SUM(L71,N71,P71,R71) -> 0 | U71: =SUM(K71,M71,O71) -> 0
A72: P-604 | S72: =SUM(L72,N72,P72,R72) -> 0 | U72: =SUM(K72,M72,O72) -> 0
A74: Q-601 | S74: =SUM(L74,N74,P74,R74) -> 0 | U74: =SUM(K74,M74,O74) -> 0 | Y74: =SUM(S74,S76,S75,S77,-AB74) -> 0 | AB74: =MIN(S74:S77) -> 0
A75: Q-602 | S75: =SUM(L75,N75,P75,R75) -> 0 | U75: =SUM(K75,M75,O75) -> 0
A76: Q-603 | S76: =SUM(L76,N76,P76,R76) -> 0 | U76: =SUM(K76,M76,O76) -> 0
A77: Q-604 | S77: =SUM(L77,N77,P77,R77) -> 0 | U77: =SUM(K77,M77,O77) -> 0
A79: R-601 | S79: =SUM(L79,N79,P79,R79) -> 0 | U79: =SUM(K79,M79,O79) -> 0 | Y79: =SUM(S79,S81,S80,S82,-AB79) -> 0 | AB79: =MIN(S79:S82) -> 0
A80: R-602 | S80: =SUM(L80,N80,P80,R80) -> 0 | U80: =SUM(K80,M80,O80) -> 0
A81: R-603 | S81: =SUM(L81,N81,P81,R81) -> 0 | U81: =SUM(K81,M81,O81) -> 0
A82: R-604 | S82: =SUM(L82,N82,P82,R82) -> 0 | U82: =SUM(K82,M82,O82) -> 0
A84: S-601 | S84: =SUM(L84,N84,P84,R84) -> 0 | U84: =SUM(K84,M84,O84) -> 0 | Y84: =SUM(S84,S86,S85,S87,-AB84) -> 0 | AB84: =MIN(S84:S87) -> 0
A85: S-602 | S85: =SUM(L85,N85,P85,R85) -> 0 | U85: =SUM(K85,M85,O85) -> 0
A86: S-603 | S86: =SUM(L86,N86,P86,R86) -> 0 | U86: =SUM(K86,M86,O86) -> 0
A87: S-604 | S87: =SUM(L87,N87,P87,R87) -> 0 | U87: =SUM(K87,M87,O87) -> 0
A89: T-601 | S89: =SUM(L89,N89,P89,R89) -> 0 | U89: =SUM(K89,M89,O89) -> 0 | Y89: =SUM(S89,S91,S90,S92,-AB89) -> 0 | AB89: =MIN(S89:S92) -> 0
A90: T-602 | S90: =SUM(L90,N90,P90,R90) -> 0 | U90: =SUM(K90,M90,O90) -> 0
A91: T-603 | S91: =SUM(L91,N91,P91,R91) -> 0 | U91: =SUM(K91,M91,O91) -> 0
A92: T-604 | S92: =SUM(L92,N92,P92,R92) -> 0 | U92: =SUM(K92,M92,O92) -> 0
A94: U-601 | S94: =SUM(L94,N94,P94,R94) -> 0 | U94: =SUM(K94,M94,O94) -> 0 | Y94: =SUM(S94,S96,S95,S97,-AB94) -> 0 | AB94: =MIN(S94:S97) -> 0
A95: U-602 | S95: =SUM(L95,N95,P95,R95) -> 0 | U95: =SUM(K95,M95,O95) -> 0
A96: U-603 | S96: =SUM(L96,N96,P96,R96) -> 0 | U96: =SUM(K96,M96,O96) -> 0
A97: U-604 | S97: =SUM(L97,N97,P97,R97) -> 0 | U97: =SUM(K97,M97,O97) -> 0
A99: V-601 | S99: =SUM(L99,N99,P99,R99) -> 0 | U99: =SUM(K99,M99,O99) -> 0 | Y99: =SUM(S99,S101,S100,S102,-AB99) -> 0 | AB99: =MIN(S99:S102) -> 0
A100: V-602 | S100: =SUM(L100,N100,P100,R100) -> 0 | U100: =SUM(K100,M100,O100) -> 0
A101: V-603 | S101: =SUM(L101,N101,P101,R101) -> 0 | U101: =SUM(K101,M101,O101) -> 0
A102: V-604 | S102: =SUM(L102,N102,P102,R102) -> 0 | U102: =SUM(K102,M102,O102) -> 0
A104: W-601 | S104: =SUM(L104,N104,P104,R104) -> 0 | U104: =SUM(K104,M104,O104) -> 0 | Y104: =SUM(S104,S106,S105,S107,-AB104) -> 0 | AB104: =MIN(S104:S107) -> 0
A105: W-602 | S105: =SUM(L105,N105,P105,R105) -> 0 | U105: =SUM(K105,M105,O105) -> 0
A106: W-603 | S106: =SUM(L106,N106,P106,R106) -> 0 | U106: =SUM(K106,M106,O106) -> 0
A107: W-604 | S107: =SUM(L107,N107,P107,R107) -> 0 | U107: =SUM(K107,M107,O107) -> 0
A109: X-601 | S109: =SUM(L109,N109,P109,R109) -> 0 | U109: =SUM(K109,M109,O109) -> 0 | Y109: =SUM(S109,S111,S110,S112,-AB109) -> 0 | AB109: =MIN(S109:S112) -> 0
A110: X-602 | S110: =SUM(L110,N110,P110,R110) -> 0 | U110: =SUM(K110,M110,O110) -> 0
A111: X-603 | S111: =SUM(L111,N111,P111,R111) -> 0 | U111: =SUM(K111,M111,O111) -> 0
A112: X-604 | S112: =SUM(L112,N112,P112,R112) -> 0 | U112: =SUM(K112,M112,O112) -> 0
A114: Y-601 | S114: =SUM(L114,N114,P114,R114) -> 0 | U114: =SUM(K114,M114,O114) -> 0 | Y114: =SUM(S114,S116,S115,S117,-AB114) -> 0 | AB114: =MIN(S114:S117) -> 0
A115: Y-602 | S115: =SUM(L115,N115,P115,R115) -> 0 | U115: =SUM(K115,M115,O115) -> 0
A116: Y-603 | S116: =SUM(L116,N116,P116,R116) -> 0 | U116: =SUM(K116,M116,O116) -> 0
A117: Y-604 | S117: =SUM(L117,N117,P117,R117) -> 0 | U117: =SUM(K117,M117,O117) -> 0
A119: Z-601 | S119: =SUM(L119,N119,P119,R119) -> 0 | U119: =SUM(K119,M119,O119) -> 0 | Y119: =SUM(S119,S121,S120,S122,-AB119) -> 0 | AB119: =MIN(S119:S122) -> 0
A120: Z-602 | S120: =SUM(L120,N120,P120,R120) -> 0 | U120: =SUM(K120,M120,O120) -> 0
A121: Z-603 | S121: =SUM(L121,N121,P121,R121) -> 0 | U121: =SUM(K121,M121,O121) -> 0
A122: Z-604 | S122: =SUM(L122,N122,P122,R122) -> 0 | U122: =SUM(K122,M122,O122) -> 0
A124: AA-601 | S124: =SUM(L124,N124,P124,R124) -> 0 | U124: =SUM(K124,M124,O124) -> 0 | Y124: =SUM(S124,S126,S125,S127,-AB124) -> 0 | AB124: =MIN(S124:S127) -> 0
A125: AA-602 | S125: =SUM(L125,N125,P125,R125) -> 0 | U125: =SUM(K125,M125,O125) -> 0
A126: AA-603 | S126: =SUM(L126,N126,P126,R126) -> 0 | U126: =SUM(K126,M126,O126) -> 0
A127: AA-604 | S127: =SUM(L127,N127,P127,R127) -> 0 | U127: =SUM(K127,M127,O127) -> 0
A129: BB-601 | S129: =SUM(L129,N129,P129,R129) -> 0 | U129: =SUM(K129,M129,O129) -> 0 | Y129: =SUM(S129,S131,S130,S132,-AB129) -> 0 | AB129: =MIN(S129:S132) -> 0
A130: BB-602 | S130: =SUM(L130,N130,P130,R130) -> 0 | U130: =SUM(K130,M130,O130) -> 0
A131: BB-603 | S131: =SUM(L131,N131,P131,R131) -> 0 | U131: =SUM(K131,M131,O131) -> 0
A132: BB-604 | S132: =SUM(L132,N132,P132,R132) -> 0 | U132: =SUM(K132,M132,O132) -> 0
A134: CC-601 | R134: =IF(Q134="1violation",-7*1,IF(Q134="2violations",-7*2,IF(Q134="3violations",-7*3,IF(Q134="","")))) ->  | S134: =SUM(L134,N134,P134,R134) -> 0 | U134: =SUM(K134,M134,O134) -> 0 | Y134: =SUM(S134,S136,S135,S137,-AB134) -> 0 | AB134: =MIN(S134:S137) -> 0
A135: CC-602 | S135: =SUM(L135,N135,P135,R135) -> 0 | U135: =SUM(K135,M135,O135) -> 0
A136: CC-603 | S136: =SUM(L136,N136,P136,R136) -> 0 | U136: =SUM(K136,M136,O136) -> 0
A137: CC-604 | S137: =SUM(L137,N137,P137,R137) -> 0 | U137: =SUM(K137,M137,O137) -> 0
A139: DD-601 | S139: =SUM(L139,N139,P139,R139) -> 0 | U139: =SUM(K139,M139,O139) -> 0 | Y139: =SUM(S139,S141,S140,S142,-AB139) -> 0 | AB139: =MIN(S139:S142) -> 0
A140: DD-602 | S140: =SUM(L140,N140,P140,R140) -> 0 | U140: =SUM(K140,M140,O140) -> 0
A141: DD-603 | S141: =SUM(L141,N141,P141,R141) -> 0 | U141: =SUM(K141,M141,O141) -> 0
A142: DD-604 | S142: =SUM(L142,N142,P142,R142) -> 0 | U142: =SUM(K142,M142,O142) -> 0
A144: EE-601 | S144: =SUM(L144,N144,P144,R144) -> 0 | U144: =SUM(K144,M144,O144) -> 0 | Y144: =SUM(S144,S146,S145,S147,-AB144) -> 0 | AB144: =MIN(S144:S147) -> 0
A145: EE-602 | S145: =SUM(L145,N145,P145,R145) -> 0 | U145: =SUM(K145,M145,O145) -> 0
A146: EE-603 | S146: =SUM(L146,N146,P146,R146) -> 0 | U146: =SUM(K146,M146,O146) -> 0
A147: EE-604 | S147: =SUM(L147,N147,P147,R147) -> 0 | U147: =SUM(K147,M147,O147) -> 0
A149: FF-601 | S149: =SUM(L149,N149,P149,R149) -> 0 | U149: =SUM(K149,M149,O149) -> 0 | Y149: =SUM(S149,S151,S150,S152,-AB149) -> 0 | AB149: =MIN(S149:S152) -> 0
A150: FF-602 | S150: =SUM(L150,N150,P150,R150) -> 0 | U150: =SUM(K150,M150,O150) -> 0
A151: FF-603 | S151: =SUM(L151,N151,P151,R151) -> 0 | U151: =SUM(K151,M151,O151) -> 0
A152: FF-604 | S152: =SUM(L152,N152,P152,R152) -> 0 | U152: =SUM(K152,M152,O152) -> 0

Sheet MusicalTheatreMR
A1: Musical Theatre | E1: Finals Medals Round Scores
A2: ID | B2: Rank | C2: Score | D2: LeaveBlank | E2: MR 1 Rank | F2: MR 1 Score | G2: MR2 Rank | H2: MR 2 Score | I2: MR3 Rank | J2: MR 3 Score | K2: Total MR Rank | L2: Total MR Score
A3: =MusicalTheatre!A26 -> E-603 | B3: =MusicalTheatre!U26 -> 3 | C3: =MusicalTheatre!S26 -> 75 | D3: =IF((Table71012131415[[#This Row],[Rank]]+Table71012131415[[#This Row],[Score]])>0,1,0) -> 1 | E3: 1 | F3: 23 | G3: 2 | H3: 23 | I3: 2 | J3: 22 | K3: =SUM(E3,G3,I3) -> 5 | L3: =SUM(F3,H3,J3) -> 68
A4: =MusicalTheatre!A29 -> F-601 | B4: =MusicalTheatre!U29 -> 3 | C4: =MusicalTheatre!S29 -> 75 | D4: =IF((Table71012131415[[#This Row],[Rank]]+Table71012131415[[#This Row],[Score]])>0,1,0) -> 1 | E4: 2 | F4: 22 | G4: 1 | H4: 24 | I4: 1 | J4: 24 | K4: 4 | L4: 70
A5: =MusicalTheatre!A39 -> H-601 | B5: =MusicalTheatre!U39 -> 4 | C5: =MusicalTheatre!S39 -> 71 | D5: =IF((Table71012131415[[#This Row],[Rank]]+Table71012131415[[#This Row],[Score]])>0,1,0) -> 1 | E5: 5 | F5: 21 | G5: 4 | H5: 22 | I5: 3 | J5: 22 | K5: 12 | L5: 65
A6: =MusicalTheatre!A25 -> E-602 | B6: =MusicalTheatre!U25 -> 4 | C6: =MusicalTheatre!S25 -> 68 | D6: =IF((Table71012131415[[#This Row],[Rank]]+Table71012131415[[#This Row],[Score]])>0,1,0) -> 1 | E6: 3 | F6: 23 | G6: 5 | H6: 20 | I6: 5 | J6: 21 | K6: 13 | L6: 64
A7: =MusicalTheatre!A40 -> H-602 | B7: =MusicalTheatre!U40 -> 6 | C7: =MusicalTheatre!S40 -> 73 | D7: =IF((Table71012131415[[#This Row],[Rank]]+Table71012131415[[#This Row],[Score]])>0,1,0) -> 1 | E7: 4 | F7: 23 | G7: 3 | H7: 22 | I7: 4 | J7: 22 | K7: 11 | L7: 67
A8: =MusicalTheatre!A9 -> B-601 | B8: =MusicalTheatre!U9 -> 6 | C8: =MusicalTheatre!S9 -> 72 | D8: =IF((Table71012131415[[#This Row],[Rank]]+Table71012131415[[#This Row],[Score]])>0,1,0) -> 1 | K8: 0 | L8: 0
A9: =MusicalTheatre!A14 -> C-601 | B9: =MusicalTheatre!U14 -> 6 | C9: =MusicalTheatre!S14 -> 72 | D9: =IF((Table71012131415[[#This Row],[Rank]]+Table71012131415[[#This Row],[Score]])>0,1,0) -> 1 | K9: 0 | L9: 0
A10: =MusicalTheatre!A21 -> D-603 | B10: =MusicalTheatre!U21 -> 6 | C10: =MusicalTheatre!S21 -> 71 | D10: =IF((Table71012131415[[#This Row],[Rank]]+Table71012131415[[#This Row],[Score]])>0,1,0) -> 1 | K10: 0 | L10: 0
A11: =MusicalTheatre!A54 -> L-601 | B11: =MusicalTheatre!U54 -> 6 | C11: =MusicalTheatre!S54 -> 71 | D11: =IF((Table71012131415[[#This Row],[Rank]]+Table71012131415[[#This Row],[Score]])>0,1,0) -> 1 | K11: 0 | L11: 0
A12: =MusicalTheatre!A24 -> E-601 | B12: =MusicalTheatre!U24 -> 6 | C12: =MusicalTheatre!S24 -> 66 | D12: =IF((Table71012131415[[#This Row],[Rank]]+Table71012131415[[#This Row],[Score]])>0,1,0) -> 1 | K12: 0 | L12: 0
A13: =MusicalTheatre!A34 -> G-601 | B13: =MusicalTheatre!U34 -> 7 | C13: =MusicalTheatre!S34 -> 61 | D13: =IF((Table71012131415[[#This Row],[Rank]]+Table71012131415[[#This Row],[Score]])>0,1,0) -> 1 | K13: 0 | L13: 0
A14: =MusicalTheatre!A6 -> A-603 | B14: =MusicalTheatre!U6 -> 8 | C14: =MusicalTheatre!S6 -> 67 | D14: =IF((Table71012131415[[#This Row],[Rank]]+Table71012131415[[#This Row],[Score]])>0,1,0) -> 1 | K14: 0 | L14: 0
A15: =MusicalTheatre!A46 -> J-603 | B15: =MusicalTheatre!U46 -> 8 | C15: =MusicalTheatre!S46 -> 67 | D15: =IF((Table71012131415[[#This Row],[Rank]]+Table71012131415[[#This Row],[Score]])>0,1,0) -> 1 | K15: 0 | L15: 0
A16: =MusicalTheatre!A19 -> D-601 | B16: =MusicalTheatre!U19 -> 9 | C16: =MusicalTheatre!S19 -> 73 | D16: =IF((Table71012131415[[#This Row],[Rank]]+Table71012131415[[#This Row],[Score]])>0,1,0) -> 1 | K16: 0 | L16: 0
A17: =MusicalTheatre!A35 -> G-602 | B17: =MusicalTheatre!U35 -> 9 | C17: =MusicalTheatre!S35 -> 69 | D17: =IF((Table71012131415[[#This Row],[Rank]]+Table71012131415[[#This Row],[Score]])>0,1,0) -> 1 | K17: 0 | L17: 0
A18: =MusicalTheatre!A30 -> F-602 | B18: =MusicalTheatre!U30 -> 10 | C18: =MusicalTheatre!S30 -> 71 | D18: =IF((Table71012131415[[#This Row],[Rank]]+Table71012131415[[#This Row],[Score]])>0,1,0) -> 1 | K18: 0 | L18: 0
A19: =MusicalTheatre!A15 -> C-602 | B19: =MusicalTheatre!U15 -> 10 | C19: =MusicalTheatre!S15 -> 65 | D19: =IF((Table71012131415[[#This Row],[Rank]]+Table71012131415[[#This Row],[Score]])>0,1,0) -> 1 | K19: 0 | L19: 0
A20: =MusicalTheatre!A10 -> B-602 | B20: =MusicalTheatre!U10 -> 10 | C20: =MusicalTheatre!S10 -> 0 | D20: =IF((Table71012131415[[#This Row],[Rank]]+Table71012131415[[#This Row],[Score]])>0,1,0) -> 1 | K20: 0 | L20: 0
A21: =MusicalTheatre!A5 -> A-602 | B21: =MusicalTheatre!U5 -> 10 | C21: =MusicalTheatre!S5 -> 64 | D21: =IF((Table71012131415[[#This Row],[Rank]]+Table71012131415[[#This Row],[Score]])>0,1,0) -> 1 | K21: 0 | L21: 0
A22: =MusicalTheatre!A20 -> D-602 | B22: =MusicalTheatre!U20 -> 10 | C22: =MusicalTheatre!S20 -> 64 | D22: =IF((Table71012131415[[#This Row],[Rank]]+Table71012131415[[#This Row],[Score]])>0,1,0) -> 1 | K22: 0 | L22: 0
A23: =MusicalTheatre!A31 -> F-603 | B23: =MusicalTheatre!U31 -> 10 | C23: =MusicalTheatre!S31 -> 64 | D23: =IF((Table71012131415[[#This Row],[Rank]]+Table71012131415[[#This Row],[Score]])>0,1,0) -> 1 | K23: 0 | L23: 0
A24: =MusicalTheatre!A36 -> G-603 | B24: =MusicalTheatre!U36 -> 10 | C24: =MusicalTheatre!S36 -> 62 | D24: =IF((Table71012131415[[#This Row],[Rank]]+Table71012131415[[#This Row],[Score]])>0,1,0) -> 1 | K24: 0 | L24: 0
A25: =MusicalTheatre!A7 -> A-604 | B25: =MusicalTheatre!U7 -> 10 | C25: =MusicalTheatre!S7 -> 59 | D25: =IF((Table71012131415[[#This Row],[Rank]]+Table71012131415[[#This Row],[Score]])>0,1,0) -> 1 | K25: 0 | L25: 0
A26: =MusicalTheatre!A45 -> J-602 | B26: =MusicalTheatre!U45 -> 10 | C26: =MusicalTheatre!S45 -> 58 | D26: =IF((Table71012131415[[#This Row],[Rank]]+Table71012131415[[#This Row],[Score]])>0,1,0) -> 1 | K26: 0 | L26: 0
A27: =MusicalTheatre!A16 -> C-603 | B27: =MusicalTheatre!U16 -> 11 | C27: =MusicalTheatre!S16 -> 51 | D27: =IF((Table71012131415[[#This Row],[Rank]]+Table71012131415[[#This Row],[Score]])>0,1,0) -> 1 | K27: 0 | L27: 0
A28: =MusicalTheatre!A32 -> F-604 | B28: =MusicalTheatre!U32 -> 12 | C28: =MusicalTheatre!S32 -> 70 | D28: =IF((Table71012131415[[#This Row],[Rank]]+Table71012131415[[#This Row],[Score]])>0,1,0) -> 1 | K28: 0 | L28: 0
A29: =MusicalTheatre!A17 -> C-604 | B29: =MusicalTheatre!U17 -> 12 | C29: =MusicalTheatre!S17 -> 63 | D29: =IF((Table71012131415[[#This Row],[Rank]]+Table71012131415[[#This Row],[Score]])>0,1,0) -> 1 | K29: 0 | L29: 0
A30: =MusicalTheatre!A47 -> J-604 | B30: =MusicalTheatre!U47 -> 12 | C30: =MusicalTheatre!S47 -> 0 | D30: =IF((Table71012131415[[#This Row],[Rank]]+Table71012131415[[#This Row],[Score]])>0,1,0) -> 1 | K30: 0 | L30: 0
A31: =MusicalTheatre!A44 -> J-601 | B31: =MusicalTheatre!U44 -> 12 | C31: =MusicalTheatre!S44 -> 61 | D31: =IF((Table71012131415[[#This Row],[Rank]]+Table71012131415[[#This Row],[Score]])>0,1,0) -> 1 | K31: 0 | L31: 0
A32: =MusicalTheatre!A4 -> A-601 | B32: =MusicalTheatre!U4 -> 12 | C32: =MusicalTheatre!S4 -> 56 | D32: =IF((Table71012131415[[#This Row],[Rank]]+Table71012131415[[#This Row],[Score]])>0,1,0) -> 1 | K32: 0 | L32: 0
A33: =MusicalTheatre!A124 -> AA-601 | B33: =MusicalTheatre!U124 -> 0 | C33: =MusicalTheatre!S124 -> 0 | D33: =IF((Table71012131415[[#This Row],[Rank]]+Table71012131415[[#This Row],[Score]])>0,1,0) -> 0 | K33: 0 | L33: 0
A34: =MusicalTheatre!A125 -> AA-602 | B34: =MusicalTheatre!U125 -> 0 | C34: =MusicalTheatre!S125 -> 0 | D34: =IF((Table71012131415[[#This Row],[Rank]]+Table71012131415[[#This Row],[Score]])>0,1,0) -> 0 | K34: 0 | L34: 0
A35: =MusicalTheatre!A126 -> AA-603 | B35: =MusicalTheatre!U126 -> 0 | C35: =MusicalTheatre!S126 -> 0 | D35: =IF((Table71012131415[[#This Row],[Rank]]+Table71012131415[[#This Row],[Score]])>0,1,0) -> 0 | K35: =SUM(E35,G35,I35) -> 0 | L35: =SUM(F35,H35,J35) -> 0
A36: =MusicalTheatre!A127 -> AA-604 | B36: =MusicalTheatre!U127 -> 0 | C36: =MusicalTheatre!S127 -> 0 | D36: =IF((Table71012131415[[#This Row],[Rank]]+Table71012131415[[#This Row],[Score]])>0,1,0) -> 0 | K36: 0 | L36: 0
A37: =MusicalTheatre!A11 -> B-603 | B37: =MusicalTheatre!U11 -> 0 | C37: =MusicalTheatre!S11 -> 0 | D37: =IF((Table71012131415[[#This Row],[Rank]]+Table71012131415[[#This Row],[Score]])>0,1,0) -> 0 | K37: 0 | L37: 0
A38: =MusicalTheatre!A12 -> B-604 | B38: =MusicalTheatre!U12 -> 0 | C38: =MusicalTheatre!S12 -> 0 | D38: =IF((Table71012131415[[#This Row],[Rank]]+Table71012131415[[#This Row],[Score]])>0,1,0) -> 0 | K38: 0 | L38: 0
A39: =MusicalTheatre!A129 -> BB-601 | B39: =MusicalTheatre!U129 -> 0 | C39: =MusicalTheatre!S129 -> 0 | D39: =IF((Table71012131415[[#This Row],[Rank]]+Table71012131415[[#This Row],[Score]])>0,1,0) -> 0 | K39: 0 | L39: 0
A40: =MusicalTheatre!A130 -> BB-602 | B40: =MusicalTheatre!U130 -> 0 | C40: =MusicalTheatre!S130 -> 0 | D40: =IF((Table71012131415[[#This Row],[Rank]]+Table71012131415[[#This Row],[Score]])>0,1,0) -> 0 | K40: 0 | L40: 0
A41: =MusicalTheatre!A131 -> BB-603 | B41: =MusicalTheatre!U131 -> 0 | C41: =MusicalTheatre!S131 -> 0 | D41: =IF((Table71012131415[[#This Row],[Rank]]+Table71012131415[[#This Row],[Score]])>0,1,0) -> 0 | K41: 0 | L41: 0
A42: =MusicalTheatre!A132 -> BB-604 | B42: =MusicalTheatre!U132 -> 0 | C42: =MusicalTheatre!S132 -> 0 | D42: =IF((Table71012131415[[#This Row],[Rank]]+Table71012131415[[#This Row],[Score]])>0,1,0) -> 0 | K42: 0 | L42: 0
A43: =MusicalTheatre!A134 -> CC-601 | B43: =MusicalTheatre!U134 -> 0 | C43: =MusicalTheatre!S134 -> 0 | D43: =IF((Table71012131415[[#This Row],[Rank]]+Table71012131415[[#This Row],[Score]])>0,1,0) -> 0 | K43: 0 | L43: 0
A44: =MusicalTheatre!A135 -> CC-602 | B44: =MusicalTheatre!U135 -> 0 | C44: =MusicalTheatre!S135 -> 0 | D44: =IF((Table71012131415[[#This Row],[Rank]]+Table71012131415[[#This Row],[Score]])>0,1,0) -> 0 | K44: 0 | L44: 0
A45: =MusicalTheatre!A136 -> CC-603 | B45: =MusicalTheatre!U136 -> 0 | C45: =MusicalTheatre!S136 -> 0 | D45: =IF((Table71012131415[[#This Row],[Rank]]+Table71012131415[[#This Row],[Score]])>0,1,0) -> 0 | K45: 0 | L45: 0
A46: =MusicalTheatre!A137 -> CC-604 | B46: =MusicalTheatre!U137 -> 0 | C46: =MusicalTheatre!S137 -> 0 | D46: =IF((Table71012131415[[#This Row],[Rank]]+Table71012131415[[#This Row],[Score]])>0,1,0) -> 0 | K46: 0 | L46: 0
A47: =MusicalTheatre!A22 -> D-604 | B47: =MusicalTheatre!U22 -> 0 | C47: =MusicalTheatre!S22 -> 0 | D47: =IF((Table71012131415[[#This Row],[Rank]]+Table71012131415[[#This Row],[Score]])>0,1,0) -> 0 | K47: 0 | L47: 0
A48: =MusicalTheatre!A139 -> DD-601 | B48: =MusicalTheatre!U139 -> 0 | C48: =MusicalTheatre!S139 -> 0 | D48: =IF((Table71012131415[[#This Row],[Rank]]+Table71012131415[[#This Row],[Score]])>0,1,0) -> 0 | K48: 0 | L48: 0
A49: =MusicalTheatre!A140 -> DD-602 | B49: =MusicalTheatre!U140 -> 0 | C49: =MusicalTheatre!S140 -> 0 | D49: =IF((Table71012131415[[#This Row],[Rank]]+Table71012131415[[#This Row],[Score]])>0,1,0) -> 0 | K49: 0 | L49: 0
A50: =MusicalTheatre!A141 -> DD-603 | B50: =MusicalTheatre!U141 -> 0 | C50: =MusicalTheatre!S141 -> 0 | D50: =IF((Table71012131415[[#This Row],[Rank]]+Table71012131415[[#This Row],[Score]])>0,1,0) -> 0 | K50: 0 | L50: 0
A51: =MusicalTheatre!A142 -> DD-604 | B51: =MusicalTheatre!U142 -> 0 | C51: =MusicalTheatre!S142 -> 0 | D51: =IF((Table71012131415[[#This Row],[Rank]]+Table71012131415[[#This Row],[Score]])>0,1,0) -> 0 | K51: 0 | L51: 0
A52: =MusicalTheatre!A27 -> E-604 | B52: =MusicalTheatre!U27 -> 0 | C52: =MusicalTheatre!S27 -> 0 | D52: =IF((Table71012131415[[#This Row],[Rank]]+Table71012131415[[#This Row],[Score]])>0,1,0) -> 0 | K52: 0 | L52: 0
A53: =MusicalTheatre!A144 -> EE-601 | B53: =MusicalTheatre!U144 -> 0 | C53: =MusicalTheatre!S144 -> 0 | D53: =IF((Table71012131415[[#This Row],[Rank]]+Table71012131415[[#This Row],[Score]])>0,1,0) -> 0 | K53: 0 | L53: 0
A54: =MusicalTheatre!A145 -> EE-602 | B54: =MusicalTheatre!U145 -> 0 | C54: =MusicalTheatre!S145 -> 0 | D54: =IF((Table71012131415[[#This Row],[Rank]]+Table71012131415[[#This Row],[Score]])>0,1,0) -> 0 | K54: 0 | L54: 0
A55: =MusicalTheatre!A146 -> EE-603 | B55: =MusicalTheatre!U146 -> 0 | C55: =MusicalTheatre!S146 -> 0 | D55: =IF((Table71012131415[[#This Row],[Rank]]+Table71012131415[[#This Row],[Score]])>0,1,0) -> 0 | K55: 0 | L55: 0
A56: =MusicalTheatre!A147 -> EE-604 | B56: =MusicalTheatre!U147 -> 0 | C56: =MusicalTheatre!S147 -> 0 | D56: =IF((Table71012131415[[#This Row],[Rank]]+Table71012131415[[#This Row],[Score]])>0,1,0) -> 0 | K56: 0 | L56: 0
A57: =MusicalTheatre!A149 -> FF-601 | B57: =MusicalTheatre!U149 -> 0 | C57: =MusicalTheatre!S149 -> 0 | D57: =IF((Table71012131415[[#This Row],[Rank]]+Table71012131415[[#This Row],[Score]])>0,1,0) -> 0 | K57: 0 | L57: 0
A58: =MusicalTheatre!A150 -> FF-602 | B58: =MusicalTheatre!U150 -> 0 | C58: =MusicalTheatre!S150 -> 0 | D58: =IF((Table71012131415[[#This Row],[Rank]]+Table71012131415[[#This Row],[Score]])>0,1,0) -> 0 | K58: 0 | L58: 0
A59: =MusicalTheatre!A151 -> FF-603 | B59: =MusicalTheatre!U151 -> 0 | C59: =MusicalTheatre!S151 -> 0 | D59: =IF((Table71012131415[[#This Row],[Rank]]+Table71012131415[[#This Row],[Score]])>0,1,0) -> 0 | K59: 0 | L59: 0
A60: =MusicalTheatre!A152 -> FF-604 | B60: =MusicalTheatre!U152 -> 0 | C60: =MusicalTheatre!S152 -> 0 | D60: =IF((Table71012131415[[#This Row],[Rank]]+Table71012131415[[#This Row],[Score]])>0,1,0) -> 0 | K60: 0 | L60: 0
A61: =MusicalTheatre!A37 -> G-604 | B61: =MusicalTheatre!U37 -> 0 | C61: =MusicalTheatre!S37 -> 0 | D61: =IF((Table71012131415[[#This Row],[Rank]]+Table71012131415[[#This Row],[Score]])>0,1,0) -> 0 | K61: 0 | L61: 0
A62: =MusicalTheatre!A41 -> H-603 | B62: =MusicalTheatre!U41 -> 0 | C62: =MusicalTheatre!S41 -> 0 | D62: =IF((Table71012131415[[#This Row],[Rank]]+Table71012131415[[#This Row],[Score]])>0,1,0) -> 0 | K62: 0 | L62: 0
A63: =MusicalTheatre!A42 -> H-604 | B63: =MusicalTheatre!U42 -> 0 | C63: =MusicalTheatre!S42 -> 0 | D63: =IF((Table71012131415[[#This Row],[Rank]]+Table71012131415[[#This Row],[Score]])>0,1,0) -> 0 | K63: 0 | L63: 0
A64: =MusicalTheatre!A49 -> K-601 | B64: =MusicalTheatre!U49 -> 0 | C64: =MusicalTheatre!S49 -> 0 | D64: =IF((Table71012131415[[#This Row],[Rank]]+Table71012131415[[#This Row],[Score]])>0,1,0) -> 0 | K64: 0 | L64: 0
A65: =MusicalTheatre!A50 -> K-602 | B65: =MusicalTheatre!U50 -> 0 | C65: =MusicalTheatre!S50 -> 0 | D65: =IF((Table71012131415[[#This Row],[Rank]]+Table71012131415[[#This Row],[Score]])>0,1,0) -> 0 | K65: 0 | L65: 0
A66: =MusicalTheatre!A51 -> K-603 | B66: =MusicalTheatre!U51 -> 0 | C66: =MusicalTheatre!S51 -> 0 | D66: =IF((Table71012131415[[#This Row],[Rank]]+Table71012131415[[#This Row],[Score]])>0,1,0) -> 0 | K66: 0 | L66: 0
A67: =MusicalTheatre!A52 -> K-604 | B67: =MusicalTheatre!U52 -> 0 | C67: =MusicalTheatre!S52 -> 0 | D67: =IF((Table71012131415[[#This Row],[Rank]]+Table71012131415[[#This Row],[Score]])>0,1,0) -> 0 | K67: =SUM(E67,G67,I67) -> 0 | L67: =SUM(F67,H67,J67) -> 0
A68: =MusicalTheatre!A55 -> L-602 | B68: =MusicalTheatre!U55 -> 0 | C68: =MusicalTheatre!S55 -> 0 | D68: =IF((Table71012131415[[#This Row],[Rank]]+Table71012131415[[#This Row],[Score]])>0,1,0) -> 0 | K68: 0 | L68: 0
A69: =MusicalTheatre!A56 -> L-603 | B69: =MusicalTheatre!U56 -> 0 | C69: =MusicalTheatre!S56 -> 0 | D69: =IF((Table71012131415[[#This Row],[Rank]]+Table71012131415[[#This Row],[Score]])>0,1,0) -> 0 | K69: 0 | L69: 0
A70: =MusicalTheatre!A57 -> L-604 | B70: =MusicalTheatre!U57 -> 0 | C70: =MusicalTheatre!S57 -> 0 | D70: =IF((Table71012131415[[#This Row],[Rank]]+Table71012131415[[#This Row],[Score]])>0,1,0) -> 0 | K70: 0 | L70: 0
A71: =MusicalTheatre!A59 -> M-601 | B71: =MusicalTheatre!U59 -> 0 | C71: =MusicalTheatre!S59 -> 0 | D71: =IF((Table71012131415[[#This Row],[Rank]]+Table71012131415[[#This Row],[Score]])>0,1,0) -> 0 | K71: 0 | L71: 0
A72: =MusicalTheatre!A60 -> M-602 | B72: =MusicalTheatre!U60 -> 0 | C72: =MusicalTheatre!S60 -> 0 | D72: =IF((Table71012131415[[#This Row],[Rank]]+Table71012131415[[#This Row],[Score]])>0,1,0) -> 0 | K72: 0 | L72: 0
A73: =MusicalTheatre!A61 -> M-603 | B73: =MusicalTheatre!U61 -> 0 | C73: =MusicalTheatre!S61 -> 0 | D73: =IF((Table71012131415[[#This Row],[Rank]]+Table71012131415[[#This Row],[Score]])>0,1,0) -> 0 | K73: 0 | L73: 0
A74: =MusicalTheatre!A62 -> M-604 | B74: =MusicalTheatre!U62 -> 0 | C74: =MusicalTheatre!S62 -> 0 | D74: =IF((Table71012131415[[#This Row],[Rank]]+Table71012131415[[#This Row],[Score]])>0,1,0) -> 0 | K74: 0 | L74: 0
A75: =MusicalTheatre!A64 -> N-601 | B75: =MusicalTheatre!U64 -> 0 | C75: =MusicalTheatre!S64 -> 0 | D75: =IF((Table71012131415[[#This Row],[Rank]]+Table71012131415[[#This Row],[Score]])>0,1,0) -> 0 | K75: 0 | L75: 0
A76: =MusicalTheatre!A65 -> N-602 | B76: =MusicalTheatre!U65 -> 0 | C76: =MusicalTheatre!S65 -> 0 | D76: =IF((Table71012131415[[#This Row],[Rank]]+Table71012131415[[#This Row],[Score]])>0,1,0) -> 0 | K76: 0 | L76: 0
A77: =MusicalTheatre!A66 -> N-603 | B77: =MusicalTheatre!U66 -> 0 | C77: =MusicalTheatre!S66 -> 0 | D77: =IF((Table71012131415[[#This Row],[Rank]]+Table71012131415[[#This Row],[Score]])>0,1,0) -> 0 | K77: 0 | L77: 0
A78: =MusicalTheatre!A67 -> N-604 | B78: =MusicalTheatre!U67 -> 0 | C78: =MusicalTheatre!S67 -> 0 | D78: =IF((Table71012131415[[#This Row],[Rank]]+Table71012131415[[#This Row],[Score]])>0,1,0) -> 0 | K78: 0 | L78: 0
A79: =MusicalTheatre!A69 -> P-601 | B79: =MusicalTheatre!U69 -> 0 | C79: =MusicalTheatre!S69 -> 0 | D79: =IF((Table71012131415[[#This Row],[Rank]]+Table71012131415[[#This Row],[Score]])>0,1,0) -> 0 | K79: 0 | L79: 0
A80: =MusicalTheatre!A70 -> P-602 | B80: =MusicalTheatre!U70 -> 0 | C80: =MusicalTheatre!S70 -> 0 | D80: =IF((Table71012131415[[#This Row],[Rank]]+Table71012131415[[#This Row],[Score]])>0,1,0) -> 0 | K80: 0 | L80: 0
A81: =MusicalTheatre!A71 -> P-603 | B81: =MusicalTheatre!U71 -> 0 | C81: =MusicalTheatre!S71 -> 0 | D81: =IF((Table71012131415[[#This Row],[Rank]]+Table71012131415[[#This Row],[Score]])>0,1,0) -> 0 | K81: 0 | L81: 0
A82: =MusicalTheatre!A72 -> P-604 | B82: =MusicalTheatre!U72 -> 0 | C82: =MusicalTheatre!S72 -> 0 | D82: =IF((Table71012131415[[#This Row],[Rank]]+Table71012131415[[#This Row],[Score]])>0,1,0) -> 0 | K82: 0 | L82: 0
A83: =MusicalTheatre!A74 -> Q-601 | B83: =MusicalTheatre!U74 -> 0 | C83: =MusicalTheatre!S74 -> 0 | D83: =IF((Table71012131415[[#This Row],[Rank]]+Table71012131415[[#This Row],[Score]])>0,1,0) -> 0 | K83: 0 | L83: 0
A84: =MusicalTheatre!A75 -> Q-602 | B84: =MusicalTheatre!U75 -> 0 | C84: =MusicalTheatre!S75 -> 0 | D84: =IF((Table71012131415[[#This Row],[Rank]]+Table71012131415[[#This Row],[Score]])>0,1,0) -> 0 | K84: 0 | L84: 0
A85: =MusicalTheatre!A76 -> Q-603 | B85: =MusicalTheatre!U76 -> 0 | C85: =MusicalTheatre!S76 -> 0 | D85: =IF((Table71012131415[[#This Row],[Rank]]+Table71012131415[[#This Row],[Score]])>0,1,0) -> 0 | K85: 0 | L85: 0
A86: =MusicalTheatre!A77 -> Q-604 | B86: =MusicalTheatre!U77 -> 0 | C86: =MusicalTheatre!S77 -> 0 | D86: =IF((Table71012131415[[#This Row],[Rank]]+Table71012131415[[#This Row],[Score]])>0,1,0) -> 0 | K86: 0 | L86: 0
A87: =MusicalTheatre!A79 -> R-601 | B87: =MusicalTheatre!U79 -> 0 | C87: =MusicalTheatre!S79 -> 0 | D87: =IF((Table71012131415[[#This Row],[Rank]]+Table71012131415[[#This Row],[Score]])>0,1,0) -> 0 | K87: 0 | L87: 0
A88: =MusicalTheatre!A80 -> R-602 | B88: =MusicalTheatre!U80 -> 0 | C88: =MusicalTheatre!S80 -> 0 | D88: =IF((Table71012131415[[#This Row],[Rank]]+Table71012131415[[#This Row],[Score]])>0,1,0) -> 0 | K88: 0 | L88: 0
A89: =MusicalTheatre!A81 -> R-603 | B89: =MusicalTheatre!U81 -> 0 | C89: =MusicalTheatre!S81 -> 0 | D89: =IF((Table71012131415[[#This Row],[Rank]]+Table71012131415[[#This Row],[Score]])>0,1,0) -> 0 | K89: 0 | L89: 0
A90: =MusicalTheatre!A82 -> R-604 | B90: =MusicalTheatre!U82 -> 0 | C90: =MusicalTheatre!S82 -> 0 | D90: =IF((Table71012131415[[#This Row],[Rank]]+Table71012131415[[#This Row],[Score]])>0,1,0) -> 0 | K90: 0 | L90: 0
A91: =MusicalTheatre!A84 -> S-601 | B91: =MusicalTheatre!U84 -> 0 | C91: =MusicalTheatre!S84 -> 0 | D91: =IF((Table71012131415[[#This Row],[Rank]]+Table71012131415[[#This Row],[Score]])>0,1,0) -> 0 | K91: 0 | L91: 0
A92: =MusicalTheatre!A85 -> S-602 | B92: =MusicalTheatre!U85 -> 0 | C92: =MusicalTheatre!S85 -> 0 | D92: =IF((Table71012131415[[#This Row],[Rank]]+Table71012131415[[#This Row],[Score]])>0,1,0) -> 0 | K92: 0 | L92: 0
A93: =MusicalTheatre!A86 -> S-603 | B93: =MusicalTheatre!U86 -> 0 | C93: =MusicalTheatre!S86 -> 0 | D93: =IF((Table71012131415[[#This Row],[Rank]]+Table71012131415[[#This Row],[Score]])>0,1,0) -> 0 | K93: 0 | L93: 0
A94: =MusicalTheatre!A87 -> S-604 | B94: =MusicalTheatre!U87 -> 0 | C94: =MusicalTheatre!S87 -> 0 | D94: =IF((Table71012131415[[#This Row],[Rank]]+Table71012131415[[#This Row],[Score]])>0,1,0) -> 0 | K94: 0 | L94: 0
A95: =MusicalTheatre!A89 -> T-601 | B95: =MusicalTheatre!U89 -> 0 | C95: =MusicalTheatre!S89 -> 0 | D95: =IF((Table71012131415[[#This Row],[Rank]]+Table71012131415[[#This Row],[Score]])>0,1,0) -> 0 | K95: 0 | L95: 0
A96: =MusicalTheatre!A90 -> T-602 | B96: =MusicalTheatre!U90 -> 0 | C96: =MusicalTheatre!S90 -> 0 | D96: =IF((Table71012131415[[#This Row],[Rank]]+Table71012131415[[#This Row],[Score]])>0,1,0) -> 0 | K96: 0 | L96: 0
A97: =MusicalTheatre!A91 -> T-603 | B97: =MusicalTheatre!U91 -> 0 | C97: =MusicalTheatre!S91 -> 0 | D97: =IF((Table71012131415[[#This Row],[Rank]]+Table71012131415[[#This Row],[Score]])>0,1,0) -> 0 | K97: 0 | L97: 0
A98: =MusicalTheatre!A92 -> T-604 | B98: =MusicalTheatre!U92 -> 0 | C98: =MusicalTheatre!S92 -> 0 | D98: =IF((Table71012131415[[#This Row],[Rank]]+Table71012131415[[#This Row],[Score]])>0,1,0) -> 0 | K98: 0 | L98: 0
A99: =MusicalTheatre!A94 -> U-601 | B99: =MusicalTheatre!U94 -> 0 | C99: =MusicalTheatre!S94 -> 0 | D99: =IF((Table71012131415[[#This Row],[Rank]]+Table71012131415[[#This Row],[Score]])>0,1,0) -> 0 | K99: =SUM(E99,G99,I99) -> 0 | L99: =SUM(F99,H99,J99) -> 0
A100: =MusicalTheatre!A95 -> U-602 | B100: =MusicalTheatre!U95 -> 0 | C100: =MusicalTheatre!S95 -> 0 | D100: =IF((Table71012131415[[#This Row],[Rank]]+Table71012131415[[#This Row],[Score]])>0,1,0) -> 0 | K100: 0 | L100: 0
A101: =MusicalTheatre!A96 -> U-603 | B101: =MusicalTheatre!U96 -> 0 | C101: =MusicalTheatre!S96 -> 0 | D101: =IF((Table71012131415[[#This Row],[Rank]]+Table71012131415[[#This Row],[Score]])>0,1,0) -> 0 | K101: 0 | L101: 0
A102: =MusicalTheatre!A97 -> U-604 | B102: =MusicalTheatre!U97 -> 0 | C102: =MusicalTheatre!S97 -> 0 | D102: =IF((Table71012131415[[#This Row],[Rank]]+Table71012131415[[#This Row],[Score]])>0,1,0) -> 0 | K102: 0 | L102: 0
A103: =MusicalTheatre!A99 -> V-601 | B103: =MusicalTheatre!U99 -> 0 | C103: =MusicalTheatre!S99 -> 0 | D103: =IF((Table71012131415[[#This Row],[Rank]]+Table71012131415[[#This Row],[Score]])>0,1,0) -> 0 | K103: 0 | L103: 0
A104: =MusicalTheatre!A100 -> V-602 | B104: =MusicalTheatre!U100 -> 0 | C104: =MusicalTheatre!S100 -> 0 | D104: =IF((Table71012131415[[#This Row],[Rank]]+Table71012131415[[#This Row],[Score]])>0,1,0) -> 0 | K104: 0 | L104: 0
A105: =MusicalTheatre!A101 -> V-603 | B105: =MusicalTheatre!U101 -> 0 | C105: =MusicalTheatre!S101 -> 0 | D105: =IF((Table71012131415[[#This Row],[Rank]]+Table71012131415[[#This Row],[Score]])>0,1,0) -> 0 | K105: 0 | L105: 0
A106: =MusicalTheatre!A102 -> V-604 | B106: =MusicalTheatre!U102 -> 0 | C106: =MusicalTheatre!S102 -> 0 | D106: =IF((Table71012131415[[#This Row],[Rank]]+Table71012131415[[#This Row],[Score]])>0,1,0) -> 0 | K106: 0 | L106: 0
A107: =MusicalTheatre!A104 -> W-601 | B107: =MusicalTheatre!U104 -> 0 | C107: =MusicalTheatre!S104 -> 0 | D107: =IF((Table71012131415[[#This Row],[Rank]]+Table71012131415[[#This Row],[Score]])>0,1,0) -> 0 | K107: 0 | L107: 0
A108: =MusicalTheatre!A105 -> W-602 | B108: =MusicalTheatre!U105 -> 0 | C108: =MusicalTheatre!S105 -> 0 | D108: =IF((Table71012131415[[#This Row],[Rank]]+Table71012131415[[#This Row],[Score]])>0,1,0) -> 0 | K108: 0 | L108: 0
A109: =MusicalTheatre!A106 -> W-603 | B109: =MusicalTheatre!U106 -> 0 | C109: =MusicalTheatre!S106 -> 0 | D109: =IF((Table71012131415[[#This Row],[Rank]]+Table71012131415[[#This Row],[Score]])>0,1,0) -> 0 | K109: 0 | L109: 0
A110: =MusicalTheatre!A107 -> W-604 | B110: =MusicalTheatre!U107 -> 0 | C110: =MusicalTheatre!S107 -> 0 | D110: =IF((Table71012131415[[#This Row],[Rank]]+Table71012131415[[#This Row],[Score]])>0,1,0) -> 0 | K110: 0 | L110: 0
A111: =MusicalTheatre!A109 -> X-601 | B111: =MusicalTheatre!U109 -> 0 | C111: =MusicalTheatre!S109 -> 0 | D111: =IF((Table71012131415[[#This Row],[Rank]]+Table71012131415[[#This Row],[Score]])>0,1,0) -> 0 | K111: 0 | L111: 0
A112: =MusicalTheatre!A110 -> X-602 | B112: =MusicalTheatre!U110 -> 0 | C112: =MusicalTheatre!S110 -> 0 | D112: =IF((Table71012131415[[#This Row],[Rank]]+Table71012131415[[#This Row],[Score]])>0,1,0) -> 0 | K112: 0 | L112: 0
A113: =MusicalTheatre!A111 -> X-603 | B113: =MusicalTheatre!U111 -> 0 | C113: =MusicalTheatre!S111 -> 0 | D113: =IF((Table71012131415[[#This Row],[Rank]]+Table71012131415[[#This Row],[Score]])>0,1,0) -> 0 | K113: 0 | L113: 0
A114: =MusicalTheatre!A112 -> X-604 | B114: =MusicalTheatre!U112 -> 0 | C114: =MusicalTheatre!S112 -> 0 | D114: =IF((Table71012131415[[#This Row],[Rank]]+Table71012131415[[#This Row],[Score]])>0,1,0) -> 0 | K114: 0 | L114: 0
A115: =MusicalTheatre!A114 -> Y-601 | B115: =MusicalTheatre!U114 -> 0 | C115: =MusicalTheatre!S114 -> 0 | D115: =IF((Table71012131415[[#This Row],[Rank]]+Table71012131415[[#This Row],[Score]])>0,1,0) -> 0 | K115: 0 | L115: 0
A116: =MusicalTheatre!A115 -> Y-602 | B116: =MusicalTheatre!U115 -> 0 | C116: =MusicalTheatre!S115 -> 0 | D116: =IF((Table71012131415[[#This Row],[Rank]]+Table71012131415[[#This Row],[Score]])>0,1,0) -> 0 | K116: 0 | L116: 0
A117: =MusicalTheatre!A116 -> Y-603 | B117: =MusicalTheatre!U116 -> 0 | C117: =MusicalTheatre!S116 -> 0 | D117: =IF((Table71012131415[[#This Row],[Rank]]+Table71012131415[[#This Row],[Score]])>0,1,0) -> 0 | K117: 0 | L117: 0
A118: =MusicalTheatre!A117 -> Y-604 | B118: =MusicalTheatre!U117 -> 0 | C118: =MusicalTheatre!S117 -> 0 | D118: =IF((Table71012131415[[#This Row],[Rank]]+Table71012131415[[#This Row],[Score]])>0,1,0) -> 0 | K118: 0 | L118: 0
A119: =MusicalTheatre!A119 -> Z-601 | B119: =MusicalTheatre!U119 -> 0 | C119: =MusicalTheatre!S119 -> 0 | D119: =IF((Table71012131415[[#This Row],[Rank]]+Table71012131415[[#This Row],[Score]])>0,1,0) -> 0 | K119: 0 | L119: 0
A120: =MusicalTheatre!A120 -> Z-602 | B120: =MusicalTheatre!U120 -> 0 | C120: =MusicalTheatre!S120 -> 0 | D120: =IF((Table71012131415[[#This Row],[Rank]]+Table71012131415[[#This Row],[Score]])>0,1,0) -> 0 | K120: 0 | L120: 0
A121: =MusicalTheatre!A121 -> Z-603 | B121: =MusicalTheatre!U121 -> 0 | C121: =MusicalTheatre!S121 -> 0 | D121: =IF((Table71012131415[[#This Row],[Rank]]+Table71012131415[[#This Row],[Score]])>0,1,0) -> 0 | K121: 0 | L121: 0
A122: =MusicalTheatre!A122 -> Z-604 | B122: =MusicalTheatre!U122 -> 0 | C122: =MusicalTheatre!S122 -> 0 | D122: =IF((Table71012131415[[#This Row],[Rank]]+Table71012131415[[#This Row],[Score]])>0,1,0) -> 0 | K122: 0 | L122: 0

Sheet One-Acts
A1: ONE-ACTS | K1: Rank 1-6 | AD1: S | AE1: E | AF1: G | AG1: F | AI1: 1violation
K2: Judge 1 | M2: Judge 2 | O2: Judge 3
B3: Title of Piece | J3: Title of Play | K3: J1 rank | L3: J1 score | M3: J2 rank | N3: J2 score | O3: J3 rank | P3: J3 score | S3: TOTAL RANK | U3: TOTAL SCORE | W3: TOTAL SCHOOL SWEEPS POINTS | Z3: Time Violations
A4: A-701 | J4: The HELP Desk! | K4: 3 | L4: 43 | M4: 5 | N4: 41 | O4: 6 | P4: 36 | S4: =SUM(K4,M4,O4) -> 14 | U4: =SUM(L4,N4,P4) -> 120 | W4: =SUM(U4,AA4) -> 120 | AA4: =IF(Z4="1violation",-35*1,IF(Z4="2violations",-35*2,IF(Z4="3violations",-35*3,IF(Z4="","")))) -> 
A5: B-701 | J5: The Brother's Grimm Spectaculathon | K5: 6 | L5: 40 | M5: 4 | N5: 44 | O5: 5 | P5: 38 | S5: 15 | U5: 122 | W5: 122 | AA5: =IF(Z5="1violation",-10*1,IF(Z5="2violations",-10*2,IF(Z5="3violations",-10*3,IF(Z5="","")))) -> 
A6: C-701 | J6: Game of Tiaras | K6: 6 | L6: 37 | M6: 6 | N6: 34 | O6: 4 | P6: 38 | S6: 16 | U6: 109 | W6: 109
A7: D-701 | J7: Power Lines: Me, Your Mom, & Mario | K7: 6 | L7: 38 | M7: 3 | N7: 45 | O7: 6 | P7: 37 | S7: 15 | U7: 120 | W7: 120
A8: E-701 | J8: Murder at the Art Gallery | K8: 6 | L8: 35 | M8: 6 | N8: 38 | O8: 6 | P8: 35 | S8: 18 | U8: 108 | W8: 108
A9: F-701 | S9: 0 | U9: 0 | W9: 0
A10: G-701 | J10: Dinner at 8 - Dead by 9 | K10: 4 | L10: 43 | M10: 6 | N10: 38 | O10: 6 | P10: 35 | S10: 16 | U10: 116 | W10: 116
A11: H-701 | J11: MayFair Lady | K11: 2 | L11: 50 | M11: 2 | N11: 47 | O11: 1 | P11: 49 | S11: 5 | U11: 146 | W11: 146
A12: J-701 | J12: What Happens in Neverland Stays in Neverland | K12: 5 | L12: 43 | M12: 6 | N12: 34 | O12: 3 | P12: 38 | S12: 14 | U12: 115 | W12: 115
A13: K-701 | S13: 0 | U13: 0 | W13: 0
A14: L-701 | S14: 0 | U14: 0 | W14: 0
A15: M-701 | J15: Attack of the Pom-Pom Zombies | K15: 1 | L15: 50 | M15: 1 | N15: 47 | O15: 2 | P15: 48 | S15: 4 | U15: 145 | W15: 145
A16: N-701 | S16: 0 | U16: 0 | W16: 0
A17: P-701 | S17: 0 | U17: 0 | W17: 0
A18: Q-701 | S18: 0 | U18: 0 | W18: 0
A19: R-701 | S19: 0 | U19: 0 | W19: 0
A20: S-701 | S20: 0 | U20: 0 | W20: 0
A21: T-701 | S21: 0 | U21: 0 | W21: 0
A22: U-701 | S22: 0 | U22: 0 | W22: 0
A23: V-701 | S23: 0 | U23: 0 | W23: 0
A24: W-701 | S24: 0 | U24: 0 | W24: 0
A25: X-701 | S25: 0 | U25: 0 | W25: 0
A26: Y-701 | S26: 0 | U26: 0 | W26: 0
A27: Z-701 | S27: 0 | U27: 0 | W27: 0
A28: AA-701 | S28: 0 | U28: 0 | W28: 0
A29: BB-701 | S29: 0 | U29: 0 | W29: 0
A30: CC-701 | S30: 0 | U30: 0 | W30: 0
A31: DD-701 | S31: 0 | U31: 0 | W31: 0
A32: EE-701 | S32: 0 | U32: 0 | W32: 0
A33: FF-701 | S33: 0 | U33: 0 | W33: 0

Sheet CostumeDesign
A1: Costume Design | K1: Rank 1-6 | AC1: 1violation | AD1: 2violations | AE1: 3violations
K2: Round 1: | M2: Round 2: | O2: Round 3:
H3: Student Name | J3: Title of Play | K3: R1 rank | L3: R1 score | M3: R2 rank | N3: R2 score | O3: R3 rank | P3: R3 score | S3: TOTAL SCORE | U3: TOTAL RANK
A4: A-801 | S4: =SUM(L4,N4,P4) -> 0 | U4: =SUM(K4,M4,O4) -> 0
A5: A-802 | S5: 0 | U5: 0
A6: A-803 | S6: 0 | U6: 0
A7: A-804 | S7: 0 | U7: 0
A9: B-801 | S9: 0 | U9: 0
A10: B-802 | S10: 0 | U10: 0
A11: B-803 | S11: 0 | U11: 0
A12: B-804 | S12: 0 | U12: 0
A14: C-801 | S14: 0 | U14: 0
A15: C-802 | S15: 0 | U15: 0
A16: C-803 | S16: 0 | U16: 0
A17: C-804 | S17: 0 | U17: 0
A19: D-801 | S19: 0 | U19: 0
A20: D-802 | S20: 0 | U20: 0
A21: D-803 | S21: 0 | U21: 0
A22: D-804 | S22: 0 | U22: 0
A24: E-801 | S24: 0 | U24: 0
A25: E-802 | S25: 0 | U25: 0
A26: E-803 | S26: 0 | U26: 0
A27: E-804 | S27: 0 | U27: 0
A29: F-801 | S29: 0 | U29: 0
A30: F-802 | S30: 0 | U30: 0
A31: F-803 | S31: 0 | U31: 0
A32: F-804 | S32: 0 | U32: 0
A34: G-801 | S34: 0 | U34: 0
A35: G-802 | S35: 0 | U35: 0
A36: G-803 | S36: 0 | U36: 0
A37: G-804 | S37: 0 | U37: 0
A39: H-801 | S39: 0 | U39: 0
A40: H-802 | S40: 0 | U40: 0
A41: H-803 | S41: 0 | U41: 0
A42: H-804 | S42: 0 | U42: 0
A44: J-801 | S44: =SUM(L44,N44,P44) -> 0 | U44: =SUM(K44,M44,O44) -> 0
A45: J-802 | S45: 0 | U45: 0
A46: J-803 | S46: 0 | U46: 0
A47: J-804 | S47: 0 | U47: 0
A49: K-801 | S49: 0 | U49: 0
A50: K-802 | S50: 0 | U50: 0
A51: K-803 | S51: 0 | U51: 0
A52: K-804 | S52: 0 | U52: 0
A54: L-801 | S54: 0 | U54: 0
A55: L-802 | S55: 0 | U55: 0
A56: L-803 | S56: 0 | U56: 0
A57: L-804 | S57: 0 | U57: 0
A59: M-801 | S59: 0 | U59: 0
A60: M-802 | S60: 0 | U60: 0
A61: M-803 | S61: 0 | U61: 0
A62: M-804 | S62: 0 | U62: 0
A64: N-801 | S64: 0 | U64: 0
A65: N-802 | S65: 0 | U65: 0
A66: N-803 | S66: 0 | U66: 0
A67: N-804 | S67: 0 | U67: 0
A69: P-801 | S69: 0 | U69: 0
A70: P-802 | S70: 0 | U70: 0
A71: P-803 | S71: 0 | U71: 0
A72: P-804 | S72: 0 | U72: 0
A74: Q-801 | S74: 0 | U74: 0
A75: Q-802 | S75: 0 | U75: 0
A76: Q-803 | S76: 0 | U76: 0
A77: Q-804 | S77: 0 | U77: 0
A79: R-801 | S79: 0 | U79: 0
A80: R-802 | S80: 0 | U80: 0
A81: R-803 | S81: 0 | U81: 0
A82: R-804 | S82: 0 | U82: 0
A84: S-801 | S84: =SUM(L84,N84,P84) -> 0 | U84: =SUM(K84,M84,O84) -> 0
A85: S-802 | S85: 0 | U85: 0
A86: S-803 | S86: 0 | U86: 0
A87: S-804 | S87: 0 | U87: 0
A89: T-801 | S89: 0 | U89: 0
A90: T-802 | S90: 0 | U90: 0
A91: T-803 | S91: 0 | U91: 0
A92: T-804 | S92: 0 | U92: 0
A94: U-801 | S94: 0 | U94: 0
A95: U-802 | S95: 0 | U95: 0
A96: U-803 | S96: 0 | U96: 0
A97: U-804 | S97: 0 | U97: 0
A99: V-801 | S99: 0 | U99: 0
A100: V-802 | S100: 0 | U100: 0
A101: V-803 | S101: 0 | U101: 0
A102: V-804 | S102: 0 | U102: 0
A104: W-801 | S104: 0 | U104: 0
A105: W-802 | S105: 0 | U105: 0
A106: W-803 | S106: 0 | U106: 0
A107: W-804 | S107: 0 | U107: 0
A109: X-801 | S109: 0 | U109: 0
A110: X-802 | S110: 0 | U110: 0
A111: X-803 | S111: 0 | U111: 0
A112: X-804 | S112: 0 | U112: 0
A114: Y-801 | S114: 0 | U114: 0
A115: Y-802 | S115: 0 | U115: 0
A116: Y-803 | S116: 0 | U116: 0
A117: Y-804 | S117: 0 | U117: 0
A119: Z-801 | S119: 0 | U119: 0
A120: Z-802 | S120: 0 | U120: 0
A121: Z-803 | S121: 0 | U121: 0
A122: Z-804 | S122: 0 | U122: 0
A124: AA-801 | S124: =SUM(L124,N124,P124) -> 0 | U124: =SUM(K124,M124,O124) -> 0
A125: AA-802 | S125: 0 | U125: 0
A126: AA-803 | S126: 0 | U126: 0
A127: AA-804 | S127: 0 | U127: 0
A129: BB-801 | S129: 0 | U129: 0
A130: BB-802 | S130: 0 | U130: 0
A131: BB-803 | S131: 0 | U131: 0
A132: BB-804 | S132: 0 | U132: 0
A134: CC-801 | S134: 0 | U134: 0
A135: CC-802 | S135: 0 | U135: 0
A136: CC-803 | S136: 0 | U136: 0
A137: CC-804 | S137: 0 | U137: 0
A139: DD-801 | S139: 0 | U139: 0
A140: DD-802 | S140: 0 | U140: 0
A141: DD-803 | S141: 0 | U141: 0
A142: DD-804 | S142: 0 | U142: 0
A144: EE-801 | S144: 0 | U144: 0
A145: EE-802 | S145: 0 | U145: 0
A146: EE-803 | S146: 0 | U146: 0
A147: EE-804 | S147: 0 | U147: 0
A149: FF-801 | S149: 0 | U149: 0
A150: FF-802 | S150: 0 | U150: 0
A151: FF-803 | S151: 0 | U151: 0
A152: FF-804 | S152: 0 | U152: 0

Sheet ScenicDesign
A1: Scenic Design | K1: Rank 1-6 | AC1: 1violation | AD1: 2violations | AE1: 3violations
K2: Round 1: | M2: Round 2: | O2: Round 3:
H3: Student Name | K3: R1 rank | L3: R1 score | M3: R2 rank | N3: R2 score | O3: R3 rank | P3: R3 score | S3: TOTAL SCORE | U3: TOTAL RANK
A4: A-901 | S4: =SUM(L4,N4,P4) -> 0 | U4: =SUM(K4,M4,O4) -> 0
A5: A-902 | S5: =SUM(L5,N5,P5) -> 0 | U5: =SUM(K5,M5,O5) -> 0
A6: A-903 | S6: =SUM(L6,N6,P6) -> 0 | U6: =SUM(K6,M6,O6) -> 0
A7: A-904 | S7: =SUM(L7,N7,P7) -> 0 | U7: =SUM(K7,M7,O7) -> 0
A9: B-901 | S9: =SUM(L9,N9,P9) -> 0 | U9: =SUM(K9,M9,O9) -> 0
A10: B-902 | S10: =SUM(L10,N10,P10) -> 0 | U10: =SUM(K10,M10,O10) -> 0
A11: B-903 | S11: =SUM(L11,N11,P11) -> 0 | U11: =SUM(K11,M11,O11) -> 0
A12: B-904 | S12: =SUM(L12,N12,P12) -> 0 | U12: =SUM(K12,M12,O12) -> 0
A14: C-901 | S14: =SUM(L14,N14,P14) -> 0 | U14: =SUM(K14,M14,O14) -> 0
A15: C-902 | S15: =SUM(L15,N15,P15) -> 0 | U15: =SUM(K15,M15,O15) -> 0
A16: C-903 | S16: =SUM(L16,N16,P16) -> 0 | U16: =SUM(K16,M16,O16) -> 0
A17: C-904 | S17: =SUM(L17,N17,P17) -> 0 | U17: =SUM(K17,M17,O17) -> 0
A19: D-901 | S19: =SUM(L19,N19,P19) -> 0 | U19: =SUM(K19,M19,O19) -> 0
A20: D-902 | S20: =SUM(L20,N20,P20) -> 0 | U20: =SUM(K20,M20,O20) -> 0
A21: D-903 | S21: =SUM(L21,N21,P21) -> 0 | U21: =SUM(K21,M21,O21) -> 0
A22: D-904 | S22: =SUM(L22,N22,P22) -> 0 | U22: =SUM(K22,M22,O22) -> 0
A24: E-901 | S24: =SUM(L24,N24,P24) -> 0 | U24: =SUM(K24,M24,O24) -> 0
A25: E-902 | S25: =SUM(L25,N25,P25) -> 0 | U25: =SUM(K25,M25,O25) -> 0
A26: E-903 | S26: =SUM(L26,N26,P26) -> 0 | U26: =SUM(K26,M26,O26) -> 0
A27: E-904 | S27: =SUM(L27,N27,P27) -> 0 | U27: =SUM(K27,M27,O27) -> 0
A29: F-901 | S29: =SUM(L29,N29,P29) -> 0 | U29: =SUM(K29,M29,O29) -> 0
A30: F-902 | S30: =SUM(L30,N30,P30) -> 0 | U30: =SUM(K30,M30,O30) -> 0
A31: F-903 | S31: =SUM(L31,N31,P31) -> 0 | U31: =SUM(K31,M31,O31) -> 0
A32: F-904 | S32: =SUM(L32,N32,P32) -> 0 | U32: =SUM(K32,M32,O32) -> 0
A34: G-901 | S34: =SUM(L34,N34,P34) -> 0 | U34: =SUM(K34,M34,O34) -> 0
A35: G-902 | S35: =SUM(L35,N35,P35) -> 0 | U35: =SUM(K35,M35,O35) -> 0
A36: G-903 | S36: =SUM(L36,N36,P36) -> 0 | U36: =SUM(K36,M36,O36) -> 0
A37: G-904 | S37: =SUM(L37,N37,P37) -> 0 | U37: =SUM(K37,M37,O37) -> 0
A39: H-901 | S39: =SUM(L39,N39,P39) -> 0 | U39: =SUM(K39,M39,O39) -> 0
A40: H-902 | S40: =SUM(L40,N40,P40) -> 0 | U40: =SUM(K40,M40,O40) -> 0
A41: H-903 | S41: =SUM(L41,N41,P41) -> 0 | U41: =SUM(K41,M41,O41) -> 0
A42: H-904 | S42: =SUM(L42,N42,P42) -> 0 | U42: =SUM(K42,M42,O42) -> 0
A44: J-901 | S44: =SUM(L44,N44,P44) -> 0 | U44: =SUM(K44,M44,O44) -> 0
A45: J-902 | S45: =SUM(L45,N45,P45) -> 0 | U45: =SUM(K45,M45,O45) -> 0
A46: J-903 | S46: =SUM(L46,N46,P46) -> 0 | U46: =SUM(K46,M46,O46) -> 0
A47: J-904 | S47: =SUM(L47,N47,P47) -> 0 | U47: =SUM(K47,M47,O47) -> 0
A49: K-901 | S49: =SUM(L49,N49,P49) -> 0 | U49: =SUM(K49,M49,O49) -> 0
A50: K-902 | S50: =SUM(L50,N50,P50) -> 0 | U50: =SUM(K50,M50,O50) -> 0
A51: K-903 | S51: =SUM(L51,N51,P51) -> 0 | U51: =SUM(K51,M51,O51) -> 0
A52: K-904 | S52: =SUM(L52,N52,P52) -> 0 | U52: =SUM(K52,M52,O52) -> 0
A54: L-901 | S54: =SUM(L54,N54,P54) -> 0 | U54: =SUM(K54,M54,O54) -> 0
A55: L-902 | S55: =SUM(L55,N55,P55) -> 0 | U55: =SUM(K55,M55,O55) -> 0
A56: L-903 | S56: =SUM(L56,N56,P56) -> 0 | U56: =SUM(K56,M56,O56) -> 0
A57: L-904 | S57: =SUM(L57,N57,P57) -> 0 | U57: =SUM(K57,M57,O57) -> 0
A59: M-901 | S59: =SUM(L59,N59,P59) -> 0 | U59: =SUM(K59,M59,O59) -> 0
A60: M-902 | S60: =SUM(L60,N60,P60) -> 0 | U60: =SUM(K60,M60,O60) -> 0
A61: M-903 | S61: =SUM(L61,N61,P61) -> 0 | U61: =SUM(K61,M61,O61) -> 0
A62: M-904 | S62: =SUM(L62,N62,P62) -> 0 | U62: =SUM(K62,M62,O62) -> 0
A64: N-901 | S64: =SUM(L64,N64,P64) -> 0 | U64: =SUM(K64,M64,O64) -> 0
A65: N-902 | S65: =SUM(L65,N65,P65) -> 0 | U65: =SUM(K65,M65,O65) -> 0
A66: N-903 | S66: =SUM(L66,N66,P66) -> 0 | U66: =SUM(K66,M66,O66) -> 0
A67: N-904 | S67: =SUM(L67,N67,P67) -> 0 | U67: =SUM(K67,M67,O67) -> 0
A69: P-901 | S69: =SUM(L69,N69,P69) -> 0 | U69: =SUM(K69,M69,O69) -> 0
A70: P-902 | S70: =SUM(L70,N70,P70) -> 0 | U70: =SUM(K70,M70,O70) -> 0
A71: P-903 | S71: =SUM(L71,N71,P71) -> 0 | U71: =SUM(K71,M71,O71) -> 0
A72: P-904 | S72: =SUM(L72,N72,P72) -> 0 | U72: =SUM(K72,M72,O72) -> 0
A74: Q-901 | S74: =SUM(L74,N74,P74) -> 0 | U74: =SUM(K74,M74,O74) -> 0
A75: Q-902 | S75: =SUM(L75,N75,P75) -> 0 | U75: =SUM(K75,M75,O75) -> 0
A76: Q-903 | S76: =SUM(L76,N76,P76) -> 0 | U76: =SUM(K76,M76,O76) -> 0
A77: Q-904 | S77: =SUM(L77,N77,P77) -> 0 | U77: =SUM(K77,M77,O77) -> 0
A79: R-901 | S79: =SUM(L79,N79,P79) -> 0 | U79: =SUM(K79,M79,O79) -> 0
A80: R-902 | S80: =SUM(L80,N80,P80) -> 0 | U80: =SUM(K80,M80,O80) -> 0
A81: R-903 | S81: =SUM(L81,N81,P81) -> 0 | U81: =SUM(K81,M81,O81) -> 0
A82: R-904 | S82: =SUM(L82,N82,P82) -> 0 | U82: =SUM(K82,M82,O82) -> 0
A84: S-901 | S84: =SUM(L84,N84,P84) -> 0 | U84: =SUM(K84,M84,O84) -> 0
A85: S-902 | S85: =SUM(L85,N85,P85) -> 0 | U85: =SUM(K85,M85,O85) -> 0
A86: S-903 | S86: =SUM(L86,N86,P86) -> 0 | U86: =SUM(K86,M86,O86) -> 0
A87: S-904 | S87: =SUM(L87,N87,P87) -> 0 | U87: =SUM(K87,M87,O87) -> 0
A89: T-901 | S89: =SUM(L89,N89,P89) -> 0 | U89: =SUM(K89,M89,O89) -> 0
A90: T-902 | S90: =SUM(L90,N90,P90) -> 0 | U90: =SUM(K90,M90,O90) -> 0
A91: T-903 | S91: =SUM(L91,N91,P91) -> 0 | U91: =SUM(K91,M91,O91) -> 0
A92: T-904 | S92: =SUM(L92,N92,P92) -> 0 | U92: =SUM(K92,M92,O92) -> 0
A94: U-901 | S94: =SUM(L94,N94,P94) -> 0 | U94: =SUM(K94,M94,O94) -> 0
A95: U-902 | S95: =SUM(L95,N95,P95) -> 0 | U95: =SUM(K95,M95,O95) -> 0
A96: U-903 | S96: =SUM(L96,N96,P96) -> 0 | U96: =SUM(K96,M96,O96) -> 0
A97: U-904 | S97: =SUM(L97,N97,P97) -> 0 | U97: =SUM(K97,M97,O97) -> 0
A99: V-901 | S99: =SUM(L99,N99,P99) -> 0 | U99: =SUM(K99,M99,O99) -> 0
A100: V-902 | S100: =SUM(L100,N100,P100) -> 0 | U100: =SUM(K100,M100,O100) -> 0
A101: V-903 | S101: =SUM(L101,N101,P101) -> 0 | U101: =SUM(K101,M101,O101) -> 0
A102: V-904 | S102: =SUM(L102,N102,P102) -> 0 | U102: =SUM(K102,M102,O102) -> 0
A104: W-901 | S104: =SUM(L104,N104,P104) -> 0 | U104: =SUM(K104,M104,O104) -> 0
A105: W-902 | S105: =SUM(L105,N105,P105) -> 0 | U105: =SUM(K105,M105,O105) -> 0
A106: W-903 | S106: =SUM(L106,N106,P106) -> 0 | U106: =SUM(K106,M106,O106) -> 0
A107: W-904 | S107: =SUM(L107,N107,P107) -> 0 | U107: =SUM(K107,M107,O107) -> 0
A109: X-901 | S109: =SUM(L109,N109,P109) -> 0 | U109: =SUM(K109,M109,O109) -> 0
A110: X-902 | S110: =SUM(L110,N110,P110) -> 0 | U110: =SUM(K110,M110,O110) -> 0
A111: X-903 | S111: =SUM(L111,N111,P111) -> 0 | U111: =SUM(K111,M111,O111) -> 0
A112: X-904 | S112: =SUM(L112,N112,P112) -> 0 | U112: =SUM(K112,M112,O112) -> 0
A114: Y-901 | S114: =SUM(L114,N114,P114) -> 0 | U114: =SUM(K114,M114,O114) -> 0
A115: Y-902 | S115: =SUM(L115,N115,P115) -> 0 | U115: =SUM(K115,M115,O115) -> 0
A116: Y-903 | S116: =SUM(L116,N116,P116) -> 0 | U116: =SUM(K116,M116,O116) -> 0
A117: Y-904 | S117: =SUM(L117,N117,P117) -> 0 | U117: =SUM(K117,M117,O117) -> 0
A119: Z-901 | S119: =SUM(L119,N119,P119) -> 0 | U119: =SUM(K119,M119,O119) -> 0
A120: Z-902 | S120: =SUM(L120,N120,P120) -> 0 | U120: =SUM(K120,M120,O120) -> 0
A121: Z-903 | S121: =SUM(L121,N121,P121) -> 0 | U121: =SUM(K121,M121,O121) -> 0
A122: Z-904 | S122: =SUM(L122,N122,P122) -> 0 | U122: =SUM(K122,M122,O122) -> 0
A124: AA-901 | S124: =SUM(L124,N124,P124) -> 0 | U124: =SUM(K124,M124,O124) -> 0
A125: AA-902 | S125: =SUM(L125,N125,P125) -> 0 | U125: =SUM(K125,M125,O125) -> 0
A126: AA-903 | S126: =SUM(L126,N126,P126) -> 0 | U126: =SUM(K126,M126,O126) -> 0
A127: AA-904 | S127: =SUM(L127,N127,P127) -> 0 | U127: =SUM(K127,M127,O127) -> 0
A129: BB-901 | S129: =SUM(L129,N129,P129) -> 0 | U129: =SUM(K129,M129,O129) -> 0
A130: BB-902 | S130: =SUM(L130,N130,P130) -> 0 | U130: =SUM(K130,M130,O130) -> 0
A131: BB-903 | S131: =SUM(L131,N131,P131) -> 0 | U131: =SUM(K131,M131,O131) -> 0
A132: BB-904 | S132: =SUM(L132,N132,P132) -> 0 | U132: =SUM(K132,M132,O132) -> 0
A134: CC-901 | S134: =SUM(L134,N134,P134) -> 0 | U134: =SUM(K134,M134,O134) -> 0
A135: CC-902 | S135: =SUM(L135,N135,P135) -> 0 | U135: =SUM(K135,M135,O135) -> 0
A136: CC-903 | S136: =SUM(L136,N136,P136) -> 0 | U136: =SUM(K136,M136,O136) -> 0
A137: CC-904 | S137: =SUM(L137,N137,P137) -> 0 | U137: =SUM(K137,M137,O137) -> 0
A139: DD-901 | S139: =SUM(L139,N139,P139) -> 0 | U139: =SUM(K139,M139,O139) -> 0
A140: DD-902 | S140: =SUM(L140,N140,P140) -> 0 | U140: =SUM(K140,M140,O140) -> 0
A141: DD-903 | S141: =SUM(L141,N141,P141) -> 0 | U141: =SUM(K141,M141,O141) -> 0
A142: DD-904 | S142: =SUM(L142,N142,P142) -> 0 | U142: =SUM(K142,M142,O142) -> 0
A144: EE-901 | S144: =SUM(L144,N144,P144) -> 0 | U144: =SUM(K144,M144,O144) -> 0
A145: EE-902 | S145: =SUM(L145,N145,P145) -> 0 | U145: =SUM(K145,M145,O145) -> 0
A146: EE-903 | S146: =SUM(L146,N146,P146) -> 0 | U146: =SUM(K146,M146,O146) -> 0
A147: EE-904 | S147: =SUM(L147,N147,P147) -> 0 | U147: =SUM(K147,M147,O147) -> 0
A149: FF-901 | S149: =SUM(L149,N149,P149) -> 0 | U149: =SUM(K149,M149,O149) -> 0
A150: FF-902 | S150: =SUM(L150,N150,P150) -> 0 | U150: =SUM(K150,M150,O150) -> 0
A151: FF-903 | S151: =SUM(L151,N151,P151) -> 0 | U151: =SUM(K151,M151,O151) -> 0
A152: FF-904 | S152: =SUM(L152,N152,P152) -> 0 | U152: =SUM(K152,M152,O152) -> 0

Sheet Sweepstakes
A1: FINAL SWEEPSTAKES SCORES
B3: School Name | D3: HUMOROUS MONOLOGUES | G3: DRAMATIC MONOLOGUES | J3: CLASSICAL SCENES | M3: CONTEMPORARY SCENES | P3: PANTOMIMES | R3: MUSICAL THEATRE | U3: ONE-ACT | W3: TOTAL
A4: A | E4: =SUM('Humorous Monologues'!Y4) -> 181 | H4: =SUM(Dramatic!Y4) -> 191 | K4: =SUM(Classical!Y4) -> 136 | N4: =SUM(Contemporary!Y4) -> 210 | P4: =SUM(Pantomime!Y4) -> 204 | R4: =SUM(MusicalTheatre!Y4) -> 190 | U4: ='One-Acts'!W4 -> 120 | W4: =SUM(E4:U4) -> 1232
A5: B | E5: =SUM('Humorous Monologues'!Y9) -> 136 | H5: =SUM(Dramatic!Y9) -> 67 | K5: =SUM(Classical!Y9) -> 0 | N5: =SUM(Contemporary!Y9) -> 122 | P5: =SUM(Pantomime!Y9) -> 60 | R5: =SUM(MusicalTheatre!Y9) -> 72 | U5: ='One-Acts'!W5 -> 122 | W5: 579
A6: C | E6: =SUM('Humorous Monologues'!Y14) -> 216 | H6: =SUM(Dramatic!Y14) -> 63 | K6: =SUM(Classical!Y14) -> 0 | N6: =SUM(Contemporary!Y14) -> 63 | P6: =SUM(Pantomime!Y14) -> 61 | R6: =SUM(MusicalTheatre!Y14) -> 200 | U6: ='One-Acts'!W6 -> 109 | W6: 712
A7: D | E7: =SUM('Humorous Monologues'!Y19) -> 132 | H7: =SUM(Dramatic!Y19) -> 131 | K7: =SUM(Classical!Y19) -> 0 | N7: =SUM(Contemporary!Y19) -> 0 | P7: =SUM(Pantomime!Y19) -> 0 | R7: =SUM(MusicalTheatre!Y19) -> 208 | U7: ='One-Acts'!W7 -> 120 | W7: 591
A8: E | E8: =SUM('Humorous Monologues'!Y24) -> 60 | H8: =SUM(Dramatic!Y24) -> 66 | K8: =SUM(Classical!Y24) -> 0 | N8: =SUM(Contemporary!Y24) -> 69 | P8: =SUM(Pantomime!Y24) -> 0 | R8: =SUM(MusicalTheatre!Y24) -> 209 | U8: ='One-Acts'!W8 -> 108 | W8: 512
A9: F | E9: =SUM('Humorous Monologues'!Y29) -> 0 | H9: =SUM(Dramatic!Y29) -> 0 | K9: =SUM(Classical!Y29) -> 0 | N9: =SUM(Contemporary!Y29) -> 0 | P9: =SUM(Pantomime!Y29) -> 58 | R9: =SUM(MusicalTheatre!Y29) -> 216 | U9: ='One-Acts'!W9 -> 0 | W9: 274
A10: G | E10: =SUM('Humorous Monologues'!Y34) -> 121 | H10: =SUM(Dramatic!Y34) -> 191 | K10: =SUM(Classical!Y34) -> 73 | N10: =SUM(Contemporary!Y34) -> 0 | P10: =SUM(Pantomime!Y34) -> 0 | R10: =SUM(MusicalTheatre!Y34) -> 192 | U10: ='One-Acts'!W10 -> 116 | W10: 693
A11: H | E11: =SUM('Humorous Monologues'!Y39) -> 75 | H11: =SUM(Dramatic!Y39) -> 0 | K11: =SUM(Classical!Y39) -> 0 | N11: =SUM(Contemporary!Y39) -> 0 | P11: =SUM(Pantomime!Y39) -> 0 | R11: =SUM(MusicalTheatre!Y39) -> 144 | U11: ='One-Acts'!W11 -> 146 | W11: 365
A12: J | E12: =SUM('Humorous Monologues'!Y44) -> 0 | H12: =SUM(Dramatic!Y44) -> 0 | K12: =SUM(Classical!Y44) -> 0 | N12: =SUM(Contemporary!Y44) -> 68 | P12: =SUM(Pantomime!Y44) -> 0 | R12: =SUM(MusicalTheatre!Y44) -> 186 | U12: ='One-Acts'!W12 -> 115 | W12: 369
A13: K | E13: =SUM('Humorous Monologues'!Y49) -> 55 | H13: =SUM(Dramatic!Y49) -> 0 | K13: =SUM(Classical!Y49) -> 73 | N13: =SUM(Contemporary!Y49) -> 62 | P13: =SUM(Pantomime!Y49) -> 0 | R13: =SUM(MusicalTheatre!Y49) -> 0 | U13: ='One-Acts'!W13 -> 0 | W13: 190
A14: L | E14: =SUM('Humorous Monologues'!Y54) -> 0 | H14: =SUM(Dramatic!Y54) -> 0 | K14: =SUM(Classical!Y54) -> 0 | N14: =SUM(Contemporary!Y54) -> 0 | P14: =SUM(Pantomime!Y54) -> 0 | R14: =SUM(MusicalTheatre!Y54) -> 71 | U14: ='One-Acts'!W14 -> 0 | W14: 71
A15: M | E15: =SUM('Humorous Monologues'!Y59) -> 0 | H15: =SUM(Dramatic!Y59) -> 0 | K15: =SUM(Classical!Y59) -> 0 | N15: =SUM(Contemporary!Y59) -> 0 | P15: =SUM(Pantomime!Y59) -> 0 | R15: =SUM(MusicalTheatre!Y59) -> 0 | U15: ='One-Acts'!W15 -> 145 | W15: 145
A16: N | E16: =SUM('Humorous Monologues'!Y64) -> 0 | H16: =SUM(Dramatic!Y64) -> 0 | K16: =SUM(Classical!Y64) -> 0 | N16: =SUM(Contemporary!Y64) -> 0 | P16: =SUM(Pantomime!Y64) -> 0 | R16: =SUM(MusicalTheatre!Y64) -> 0 | U16: ='One-Acts'!W16 -> 0 | W16: 0
A17: P | E17: =SUM('Humorous Monologues'!Y69) -> 0 | H17: =SUM(Dramatic!Y69) -> 0 | K17: =SUM(Classical!Y69) -> 0 | N17: =SUM(Contemporary!Y69) -> 0 | P17: =SUM(Pantomime!Y69) -> 0 | R17: =SUM(MusicalTheatre!Y69) -> 0 | U17: ='One-Acts'!W17 -> 0 | W17: 0
A18: Q | E18: =SUM('Humorous Monologues'!Y74) -> 0 | H18: =SUM(Dramatic!Y74) -> 0 | K18: =SUM(Classical!Y74) -> 0 | N18: =SUM(Contemporary!Y74) -> 0 | P18: =SUM(Pantomime!Y74) -> 0 | R18: =SUM(MusicalTheatre!Y74) -> 0 | U18: ='One-Acts'!W18 -> 0 | W18: 0
A19: R | E19: =SUM('Humorous Monologues'!Y79) -> 0 | H19: =SUM(Dramatic!Y79) -> 0 | K19: =SUM(Classical!Y79) -> 0 | N19: =SUM(Contemporary!Y79) -> 0 | P19: =SUM(Pantomime!Y79) -> 0 | R19: =SUM(MusicalTheatre!Y79) -> 0 | U19: ='One-Acts'!W19 -> 0 | W19: 0
A20: S | E20: =SUM('Humorous Monologues'!Y84) -> 0 | H20: =SUM(Dramatic!Y84) -> 0 | K20: =SUM(Classical!Y84) -> 0 | N20: =SUM(Contemporary!Y84) -> 0 | P20: =SUM(Pantomime!Y84) -> 0 | R20: =SUM(MusicalTheatre!Y84) -> 0 | U20: ='One-Acts'!W20 -> 0 | W20: 0
A21: T | E21: =SUM('Humorous Monologues'!Y89) -> 0 | H21: =SUM(Dramatic!Y89) -> 0 | K21: =SUM(Classical!Y89) -> 0 | N21: =SUM(Contemporary!Y89) -> 0 | P21: =SUM(Pantomime!Y89) -> 0 | R21: =SUM(MusicalTheatre!Y89) -> 0 | U21: ='One-Acts'!W21 -> 0 | W21: 0
A22: U | E22: =SUM('Humorous Monologues'!Y94) -> 0 | H22: =SUM(Dramatic!Y94) -> 0 | K22: =SUM(Classical!Y94) -> 0 | N22: =SUM(Contemporary!Y94) -> 0 | P22: =SUM(Pantomime!Y94) -> 0 | R22: =SUM(MusicalTheatre!Y94) -> 0 | U22: ='One-Acts'!W22 -> 0 | W22: 0
A23: V | E23: =SUM('Humorous Monologues'!Y99) -> 0 | H23: =SUM(Dramatic!Y99) -> 0 | K23: =SUM(Classical!Y99) -> 0 | N23: =SUM(Contemporary!Y99) -> 0 | P23: =SUM(Pantomime!Y99) -> 0 | R23: =SUM(MusicalTheatre!Y99) -> 0 | U23: ='One-Acts'!W23 -> 0 | W23: 0
A24: W | E24: =SUM('Humorous Monologues'!Y104) -> 0 | H24: =SUM(Dramatic!Y104) -> 0 | K24: =SUM(Classical!Y104) -> 0 | N24: =SUM(Contemporary!Y104) -> 0 | P24: =SUM(Pantomime!Y104) -> 0 | R24: =SUM(MusicalTheatre!Y104) -> 0 | U24: ='One-Acts'!W24 -> 0 | W24: 0
A25: X | E25: =SUM('Humorous Monologues'!Y109) -> 0 | H25: =SUM(Dramatic!Y109) -> 0 | K25: =SUM(Classical!Y109) -> 0 | N25: =SUM(Contemporary!Y109) -> 0 | P25: =SUM(Pantomime!Y109) -> 0 | R25: =SUM(MusicalTheatre!Y109) -> 0 | U25: ='One-Acts'!W25 -> 0 | W25: 0
A26: Y | E26: =SUM('Humorous Monologues'!Y114) -> 0 | H26: =SUM(Dramatic!Y114) -> 0 | K26: =SUM(Classical!Y114) -> 0 | N26: =SUM(Contemporary!Y114) -> 0 | P26: =SUM(Pantomime!Y114) -> 0 | R26: =SUM(MusicalTheatre!Y114) -> 0 | U26: ='One-Acts'!W26 -> 0 | W26: 0
A27: Z | E27: =SUM('Humorous Monologues'!Y119) -> 0 | H27: =SUM(Dramatic!Y119) -> 0 | K27: =SUM(Classical!Y119) -> 0 | N27: =SUM(Contemporary!Y119) -> 0 | P27: =SUM(Pantomime!Y119) -> 0 | R27: =SUM(MusicalTheatre!Y119) -> 0 | U27: ='One-Acts'!W27 -> 0 | W27: 0
A28: AA | E28: =SUM('Humorous Monologues'!Y124) -> 0 | H28: =SUM(Dramatic!Y124) -> 0 | K28: =SUM(Classical!Y124) -> 0 | N28: =SUM(Contemporary!Y124) -> 0 | P28: =SUM(Pantomime!Y124) -> 0 | R28: =SUM(MusicalTheatre!Y124) -> 0 | U28: ='One-Acts'!W28 -> 0 | W28: 0
A29: BB | E29: =SUM('Humorous Monologues'!Y129) -> 0 | H29: =SUM(Dramatic!Y129) -> 0 | K29: =SUM(Classical!Y129) -> 0 | N29: =SUM(Contemporary!Y129) -> 0 | P29: =SUM(Pantomime!Y129) -> 0 | R29: =SUM(MusicalTheatre!Y129) -> 0 | U29: ='One-Acts'!W29 -> 0 | W29: 0
A30: CC | E30: =SUM('Humorous Monologues'!Y134) -> 0 | H30: =SUM(Dramatic!Y134) -> 0 | K30: =SUM(Classical!Y134) -> 0 | N30: =SUM(Contemporary!Y134) -> 0 | P30: =SUM(Pantomime!Y134) -> 0 | R30: =SUM(MusicalTheatre!Y134) -> 0 | U30: ='One-Acts'!W30 -> 0 | W30: 0
A31: DD | E31: =SUM('Humorous Monologues'!Y139) -> 0 | H31: =SUM(Dramatic!Y139) -> 0 | K31: =SUM(Classical!Y139) -> 0 | N31: =SUM(Contemporary!Y139) -> 0 | P31: =SUM(Pantomime!Y139) -> 0 | R31: =SUM(MusicalTheatre!Y139) -> 0 | U31: ='One-Acts'!W31 -> 0 | W31: 0
A32: EE | E32: =SUM('Humorous Monologues'!Y144) -> 0 | H32: =SUM(Dramatic!Y144) -> 0 | K32: =SUM(Classical!Y144) -> 0 | N32: =SUM(Contemporary!Y144) -> 0 | P32: =SUM(Pantomime!Y144) -> 0 | R32: =SUM(MusicalTheatre!Y144) -> 0 | U32: ='One-Acts'!W32 -> 0 | W32: 0
A33: FF | E33: =SUM('Humorous Monologues'!Y149) -> 0 | H33: =SUM(Dramatic!Y149) -> 0 | K33: =SUM(Classical!Y149) -> 0 | N33: =SUM(Contemporary!Y149) -> 0 | P33: =SUM(Pantomime!Y149) -> 0 | R33: =SUM(MusicalTheatre!Y149) -> 0 | U33: ='One-Acts'!W33 -> 0 | W33: 0

Sheet ScenicResults
A1: Scenic Design
A2: ID | B2: Rank | C2: Score | D2: LeaveBlank
A3: =ScenicDesign!A25 -> E-902 | B3: =ScenicDesign!U25 -> 0 | C3: =ScenicDesign!S25 -> 0 | D3: =IF((Table710121314152[[#This Row],[Rank]]+Table710121314152[[#This Row],[Score]])>0,1,0) -> 0
A4: =ScenicDesign!A4 -> A-901 | B4: =ScenicDesign!U4 -> 0 | C4: =ScenicDesign!S4 -> 0 | D4: =IF((Table710121314152[[#This Row],[Rank]]+Table710121314152[[#This Row],[Score]])>0,1,0) -> 0
A5: =ScenicDesign!A5 -> A-902 | B5: =ScenicDesign!U5 -> 0 | C5: =ScenicDesign!S5 -> 0 | D5: =IF((Table710121314152[[#This Row],[Rank]]+Table710121314152[[#This Row],[Score]])>0,1,0) -> 0
A6: =ScenicDesign!A6 -> A-903 | B6: =ScenicDesign!U6 -> 0 | C6: =ScenicDesign!S6 -> 0 | D6: =IF((Table710121314152[[#This Row],[Rank]]+Table710121314152[[#This Row],[Score]])>0,1,0) -> 0
A7: =ScenicDesign!A7 -> A-904 | B7: =ScenicDesign!U7 -> 0 | C7: =ScenicDesign!S7 -> 0 | D7: =IF((Table710121314152[[#This Row],[Rank]]+Table710121314152[[#This Row],[Score]])>0,1,0) -> 0
A8: =ScenicDesign!A9 -> B-901 | B8: =ScenicDesign!U9 -> 0 | C8: =ScenicDesign!S9 -> 0 | D8: =IF((Table710121314152[[#This Row],[Rank]]+Table710121314152[[#This Row],[Score]])>0,1,0) -> 0
A9: =ScenicDesign!A10 -> B-902 | B9: =ScenicDesign!U10 -> 0 | C9: =ScenicDesign!S10 -> 0 | D9: =IF((Table710121314152[[#This Row],[Rank]]+Table710121314152[[#This Row],[Score]])>0,1,0) -> 0
A10: =ScenicDesign!A11 -> B-903 | B10: =ScenicDesign!U11 -> 0 | C10: =ScenicDesign!S11 -> 0 | D10: =IF((Table710121314152[[#This Row],[Rank]]+Table710121314152[[#This Row],[Score]])>0,1,0) -> 0
A11: =ScenicDesign!A12 -> B-904 | B11: =ScenicDesign!U12 -> 0 | C11: =ScenicDesign!S12 -> 0 | D11: =IF((Table710121314152[[#This Row],[Rank]]+Table710121314152[[#This Row],[Score]])>0,1,0) -> 0
A12: =ScenicDesign!A14 -> C-901 | B12: =ScenicDesign!U14 -> 0 | C12: =ScenicDesign!S14 -> 0 | D12: =IF((Table710121314152[[#This Row],[Rank]]+Table710121314152[[#This Row],[Score]])>0,1,0) -> 0
A13: =ScenicDesign!A15 -> C-902 | B13: =ScenicDesign!U15 -> 0 | C13: =ScenicDesign!S15 -> 0 | D13: =IF((Table710121314152[[#This Row],[Rank]]+Table710121314152[[#This Row],[Score]])>0,1,0) -> 0
A14: =ScenicDesign!A16 -> C-903 | B14: =ScenicDesign!U16 -> 0 | C14: =ScenicDesign!S16 -> 0 | D14: =IF((Table710121314152[[#This Row],[Rank]]+Table710121314152[[#This Row],[Score]])>0,1,0) -> 0
A15: =ScenicDesign!A17 -> C-904 | B15: =ScenicDesign!U17 -> 0 | C15: =ScenicDesign!S17 -> 0 | D15: =IF((Table710121314152[[#This Row],[Rank]]+Table710121314152[[#This Row],[Score]])>0,1,0) -> 0
A16: =ScenicDesign!A19 -> D-901 | B16: =ScenicDesign!U19 -> 0 | C16: =ScenicDesign!S19 -> 0 | D16: =IF((Table710121314152[[#This Row],[Rank]]+Table710121314152[[#This Row],[Score]])>0,1,0) -> 0
A17: =ScenicDesign!A20 -> D-902 | B17: =ScenicDesign!U20 -> 0 | C17: =ScenicDesign!S20 -> 0 | D17: =IF((Table710121314152[[#This Row],[Rank]]+Table710121314152[[#This Row],[Score]])>0,1,0) -> 0
A18: =ScenicDesign!A21 -> D-903 | B18: =ScenicDesign!U21 -> 0 | C18: =ScenicDesign!S21 -> 0 | D18: =IF((Table710121314152[[#This Row],[Rank]]+Table710121314152[[#This Row],[Score]])>0,1,0) -> 0
A19: =ScenicDesign!A22 -> D-904 | B19: =ScenicDesign!U22 -> 0 | C19: =ScenicDesign!S22 -> 0 | D19: =IF((Table710121314152[[#This Row],[Rank]]+Table710121314152[[#This Row],[Score]])>0,1,0) -> 0
A20: =ScenicDesign!A24 -> E-901 | B20: =ScenicDesign!U24 -> 0 | C20: =ScenicDesign!S24 -> 0 | D20: =IF((Table710121314152[[#This Row],[Rank]]+Table710121314152[[#This Row],[Score]])>0,1,0) -> 0
A21: =ScenicDesign!A26 -> E-903 | B21: =ScenicDesign!U26 -> 0 | C21: =ScenicDesign!S26 -> 0 | D21: =IF((Table710121314152[[#This Row],[Rank]]+Table710121314152[[#This Row],[Score]])>0,1,0) -> 0
A22: =ScenicDesign!A27 -> E-904 | B22: =ScenicDesign!U27 -> 0 | C22: =ScenicDesign!S27 -> 0 | D22: =IF((Table710121314152[[#This Row],[Rank]]+Table710121314152[[#This Row],[Score]])>0,1,0) -> 0
A23: =ScenicDesign!A29 -> F-901 | B23: =ScenicDesign!U29 -> 0 | C23: =ScenicDesign!S29 -> 0 | D23: =IF((Table710121314152[[#This Row],[Rank]]+Table710121314152[[#This Row],[Score]])>0,1,0) -> 0
A24: =ScenicDesign!A30 -> F-902 | B24: =ScenicDesign!U30 -> 0 | C24: =ScenicDesign!S30 -> 0 | D24: =IF((Table710121314152[[#This Row],[Rank]]+Table710121314152[[#This Row],[Score]])>0,1,0) -> 0
A25: =ScenicDesign!A31 -> F-903 | B25: =ScenicDesign!U31 -> 0 | C25: =ScenicDesign!S31 -> 0 | D25: =IF((Table710121314152[[#This Row],[Rank]]+Table710121314152[[#This Row],[Score]])>0,1,0) -> 0
A26: =ScenicDesign!A32 -> F-904 | B26: =ScenicDesign!U32 -> 0 | C26: =ScenicDesign!S32 -> 0 | D26: =IF((Table710121314152[[#This Row],[Rank]]+Table710121314152[[#This Row],[Score]])>0,1,0) -> 0
A27: =ScenicDesign!A34 -> G-901 | B27: =ScenicDesign!U34 -> 0 | C27: =ScenicDesign!S34 -> 0 | D27: =IF((Table710121314152[[#This Row],[Rank]]+Table710121314152[[#This Row],[Score]])>0,1,0) -> 0
A28: =ScenicDesign!A35 -> G-902 | B28: =ScenicDesign!U35 -> 0 | C28: =ScenicDesign!S35 -> 0 | D28: =IF((Table710121314152[[#This Row],[Rank]]+Table710121314152[[#This Row],[Score]])>0,1,0) -> 0
A29: =ScenicDesign!A36 -> G-903 | B29: =ScenicDesign!U36 -> 0 | C29: =ScenicDesign!S36 -> 0 | D29: =IF((Table710121314152[[#This Row],[Rank]]+Table710121314152[[#This Row],[Score]])>0,1,0) -> 0
A30: =ScenicDesign!A37 -> G-904 | B30: =ScenicDesign!U37 -> 0 | C30: =ScenicDesign!S37 -> 0 | D30: =IF((Table710121314152[[#This Row],[Rank]]+Table710121314152[[#This Row],[Score]])>0,1,0) -> 0
A31: =ScenicDesign!A39 -> H-901 | B31: =ScenicDesign!U39 -> 0 | C31: =ScenicDesign!S39 -> 0 | D31: =IF((Table710121314152[[#This Row],[Rank]]+Table710121314152[[#This Row],[Score]])>0,1,0) -> 0
A32: =ScenicDesign!A40 -> H-902 | B32: =ScenicDesign!U40 -> 0 | C32: =ScenicDesign!S40 -> 0 | D32: =IF((Table710121314152[[#This Row],[Rank]]+Table710121314152[[#This Row],[Score]])>0,1,0) -> 0
A33: =ScenicDesign!A41 -> H-903 | B33: =ScenicDesign!U41 -> 0 | C33: =ScenicDesign!S41 -> 0 | D33: =IF((Table710121314152[[#This Row],[Rank]]+Table710121314152[[#This Row],[Score]])>0,1,0) -> 0
A34: =ScenicDesign!A42 -> H-904 | B34: =ScenicDesign!U42 -> 0 | C34: =ScenicDesign!S42 -> 0 | D34: =IF((Table710121314152[[#This Row],[Rank]]+Table710121314152[[#This Row],[Score]])>0,1,0) -> 0
A35: =ScenicDesign!A44 -> J-901 | B35: =ScenicDesign!U44 -> 0 | C35: =ScenicDesign!S44 -> 0 | D35: =IF((Table710121314152[[#This Row],[Rank]]+Table710121314152[[#This Row],[Score]])>0,1,0) -> 0
A36: =ScenicDesign!A45 -> J-902 | B36: =ScenicDesign!U45 -> 0 | C36: =ScenicDesign!S45 -> 0 | D36: =IF((Table710121314152[[#This Row],[Rank]]+Table710121314152[[#This Row],[Score]])>0,1,0) -> 0
A37: =ScenicDesign!A46 -> J-903 | B37: =ScenicDesign!U46 -> 0 | C37: =ScenicDesign!S46 -> 0 | D37: =IF((Table710121314152[[#This Row],[Rank]]+Table710121314152[[#This Row],[Score]])>0,1,0) -> 0
A38: =ScenicDesign!A47 -> J-904 | B38: =ScenicDesign!U47 -> 0 | C38: =ScenicDesign!S47 -> 0 | D38: =IF((Table710121314152[[#This Row],[Rank]]+Table710121314152[[#This Row],[Score]])>0,1,0) -> 0
A39: =ScenicDesign!A49 -> K-901 | B39: =ScenicDesign!U49 -> 0 | C39: =ScenicDesign!S49 -> 0 | D39: =IF((Table710121314152[[#This Row],[Rank]]+Table710121314152[[#This Row],[Score]])>0,1,0) -> 0
A40: =ScenicDesign!A50 -> K-902 | B40: =ScenicDesign!U50 -> 0 | C40: =ScenicDesign!S50 -> 0 | D40: =IF((Table710121314152[[#This Row],[Rank]]+Table710121314152[[#This Row],[Score]])>0,1,0) -> 0
A41: =ScenicDesign!A51 -> K-903 | B41: =ScenicDesign!U51 -> 0 | C41: =ScenicDesign!S51 -> 0 | D41: =IF((Table710121314152[[#This Row],[Rank]]+Table710121314152[[#This Row],[Score]])>0,1,0) -> 0
A42: =ScenicDesign!A52 -> K-904 | B42: =ScenicDesign!U52 -> 0 | C42: =ScenicDesign!S52 -> 0 | D42: =IF((Table710121314152[[#This Row],[Rank]]+Table710121314152[[#This Row],[Score]])>0,1,0) -> 0
A43: =ScenicDesign!A54 -> L-901 | B43: =ScenicDesign!U54 -> 0 | C43: =ScenicDesign!S54 -> 0 | D43: =IF((Table710121314152[[#This Row],[Rank]]+Table710121314152[[#This Row],[Score]])>0,1,0) -> 0
A44: =ScenicDesign!A55 -> L-902 | B44: =ScenicDesign!U55 -> 0 | C44: =ScenicDesign!S55 -> 0 | D44: =IF((Table710121314152[[#This Row],[Rank]]+Table710121314152[[#This Row],[Score]])>0,1,0) -> 0
A45: =ScenicDesign!A56 -> L-903 | B45: =ScenicDesign!U56 -> 0 | C45: =ScenicDesign!S56 -> 0 | D45: =IF((Table710121314152[[#This Row],[Rank]]+Table710121314152[[#This Row],[Score]])>0,1,0) -> 0
A46: =ScenicDesign!A57 -> L-904 | B46: =ScenicDesign!U57 -> 0 | C46: =ScenicDesign!S57 -> 0 | D46: =IF((Table710121314152[[#This Row],[Rank]]+Table710121314152[[#This Row],[Score]])>0,1,0) -> 0
A47: =ScenicDesign!A59 -> M-901 | B47: =ScenicDesign!U59 -> 0 | C47: =ScenicDesign!S59 -> 0 | D47: =IF((Table710121314152[[#This Row],[Rank]]+Table710121314152[[#This Row],[Score]])>0,1,0) -> 0
A48: =ScenicDesign!A60 -> M-902 | B48: =ScenicDesign!U60 -> 0 | C48: =ScenicDesign!S60 -> 0 | D48: =IF((Table710121314152[[#This Row],[Rank]]+Table710121314152[[#This Row],[Score]])>0,1,0) -> 0
A49: =ScenicDesign!A61 -> M-903 | B49: =ScenicDesign!U61 -> 0 | C49: =ScenicDesign!S61 -> 0 | D49: =IF((Table710121314152[[#This Row],[Rank]]+Table710121314152[[#This Row],[Score]])>0,1,0) -> 0
A50: =ScenicDesign!A62 -> M-904 | B50: =ScenicDesign!U62 -> 0 | C50: =ScenicDesign!S62 -> 0 | D50: =IF((Table710121314152[[#This Row],[Rank]]+Table710121314152[[#This Row],[Score]])>0,1,0) -> 0
A51: =ScenicDesign!A64 -> N-901 | B51: =ScenicDesign!U64 -> 0 | C51: =ScenicDesign!S64 -> 0 | D51: =IF((Table710121314152[[#This Row],[Rank]]+Table710121314152[[#This Row],[Score]])>0,1,0) -> 0
A52: =ScenicDesign!A65 -> N-902 | B52: =ScenicDesign!U65 -> 0 | C52: =ScenicDesign!S65 -> 0 | D52: =IF((Table710121314152[[#This Row],[Rank]]+Table710121314152[[#This Row],[Score]])>0,1,0) -> 0
A53: =ScenicDesign!A66 -> N-903 | B53: =ScenicDesign!U66 -> 0 | C53: =ScenicDesign!S66 -> 0 | D53: =IF((Table710121314152[[#This Row],[Rank]]+Table710121314152[[#This Row],[Score]])>0,1,0) -> 0
A54: =ScenicDesign!A67 -> N-904 | B54: =ScenicDesign!U67 -> 0 | C54: =ScenicDesign!S67 -> 0 | D54: =IF((Table710121314152[[#This Row],[Rank]]+Table710121314152[[#This Row],[Score]])>0,1,0) -> 0
A55: =ScenicDesign!A69 -> P-901 | B55: =ScenicDesign!U69 -> 0 | C55: =ScenicDesign!S69 -> 0 | D55: =IF((Table710121314152[[#This Row],[Rank]]+Table710121314152[[#This Row],[Score]])>0,1,0) -> 0
A56: =ScenicDesign!A70 -> P-902 | B56: =ScenicDesign!U70 -> 0 | C56: =ScenicDesign!S70 -> 0 | D56: =IF((Table710121314152[[#This Row],[Rank]]+Table710121314152[[#This Row],[Score]])>0,1,0) -> 0
A57: =ScenicDesign!A71 -> P-903 | B57: =ScenicDesign!U71 -> 0 | C57: =ScenicDesign!S71 -> 0 | D57: =IF((Table710121314152[[#This Row],[Rank]]+Table710121314152[[#This Row],[Score]])>0,1,0) -> 0
A58: =ScenicDesign!A72 -> P-904 | B58: =ScenicDesign!U72 -> 0 | C58: =ScenicDesign!S72 -> 0 | D58: =IF((Table710121314152[[#This Row],[Rank]]+Table710121314152[[#This Row],[Score]])>0,1,0) -> 0
A59: =ScenicDesign!A74 -> Q-901 | B59: =ScenicDesign!U74 -> 0 | C59: =ScenicDesign!S74 -> 0 | D59: =IF((Table710121314152[[#This Row],[Rank]]+Table710121314152[[#This Row],[Score]])>0,1,0) -> 0
A60: =ScenicDesign!A75 -> Q-902 | B60: =ScenicDesign!U75 -> 0 | C60: =ScenicDesign!S75 -> 0 | D60: =IF((Table710121314152[[#This Row],[Rank]]+Table710121314152[[#This Row],[Score]])>0,1,0) -> 0
A61: =ScenicDesign!A76 -> Q-903 | B61: =ScenicDesign!U76 -> 0 | C61: =ScenicDesign!S76 -> 0 | D61: =IF((Table710121314152[[#This Row],[Rank]]+Table710121314152[[#This Row],[Score]])>0,1,0) -> 0
A62: =ScenicDesign!A77 -> Q-904 | B62: =ScenicDesign!U77 -> 0 | C62: =ScenicDesign!S77 -> 0 | D62: =IF((Table710121314152[[#This Row],[Rank]]+Table710121314152[[#This Row],[Score]])>0,1,0) -> 0
A63: =ScenicDesign!A79 -> R-901 | B63: =ScenicDesign!U79 -> 0 | C63: =ScenicDesign!S79 -> 0 | D63: =IF((Table710121314152[[#This Row],[Rank]]+Table710121314152[[#This Row],[Score]])>0,1,0) -> 0
A64: =ScenicDesign!A80 -> R-902 | B64: =ScenicDesign!U80 -> 0 | C64: =ScenicDesign!S80 -> 0 | D64: =IF((Table710121314152[[#This Row],[Rank]]+Table710121314152[[#This Row],[Score]])>0,1,0) -> 0
A65: =ScenicDesign!A81 -> R-903 | B65: =ScenicDesign!U81 -> 0 | C65: =ScenicDesign!S81 -> 0 | D65: =IF((Table710121314152[[#This Row],[Rank]]+Table710121314152[[#This Row],[Score]])>0,1,0) -> 0
A66: =ScenicDesign!A82 -> R-904 | B66: =ScenicDesign!U82 -> 0 | C66: =ScenicDesign!S82 -> 0 | D66: =IF((Table710121314152[[#This Row],[Rank]]+Table710121314152[[#This Row],[Score]])>0,1,0) -> 0
A67: =ScenicDesign!A84 -> S-901 | B67: =ScenicDesign!U84 -> 0 | C67: =ScenicDesign!S84 -> 0 | D67: =IF((Table710121314152[[#This Row],[Rank]]+Table710121314152[[#This Row],[Score]])>0,1,0) -> 0
A68: =ScenicDesign!A85 -> S-902 | B68: =ScenicDesign!U85 -> 0 | C68: =ScenicDesign!S85 -> 0 | D68: =IF((Table710121314152[[#This Row],[Rank]]+Table710121314152[[#This Row],[Score]])>0,1,0) -> 0
A69: =ScenicDesign!A86 -> S-903 | B69: =ScenicDesign!U86 -> 0 | C69: =ScenicDesign!S86 -> 0 | D69: =IF((Table710121314152[[#This Row],[Rank]]+Table710121314152[[#This Row],[Score]])>0,1,0) -> 0
A70: =ScenicDesign!A87 -> S-904 | B70: =ScenicDesign!U87 -> 0 | C70: =ScenicDesign!S87 -> 0 | D70: =IF((Table710121314152[[#This Row],[Rank]]+Table710121314152[[#This Row],[Score]])>0,1,0) -> 0
A71: =ScenicDesign!A89 -> T-901 | B71: =ScenicDesign!U89 -> 0 | C71: =ScenicDesign!S89 -> 0 | D71: =IF((Table710121314152[[#This Row],[Rank]]+Table710121314152[[#This Row],[Score]])>0,1,0) -> 0
A72: =ScenicDesign!A90 -> T-902 | B72: =ScenicDesign!U90 -> 0 | C72: =ScenicDesign!S90 -> 0 | D72: =IF((Table710121314152[[#This Row],[Rank]]+Table710121314152[[#This Row],[Score]])>0,1,0) -> 0
A73: =ScenicDesign!A91 -> T-903 | B73: =ScenicDesign!U91 -> 0 | C73: =ScenicDesign!S91 -> 0 | D73: =IF((Table710121314152[[#This Row],[Rank]]+Table710121314152[[#This Row],[Score]])>0,1,0) -> 0
A74: =ScenicDesign!A92 -> T-904 | B74: =ScenicDesign!U92 -> 0 | C74: =ScenicDesign!S92 -> 0 | D74: =IF((Table710121314152[[#This Row],[Rank]]+Table710121314152[[#This Row],[Score]])>0,1,0) -> 0
A75: =ScenicDesign!A94 -> U-901 | B75: =ScenicDesign!U94 -> 0 | C75: =ScenicDesign!S94 -> 0 | D75: =IF((Table710121314152[[#This Row],[Rank]]+Table710121314152[[#This Row],[Score]])>0,1,0) -> 0
A76: =ScenicDesign!A95 -> U-902 | B76: =ScenicDesign!U95 -> 0 | C76: =ScenicDesign!S95 -> 0 | D76: =IF((Table710121314152[[#This Row],[Rank]]+Table710121314152[[#This Row],[Score]])>0,1,0) -> 0
A77: =ScenicDesign!A96 -> U-903 | B77: =ScenicDesign!U96 -> 0 | C77: =ScenicDesign!S96 -> 0 | D77: =IF((Table710121314152[[#This Row],[Rank]]+Table710121314152[[#This Row],[Score]])>0,1,0) -> 0
A78: =ScenicDesign!A97 -> U-904 | B78: =ScenicDesign!U97 -> 0 | C78: =ScenicDesign!S97 -> 0 | D78: =IF((Table710121314152[[#This Row],[Rank]]+Table710121314152[[#This Row],[Score]])>0,1,0) -> 0
A79: =ScenicDesign!A99 -> V-901 | B79: =ScenicDesign!U99 -> 0 | C79: =ScenicDesign!S99 -> 0 | D79: =IF((Table710121314152[[#This Row],[Rank]]+Table710121314152[[#This Row],[Score]])>0,1,0) -> 0
A80: =ScenicDesign!A100 -> V-902 | B80: =ScenicDesign!U100 -> 0 | C80: =ScenicDesign!S100 -> 0 | D80: =IF((Table710121314152[[#This Row],[Rank]]+Table710121314152[[#This Row],[Score]])>0,1,0) -> 0
A81: =ScenicDesign!A101 -> V-903 | B81: =ScenicDesign!U101 -> 0 | C81: =ScenicDesign!S101 -> 0 | D81: =IF((Table710121314152[[#This Row],[Rank]]+Table710121314152[[#This Row],[Score]])>0,1,0) -> 0
A82: =ScenicDesign!A102 -> V-904 | B82: =ScenicDesign!U102 -> 0 | C82: =ScenicDesign!S102 -> 0 | D82: =IF((Table710121314152[[#This Row],[Rank]]+Table710121314152[[#This Row],[Score]])>0,1,0) -> 0
A83: =ScenicDesign!A104 -> W-901 | B83: =ScenicDesign!U104 -> 0 | C83: =ScenicDesign!S104 -> 0 | D83: =IF((Table710121314152[[#This Row],[Rank]]+Table710121314152[[#This Row],[Score]])>0,1,0) -> 0
A84: =ScenicDesign!A105 -> W-902 | B84: =ScenicDesign!U105 -> 0 | C84: =ScenicDesign!S105 -> 0 | D84: =IF((Table710121314152[[#This Row],[Rank]]+Table710121314152[[#This Row],[Score]])>0,1,0) -> 0
A85: =ScenicDesign!A106 -> W-903 | B85: =ScenicDesign!U106 -> 0 | C85: =ScenicDesign!S106 -> 0 | D85: =IF((Table710121314152[[#This Row],[Rank]]+Table710121314152[[#This Row],[Score]])>0,1,0) -> 0
A86: =ScenicDesign!A107 -> W-904 | B86: =ScenicDesign!U107 -> 0 | C86: =ScenicDesign!S107 -> 0 | D86: =IF((Table710121314152[[#This Row],[Rank]]+Table710121314152[[#This Row],[Score]])>0,1,0) -> 0
A87: =ScenicDesign!A109 -> X-901 | B87: =ScenicDesign!U109 -> 0 | C87: =ScenicDesign!S109 -> 0 | D87: =IF((Table710121314152[[#This Row],[Rank]]+Table710121314152[[#This Row],[Score]])>0,1,0) -> 0
A88: =ScenicDesign!A110 -> X-902 | B88: =ScenicDesign!U110 -> 0 | C88: =ScenicDesign!S110 -> 0 | D88: =IF((Table710121314152[[#This Row],[Rank]]+Table710121314152[[#This Row],[Score]])>0,1,0) -> 0
A89: =ScenicDesign!A111 -> X-903 | B89: =ScenicDesign!U111 -> 0 | C89: =ScenicDesign!S111 -> 0 | D89: =IF((Table710121314152[[#This Row],[Rank]]+Table710121314152[[#This Row],[Score]])>0,1,0) -> 0
A90: =ScenicDesign!A112 -> X-904 | B90: =ScenicDesign!U112 -> 0 | C90: =ScenicDesign!S112 -> 0 | D90: =IF((Table710121314152[[#This Row],[Rank]]+Table710121314152[[#This Row],[Score]])>0,1,0) -> 0
A91: =ScenicDesign!A114 -> Y-901 | B91: =ScenicDesign!U114 -> 0 | C91: =ScenicDesign!S114 -> 0 | D91: =IF((Table710121314152[[#This Row],[Rank]]+Table710121314152[[#This Row],[Score]])>0,1,0) -> 0
A92: =ScenicDesign!A115 -> Y-902 | B92: =ScenicDesign!U115 -> 0 | C92: =ScenicDesign!S115 -> 0 | D92: =IF((Table710121314152[[#This Row],[Rank]]+Table710121314152[[#This Row],[Score]])>0,1,0) -> 0
A93: =ScenicDesign!A116 -> Y-903 | B93: =ScenicDesign!U116 -> 0 | C93: =ScenicDesign!S116 -> 0 | D93: =IF((Table710121314152[[#This Row],[Rank]]+Table710121314152[[#This Row],[Score]])>0,1,0) -> 0
A94: =ScenicDesign!A117 -> Y-904 | B94: =ScenicDesign!U117 -> 0 | C94: =ScenicDesign!S117 -> 0 | D94: =IF((Table710121314152[[#This Row],[Rank]]+Table710121314152[[#This Row],[Score]])>0,1,0) -> 0
A95: =ScenicDesign!A119 -> Z-901 | B95: =ScenicDesign!U119 -> 0 | C95: =ScenicDesign!S119 -> 0 | D95: =IF((Table710121314152[[#This Row],[Rank]]+Table710121314152[[#This Row],[Score]])>0,1,0) -> 0
A96: =ScenicDesign!A120 -> Z-902 | B96: =ScenicDesign!U120 -> 0 | C96: =ScenicDesign!S120 -> 0 | D96: =IF((Table710121314152[[#This Row],[Rank]]+Table710121314152[[#This Row],[Score]])>0,1,0) -> 0
A97: =ScenicDesign!A121 -> Z-903 | B97: =ScenicDesign!U121 -> 0 | C97: =ScenicDesign!S121 -> 0 | D97: =IF((Table710121314152[[#This Row],[Rank]]+Table710121314152[[#This Row],[Score]])>0,1,0) -> 0
A98: =ScenicDesign!A122 -> Z-904 | B98: =ScenicDesign!U122 -> 0 | C98: =ScenicDesign!S122 -> 0 | D98: =IF((Table710121314152[[#This Row],[Rank]]+Table710121314152[[#This Row],[Score]])>0,1,0) -> 0
A99: =ScenicDesign!A124 -> AA-901 | B99: =ScenicDesign!U124 -> 0 | C99: =ScenicDesign!S124 -> 0 | D99: =IF((Table710121314152[[#This Row],[Rank]]+Table710121314152[[#This Row],[Score]])>0,1,0) -> 0
A100: =ScenicDesign!A125 -> AA-902 | B100: =ScenicDesign!U125 -> 0 | C100: =ScenicDesign!S125 -> 0 | D100: =IF((Table710121314152[[#This Row],[Rank]]+Table710121314152[[#This Row],[Score]])>0,1,0) -> 0
A101: =ScenicDesign!A126 -> AA-903 | B101: =ScenicDesign!U126 -> 0 | C101: =ScenicDesign!S126 -> 0 | D101: =IF((Table710121314152[[#This Row],[Rank]]+Table710121314152[[#This Row],[Score]])>0,1,0) -> 0
A102: =ScenicDesign!A127 -> AA-904 | B102: =ScenicDesign!U127 -> 0 | C102: =ScenicDesign!S127 -> 0 | D102: =IF((Table710121314152[[#This Row],[Rank]]+Table710121314152[[#This Row],[Score]])>0,1,0) -> 0
A103: =ScenicDesign!A129 -> BB-901 | B103: =ScenicDesign!U129 -> 0 | C103: =ScenicDesign!S129 -> 0 | D103: =IF((Table710121314152[[#This Row],[Rank]]+Table710121314152[[#This Row],[Score]])>0,1,0) -> 0
A104: =ScenicDesign!A130 -> BB-902 | B104: =ScenicDesign!U130 -> 0 | C104: =ScenicDesign!S130 -> 0 | D104: =IF((Table710121314152[[#This Row],[Rank]]+Table710121314152[[#This Row],[Score]])>0,1,0) -> 0
A105: =ScenicDesign!A131 -> BB-903 | B105: =ScenicDesign!U131 -> 0 | C105: =ScenicDesign!S131 -> 0 | D105: =IF((Table710121314152[[#This Row],[Rank]]+Table710121314152[[#This Row],[Score]])>0,1,0) -> 0
A106: =ScenicDesign!A132 -> BB-904 | B106: =ScenicDesign!U132 -> 0 | C106: =ScenicDesign!S132 -> 0 | D106: =IF((Table710121314152[[#This Row],[Rank]]+Table710121314152[[#This Row],[Score]])>0,1,0) -> 0
A107: =ScenicDesign!A134 -> CC-901 | B107: =ScenicDesign!U134 -> 0 | C107: =ScenicDesign!S134 -> 0 | D107: =IF((Table710121314152[[#This Row],[Rank]]+Table710121314152[[#This Row],[Score]])>0,1,0) -> 0
A108: =ScenicDesign!A135 -> CC-902 | B108: =ScenicDesign!U135 -> 0 | C108: =ScenicDesign!S135 -> 0 | D108: =IF((Table710121314152[[#This Row],[Rank]]+Table710121314152[[#This Row],[Score]])>0,1,0) -> 0
A109: =ScenicDesign!A136 -> CC-903 | B109: =ScenicDesign!U136 -> 0 | C109: =ScenicDesign!S136 -> 0 | D109: =IF((Table710121314152[[#This Row],[Rank]]+Table710121314152[[#This Row],[Score]])>0,1,0) -> 0
A110: =ScenicDesign!A137 -> CC-904 | B110: =ScenicDesign!U137 -> 0 | C110: =ScenicDesign!S137 -> 0 | D110: =IF((Table710121314152[[#This Row],[Rank]]+Table710121314152[[#This Row],[Score]])>0,1,0) -> 0
A111: =ScenicDesign!A139 -> DD-901 | B111: =ScenicDesign!U139 -> 0 | C111: =ScenicDesign!S139 -> 0 | D111: =IF((Table710121314152[[#This Row],[Rank]]+Table710121314152[[#This Row],[Score]])>0,1,0) -> 0
A112: =ScenicDesign!A140 -> DD-902 | B112: =ScenicDesign!U140 -> 0 | C112: =ScenicDesign!S140 -> 0 | D112: =IF((Table710121314152[[#This Row],[Rank]]+Table710121314152[[#This Row],[Score]])>0,1,0) -> 0
A113: =ScenicDesign!A141 -> DD-903 | B113: =ScenicDesign!U141 -> 0 | C113: =ScenicDesign!S141 -> 0 | D113: =IF((Table710121314152[[#This Row],[Rank]]+Table710121314152[[#This Row],[Score]])>0,1,0) -> 0
A114: =ScenicDesign!A142 -> DD-904 | B114: =ScenicDesign!U142 -> 0 | C114: =ScenicDesign!S142 -> 0 | D114: =IF((Table710121314152[[#This Row],[Rank]]+Table710121314152[[#This Row],[Score]])>0,1,0) -> 0
A115: =ScenicDesign!A144 -> EE-901 | B115: =ScenicDesign!U144 -> 0 | C115: =ScenicDesign!S144 -> 0 | D115: =IF((Table710121314152[[#This Row],[Rank]]+Table710121314152[[#This Row],[Score]])>0,1,0) -> 0
A116: =ScenicDesign!A145 -> EE-902 | B116: =ScenicDesign!U145 -> 0 | C116: =ScenicDesign!S145 -> 0 | D116: =IF((Table710121314152[[#This Row],[Rank]]+Table710121314152[[#This Row],[Score]])>0,1,0) -> 0
A117: =ScenicDesign!A146 -> EE-903 | B117: =ScenicDesign!U146 -> 0 | C117: =ScenicDesign!S146 -> 0 | D117: =IF((Table710121314152[[#This Row],[Rank]]+Table710121314152[[#This Row],[Score]])>0,1,0) -> 0
A118: =ScenicDesign!A147 -> EE-904 | B118: =ScenicDesign!U147 -> 0 | C118: =ScenicDesign!S147 -> 0 | D118: =IF((Table710121314152[[#This Row],[Rank]]+Table710121314152[[#This Row],[Score]])>0,1,0) -> 0
A119: =ScenicDesign!A149 -> FF-901 | B119: =ScenicDesign!U149 -> 0 | C119: =ScenicDesign!S149 -> 0 | D119: =IF((Table710121314152[[#This Row],[Rank]]+Table710121314152[[#This Row],[Score]])>0,1,0) -> 0
A120: =ScenicDesign!A150 -> FF-902 | B120: =ScenicDesign!U150 -> 0 | C120: =ScenicDesign!S150 -> 0 | D120: =IF((Table710121314152[[#This Row],[Rank]]+Table710121314152[[#This Row],[Score]])>0,1,0) -> 0
A121: =ScenicDesign!A151 -> FF-903 | B121: =ScenicDesign!U151 -> 0 | C121: =ScenicDesign!S151 -> 0 | D121: =IF((Table710121314152[[#This Row],[Rank]]+Table710121314152[[#This Row],[Score]])>0,1,0) -> 0
A122: =ScenicDesign!A152 -> FF-904 | B122: =ScenicDesign!U152 -> 0 | C122: =ScenicDesign!S152 -> 0 | D122: =IF((Table710121314152[[#This Row],[Rank]]+Table710121314152[[#This Row],[Score]])>0,1,0) -> 0

Sheet CostumeResults
A1: Costume Design
A2: ID | B2: Rank | C2: Score | D2: LeaveBlank
A3: =CostumeDesign!A5 -> A-802 | B3: =CostumeDesign!U5 -> 0 | C3: =CostumeDesign!S5 -> 0 | D3: =IF((Table71012131415235[[#This Row],[Rank]]+Table71012131415235[[#This Row],[Score]])>0,1,0) -> 0
A4: =CostumeDesign!A11 -> B-803 | B4: =CostumeDesign!U11 -> 0 | C4: =CostumeDesign!S11 -> 0 | D4: =IF((Table71012131415235[[#This Row],[Rank]]+Table71012131415235[[#This Row],[Score]])>0,1,0) -> 0
A5: =CostumeDesign!A4 -> A-801 | B5: =CostumeDesign!U4 -> 0 | C5: =CostumeDesign!S4 -> 0 | D5: =IF((Table71012131415235[[#This Row],[Rank]]+Table71012131415235[[#This Row],[Score]])>0,1,0) -> 0
A6: =CostumeDesign!A6 -> A-803 | B6: =CostumeDesign!U6 -> 0 | C6: =CostumeDesign!S6 -> 0 | D6: =IF((Table71012131415235[[#This Row],[Rank]]+Table71012131415235[[#This Row],[Score]])>0,1,0) -> 0
A7: =CostumeDesign!A7 -> A-804 | B7: =CostumeDesign!U7 -> 0 | C7: =CostumeDesign!S7 -> 0 | D7: =IF((Table71012131415235[[#This Row],[Rank]]+Table71012131415235[[#This Row],[Score]])>0,1,0) -> 0
A8: =CostumeDesign!A9 -> B-801 | B8: =CostumeDesign!U9 -> 0 | C8: =CostumeDesign!S9 -> 0 | D8: =IF((Table71012131415235[[#This Row],[Rank]]+Table71012131415235[[#This Row],[Score]])>0,1,0) -> 0
A9: =CostumeDesign!A10 -> B-802 | B9: =CostumeDesign!U10 -> 0 | C9: =CostumeDesign!S10 -> 0 | D9: =IF((Table71012131415235[[#This Row],[Rank]]+Table71012131415235[[#This Row],[Score]])>0,1,0) -> 0
A10: =CostumeDesign!A12 -> B-804 | B10: =CostumeDesign!U12 -> 0 | C10: =CostumeDesign!S12 -> 0 | D10: =IF((Table71012131415235[[#This Row],[Rank]]+Table71012131415235[[#This Row],[Score]])>0,1,0) -> 0
A11: =CostumeDesign!A14 -> C-801 | B11: =CostumeDesign!U14 -> 0 | C11: =CostumeDesign!S14 -> 0 | D11: =IF((Table71012131415235[[#This Row],[Rank]]+Table71012131415235[[#This Row],[Score]])>0,1,0) -> 0
A12: =CostumeDesign!A15 -> C-802 | B12: =CostumeDesign!U15 -> 0 | C12: =CostumeDesign!S15 -> 0 | D12: =IF((Table71012131415235[[#This Row],[Rank]]+Table71012131415235[[#This Row],[Score]])>0,1,0) -> 0
A13: =CostumeDesign!A16 -> C-803 | B13: =CostumeDesign!U16 -> 0 | C13: =CostumeDesign!S16 -> 0 | D13: =IF((Table71012131415235[[#This Row],[Rank]]+Table71012131415235[[#This Row],[Score]])>0,1,0) -> 0
A14: =CostumeDesign!A17 -> C-804 | B14: =CostumeDesign!U17 -> 0 | C14: =CostumeDesign!S17 -> 0 | D14: =IF((Table71012131415235[[#This Row],[Rank]]+Table71012131415235[[#This Row],[Score]])>0,1,0) -> 0
A15: =CostumeDesign!A19 -> D-801 | B15: =CostumeDesign!U19 -> 0 | C15: =CostumeDesign!S19 -> 0 | D15: =IF((Table71012131415235[[#This Row],[Rank]]+Table71012131415235[[#This Row],[Score]])>0,1,0) -> 0
A16: =CostumeDesign!A20 -> D-802 | B16: =CostumeDesign!U20 -> 0 | C16: =CostumeDesign!S20 -> 0 | D16: =IF((Table71012131415235[[#This Row],[Rank]]+Table71012131415235[[#This Row],[Score]])>0,1,0) -> 0
A17: =CostumeDesign!A21 -> D-803 | B17: =CostumeDesign!U21 -> 0 | C17: =CostumeDesign!S21 -> 0 | D17: =IF((Table71012131415235[[#This Row],[Rank]]+Table71012131415235[[#This Row],[Score]])>0,1,0) -> 0
A18: =CostumeDesign!A22 -> D-804 | B18: =CostumeDesign!U22 -> 0 | C18: =CostumeDesign!S22 -> 0 | D18: =IF((Table71012131415235[[#This Row],[Rank]]+Table71012131415235[[#This Row],[Score]])>0,1,0) -> 0
A19: =CostumeDesign!A24 -> E-801 | B19: =CostumeDesign!U24 -> 0 | C19: =CostumeDesign!S24 -> 0 | D19: =IF((Table71012131415235[[#This Row],[Rank]]+Table71012131415235[[#This Row],[Score]])>0,1,0) -> 0
A20: =CostumeDesign!A25 -> E-802 | B20: =CostumeDesign!U25 -> 0 | C20: =CostumeDesign!S25 -> 0 | D20: =IF((Table71012131415235[[#This Row],[Rank]]+Table71012131415235[[#This Row],[Score]])>0,1,0) -> 0
A21: =CostumeDesign!A26 -> E-803 | B21: =CostumeDesign!U26 -> 0 | C21: =CostumeDesign!S26 -> 0 | D21: =IF((Table71012131415235[[#This Row],[Rank]]+Table71012131415235[[#This Row],[Score]])>0,1,0) -> 0
A22: =CostumeDesign!A27 -> E-804 | B22: =CostumeDesign!U27 -> 0 | C22: =CostumeDesign!S27 -> 0 | D22: =IF((Table71012131415235[[#This Row],[Rank]]+Table71012131415235[[#This Row],[Score]])>0,1,0) -> 0
A23: =CostumeDesign!A29 -> F-801 | B23: =CostumeDesign!U29 -> 0 | C23: =CostumeDesign!S29 -> 0 | D23: =IF((Table71012131415235[[#This Row],[Rank]]+Table71012131415235[[#This Row],[Score]])>0,1,0) -> 0
A24: =CostumeDesign!A30 -> F-802 | B24: =CostumeDesign!U30 -> 0 | C24: =CostumeDesign!S30 -> 0 | D24: =IF((Table71012131415235[[#This Row],[Rank]]+Table71012131415235[[#This Row],[Score]])>0,1,0) -> 0
A25: =CostumeDesign!A31 -> F-803 | B25: =CostumeDesign!U31 -> 0 | C25: =CostumeDesign!S31 -> 0 | D25: =IF((Table71012131415235[[#This Row],[Rank]]+Table71012131415235[[#This Row],[Score]])>0,1,0) -> 0
A26: =CostumeDesign!A32 -> F-804 | B26: =CostumeDesign!U32 -> 0 | C26: =CostumeDesign!S32 -> 0 | D26: =IF((Table71012131415235[[#This Row],[Rank]]+Table71012131415235[[#This Row],[Score]])>0,1,0) -> 0
A27: =CostumeDesign!A34 -> G-801 | B27: =CostumeDesign!U34 -> 0 | C27: =CostumeDesign!S34 -> 0 | D27: =IF((Table71012131415235[[#This Row],[Rank]]+Table71012131415235[[#This Row],[Score]])>0,1,0) -> 0
A28: =CostumeDesign!A35 -> G-802 | B28: =CostumeDesign!U35 -> 0 | C28: =CostumeDesign!S35 -> 0 | D28: =IF((Table71012131415235[[#This Row],[Rank]]+Table71012131415235[[#This Row],[Score]])>0,1,0) -> 0
A29: =CostumeDesign!A36 -> G-803 | B29: =CostumeDesign!U36 -> 0 | C29: =CostumeDesign!S36 -> 0 | D29: =IF((Table71012131415235[[#This Row],[Rank]]+Table71012131415235[[#This Row],[Score]])>0,1,0) -> 0
A30: =CostumeDesign!A37 -> G-804 | B30: =CostumeDesign!U37 -> 0 | C30: =CostumeDesign!S37 -> 0 | D30: =IF((Table71012131415235[[#This Row],[Rank]]+Table71012131415235[[#This Row],[Score]])>0,1,0) -> 0
A31: =CostumeDesign!A39 -> H-801 | B31: =CostumeDesign!U39 -> 0 | C31: =CostumeDesign!S39 -> 0 | D31: =IF((Table71012131415235[[#This Row],[Rank]]+Table71012131415235[[#This Row],[Score]])>0,1,0) -> 0
A32: =CostumeDesign!A40 -> H-802 | B32: =CostumeDesign!U40 -> 0 | C32: =CostumeDesign!S40 -> 0 | D32: =IF((Table71012131415235[[#This Row],[Rank]]+Table71012131415235[[#This Row],[Score]])>0,1,0) -> 0
A33: =CostumeDesign!A41 -> H-803 | B33: =CostumeDesign!U41 -> 0 | C33: =CostumeDesign!S41 -> 0 | D33: =IF((Table71012131415235[[#This Row],[Rank]]+Table71012131415235[[#This Row],[Score]])>0,1,0) -> 0
A34: =CostumeDesign!A42 -> H-804 | B34: =CostumeDesign!U42 -> 0 | C34: =CostumeDesign!S42 -> 0 | D34: =IF((Table71012131415235[[#This Row],[Rank]]+Table71012131415235[[#This Row],[Score]])>0,1,0) -> 0
A35: =CostumeDesign!A44 -> J-801 | B35: =CostumeDesign!U44 -> 0 | C35: =CostumeDesign!S44 -> 0 | D35: =IF((Table71012131415235[[#This Row],[Rank]]+Table71012131415235[[#This Row],[Score]])>0,1,0) -> 0
A36: =CostumeDesign!A45 -> J-802 | B36: =CostumeDesign!U45 -> 0 | C36: =CostumeDesign!S45 -> 0 | D36: =IF((Table71012131415235[[#This Row],[Rank]]+Table71012131415235[[#This Row],[Score]])>0,1,0) -> 0
A37: =CostumeDesign!A46 -> J-803 | B37: =CostumeDesign!U46 -> 0 | C37: =CostumeDesign!S46 -> 0 | D37: =IF((Table71012131415235[[#This Row],[Rank]]+Table71012131415235[[#This Row],[Score]])>0,1,0) -> 0
A38: =CostumeDesign!A47 -> J-804 | B38: =CostumeDesign!U47 -> 0 | C38: =CostumeDesign!S47 -> 0 | D38: =IF((Table71012131415235[[#This Row],[Rank]]+Table71012131415235[[#This Row],[Score]])>0,1,0) -> 0
A39: =CostumeDesign!A49 -> K-801 | B39: =CostumeDesign!U49 -> 0 | C39: =CostumeDesign!S49 -> 0 | D39: =IF((Table71012131415235[[#This Row],[Rank]]+Table71012131415235[[#This Row],[Score]])>0,1,0) -> 0
A40: =CostumeDesign!A50 -> K-802 | B40: =CostumeDesign!U50 -> 0 | C40: =CostumeDesign!S50 -> 0 | D40: =IF((Table71012131415235[[#This Row],[Rank]]+Table71012131415235[[#This Row],[Score]])>0,1,0) -> 0
A41: =CostumeDesign!A51 -> K-803 | B41: =CostumeDesign!U51 -> 0 | C41: =CostumeDesign!S51 -> 0 | D41: =IF((Table71012131415235[[#This Row],[Rank]]+Table71012131415235[[#This Row],[Score]])>0,1,0) -> 0
A42: =CostumeDesign!A52 -> K-804 | B42: =CostumeDesign!U52 -> 0 | C42: =CostumeDesign!S52 -> 0 | D42: =IF((Table71012131415235[[#This Row],[Rank]]+Table71012131415235[[#This Row],[Score]])>0,1,0) -> 0
A43: =CostumeDesign!A54 -> L-801 | B43: =CostumeDesign!U54 -> 0 | C43: =CostumeDesign!S54 -> 0 | D43: =IF((Table71012131415235[[#This Row],[Rank]]+Table71012131415235[[#This Row],[Score]])>0,1,0) -> 0
A44: =CostumeDesign!A55 -> L-802 | B44: =CostumeDesign!U55 -> 0 | C44: =CostumeDesign!S55 -> 0 | D44: =IF((Table71012131415235[[#This Row],[Rank]]+Table71012131415235[[#This Row],[Score]])>0,1,0) -> 0
A45: =CostumeDesign!A56 -> L-803 | B45: =CostumeDesign!U56 -> 0 | C45: =CostumeDesign!S56 -> 0 | D45: =IF((Table71012131415235[[#This Row],[Rank]]+Table71012131415235[[#This Row],[Score]])>0,1,0) -> 0
A46: =CostumeDesign!A57 -> L-804 | B46: =CostumeDesign!U57 -> 0 | C46: =CostumeDesign!S57 -> 0 | D46: =IF((Table71012131415235[[#This Row],[Rank]]+Table71012131415235[[#This Row],[Score]])>0,1,0) -> 0
A47: =CostumeDesign!A59 -> M-801 | B47: =CostumeDesign!U59 -> 0 | C47: =CostumeDesign!S59 -> 0 | D47: =IF((Table71012131415235[[#This Row],[Rank]]+Table71012131415235[[#This Row],[Score]])>0,1,0) -> 0
A48: =CostumeDesign!A60 -> M-802 | B48: =CostumeDesign!U60 -> 0 | C48: =CostumeDesign!S60 -> 0 | D48: =IF((Table71012131415235[[#This Row],[Rank]]+Table71012131415235[[#This Row],[Score]])>0,1,0) -> 0
A49: =CostumeDesign!A61 -> M-803 | B49: =CostumeDesign!U61 -> 0 | C49: =CostumeDesign!S61 -> 0 | D49: =IF((Table71012131415235[[#This Row],[Rank]]+Table71012131415235[[#This Row],[Score]])>0,1,0) -> 0
A50: =CostumeDesign!A62 -> M-804 | B50: =CostumeDesign!U62 -> 0 | C50: =CostumeDesign!S62 -> 0 | D50: =IF((Table71012131415235[[#This Row],[Rank]]+Table71012131415235[[#This Row],[Score]])>0,1,0) -> 0
A51: =CostumeDesign!A64 -> N-801 | B51: =CostumeDesign!U64 -> 0 | C51: =CostumeDesign!S64 -> 0 | D51: =IF((Table71012131415235[[#This Row],[Rank]]+Table71012131415235[[#This Row],[Score]])>0,1,0) -> 0
A52: =CostumeDesign!A65 -> N-802 | B52: =CostumeDesign!U65 -> 0 | C52: =CostumeDesign!S65 -> 0 | D52: =IF((Table71012131415235[[#This Row],[Rank]]+Table71012131415235[[#This Row],[Score]])>0,1,0) -> 0
A53: =CostumeDesign!A66 -> N-803 | B53: =CostumeDesign!U66 -> 0 | C53: =CostumeDesign!S66 -> 0 | D53: =IF((Table71012131415235[[#This Row],[Rank]]+Table71012131415235[[#This Row],[Score]])>0,1,0) -> 0
A54: =CostumeDesign!A67 -> N-804 | B54: =CostumeDesign!U67 -> 0 | C54: =CostumeDesign!S67 -> 0 | D54: =IF((Table71012131415235[[#This Row],[Rank]]+Table71012131415235[[#This Row],[Score]])>0,1,0) -> 0
A55: =CostumeDesign!A69 -> P-801 | B55: =CostumeDesign!U69 -> 0 | C55: =CostumeDesign!S69 -> 0 | D55: =IF((Table71012131415235[[#This Row],[Rank]]+Table71012131415235[[#This Row],[Score]])>0,1,0) -> 0
A56: =CostumeDesign!A70 -> P-802 | B56: =CostumeDesign!U70 -> 0 | C56: =CostumeDesign!S70 -> 0 | D56: =IF((Table71012131415235[[#This Row],[Rank]]+Table71012131415235[[#This Row],[Score]])>0,1,0) -> 0
A57: =CostumeDesign!A71 -> P-803 | B57: =CostumeDesign!U71 -> 0 | C57: =CostumeDesign!S71 -> 0 | D57: =IF((Table71012131415235[[#This Row],[Rank]]+Table71012131415235[[#This Row],[Score]])>0,1,0) -> 0
A58: =CostumeDesign!A72 -> P-804 | B58: =CostumeDesign!U72 -> 0 | C58: =CostumeDesign!S72 -> 0 | D58: =IF((Table71012131415235[[#This Row],[Rank]]+Table71012131415235[[#This Row],[Score]])>0,1,0) -> 0
A59: =CostumeDesign!A74 -> Q-801 | B59: =CostumeDesign!U74 -> 0 | C59: =CostumeDesign!S74 -> 0 | D59: =IF((Table71012131415235[[#This Row],[Rank]]+Table71012131415235[[#This Row],[Score]])>0,1,0) -> 0
A60: =CostumeDesign!A75 -> Q-802 | B60: =CostumeDesign!U75 -> 0 | C60: =CostumeDesign!S75 -> 0 | D60: =IF((Table71012131415235[[#This Row],[Rank]]+Table71012131415235[[#This Row],[Score]])>0,1,0) -> 0
A61: =CostumeDesign!A76 -> Q-803 | B61: =CostumeDesign!U76 -> 0 | C61: =CostumeDesign!S76 -> 0 | D61: =IF((Table71012131415235[[#This Row],[Rank]]+Table71012131415235[[#This Row],[Score]])>0,1,0) -> 0
A62: =CostumeDesign!A77 -> Q-804 | B62: =CostumeDesign!U77 -> 0 | C62: =CostumeDesign!S77 -> 0 | D62: =IF((Table71012131415235[[#This Row],[Rank]]+Table71012131415235[[#This Row],[Score]])>0,1,0) -> 0
A63: =CostumeDesign!A79 -> R-801 | B63: =CostumeDesign!U79 -> 0 | C63: =CostumeDesign!S79 -> 0 | D63: =IF((Table71012131415235[[#This Row],[Rank]]+Table71012131415235[[#This Row],[Score]])>0,1,0) -> 0
A64: =CostumeDesign!A80 -> R-802 | B64: =CostumeDesign!U80 -> 0 | C64: =CostumeDesign!S80 -> 0 | D64: =IF((Table71012131415235[[#This Row],[Rank]]+Table71012131415235[[#This Row],[Score]])>0,1,0) -> 0
A65: =CostumeDesign!A81 -> R-803 | B65: =CostumeDesign!U81 -> 0 | C65: =CostumeDesign!S81 -> 0 | D65: =IF((Table71012131415235[[#This Row],[Rank]]+Table71012131415235[[#This Row],[Score]])>0,1,0) -> 0
A66: =CostumeDesign!A82 -> R-804 | B66: =CostumeDesign!U82 -> 0 | C66: =CostumeDesign!S82 -> 0 | D66: =IF((Table71012131415235[[#This Row],[Rank]]+Table71012131415235[[#This Row],[Score]])>0,1,0) -> 0
A67: =CostumeDesign!A84 -> S-801 | B67: =CostumeDesign!U84 -> 0 | C67: =CostumeDesign!S84 -> 0 | D67: =IF((Table71012131415235[[#This Row],[Rank]]+Table71012131415235[[#This Row],[Score]])>0,1,0) -> 0
A68: =CostumeDesign!A85 -> S-802 | B68: =CostumeDesign!U85 -> 0 | C68: =CostumeDesign!S85 -> 0 | D68: =IF((Table71012131415235[[#This Row],[Rank]]+Table71012131415235[[#This Row],[Score]])>0,1,0) -> 0
A69: =CostumeDesign!A86 -> S-803 | B69: =CostumeDesign!U86 -> 0 | C69: =CostumeDesign!S86 -> 0 | D69: =IF((Table71012131415235[[#This Row],[Rank]]+Table71012131415235[[#This Row],[Score]])>0,1,0) -> 0
A70: =CostumeDesign!A87 -> S-804 | B70: =CostumeDesign!U87 -> 0 | C70: =CostumeDesign!S87 -> 0 | D70: =IF((Table71012131415235[[#This Row],[Rank]]+Table71012131415235[[#This Row],[Score]])>0,1,0) -> 0
A71: =CostumeDesign!A89 -> T-801 | B71: =CostumeDesign!U89 -> 0 | C71: =CostumeDesign!S89 -> 0 | D71: =IF((Table71012131415235[[#This Row],[Rank]]+Table71012131415235[[#This Row],[Score]])>0,1,0) -> 0
A72: =CostumeDesign!A90 -> T-802 | B72: =CostumeDesign!U90 -> 0 | C72: =CostumeDesign!S90 -> 0 | D72: =IF((Table71012131415235[[#This Row],[Rank]]+Table71012131415235[[#This Row],[Score]])>0,1,0) -> 0
A73: =CostumeDesign!A91 -> T-803 | B73: =CostumeDesign!U91 -> 0 | C73: =CostumeDesign!S91 -> 0 | D73: =IF((Table71012131415235[[#This Row],[Rank]]+Table71012131415235[[#This Row],[Score]])>0,1,0) -> 0
A74: =CostumeDesign!A92 -> T-804 | B74: =CostumeDesign!U92 -> 0 | C74: =CostumeDesign!S92 -> 0 | D74: =IF((Table71012131415235[[#This Row],[Rank]]+Table71012131415235[[#This Row],[Score]])>0,1,0) -> 0
A75: =CostumeDesign!A94 -> U-801 | B75: =CostumeDesign!U94 -> 0 | C75: =CostumeDesign!S94 -> 0 | D75: =IF((Table71012131415235[[#This Row],[Rank]]+Table71012131415235[[#This Row],[Score]])>0,1,0) -> 0
A76: =CostumeDesign!A95 -> U-802 | B76: =CostumeDesign!U95 -> 0 | C76: =CostumeDesign!S95 -> 0 | D76: =IF((Table71012131415235[[#This Row],[Rank]]+Table71012131415235[[#This Row],[Score]])>0,1,0) -> 0
A77: =CostumeDesign!A96 -> U-803 | B77: =CostumeDesign!U96 -> 0 | C77: =CostumeDesign!S96 -> 0 | D77: =IF((Table71012131415235[[#This Row],[Rank]]+Table71012131415235[[#This Row],[Score]])>0,1,0) -> 0
A78: =CostumeDesign!A97 -> U-804 | B78: =CostumeDesign!U97 -> 0 | C78: =CostumeDesign!S97 -> 0 | D78: =IF((Table71012131415235[[#This Row],[Rank]]+Table71012131415235[[#This Row],[Score]])>0,1,0) -> 0
A79: =CostumeDesign!A99 -> V-801 | B79: =CostumeDesign!U99 -> 0 | C79: =CostumeDesign!S99 -> 0 | D79: =IF((Table71012131415235[[#This Row],[Rank]]+Table71012131415235[[#This Row],[Score]])>0,1,0) -> 0
A80: =CostumeDesign!A100 -> V-802 | B80: =CostumeDesign!U100 -> 0 | C80: =CostumeDesign!S100 -> 0 | D80: =IF((Table71012131415235[[#This Row],[Rank]]+Table71012131415235[[#This Row],[Score]])>0,1,0) -> 0
A81: =CostumeDesign!A101 -> V-803 | B81: =CostumeDesign!U101 -> 0 | C81: =CostumeDesign!S101 -> 0 | D81: =IF((Table71012131415235[[#This Row],[Rank]]+Table71012131415235[[#This Row],[Score]])>0,1,0) -> 0
